Workbook

Sheet Control
A1: Real Madrid - Parking
A2: =RIGHT(CELL("filename", $G$3), LEN(CELL("filename", $G$3)) - SEARCH("]", CELL("filename", $G$3))) -> Control
A3: Cifras EUR
B4: Errores | C4: =+Q9 -> 0
B5: TIR Accionistas (Dividendos) | C5: =+M13 -> 0.0700448478
B7: Hipótesis Operativas | F7: Hipótesis Financieras | J7: Resultados | O7: Checks
B9: Hipótesis temporales | F9: Estructura de financiación | J9: TIRes | O9: Errores | Q9: =+COUNTIF(Q10:Q22,"ERROR") -> 0
B10: Inicio del Proyecto | C10: fecha | D10: 2022-01-01 | F10: Capital | G10: =+'Financiación '!F45 -> 40290339.62 | H10: 0.51 | J10: TIR Proyecto A.I. | M10: =+'Cash Flow'!C115 -> 0.08294819321 | O10: Balance | Q10: =+Balance!C48 -> Ok
B11: Periodo de Proyecto | C11: años | D11: 30 | F11: Deuda | G11: =+'Financiación '!F69 -> 38710326.3 | H11: =1-H10 -> 0.49 | J11: TIR Proyecto D.I. | M11: =+'Cash Flow'!C117 -> 0.06718020035 | O11: EOAF | Q11: =+EOAF!C56 -> Ok
B12: Inicio de construcción | C12: fecha | D12: =+D10 -> 2022-01-01 | F12: Total | G12: =+SUM(G10:G11) -> 79000665.92 | H12: =+SUM(H10:H11) -> 1 | J12: TIR FC Libre | M12: =+'Cash Flow'!C119 -> 0.07005699773 | O12: EOAF en construcción | Q12: =+EOAF!C101 -> Ok
B13: Periodo de construcción | C13: meses | D13: 28 | J13: TIR Accionistas (Dividendos) | M13: =+'Cash Flow'!C123 -> 0.0700448478 | O13: Caja Negativa | Q13: =+'Cash Flow'!C106 -> Ok
B14: Fin de construcción | C14: fecha | D14: =+DATE(YEAR(D12),MONTH(D12)+D13,DAY(D12)-1) -> 2024-04-30 | F14: Deuda Project Finance | O14: Amortización del Activo | Q14: =+'Capex '!C122 -> Ok
B15: Inicio de operación | C15: fecha | D15: =+D14+1 -> 2024-05-01 | F15: Plazo máximo Deuda Senior | G15: años | H15: 15 | J15: Deuda Project Finance | O15: Plazo de la Deuda | Q15: =+'Financiación '!F156 -> Ok
B16: Periodo de operación | C16: años | D16: =+D11-(D13/12) -> 27.66666667 | F16: Apalancamiento máximo | G16: % | H16: 0.6 | J16: RCSD mínimo | M16: =+'Financiación '!F145 -> 1.5 | O16: Plazo de la Deuda Óptima | Q16: =+IF(M19<=H15,"Ok","Error") -> Ok
B17: Fin de operación | C17: fecha | D17: =+DATE(YEAR(D10)+D11,MONTH(D10),DAY(D10)-1) -> 2051-12-31 | F17: Margen | G17: % | H17: 0.04 | J17: RCSD último periodo | M17: =+'Financiación '!F146 -> 2.255823922 | O17: RCSD min | Q17: =+'Financiación '!F153 -> Ok
B18: Final del Proyecto | C18: fecha | D18: =+DATE(YEAR(D10)+D11,MONTH(D10),DAY(D10)-1) -> 2051-12-31 | F18: Base cálculo intereses | G18: días | H18: 360 | J18: Año repago de la deuda | M18: =+'Financiación '!F147 -> 2036 | O18: Amortización de la Deuda | Q18: =+'Financiación '!E73 -> Ok
B19: Cierre Financiero | C19: fecha | D19: 2022-01-01 | F19: Comisión de Apertura | G19: % | H19: 0.02 | J19: Plazo de la deuda (años) | M19: =+'Financiación '!F149 -> 15 | O19: Apalancamiento | Q19: =+IF(H11<=H16,"Ok","Error") -> Ok
F20: Comisión de Disponibilidad | G20: % | H20: 0.01 | J20: Años de cola | M20: =+'Financiación '!F150 -> 15 | O20: CRSD | Q20: =+'Financiación '!F174 -> Ok
B21: Escenario seleccionado | F21: Comisión de Agencia | G21: EUR2021 | H21: 50000 | O21: CRMM | Q21: =+'Opex y MM'!C119 -> Ok
B22: Padre Damián | D22: Si | F22: CRSD | G22: % | H22: 0.5 | J22: Ingresos totales periodo concesional | O22: Macro | Q22: =+Macro!E32 -> Ok
B23: Paseo de la Castellana | D23: Si | F23: RCSD Esculpido | G23: ratio | H23: 1.5 | J23: Padre Damián | O23: Total Checks | Q23: =+IF(COUNTIF(Q10:Q22,"Error")>=1,"Error","Ok") -> Ok
F24: RCSD Mínimo | G24: ratio | H24: 1.5 | J24: Ingresos totales | L24: =+SUM(L25:L31) -> 118934677.5 | M24: =+L24/$L$43 -> 0.4365242752
B25: Dimensionamiento | J25: Rotación | L25: =+'Ingresos '!F28 -> 95327214.11 | M25: 0.349878134 | O25: Sensibilidades
B26: Padre Damián | F26: Caja mínima | J26: Residentes/abonados | L26: =+'Ingresos '!F47 -> 0 | M26: 0 | O26: =+IF(SUM(Q27:Q31)=0,"Sensibilidades desactivadas","Sensibilidades activadas") -> Sensibilidades desactivadas
B27: Zona parking | F27: Caja mínima | H27: 200000 | J27: Mov. Compartida - Car Sharing | L27: =+'Ingresos '!F65 -> 0 | M27: 0 | O27: IPC | Q27: 0
B28: Plazas de parking equivalentes | D28: =+SUM(D29:D31)+D34 -> 684.5735294 | J28: Mov. Compartida - Micromovilidad | L28: =+'Ingresos '!F83 -> 0 | M28: 0 | O28: Sensibilidad CAPEX | Q28: 0
B29: Rotación (REALES) | C29: nº plazas | D29: 552 | F29: Reducciones de capital | J29: Área logística | L29: =+'Ingresos '!F126 -> 10568720.17 | M29: 0.0387902251 | O29: Sensibilidad Ingresos totales | Q29: 0
B30: Residentes/trabajadores | C30: nº plazas | D30: 0 | F30: Activada | H30: Si | J30: Dársenas autobuses | L30: =+'Ingresos '!F150 -> 10137897.45 | M30: 0.03720898252 | O30: Sensibilidad Ingresos - ramp up | Q30: 0
B31: Mov. Compartida (Car Sharing) | C31: nº plazas | D31: 0 | F31: A partir del año | H31: =+YEAR(D14) -> 2024 | J31: Otros ingresos | L31: =+'Ingresos '!F170 -> 2900845.793 | M31: 0.01064693354 | O31: Sensibilidad OPEX | Q31: 0
B32: Área logística (PD-1) | C32: m2 | D32: 3606 | J32: Paseo de la Castellana
B33: Tamaño plaza | C33: m2 | D33: 27.2 | J33: Ingresos totales | L33: =+SUM(L34:L42) -> 153523658.2 | M33: =+L33/$L$43 -> 0.5634757248
B34: Traducción a plazas | C34: nº plazas | D34: =+D32/D33 -> 132.5735294 | J34: Rotación | L34: =+'Ingresos '!F35 -> 107243115.9 | M34: =+L34/$L$43 -> 0.3936129008
B35: Zona anexa | C35: m2 | D35: =+D36+D37 -> 3617.79 | J35: Residentes/abonados | L35: =+'Ingresos '!F53 -> 18725529.06 | M35: =+L35/$L$43 -> 0.06872804608
B36: Área logística (CDU) | C36: m2 | D36: 0 | J36: Mov. Compartida - Car Sharing | L36: =+'Ingresos '!F71 -> 5080176.087 | M36: =+L36/$L$43 -> 0.01864569888
B37: Dársenas autobuses | C37: m2 | D37: 3617.79 | F37: 108 | J37: Mov. Compartida - Micromovilidad | L37: =+'Ingresos '!F89 -> 0 | M37: =+L37/$L$43 -> 0
B38: Traducción a dársenas | C38: nº dársenas | D38: 12 | J38: Electrolinera | L38: =+'Ingresos '!F113 -> 9370010.14 | M38: 0.03439061651
B39: Paseo de la Castellana | J39: Área logística | L39: =+'Ingresos '!F137 -> 0 | M39: 0
B40: Plazas de parking equivalentes | D40: =+D41+D42+D44+D47+D48 -> 1287.480147 | E40: =+D41+D42+D44+D48 -> 1221 | F40: Plazas parking SIN Micromovilidad | J40: Dársenas autobuses | L40: =+'Ingresos '!F157 -> 0 | M40: 0
B41: Rotación (REALES) | C41: nº plazas | D41: 621 | J41: Actividades complementarias Plaza Castellana | L41: =+'Ingresos '!F164 -> 9828606.544 | M41: 0.03607379644
B42: Abonados (REALES) | C42: nº plazas | D42: 494 | J42: Otros ingresos | L42: =+'Ingresos '!F172 -> 3276220.525 | M42: =+L42/$L$43 -> 0.01202466614
B43: Mov. Compartida | J43: Total | L43: =+L24+L33 -> 272458335.8
B44: Car Sharing | C44: nº plazas | D44: 100 | L44: =+L43-'Ingresos '!F188 -> 0 | M44: Check
B45: Micromovilidad | C45: m2 | D45: 1808.26 | J45: Gastos totales periodo concesional
B46: Tamaño plaza | C46: m2 | D46: =D33 -> 27.2 | J46: Gastos Canon | L46: =+'Opex y MM'!F29 -> 7026548.09 | M46: =+L46/$L$51 -> 0.1263688154
B47: Traducción a plazas | C47: nº plazas | D47: =+D45/D46 -> 66.48014706 | J47: Gastos MM | L47: =+'Opex y MM'!F97 -> 6700747.795 | M47: =+L47/$L$51 -> 0.1205094664
B48: Electrolineras | C48: nº plazas | D48: 6 | J48: Gastos operativos Padre Damián | L48: =+'Opex y MM'!F40 -> 15893042.61 | M48: =+L48/$L$51 -> 0.2858281111
B49: Área logística | C49: m2 | D49: 0 | J49: Gastos operativos Paseo de la Castellana | L49: =+'Opex y MM'!F43 -> 25983158.84 | M49: =+L49/$L$51 -> 0.4672936071
B50: Plaza Paseo Castellana | C50: m2 | D50: 19661.78
B51: Dársenas autobuses | C51: m2 | D51: 0 | J51: Total | L51: =+L46+L47+L48+L49 -> 55603497.34 | M51: =+SUM(M46:M49) -> 1
B53: Inversión | J53: EOAF en construcción
B54: Gastos diseño (sobre inversión) | C54: % | D54: 0.05 | J54: Origen fondos
B55: Otros gastos inic. (sobre inversión) | C55: % | D55: 0.01 | J55: Capital | L55: =+EOAF!F73 -> 40290339.62 | M55: =+L55/$L$57 -> 0.51
B56: Indemnización pistas de pádel | C56: EUR2021 | D56: 50000 | J56: Deuda | L56: =+EOAF!F74 -> 38710326.3 | M56: =+L56/$L$57 -> 0.49
B57: Padre Damián | J57: Total | L57: =+SUM(L55:L56) -> 79000665.92 | M57: =+SUM(M55:M56) -> 1
B58: Inversión Zona parking | J58: Aplicación de fondos
B59: Coste inversión | C59: EUR2021 | D59: =+'Detalle CAPEX'!H39-'Detalle CAPEX'!H36-'Detalle CAPEX'!L34 -> 26565623.3 | J59: Inversión y otros gastos iniciales | L59: =-(+EOAF!F82+EOAF!F83+EOAF!F84+EOAF!F88+EOAF!F89+EOAF!F90+EOAF!F96) -> 73224128.66 | M59: =+L59/$L$64 -> 0.9268798916
B60: Coste obras adicionales | C60: EUR2021 | D60: =+'Detalle CAPEX'!H36 -> 1462585.8 | J60: Canon | L60: =-EOAF!F86 -> 474143.7273 | M60: =+L60/$L$64 -> 0.006001768742
B61: Coste unitario parking | C61: EUR 2021/plaza | D61: =+(D59+D60)/D28 -> 40942.58381 | J61: Impuesto de sociedades | L61: =-EOAF!F93 -> 106500.9008 | M61: =+L61/$L$64 -> 0.001348101305
B62: Inversión Zona anexa | J62: Gastos financieros | L62: =-EOAF!F94 -> 3586360.428 | M62: =+L62/$L$64 -> 0.04539658478
B63: Total coste | C63: EUR2021 | D63: =+'Detalle CAPEX'!L34 -> 3509041.92 | J63: 1ª dotación CRSD | L63: =-EOAF!F95 -> 1609532.201 | M63: =+L63/$L$64 -> 0.0203736536
B64: Coste unitario | C64: EUR2021/m2 | D64: =+D63/D35 -> 969.9407428 | J64: Total | L64: =+SUM(L59:L63) -> 79000665.92 | M64: =+SUM(M59:M63) -> 1
B65: Paseo de la Castellana
B66: Inversión
B67: Coste inversión | C67: EUR2021 | D67: =+'Detalle CAPEX'!D41 -> 35974443.65
B68: Coste obras adicionales | C68: EUR2021 | D68: 0
B69: Coste unitario | C69: EUR 2021/plaza | D69: =+(D67+D68)/D40 -> 27941.74631
B71: Distribución inversión | C71: Padre Damián | D71: Paseo de la Castellana
B72: Obra civil | C72: =+'Detalle CAPEX'!I45 -> 0.8936534095 | D72: =+'Detalle CAPEX'!E45 -> 0.8552852325
B73: Instalaciones | C73: =+'Detalle CAPEX'!I46 -> 0.08963075977 | D73: =+'Detalle CAPEX'!E46 -> 0.1279989365
B74: Otras inversiones | C74: =+'Detalle CAPEX'!I47 -> 0.01671583074 | D74: =+'Detalle CAPEX'!E47 -> 0.01671583099
B75: Total | C75: =+SUM(C72:C74) -> 1 | D75: =+SUM(D72:D74) -> 1
B77: Gastos de O&M
B78: Gastos de SPV | C78: EUR2021 | D78: 0
B79: Canon | C79: EUR2021 | D79: 200000
B80: Coste unitario plaza
B81: Padre Damián | C81: EUR/Plaza/año | D81: 708.624642
B82: Paseo de la Castellana | C82: EUR/Plaza/año | D82: 616
B83: Coste unitario m2
B84: Padre Damián | C84: EUR/m2/año | D84: =+D81/D33 -> 26.05237654
B85: Plaza de Castellana | C85: EUR/m2/año | D85: 7
B87: Mantenimiento Mayor
B88: % sobre Instalaciones | C88: % | D88: 0.7
B89: Periodicidad | C89: años | D89: 14
B91: Ingresos
B92: Rotación
B93: Tarifa | C93: EUR2021/plaza/hora | D93: 1.968723889
B94: Horas diarias consideradas | C94: horas | D94: 24
B95: Ocupación (en operación)
B96: 1 | C96: % | D96: 0.23
B97: 2 | C97: % | D97: 0.25
B98: 3 | C98: % | D98: 0.28
B99: Ocupación estabilizada | C99: % | D99: 0.31
B100: Residentes/trabajadores
B101: Abono | C101: EUR2021/plaza/mes | D101: 97
B102: Ocupación (en operación)
B103: 1 | C103: % | D103: 0.9
B104: 2 | C104: % | D104: 0.92
B105: 3 | C105: % | D105: 0.96
B106: Ocupación estabilizada | C106: % | D106: 1
B107: Mov. Compartida - Car Sharing
B108: Tarifa | C108: EUR2021/plaza/mes | D108: 130
B109: Ocupación (en operación)
B110: 1 | C110: % | D110: 0.9
B111: 2 | C111: % | D111: 0.92
B112: 3 | C112: % | D112: 0.96
B113: Ocupación estabilizada | C113: % | D113: 1
B114: Mov. Compartida - Micromovilidad
B115: Tarifa | C115: EUR2021/plaza/mes | D115: 0
B116: Ocupación (en operación)
B117: 1 | C117: % | D117: 0.9
B118: 2 | C118: % | D118: 0.92
B119: 3 | C119: % | D119: 0.96
B120: Ocupación estabilizada | C120: % | D120: 1
B121: Electrolineras
B122: Tarifa recarga completa | C122: EUR2021/recarga | D122: 12.5
B123: Tarifa recarga 100 km | C123: EUR2021/recarga | D123: 4.5
B124: Uso medio al año | C124: días | D124: 220
B125: Horas de uso al día | C125: horas | D125: 15
B126: Recargas por hora | C126: nº | D126: 2
B127: Tipología recargas
B128: Recarga completa | C128: % | D128: 0.3
B129: Recarga 100 km | C129: % | D129: 0.7
B130: Ocupación (en operación)
B131: 1 | C131: % | D131: 0.6
B132: 2 | C132: % | D132: 0.8
B133: 3 | C133: % | D133: 0.8
B134: 4 | C134: % | D134: 0.8
B135: 5 | C135: % | D135: 1
B136: 6 | C136: % | D136: 1
B137: 7 | C137: % | D137: 1
B138: 8 | C138: % | D138: 1
B139: 9 | C139: % | D139: 1
B140: 10 | C140: % | D140: 1
B141: Ocupación estabilizada | C141: % | D141: 1.1
B142: Área logística (PD-1)
B143: Tarifa | C143: EUR2021/m2/mes | D143: 7.5
B144: Ocupación (en operación)
B145: 1 | C145: % | D145: 0.9
B146: 2 | C146: % | D146: 0.92
B147: 3 | C147: % | D147: 0.96
B148: Ocupación estabilizada | C148: % | D148: 1
B149: Área logística (CDU)
B150: Tarifa | C150: EUR2021/m2/mes | D150: 7.5
B151: Ocupación (en operación)
B152: 1 | C152: % | D152: 0.9
B153: 2 | C153: % | D153: 0.92
B154: 3 | C154: % | D154: 0.96
B155: Ocupación estabilizada | C155: % | D155: 1
B156: Dársenas autobuses
B157: Tarifa | C157: EUR2021/dársena/hora | D157: 7.471188
B158: Horas diarias consideradas | C158: horas | D158: 24
B159: Ocupación (en operación)
B160: 1 | C160: % | D160: =30% -> 0.3
B161: 2 | C161: % | D161: =32% -> 0.32
B162: 3 | C162: % | D162: =35% -> 0.35
B163: Ocupación estabilizada | C163: % | D163: =40% -> 0.4
B164: Actividades complementarias Plaza de Castellana
B165: Ingreso anual | C165: EUR2021/año | D165: 300000
B166: Otros ingresos
B167: % sobre ingresos totales | C167: % | D167: 0.025

Sheet Resultados (hidden)
A1: Real Madrid - Parking
A2: =RIGHT(CELL("filename", $I$3), LEN(CELL("filename", $I$3)) - SEARCH("]", CELL("filename", $I$3))) -> Resultados
A3: Cifras EUR
C5: 1000000
N10: TIRes
C11: =+Control!M10 -> 0.08294819321 | N11: TIR Proyecto A.I. | O11: 0.08296388639
C12: =+Control!M11 -> 0.06718020035 | N12: TIR Proyecto D.I. | O12: 0.06708145821
C13: =+Control!M12 -> 0.07005699773 | N13: TIR FC Libre | O13: 0.06989112611
C14: =+Control!M13 -> 0.0700448478 | N14: TIR Accionistas | O14: 0.06987838475
N16: Estructura de capital | O16: M€
C17: =+Control!L55/C5 -> 40.29033962 | D17: =+Control!M55 -> 0.51 | N17: Capital | O17: 40.40423728 | P17: 0.51
C18: =+Control!L56/C5 -> 38.7103263 | D18: =+Control!M56 -> 0.49 | N18: Deuda | O18: 38.81975738 | P18: 0.49
C19: =+SUM(C17:C18) -> 79.00066592 | D19: =+SUM(D17:D18) -> 1 | N19: Origen de fondos | O19: 79.22399466 | P19: 1
C21: =+Control!H23 -> 1.5 | N21: RCSD | O21: 1.5
C22: =+Control!M19 -> 15 | N22: Plazo de la deuda | O22: 15
C24: Padre Damián | D24: Paseo Castellana | F24: Ingresos (M€ corrientes) | G24: Padre Damián | I24: Paseo Castellana | K24: Total
C25: =+'Ingresos '!F190/$C$5 -> 118.9346775 | D25: =+'Ingresos '!F191/C5 -> 153.5236582 | E25: =+C25+D25 -> 272.4583358 | F25: Ingresos totales | G25: 130.9994885 | H25: =+SUM(H26:H34) -> 1 | I25: 139.231859 | J25: =+SUM(J26:J34) -> 1 | K25: =+G25+I25 -> 270.2313475 | L25: =+SUM(L26:L34) -> 1
C26: =+'Ingresos '!F28/$C$5 -> 95.32721411 | D26: =+'Ingresos '!F35/C5 -> 107.2431159 | E26: =+C26+D26 -> 202.57033 | F26: Rotación | G26: 114.7680262 | H26: =+IFERROR(G26/$G$25,0) -> 0.8760952237 | I26: 89.20605673 | J26: =+IFERROR(I26/$I$25,0) -> 0.6407014701 | K26: =+G26+I26 -> 203.9740829 | L26: =+IFERROR(K26/$K$25,0) -> 0.7548128107
C27: =+'Ingresos '!F47/C5 -> 0 | D27: =+'Ingresos '!F53/C5 -> 18.72552906 | E27: 18.72552906 | F27: Residentes/trabajadores | G27: 0 | H27: 0 | I27: 22.81936942 | J27: 0.1638947406 | K27: 22.81936942 | L27: 0.08444382796
C28: =+'Ingresos '!F65/C5 -> 0 | D28: =+'Ingresos '!F71/$C$5 -> 5.080176087 | E28: 5.080176087 | F28: Movilidad compartida - Car Sharing | G28: 0 | H28: 0 | I28: 5.080176087 | J28: 0.03648716698 | K28: 5.080176087 | L28: 0.0187993589
C29: =+'Ingresos '!F83 -> 0 | D29: =+'Ingresos '!F89/$C$5 -> 0 | E29: 0 | F29: Movilidad compartida - Micromovilidad | G29: 0 | H29: 0 | I29: 0 | J29: 0 | K29: 0 | L29: 0
C30: 0 | D30: =+'Ingresos '!F113/$C$5 -> 9.37001014 | E30: 9.37001014 | F30: Electrolineras | G30: 0 | H30: 0 | I30: 9.37001014 | J30: 0.06729788864 | K30: 9.37001014 | L30: 0.03467403107
C31: =+('Ingresos '!F126+'Ingresos '!F131)/C5 -> 10.56872017 | D31: =+'Ingresos '!F137/C5 -> 0 | E31: 10.56872017 | F31: DUM (Plataforma logística) | G31: 2.898455388 | H31: 0.02212570004 | I31: 0 | J31: 0 | K31: 2.898455388 | L31: 0.01072582961
C32: =+'Ingresos '!F150/C5 -> 10.13789745 | D32: =+'Ingresos '!F157/C5 -> 0 | E32: 10.13789745 | F32: Autobuses | G32: 10.13789745 | H32: 0.07738883233 | I32: 0 | J32: 0 | K32: 10.13789745 | L32: 0.03751562336
C33: 0 | D33: =+'Ingresos '!F164/$C$5 -> 9.828606544 | E33: 9.828606544 | F33: Actividades complementarias Plaza Castellana | G33: 0 | H33: 0 | I33: 9.828606544 | J33: 0.07059164918 | K33: 9.828606544 | L33: 0.03637108217
C34: =+'Ingresos '!F170/C5 -> 2.900845793 | D34: =+'Ingresos '!F172/C5 -> 3.276220525 | E34: 6.177066319 | F34: Otros | G34: 3.195109476 | H34: 0.0243902439 | I34: 2.927640056 | J34: 0.02102708444 | K34: 6.122749532 | L34: 0.02265743626
B35: =+'Ingresos '!E190 -> 0.4365242752 | D35: =+'Ingresos '!E191 -> 0.5634757248 | F35: Distribución total ingresos por parking | G35: 0.484767921 | I35: 0.515232079 | K35: 1
G36: =+G25*$C$5-Control!L24 -> 12064810.99 | H36: Check | I36: =+I25*$C$5-Control!L33 -> -14291799.25 | J36: Check | K36: =+K25*$C$5-Control!L43 -> -2226988.261 | L36: Check
D37: CASO BASE
D38: CASO BASE
D39: CASO BASE
D40: CASO BASE
D41: CASO BASE
D42: CASO BASE
D43: CASO BASE
D44: CASO BASE
D45: CASO BASE
D46: CASO BASE
D47: CASO BASE
D48: CASO BASE
D49: CASO BASE
D50: CASO BASE

Sheet Sensibilidades (hidden)
A1: Real Madrid - Parking
A2: =RIGHT(CELL("filename", $H$3), LEN(CELL("filename", $H$3)) - SEARCH("]", CELL("filename", $H$3))) -> Sensibilidades
A3: Cifras EUR | F3: Base | G3: Caso 1 | H3: Caso 2 | I3: Caso 3 | J3: Caso 4 | P3: Base | R3: Caso 5 | T3: Caso 6 | V3: Caso 7
C4: =+Resultados!C5 -> 1000000 | E4: CAPEX | F4: Base | G4: Base + 10% | H4: Base - 10% | I4: Base | J4: Base | O4: Ocupación (Plazas residentes) | P4: Base | R4: 380 | T4: 275 | V4: 150
E5: OPEX | F5: Base | G5: Base | H5: Base | I5: Base + 10% | J5: Base - 10%
E7: CAPEX (M€ corrientes) | O7: CAPEX (M€ corrientes)
C8: =+'Capex '!F96/C4 -> 60.02943053 | E8: Obra civil y obras adicionales | F8: 40.32138941 | G8: 44.35352836 | H8: 36.28925047 | I8: 40.32138941 | J8: 40.32138941 | L8: =+'Capex '!F96/C4 -> 60.02943053 | O8: Obra civil y obras adicionales | P8: 40.32138941 | R8: 40.32138941 | T8: 40.32138941 | V8: 40.32138941
C9: =+'Capex '!F97/C4 -> 7.595930945 | E9: Instalaciones | F9: 10.66368246 | G9: 11.7300507 | H9: 9.597314212 | I9: 10.66368246 | J9: 10.66368246 | L9: =+'Capex '!F97/C4 -> 7.595930945 | O9: Instalaciones | P9: 10.66368246 | R9: 10.66368246 | T9: 10.66368246 | V9: 10.66368246
C10: =+'Capex '!F98/C4 -> 1.153499597 | E10: Otros | F10: 2.132736492 | G10: 2.346010141 | H10: 1.919462842 | I10: 2.132736492 | J10: 2.132736492 | L10: =+'Capex '!F98/C4 -> 1.153499597 | O10: Otros | P10: 2.132736492 | R10: 2.132736492 | T10: 2.132736492 | V10: 2.132736492
C11: =+SUM(C8:C10) -> 68.77886107 | E11: Total Inversión | F11: =(+SUM(F8:F10)) -> 53.11780836 | G11: 58.4295892 | H11: 47.80602753 | I11: 53.11780836 | J11: 53.11780836 | L11: =+SUM(C8:C10) -> 68.77886107 | O11: Total Inversión | P11: 53.11780836 | R11: 53.11780836 | T11: 53.11780836 | V11: 53.11780836
C12: =+'Capex '!F99/C4 -> 3.438943053 | E12: Diseño (1%) | F12: =(+F11*1%) -> 0.5311780836 | G12: 0.584295892 | H12: 0.4780602753 | I12: 0.5311780836 | J12: 0.5311780836 | L12: =+'Capex '!F99/C4 -> 3.438943053 | O12: Diseño (1%) | P12: 0.5311780836 | R12: 0.5311780836 | T12: 0.5311780836 | V12: 0.5311780836
C13: =+'Capex '!F100/C4 -> 0.6877886107 | E13: Otros gastos iniciales (1%) | F13: =(+F11*1%) -> 0.5311780836 | G13: 0.584295892 | H13: 0.4780602753 | I13: 0.5311780836 | J13: 0.5311780836 | L13: =+'Capex '!F100/C4 -> 0.6877886107 | O13: Otros gastos iniciales (1%) | P13: 0.5311780836 | R13: 0.5311780836 | T13: 0.5311780836 | V13: 0.5311780836
C14: =+SUM(C11:C13) -> 72.90559273 | E14: Total CAPEX | F14: =(+SUM(F11:F13)) -> 54.18016453 | G14: 59.59818098 | H14: 48.76214808 | I14: 54.18016453 | J14: 54.18016453 | L14: =+SUM(C11:C13) -> 72.90559273 | O14: Total CAPEX | P14: 54.18016453 | R14: 54.18016453 | T14: 54.18016453 | V14: 54.18016453
E16: OPEX (M€ corrientes) | O16: OPEX (M€ corrientes)
C17: =+'Opex y MM'!F29/C4 -> 7.02654809 | E17: Gastos SPV | F17: 7.096813571 | G17: 7.096813571 | H17: 7.096813571 | I17: 7.806494928 | J17: 6.387132214 | L17: =+'Opex y MM'!F29/C4 -> 7.02654809 | O17: Gastos SPV | P17: 7.096813571 | R17: 7.096813571 | T17: 7.096813571 | V17: 7.096813571
C18: =+('Opex y MM'!F40+'Opex y MM'!F41+'Opex y MM'!F43)/C4 -> 44.96408843 | E18: Gastos O&M | F18: 43.36668321 | G18: 43.36668321 | H18: 43.36668321 | I18: 47.70335153 | J18: 39.03001489 | L18: =+('Opex y MM'!F40+'Opex y MM'!F41+'Opex y MM'!F43)/C4 -> 44.96408843 | O18: Gastos O&M | P18: 43.36668321 | R18: 43.36668321 | T18: 43.36668321 | V18: 43.36668321
C19: =+SUM(C17:C18) -> 51.99063652 | E19: Total OPEX | F19: =(+SUM(F16:F18)) -> 50.46349678 | G19: 50.46349678 | H19: 50.46349678 | I19: 55.50984646 | J19: 45.4171471 | L19: =+SUM(C17:C18) -> 51.99063652 | O19: Total OPEX | P19: 50.46349678 | R19: 50.46349678 | T19: 50.46349678 | V19: 50.46349678
E21: Ingresos (M€ corrientes) | O21: Ingresos (M€ corrientes)
C22: =+SUM(C23:C28) -> 253.2597191 | E22: Ingresos totales | F22: 259.1572291 | G22: 259.1572291 | H22: 259.1572291 | I22: 259.1572291 | J22: 259.1572291 | L22: =+SUM(L23:L28) -> 253.2597191 | O22: Ingresos totales | P22: 259.1572291 | Q22: =+SUM(Q23:Q28) -> 1 | R22: 280.9306102 | S22: =+SUM(S23:S28) -> 1 | T22: 295.0429869 | U22: =+SUM(U23:U28) -> 1 | V22: 311.8434353 | W22: =+SUM(W23:W28) -> 1
C23: =+'Ingresos '!F179/C4 -> 202.57033 | E23: =+'Ingresos '!B179 -> Ingresos por Rotación | F23: 212.217273 | G23: 212.217273 | H23: 212.217273 | I23: 212.217273 | J23: 212.217273 | L23: =+'Ingresos '!F179/C4 -> 202.57033 | O23: Ingresos por Rotación | P23: 212.217273 | Q23: =+P23/$P$22 -> 0.8188746028 | R23: 239.7206316 | S23: =+R23/$R$22 -> 0.8533090482 | T23: 257.5468826 | U23: =+T23/$T$22 -> 0.8729130805 | V23: 278.7686099 | W23: =+V23/$V$22 -> 0.893937721
C24: =+'Ingresos '!F180/C4 -> 18.72552906 | E24: =+'Ingresos '!B180 -> Ingresos por Residentes/trabajadores | F24: 20.94741517 | G24: 20.94741517 | H24: 20.94741517 | I24: 20.94741517 | J24: 20.94741517 | L24: =+'Ingresos '!F180/C4 -> 18.72552906 | O24: Ingresos por Residentes/trabajadores | P24: 20.94741517 | Q24: =+P24/$P$22 -> 0.08082898264 | R24: 14.68637964 | S24: =+R24/$R$22 -> 0.0522776056 | T24: 10.62830106 | U24: =+T24/$T$22 -> 0.03602288998 | V24: 5.797255121 | W24: =+V24/$V$22 -> 0.01859027469
C25: =+'Ingresos '!F181/C4 -> 5.080176087 | E25: =+'Ingresos '!B181 -> Ingresos Plat. Mov. compartida - Car Sharing | F25: 5.179678115 | G25: 5.179678115 | H25: 5.179678115 | I25: 5.179678115 | J25: 5.179678115 | L25: =+'Ingresos '!F181/C4 -> 5.080176087 | O25: Ingresos Plat. Mov. Eléctrica | P25: 5.179678115 | Q25: 0.01998662408 | R25: 5.179678115 | S25: 0.01843757115 | T25: 5.179678115 | U25: 0.01755567272 | V25: 5.179678115 | W25: 0.01660986742
C26: =+'Ingresos '!F184/C4 -> 10.56872017 | E26: =+'Ingresos '!B184 -> Ingresos DUM (Plataforma logística) | F26: 5.976551672 | G26: 5.976551672 | H26: 5.976551672 | I26: 5.976551672 | J26: 5.976551672 | L26: =+'Ingresos '!F184/C4 -> 10.56872017 | O26: Ingresos DUM (Plataforma logística) | P26: 5.976551672 | Q26: 0.02306148932 | R26: 5.976551672 | S26: 0.02127412056 | T26: 5.976551672 | U26: 0.02025654544 | V26: 5.976551672 | W26: 0.01916523164
C27: =+'Ingresos '!F185/C4 -> 10.13789745 | E27: =+'Ingresos '!B185 -> Ingresos Autobuses | F27: 8.515403071 | G27: 8.515403071 | H27: 8.515403071 | I27: 8.515403071 | J27: 8.515403071 | L27: =+'Ingresos '!F185/C4 -> 10.13789745 | O27: Ingresos Autobuses | P27: 8.515403071 | Q27: 0.03285805725 | R27: 8.515403071 | S27: 0.03031141058 | T27: 8.515403071 | U27: 0.02886156747 | V27: 8.515403071 | W27: 0.02730666132
C28: =+'Ingresos '!F187/C4 -> 6.177066319 | E28: =+'Ingresos '!B187 -> Otros ingresos | F28: 6.320908027 | G28: 6.320908027 | H28: 6.320908027 | I28: 6.320908027 | J28: 6.320908027 | L28: =+'Ingresos '!F187/C4 -> 6.177066319 | O28: Otros ingresos | P28: 6.320908027 | Q28: 0.0243902439 | R28: 6.851966103 | S28: 0.0243902439 | T28: 7.196170412 | U28: 0.0243902439 | V28: 7.605937446 | W28: 0.0243902439
E30: Estructura de capital (M€ corrientes) | O30: Estructura de capital (M€ corrientes)
C31: =+Control!L55/C4 -> 40.29033962 | E31: Capital | F31: 29.21823264 | G31: 34.49668056 | H31: 23.33948255 | I31: 29.78063395 | J31: 28.09446364 | L31: =+Control!L55/C4 -> 40.29033962 | O31: Capital | P31: 29.21823264 | R31: 26.46788114 | T31: 23.66266908 | V31: 23.66436814
C32: =+Control!L56/C4 -> 38.7103263 | E32: Deuda | F32: 29.21823264 | G32: 29.38606122 | H32: 29.70479597 | I32: 28.61276595 | J32: 30.43566895 | L32: =+Control!L56/C4 -> 38.7103263 | O32: Deuda | P32: 29.21823264 | R32: 32.3496325 | T32: 35.49400362 | V32: 35.4965522
C33: =+SUM(C31:C32) -> 79.00066592 | E33: Origen de fondos | F33: 58.43646528 | G33: 63.88274179 | H33: 53.04427853 | I33: 58.3933999 | J33: 58.53013259 | L33: =+SUM(C31:C32) -> 79.00066592 | O33: Origen de fondos | P33: 58.43646528 | R33: 58.81751364 | T33: 59.15667271 | V33: 59.16092034
C35: =+Control!M55 -> 0.51 | E35: Capital | F35: 0.5 | G35: 0.54 | H35: 0.44 | I35: 0.51 | J35: 0.48 | L35: =+Control!M55 -> 0.51 | O35: Capital | P35: 0.5 | R35: 0.45 | T35: 0.4 | V35: 0.4
C36: =+Control!M56 -> 0.49 | E36: Deuda | F36: 0.5 | G36: 0.46 | H36: 0.56 | I36: 0.49 | J36: 0.52 | L36: =+Control!M56 -> 0.49 | O36: Deuda | P36: 0.5 | R36: 0.55 | T36: 0.6 | V36: 0.6
C37: =+SUM(C35:C36) -> 1 | E37: Origen de fondos | F37: =+SUM(F35:F36) -> 1 | G37: 1 | H37: 1 | I37: 1 | J37: 1 | L37: =+SUM(C35:C36) -> 1 | O37: Origen de fondos | P37: 1 | R37: 1 | T37: 1 | V37: 1
C39: =+Control!H23 -> 1.5 | E39: RCSD | F39: 1.7 | G39: 1.7 | H39: 1.7 | I39: 1.7 | J39: 1.7 | L39: =+Control!H23 -> 1.5 | O39: RCSD | P39: 1.7 | R39: 1.7 | T39: 1.7 | V39: 1.8
C40: =+Control!M19 -> 15 | E40: Plazo de la deuda | F40: 15 | G40: 15 | H40: 15 | I40: 15 | J40: 15 | L40: =+Control!M19 -> 15 | O40: Plazo de la deuda | P40: 15 | R40: 15 | T40: 15 | V40: 15
E42: TIRes | O42: TIRes
C43: =+Control!M10 -> 0.08294819321 | E43: TIR Proyecto A.I. | F43: 0.1110475293 | G43: 0.1002155011 | H43: 0.1237843659 | I43: 0.107976778 | J43: 0.1140949563 | L43: =+Control!M10 -> 0.08294819321 | O43: TIR Proyecto A.I. | P43: 0.1110475293 | R43: 0.1234495159 | T43: 0.1312456729 | V43: 0.1403149335
C44: =+Control!M11 -> 0.06718020035 | E44: TIR Proyecto D.I. | F44: 0.09016134284 | G44: 0.08122250736 | H44: 0.1006633209 | I44: 0.08764920783 | J44: 0.09265601934 | L44: =+Control!M11 -> 0.06718020035 | O44: TIR Proyecto D.I. | P44: 0.09016134284 | R44: 0.1003364169 | T44: 0.1067256384 | V44: 0.1141222425
C45: =+Control!M12 -> 0.07005699773 | E45: TIR FC Libre | F45: 0.1008669056 | G45: 0.08765898551 | H45: 0.1195109659 | I45: 0.09710328886 | J45: 0.1055681177 | L45: =+Control!M12 -> 0.07005699773 | O45: TIR FC Libre | P45: 0.1008669056 | R45: 0.1180710724 | T45: 0.1329283137 | V45: 0.1450613049
C46: =+Control!M13 -> 0.0700448478 | E46: TIR Accionistas | F46: 0.1008669056 | G46: 0.08765898551 | H46: 0.1195106511 | I46: 0.09710328886 | J46: 0.1055681177 | L46: =+Control!M13 -> 0.0700448478 | O46: TIR Accionistas | P46: 0.1008669056 | R46: 0.1180687424 | T46: 0.1325278401 | V46: 0.1444413111

Sheet Tablas PPT (hidden)
A1: Real Madrid - Parking
A2: =RIGHT(CELL("filename", $H$3), LEN(CELL("filename", $H$3)) - SEARCH("]", CELL("filename", $H$3))) -> Tablas PPT
A3: Cifras EUR
B6: =+Sensibilidades!C4 -> 1000000
E8: Esc. JULIO 2020 | G8: Esc. JULIO 2021
D9: DIMENSIONAMIENTO | E9: Padre Damián | F9: Paseo de la Castellana | G9: Padre Damián | H9: Paseo de la Castellana
D10: Zona Parking
D11: Plazas parking (nº) | E11: =+SUM(E12:E14) -> 649 | F11: =+SUM(F12:F14) -> 1266 | G11: =+SUM(G12:G14) -> 552 | H11: =+SUM(H12:H14) -> 1115
D12: Rotación | E12: 649 | F12: 887 | G12: =+Control!D29 -> 552 | H12: =+Control!D41 -> 621
D13: Residentes | E13: 0 | F13: 135 | G13: =+Control!D30 -> 0 | H13: =+Control!D42 -> 494
D14: Mov. Compartida | E14: 0 | F14: 244 | G14: =+Control!D31 -> 0 | H14: =+Control!D43 -> 0
D15: Área Logística (m2) | E15: 550 | F15: 0 | G15: =+Control!D32 -> 3606 | H15: 0
D16: Zona Anexa
D17: Área Logística (m2) | E17: 0 | F17: 0 | G17: =+Control!D36 -> 0 | H17: 0
D18: Dársenas autobuses (nº) | E18: 10 | F18: 0 | G18: =+Control!D38 -> 12 | H18: 0
D20: CAPEX (EUR 2020) | E20: Padre Damián | F20: Paseo de la Castellana | G20: Padre Damián | H20: Paseo de la Castellana
D21: Obra civil | E21: 23878025 | F21: 23817782 | G21: =+'Capex '!F41+'Capex '!F52 -> 28698568.55 | H21: =+'Capex '!F79 -> 31330861.98
D22: Instalaciones | E22: 1559770 | F22: 2254690 | G22: =+'Capex '!F42+'Capex '!F53 -> 2889291.645 | H22: =+'Capex '!F80 -> 4706639.299
D23: Otros (Seguridad y salud) | E23: 0 | F23: 0 | G23: =+'Capex '!F43+'Capex '!F54 -> 538843.0291 | H23: =+'Capex '!F81 -> 614656.5681
D24: Obras adicionales | E24: 0 | F24: 0 | H24: 0
D25: Total Inversión | E25: =+SUM(E21:E24) -> 25437795 | F25: =+SUM(F21:F24) -> 26072472 | G25: =+SUM(G21:G24) -> 32126703.22 | H25: =+SUM(H21:H24) -> 36652157.84
D26: Diseño (5%) | E26: =+E25*1% -> 254377.95 | F26: =+F25*1% -> 260724.72 | G26: =+G25*1% -> 321267.0322 | H26: =+H25*1% -> 366521.5784
D27: Otros gastos iniciales (1%) | E27: =+E25*1% -> 254377.95 | F27: =+F25*1% -> 260724.72 | G27: =+G25*1% -> 321267.0322 | H27: =+H25*1% -> 366521.5784
D28: Total CAPEX | E28: =+SUM(E25:E27) -> 25946550.9 | F28: =+SUM(F25:F27) -> 26593921.44 | G28: =+SUM(G25:G27) -> 32769237.29 | H28: =+SUM(H25:H27) -> 37385201
E29: =+F28+E28 -> 52540472.34 | G29: =+G28+H28 -> 70154438.29
D30: Plazo de construcción | E30: 30 meses | G30: 24 meses
J34: Hipótesis Temporales
J35: =+Control!B10 -> Inicio del Proyecto | K35: =+Control!C10 -> fecha | L35: =+Control!D10 -> 2022-01-01
J36: =+Control!B11 -> Periodo de Proyecto | K36: =+Control!C11 -> años | L36: =+Control!D11 -> 30
J37: =+Control!B12 -> Inicio de construcción | K37: =+Control!C12 -> fecha | L37: =+Control!D12 -> 2022-01-01
J38: =+Control!B13 -> Periodo de construcción | K38: =+Control!C13 -> meses | L38: =+Control!D13 -> 28
J39: =+Control!B14 -> Fin de construcción | K39: =+Control!C14 -> fecha | L39: =+Control!D14 -> 2024-04-30
J40: =+Control!B15 -> Inicio de operación | K40: =+Control!C15 -> fecha | L40: =+Control!D15 -> 2024-05-01
J41: =+Control!B16 -> Periodo de operación | K41: =+Control!C16 -> años | L41: =+Control!D16 -> 27.66666667
J42: =+Control!B17 -> Fin de operación | K42: =+Control!C17 -> fecha | L42: =+Control!D17 -> 2051-12-31
J43: =+Control!B18 -> Final del Proyecto | K43: =+Control!C18 -> fecha | L43: =+Control!D18 -> 2051-12-31
J44: =+Control!B19 -> Cierre Financiero | K44: =+Control!C19 -> fecha | L44: =+Control!D19 -> 2022-01-01
N45: Dimensionamiento
O46: Padre Damián | P46: Paseo Castellana
N47: Zona Parking
N48: Plazas parking (nº) | O48: =+SUM(O49:O54) -> 552 | P48: =+SUM(P49:P54) -> 1266
N49: Rotación | O49: =+G12 -> 552 | P49: =+H12 -> 621
N50: Residentes | O50: =+G13 -> 0 | P50: =+H13 -> 494
N51: Mov. Compartida
N52: Car Sharing | O52: 0 | P52: 100
N53: Micromovilidad | O53: 0 | P53: 45
N54: Electrolineras | O54: 0 | P54: 6
N55: Área Logística (m2) | O55: =+G15 -> 3606 | P55: =+H15 -> 0
N56: Plaza Paseo Castellana (m2) | O56: 0 | P56: =+Control!D50 -> 19661.78
N57: Zona Anexa
N58: Área Logística (m2) | O58: =+G17 -> 0 | P58: =+H17 -> 0
N59: Dársenas autobuses (nº) | O59: =+G18 -> 12 | P59: =+H18 -> 0
R60: CAPEX (M€ 2021)
S61: Total | T61: Padre Damián | U61: Paseo Castellana
R62: =+D21 -> Obra civil | S62: =+SUM(T62:U62) -> 58.9517823 | T62: =+'Capex '!F128/$B$6 -> 28.1833719 | U62: =+'Capex '!F137/B6 -> 30.7684104
R63: =+D22 -> Instalaciones | S63: =+SUM(T63:U63) -> 7.4313983 | T63: =+'Capex '!F129/$B$6 -> 2.82670777 | U63: =+'Capex '!F138/B6 -> 4.60469053
R64: =+D23 -> Otros (Seguridad y salud) | S64: 1.12851407 | T64: =+'Capex '!F130/$B$6 -> 0.52717135 | U64: =+'Capex '!F139/B6 -> 0.60134272
R65: =+D25 -> Total Inversión | S65: 67.51169467 | T65: =+SUM(T62:T64) -> 31.53725102 | U65: =+SUM(U62:U64) -> 35.97444365
R66: =+D26 -> Diseño (5%) | S66: 3.404894112 | T66: =+'Capex '!F132/$B$6 -> 1.590430853 | U66: =+'Capex '!F141/B6 -> 1.81446326
R67: =+D27 -> Otros gastos iniciales (1%) | S67: 0.6809788225 | T67: =+'Capex '!F133/$B$6 -> 0.3180861705 | U67: =+'Capex '!F142/B6 -> 0.3628926519
R68: =+Control!B56 -> Indemnización pistas de pádel | S68: 0.1 | T68: =+Control!D56/B6 -> 0.05 | U68: =+Control!D56/B6 -> 0.05
R69: =+D28 -> Total CAPEX | S69: 71.6975676 | T69: =+SUM(T65:T68) -> 33.49576804 | U69: =+SUM(U65:U68) -> 38.20179956
W72: CAPEX (M€ corrientes)
X73: Total | Y73: 2022 | AA73: 2023
Y74: Padre Damián | Z74: Paseo Castellana | AA74: Padre Damián | AB74: Paseo Castellana
W75: Obra civil | X75: =+SUM(Y75:AB75) -> 50.09047194 | Y75: =+('Capex '!K41+'Capex '!K52)/B6 -> 9.833434668 | Z75: =+('Capex '!K79)/B6 -> 10.7353781 | AA75: =+('Capex '!L41+'Capex '!L52)/B6 -> 14.1135665 | AB75: =+('Capex '!L79)/B6 -> 15.40809267
W76: =+R63 -> Instalaciones | X76: =+SUM(Y76:AB76) -> 6.064615525 | Y76: =+('Capex '!K42+'Capex '!K53)/B6 -> 0 | Z76: =+('Capex '!K80)/B6 -> 0 | AA76: =+('Capex '!L42+'Capex '!L53)/B6 -> 2.306819677 | AB76: =+('Capex '!L80)/B6 -> 3.757795848
W77: Otros | X77: 0.9209577622 | Y77: =+('Capex '!K43+'Capex '!K54)/B6 -> 0 | Z77: =+('Capex '!K81)/B6 -> 0 | AA77: =+('Capex '!L43+'Capex '!L54)/B6 -> 0.4302139953 | AB77: =+('Capex '!L81)/B6 -> 0.4907437669
W78: =+R65 -> Total Inversión | X78: 57.07604523 | Y78: =+SUM(Y75:Y77) -> 9.833434668 | Z78: =+SUM(Z75:Z77) -> 10.7353781 | AA78: =+SUM(AA75:AA77) -> 16.85060017 | AB78: =+SUM(AB75:AB77) -> 19.65663229
W79: =+R66 -> Diseño (5%) | X79: 3.438943053 | Y79: =+'Capex '!K59/B6 -> 1.606335161 | Z79: =+('Capex '!K85)/B6 -> 1.832607892 | AA79: =+'Capex '!L59/B6 -> 0 | AB79: =+('Capex '!L85)/B6 -> 0
W80: =+R67 -> Otros gastos iniciales (1%) | X80: 0.6877886107 | Y80: =+'Capex '!K60/B6 -> 0.3212670322 | Z80: =+('Capex '!K86)/B6 -> 0.3665215784 | AA80: =+'Capex '!L60/B6 -> 0 | AB80: =+('Capex '!L86)/B6 -> 0
W81: =+R69 -> Total CAPEX | X81: 61.20277689 | Y81: =+SUM(Y78:Y80) -> 11.76103686 | Z81: =+SUM(Z78:Z80) -> 12.93450757 | AA81: =+SUM(AA78:AA80) -> 16.85060017 | AB81: =+SUM(AB78:AB80) -> 19.65663229
Y82: =+Y81+Z81 -> 24.69554443 | AA82: =+AA81+AB81 -> 36.50723246
AI90: OPEX
AI91: Gastos de estructura | AJ91: =+Control!C78 -> EUR2021 | AK91: =+Control!D78 -> 0
AI92: Canon | AJ92: =+Control!C79 -> EUR2021 | AK92: =+Control!D79 -> 200000
AJ93: Padre Damián | AK93: Paseo Castellana
AI94: Coste unitario plaza (EUR2019/plaza/año) | AJ94: =+Control!D81 -> 708.624642 | AK94: =+Control!D82 -> 616
AI95: Coste unitario m2 (EUR2019/m2/año) | AJ95: =+Control!D84 -> 26.05237654 | AK95: N/A
AL97: Mantenimiento Mayor
AL98: =+Control!B88 -> % sobre Instalaciones | AM98: =+Control!C88 -> % | AN98: =+Control!D88 -> 0.7
AL99: =+Control!B89 -> Periodicidad | AM99: =+Control!C89 -> años | AN99: =+Control!D89 -> 14
AO101: Ingresos
AO102: =+Control!B92 -> Rotación
AO103: =+Control!B93 -> Tarifa | AP103: =+Control!C93 -> EUR2021/plaza/hora | AQ103: =+Control!D93 -> 1.968723889
AO104: =+Control!B94 -> Horas diarias consideradas | AP104: =+Control!C94 -> horas | AQ104: =+Control!D94 -> 24
AO105: =+Control!B99 -> Ocupación estabilizada | AP105: =+Control!C99 -> % | AQ105: =+Control!D99 -> 0.31
AO106: =+Control!B100 -> Residentes/trabajadores
AO107: =+Control!B101 -> Abono | AP107: =+Control!C101 -> EUR2021/plaza/mes | AQ107: =+Control!D101 -> 97
AO108: =+Control!B106 -> Ocupación estabilizada | AP108: =+Control!C106 -> % | AQ108: =+Control!D106 -> 1
AO109: =+Control!B107 -> Mov. Compartida - Car Sharing
AO110: =+Control!B108 -> Tarifa | AP110: =+Control!C108 -> EUR2021/plaza/mes | AQ110: =+Control!D108 -> 130
AO111: =+Control!B113 -> Ocupación estabilizada | AP111: =+Control!C113 -> % | AQ111: =+Control!D113 -> 1
AO112: =+Control!B114 -> Mov. Compartida - Micromovilidad
AO113: =+Control!B115 -> Tarifa | AP113: =+Control!C115 -> EUR2021/plaza/mes | AQ113: =+Control!D115 -> 0
AO114: =+Control!B120 -> Ocupación estabilizada | AP114: =+Control!C120 -> % | AQ114: =+Control!D120 -> 1
AO115: =+Control!B121 -> Electrolineras
AO116: =+Control!B122 -> Tarifa recarga completa | AP116: =+Control!C122 -> EUR2021/recarga | AQ116: =+Control!D122 -> 12.5
AO117: =+Control!B123 -> Tarifa recarga 100 km | AP117: =+Control!C123 -> EUR2021/recarga | AQ117: =+Control!D123 -> 4.5
AO118: =+Control!B124 -> Uso medio al año | AP118: =+Control!C124 -> días | AQ118: =+Control!D124 -> 220
AO119: =+Control!B125 -> Horas de uso al día | AP119: =+Control!C125 -> horas | AQ119: =+Control!D125 -> 15
AO120: =+Control!B126 -> Recargas por hora | AP120: =+Control!C126 -> nº | AQ120: =+Control!D126 -> 2
AO121: =+Control!B127 -> Tipología recargas | AP121: =+Control!C127 -> 0
AO122: =+Control!B128 -> Recarga completa | AP122: =+Control!C128 -> % | AQ122: =+Control!D128 -> 0.3
AO123: =+Control!B129 -> Recarga 100 km | AP123: =+Control!C129 -> % | AQ123: =+Control!D129 -> 0.7
AO124: =+Control!B142 -> Área logística (PD-1)
AO125: =+Control!B143 -> Tarifa | AP125: =+Control!C143 -> EUR2021/m2/mes | AQ125: =+Control!D143 -> 7.5
AO126: =+Control!B148 -> Ocupación estabilizada | AP126: =+Control!C148 -> % | AQ126: =+Control!D148 -> 1
AO127: =+Control!B149 -> Área logística (CDU)
AO128: =+Control!B150 -> Tarifa | AP128: =+Control!C150 -> EUR2021/m2/mes | AQ128: =+Control!D150 -> 7.5
AO129: =+Control!B155 -> Ocupación estabilizada | AP129: =+Control!C155 -> % | AQ129: =+Control!D155 -> 1
AO130: =+Control!B156 -> Dársenas autobuses
AO131: =+Control!B157 -> Tarifa | AP131: =+Control!C157 -> EUR2021/dársena/hora | AQ131: =+Control!D157 -> 7.471188
AO132: =+Control!B158 -> Horas diarias consideradas | AP132: =+Control!C158 -> horas | AQ132: =+Control!D158 -> 24
AO133: =+Control!B163 -> Ocupación estabilizada | AP133: =+Control!C163 -> % | AQ133: =+Control!D163 -> 0.4
AO134: =+Control!B164 -> Actividades complementarias Plaza de Castellana
AO135: =+Control!B165 -> Ingreso anual | AP135: =+Control!C165 -> EUR2021/año | AQ135: =+Control!D165 -> 300000
AO136: =+Control!B166 -> Otros ingresos
AO137: =+Control!B167 -> % sobre ingresos totales | AP137: =+Control!C167 -> % | AQ137: =+Control!D167 -> 0.025
AS139: Hipótesis Macroeconómicas
AS140: Inflación | AT140: % | AU140: =+'Hipótesis '!H11 -> 0.01
AW143: Condiciones deuda
AW144: Plazo máximo Deuda Senior | AX144: años | AY144: 15
AW145: Apalancamiento máximo | AX145: % | AY145: 0.6
AW146: Margen | AX146: % | AY146: 0.04
AW147: Base cálculo intereses | AX147: días | AY147: 360
AW148: Comisión de Apertura | AX148: % | AY148: 0.02
AW149: Comisión de Disponibilidad | AX149: % | AY149: 0.01
AW150: Comisión de Agencia | AX150: EUR2019 | AY150: 50000
AW151: CRSD | AX151: % | AY151: 0.5
AW152: RCSD Esculpido | AX152: ratio | AY152: 1.7
AW153: RCSD Mínimo | AX153: ratio | AY153: 1.5

Sheet Flags (hidden)
A1: =+Control!A1 -> Real Madrid - Parking
A2: =RIGHT(CELL("filename", $H$3), LEN(CELL("filename", $H$3)) - SEARCH("]", CELL("filename", $H$3))) -> Flags
A3: =+Control!A3 -> Cifras EUR | C3: =+Control!Q23 -> Ok
H4: =+YEAR(H5) -> 2019 | I4: =+YEAR(I5) -> 2020 | J4: 2021 | K4: 2022 | L4: 2023 | M4: 2024 | N4: 2025 | O4: 2026 | P4: 2027 | Q4: 2028 | R4: 2029 | S4: 2030 | T4: 2031 | U4: 2032 | V4: 2033 | W4: 2034 | X4: 2035 | Y4: 2036 | Z4: 2037 | AA4: 2038 | AB4: 2039 | AC4: 2040 | AD4: 2041 | AE4: 2042 | AF4: 2043 | AG4: 2044 | AH4: 2045 | AI4: 2046 | AJ4: 2047 | AK4: 2048 | AL4: 2049 | AM4: 2050 | AN4: 2051 | AO4: 2052 | AP4: 2053
B5: Errores | C5: =+Control!C4 -> 0 | H5: 2019-01-01 | I5: =+DATE(YEAR(H5)+1,MONTH(H5),DAY(H5)) -> 2020-01-01 | J5: 2021-01-01 | K5: 2022-01-01 | L5: 2023-01-01 | M5: 2024-01-01 | N5: 2025-01-01 | O5: 2026-01-01 | P5: 2027-01-01 | Q5: 2028-01-01 | R5: 2029-01-01 | S5: 2030-01-01 | T5: 2031-01-01 | U5: 2032-01-01 | V5: 2033-01-01 | W5: 2034-01-01 | X5: 2035-01-01 | Y5: =+DATE(YEAR(X5)+1,MONTH(X5),DAY(X5)) -> 2036-01-01 | Z5: 2037-01-01 | AA5: 2038-01-01 | AB5: 2039-01-01 | AC5: 2040-01-01 | AD5: 2041-01-01 | AE5: 2042-01-01 | AF5: 2043-01-01 | AG5: 2044-01-01 | AH5: 2045-01-01 | AI5: =+DATE(YEAR(AH5)+1,MONTH(AH5),DAY(AH5)) -> 2046-01-01 | AJ5: 2047-01-01 | AK5: 2048-01-01 | AL5: 2049-01-01 | AM5: 2050-01-01 | AN5: 2051-01-01 | AO5: 2052-01-01 | AP5: 2053-01-01
B6: TIR Accionistas (Dividendos) | C6: =+Control!C5 -> 0.0700448478 | H6: =+DATE(YEAR(H5),MONTH(H5)+12,DAY(H5)-1) -> 2019-12-31 | I6: =+DATE(YEAR(H6)+1,MONTH(H6),DAY(H6)) -> 2020-12-31 | J6: 2021-12-31 | K6: 2022-12-31 | L6: 2023-12-31 | M6: 2024-12-31 | N6: 2025-12-31 | O6: 2026-12-31 | P6: 2027-12-31 | Q6: 2028-12-31 | R6: 2029-12-31 | S6: 2030-12-31 | T6: 2031-12-31 | U6: 2032-12-31 | V6: 2033-12-31 | W6: 2034-12-31 | X6: 2035-12-31 | Y6: 2036-12-31 | Z6: 2037-12-31 | AA6: 2038-12-31 | AB6: 2039-12-31 | AC6: 2040-12-31 | AD6: 2041-12-31 | AE6: 2042-12-31 | AF6: 2043-12-31 | AG6: 2044-12-31 | AH6: 2045-12-31 | AI6: 2046-12-31 | AJ6: 2047-12-31 | AK6: 2048-12-31 | AL6: 2049-12-31 | AM6: 2050-12-31 | AN6: 2051-12-31 | AO6: 2052-12-31 | AP6: 2053-12-31
B10: FLAGS
B12: Inicio del Periodo | H12: =+DATE(H4,1,1) -> 2019-01-01 | I12: 2020-01-01 | J12: 2021-01-01 | K12: 2022-01-01 | L12: 2023-01-01 | M12: 2024-01-01 | N12: 2025-01-01 | O12: 2026-01-01 | P12: 2027-01-01 | Q12: 2028-01-01 | R12: 2029-01-01 | S12: 2030-01-01 | T12: 2031-01-01 | U12: 2032-01-01 | V12: 2033-01-01 | W12: 2034-01-01 | X12: 2035-01-01 | Y12: 2036-01-01 | Z12: 2037-01-01 | AA12: 2038-01-01 | AB12: 2039-01-01 | AC12: 2040-01-01 | AD12: 2041-01-01 | AE12: 2042-01-01 | AF12: 2043-01-01 | AG12: 2044-01-01 | AH12: 2045-01-01 | AI12: 2046-01-01 | AJ12: 2047-01-01 | AK12: 2048-01-01 | AL12: 2049-01-01 | AM12: 2050-01-01 | AN12: 2051-01-01 | AO12: 2052-01-01 | AP12: 2053-01-01
B13: Final del periodo | H13: =+DATE(H4,12,31) -> 2019-12-31 | I13: 2020-12-31 | J13: 2021-12-31 | K13: 2022-12-31 | L13: 2023-12-31 | M13: 2024-12-31 | N13: 2025-12-31 | O13: 2026-12-31 | P13: 2027-12-31 | Q13: 2028-12-31 | R13: 2029-12-31 | S13: 2030-12-31 | T13: 2031-12-31 | U13: 2032-12-31 | V13: 2033-12-31 | W13: 2034-12-31 | X13: 2035-12-31 | Y13: 2036-12-31 | Z13: 2037-12-31 | AA13: 2038-12-31 | AB13: 2039-12-31 | AC13: 2040-12-31 | AD13: 2041-12-31 | AE13: 2042-12-31 | AF13: 2043-12-31 | AG13: 2044-12-31 | AH13: 2045-12-31 | AI13: 2046-12-31 | AJ13: 2047-12-31 | AK13: 2048-12-31 | AL13: 2049-12-31 | AM13: 2050-12-31 | AN13: 2051-12-31 | AO13: 2052-12-31 | AP13: 2053-12-31
B14: Meses del periodo | H14: =+MONTH(H13-H12) -> 12 | I14: =+MONTH(I13-I12) -> 12 | J14: 12 | K14: 12 | L14: 12 | M14: 12 | N14: 12 | O14: 12 | P14: 12 | Q14: 12 | R14: 12 | S14: 12 | T14: 12 | U14: 12 | V14: 12 | W14: 12 | X14: 12 | Y14: 12 | Z14: 12 | AA14: 12 | AB14: 12 | AC14: 12 | AD14: 12 | AE14: 12 | AF14: 12 | AG14: 12 | AH14: 12 | AI14: 12 | AJ14: 12 | AK14: 12 | AL14: 12 | AM14: 12 | AN14: 12 | AO14: 12 | AP14: 12
B15: Días del periodo | H15: =+H13-H12+1 -> 365 | I15: =+I13-I12+1 -> 366 | J15: 365 | K15: 365 | L15: 365 | M15: 366 | N15: 365 | O15: 365 | P15: 365 | Q15: 366 | R15: 365 | S15: 365 | T15: 365 | U15: 366 | V15: 365 | W15: 365 | X15: 365 | Y15: 366 | Z15: 365 | AA15: 365 | AB15: 365 | AC15: 366 | AD15: 365 | AE15: 365 | AF15: 365 | AG15: 366 | AH15: 365 | AI15: 365 | AJ15: 365 | AK15: 366 | AL15: 365 | AM15: 365 | AN15: 365 | AO15: 366 | AP15: 365
B16: Fecha Inicio de Proyecto | D16: =+Control!D10 -> 2022-01-01
B17: Fecha Final de Proyecto | D17: =+Control!D18 -> 2051-12-31
B18: Inicio de Proyecto | C18: flag | H18: =AND($D16>=H$12,$D16<=H$13)*1 -> 0 | I18: =AND($D16>=I$12,$D16<=I$13)*1 -> 0 | J18: 0 | K18: 1 | L18: 0 | M18: 0 | N18: 0 | O18: 0 | P18: 0 | Q18: 0 | R18: 0 | S18: 0 | T18: 0 | U18: 0 | V18: 0 | W18: 0 | X18: 0 | Y18: 0 | Z18: 0 | AA18: 0 | AB18: 0 | AC18: 0 | AD18: 0 | AE18: 0 | AF18: 0 | AG18: 0 | AH18: 0 | AI18: 0 | AJ18: 0 | AK18: 0 | AL18: 0 | AM18: 0 | AN18: 0 | AO18: 0 | AP18: 0
B19: Periodo de Proyecto | C19: flag | H19: =AND(H$12<=$D17,H$13>=$D16)*1 -> 0 | I19: =AND(I$12<=$D17,I$13>=$D16)*1 -> 0 | J19: 0 | K19: 1 | L19: 1 | M19: 1 | N19: 1 | O19: 1 | P19: 1 | Q19: 1 | R19: 1 | S19: 1 | T19: 1 | U19: 1 | V19: 1 | W19: 1 | X19: 1 | Y19: 1 | Z19: 1 | AA19: 1 | AB19: 1 | AC19: 1 | AD19: 1 | AE19: 1 | AF19: 1 | AG19: 1 | AH19: 1 | AI19: 1 | AJ19: 1 | AK19: 1 | AL19: 1 | AM19: 1 | AN19: 1 | AO19: 0 | AP19: 0
B20: Ultimo Periodo de Proyecto | C20: flag | H20: =AND($D17>=H$12,$D17<=H$13)*1 -> 0 | I20: =AND($D17>=I$12,$D17<=I$13)*1 -> 0 | J20: 0 | K20: 0 | L20: 0 | M20: 0 | N20: 0 | O20: 0 | P20: 0 | Q20: 0 | R20: 0 | S20: 0 | T20: 0 | U20: 0 | V20: 0 | W20: 0 | X20: 0 | Y20: 0 | Z20: 0 | AA20: 0 | AB20: 0 | AC20: 0 | AD20: 0 | AE20: 0 | AF20: 0 | AG20: 0 | AH20: 0 | AI20: 0 | AJ20: 0 | AK20: 0 | AL20: 0 | AM20: 0 | AN20: 1 | AO20: 0 | AP20: 0
B21: Contador de Proyecto | C21: Años | F21: =+MAX(H21:AP21) -> 30 | H21: =+(H19+G21)*H19 -> 0 | I21: =+(I19+H21)*I19 -> 0 | J21: =+(J19+I21)*J19 -> 0 | K21: =+(K19+J21)*K19 -> 1 | L21: 2 | M21: 3 | N21: 4 | O21: 5 | P21: 6 | Q21: 7 | R21: 8 | S21: 9 | T21: 10 | U21: 11 | V21: 12 | W21: 13 | X21: 14 | Y21: 15 | Z21: 16 | AA21: 17 | AB21: 18 | AC21: 19 | AD21: 20 | AE21: 21 | AF21: 22 | AG21: 23 | AH21: 24 | AI21: 25 | AJ21: 26 | AK21: 27 | AL21: 28 | AM21: 29 | AN21: 30 | AO21: 0 | AP21: 0
B22: Meses de Proyecto | C22: Meses | H22: =+ROUND(H$14*H24,0) -> 0 | I22: =+ROUND(I$14*I24,0) -> 0 | J22: 0 | K22: 12 | L22: 12 | M22: 12 | N22: 12 | O22: 12 | P22: 12 | Q22: 12 | R22: 12 | S22: 12 | T22: 12 | U22: 12 | V22: 12 | W22: 12 | X22: 12 | Y22: 12 | Z22: 12 | AA22: 12 | AB22: 12 | AC22: 12 | AD22: 12 | AE22: 12 | AF22: 12 | AG22: 12 | AH22: 12 | AI22: 12 | AJ22: 12 | AK22: 12 | AL22: 12 | AM22: 12 | AN22: 12 | AO22: 0 | AP22: 0
B23: Días del periodo (Proyecto) | C23: Días | H23: =IF(H21=1, IF(I19=0,$D17-$D16+1, H$13-$D16+1),IF(AND(H19=1,I19=1),H$15,$D17-H$12+1))*H19 -> 0 | I23: =IF(I21=1, IF(J19=0,$D17-$D16+1, I$13-$D16+1),IF(AND(I19=1,J19=1),I$15,$D17-I$12+1))*I19 -> 0 | J23: 0 | K23: 365 | L23: 365 | M23: 366 | N23: 365 | O23: 365 | P23: 365 | Q23: 366 | R23: 365 | S23: 365 | T23: 365 | U23: 366 | V23: 365 | W23: 365 | X23: 365 | Y23: 366 | Z23: 365 | AA23: 365 | AB23: 365 | AC23: 366 | AD23: 365 | AE23: 365 | AF23: 365 | AG23: 366 | AH23: 365 | AI23: 365 | AJ23: 365 | AK23: 366 | AL23: 365 | AM23: 365 | AN23: 365 | AO23: 0 | AP23: 0
B24: Factor de Proyecto | C24: % | H24: =+IF(ISERROR(H23/H$15),0,H23/H$15) -> 0 | I24: =+IF(ISERROR(I23/I$15),0,I23/I$15) -> 0 | J24: 0 | K24: 1 | L24: 1 | M24: 1 | N24: 1 | O24: 1 | P24: 1 | Q24: 1 | R24: 1 | S24: 1 | T24: 1 | U24: 1 | V24: 1 | W24: 1 | X24: 1 | Y24: 1 | Z24: 1 | AA24: 1 | AB24: 1 | AC24: 1 | AD24: 1 | AE24: 1 | AF24: 1 | AG24: 1 | AH24: 1 | AI24: 1 | AJ24: 1 | AK24: 1 | AL24: 1 | AM24: 1 | AN24: 1 | AO24: 0 | AP24: 0
B25: Fecha Inicio de Construcción | D25: =+Control!D12 -> 2022-01-01
B26: Fecha Final de Construcción | D26: =+Control!D14 -> 2024-04-30
B27: Inicio de Construcción | C27: flag | H27: =AND($D25>=H$12,$D25<=H$13)*1 -> 0 | I27: =AND($D25>=I$12,$D25<=I$13)*1 -> 0 | J27: 0 | K27: 1 | L27: 0 | M27: 0 | N27: 0 | O27: 0 | P27: 0 | Q27: 0 | R27: 0 | S27: 0 | T27: 0 | U27: 0 | V27: 0 | W27: 0 | X27: 0 | Y27: 0 | Z27: 0 | AA27: 0 | AB27: 0 | AC27: 0 | AD27: 0 | AE27: 0 | AF27: 0 | AG27: 0 | AH27: 0 | AI27: 0 | AJ27: 0 | AK27: 0 | AL27: 0 | AM27: 0 | AN27: 0 | AO27: 0 | AP27: 0
B28: Periodo de Construcción | C28: flag | H28: =AND(H$12<=$D26,H$13>=$D25)*1 -> 0 | I28: =AND(I$12<=$D26,I$13>=$D25)*1 -> 0 | J28: 0 | K28: 1 | L28: 1 | M28: 1 | N28: 0 | O28: 0 | P28: 0 | Q28: 0 | R28: 0 | S28: 0 | T28: 0 | U28: 0 | V28: 0 | W28: 0 | X28: 0 | Y28: 0 | Z28: 0 | AA28: 0 | AB28: 0 | AC28: 0 | AD28: 0 | AE28: 0 | AF28: 0 | AG28: 0 | AH28: 0 | AI28: 0 | AJ28: 0 | AK28: 0 | AL28: 0 | AM28: 0 | AN28: 0 | AO28: 0 | AP28: 0
B29: Ultimo Periodo de Construcción | C29: flag | H29: =AND($D26>=H$12,$D26<=H$13)*1 -> 0 | I29: =AND($D26>=I$12,$D26<=I$13)*1 -> 0 | J29: 0 | K29: 0 | L29: 0 | M29: 1 | N29: 0 | O29: 0 | P29: 0 | Q29: 0 | R29: 0 | S29: 0 | T29: 0 | U29: 0 | V29: 0 | W29: 0 | X29: 0 | Y29: 0 | Z29: 0 | AA29: 0 | AB29: 0 | AC29: 0 | AD29: 0 | AE29: 0 | AF29: 0 | AG29: 0 | AH29: 0 | AI29: 0 | AJ29: 0 | AK29: 0 | AL29: 0 | AM29: 0 | AN29: 0 | AO29: 0 | AP29: 0
B30: Contador de Construcción | C30: Años | F30: =+MAX(H30:AP30) -> 3 | H30: =+(H28+G30)*H28 -> 0 | I30: =+(I28+H30)*I28 -> 0 | J30: =+(J28+I30)*J28 -> 0 | K30: =+(K28+J30)*K28 -> 1 | L30: 2 | M30: 3 | N30: 0 | O30: 0 | P30: 0 | Q30: 0 | R30: 0 | S30: 0 | T30: 0 | U30: 0 | V30: 0 | W30: 0 | X30: 0 | Y30: 0 | Z30: 0 | AA30: 0 | AB30: 0 | AC30: 0 | AD30: 0 | AE30: 0 | AF30: 0 | AG30: 0 | AH30: 0 | AI30: 0 | AJ30: 0 | AK30: 0 | AL30: 0 | AM30: 0 | AN30: 0 | AO30: 0 | AP30: 0
B31: Meses de Construcción | C31: Meses | H31: =+ROUND(H$14*H33,0) -> 0 | I31: =+ROUND(I$14*I33,0) -> 0 | J31: 0 | K31: 12 | L31: 12 | M31: 4 | N31: 0 | O31: 0 | P31: 0 | Q31: 0 | R31: 0 | S31: 0 | T31: 0 | U31: 0 | V31: 0 | W31: 0 | X31: 0 | Y31: 0 | Z31: 0 | AA31: 0 | AB31: 0 | AC31: 0 | AD31: 0 | AE31: 0 | AF31: 0 | AG31: 0 | AH31: 0 | AI31: 0 | AJ31: 0 | AK31: 0 | AL31: 0 | AM31: 0 | AN31: 0 | AO31: 0 | AP31: 0
B32: Días del periodo Construcción | C32: Días | H32: =IF(H30=1, IF(I28=0,$D26-$D25+1, H$13-$D25+1),IF(AND(H28=1,I28=1),H$15,$D26-H$12+1))*H28 -> 0 | I32: =IF(I30=1, IF(J28=0,$D26-$D25+1, I$13-$D25+1),IF(AND(I28=1,J28=1),I$15,$D26-I$12+1))*I28 -> 0 | J32: 0 | K32: 365 | L32: 365 | M32: 121 | N32: 0 | O32: 0 | P32: 0 | Q32: 0 | R32: 0 | S32: 0 | T32: 0 | U32: 0 | V32: 0 | W32: 0 | X32: 0 | Y32: 0 | Z32: 0 | AA32: 0 | AB32: 0 | AC32: 0 | AD32: 0 | AE32: 0 | AF32: 0 | AG32: 0 | AH32: 0 | AI32: 0 | AJ32: 0 | AK32: 0 | AL32: 0 | AM32: 0 | AN32: 0 | AO32: 0 | AP32: 0
B33: Factor de Construcción | C33: % | H33: =+IF(ISERROR(H32/H$15),0,H32/H$15) -> 0 | I33: =+IF(ISERROR(I32/I$15),0,I32/I$15) -> 0 | J33: 0 | K33: 1 | L33: 1 | M33: 0.3306010929 | N33: 0 | O33: 0 | P33: 0 | Q33: 0 | R33: 0 | S33: 0 | T33: 0 | U33: 0 | V33: 0 | W33: 0 | X33: 0 | Y33: 0 | Z33: 0 | AA33: 0 | AB33: 0 | AC33: 0 | AD33: 0 | AE33: 0 | AF33: 0 | AG33: 0 | AH33: 0 | AI33: 0 | AJ33: 0 | AK33: 0 | AL33: 0 | AM33: 0 | AN33: 0 | AO33: 0 | AP33: 0
B34: Fecha Inicio de Operación | D34: =+Control!D15 -> 2024-05-01
B35: Fecha Final de Operación | D35: =+Control!D17 -> 2051-12-31
B36: Inicio de Operación | C36: flag | H36: =AND($D34>=H$12,$D34<=H$13)*1 -> 0 | I36: =AND($D34>=I$12,$D34<=I$13)*1 -> 0 | J36: 0 | K36: 0 | L36: 0 | M36: 1 | N36: 0 | O36: 0 | P36: 0 | Q36: 0 | R36: 0 | S36: 0 | T36: 0 | U36: 0 | V36: 0 | W36: 0 | X36: 0 | Y36: 0 | Z36: 0 | AA36: 0 | AB36: 0 | AC36: 0 | AD36: 0 | AE36: 0 | AF36: 0 | AG36: 0 | AH36: 0 | AI36: 0 | AJ36: 0 | AK36: 0 | AL36: 0 | AM36: 0 | AN36: 0 | AO36: 0 | AP36: 0
B37: Periodo de Operación | C37: flag | H37: =AND(H$12<=$D35,H$13>=$D34)*1 -> 0 | I37: =AND(I$12<=$D35,I$13>=$D34)*1 -> 0 | J37: 0 | K37: 0 | L37: 0 | M37: 1 | N37: 1 | O37: 1 | P37: 1 | Q37: 1 | R37: 1 | S37: 1 | T37: 1 | U37: 1 | V37: 1 | W37: 1 | X37: 1 | Y37: 1 | Z37: 1 | AA37: 1 | AB37: 1 | AC37: 1 | AD37: 1 | AE37: 1 | AF37: 1 | AG37: 1 | AH37: 1 | AI37: 1 | AJ37: 1 | AK37: 1 | AL37: 1 | AM37: 1 | AN37: 1 | AO37: 0 | AP37: 0
B38: Ultimo Periodo de Operación | C38: flag | H38: =AND($D35>=H$12,$D35<=H$13)*1 -> 0 | I38: =AND($D35>=I$12,$D35<=I$13)*1 -> 0 | J38: 0 | K38: 0 | L38: 0 | M38: 0 | N38: 0 | O38: 0 | P38: 0 | Q38: 0 | R38: 0 | S38: 0 | T38: 0 | U38: 0 | V38: 0 | W38: 0 | X38: 0 | Y38: 0 | Z38: 0 | AA38: 0 | AB38: 0 | AC38: 0 | AD38: 0 | AE38: 0 | AF38: 0 | AG38: 0 | AH38: 0 | AI38: 0 | AJ38: 0 | AK38: 0 | AL38: 0 | AM38: 0 | AN38: 1 | AO38: 0 | AP38: 0
B39: Contador de Operación | C39: Años | F39: =+MAX(H39:AP39) -> 28 | H39: =+(H37+G39)*H37 -> 0 | I39: =+(I37+H39)*I37 -> 0 | J39: =+(J37+I39)*J37 -> 0 | K39: =+(K37+J39)*K37 -> 0 | L39: 0 | M39: 1 | N39: 2 | O39: 3 | P39: 4 | Q39: 5 | R39: 6 | S39: 7 | T39: 8 | U39: 9 | V39: 10 | W39: 11 | X39: 12 | Y39: 13 | Z39: 14 | AA39: 15 | AB39: 16 | AC39: 17 | AD39: 18 | AE39: 19 | AF39: 20 | AG39: 21 | AH39: 22 | AI39: 23 | AJ39: 24 | AK39: 25 | AL39: 26 | AM39: 27 | AN39: 28 | AO39: 0 | AP39: 0
B40: Meses de Operación | C40: Meses | H40: =+ROUND(H$14*H42,0) -> 0 | I40: =+ROUND(I$14*I42,0) -> 0 | J40: 0 | K40: 0 | L40: 0 | M40: 8 | N40: 12 | O40: 12 | P40: 12 | Q40: 12 | R40: 12 | S40: 12 | T40: 12 | U40: 12 | V40: 12 | W40: 12 | X40: 12 | Y40: 12 | Z40: 12 | AA40: 12 | AB40: 12 | AC40: 12 | AD40: 12 | AE40: 12 | AF40: 12 | AG40: 12 | AH40: 12 | AI40: 12 | AJ40: 12 | AK40: 12 | AL40: 12 | AM40: 12 | AN40: 12 | AO40: 0 | AP40: 0
B41: Días del periodo Operación | C41: Días | H41: =IF(H39=1, IF(I37=0,$D35-$D34+1, H$13-$D34+1),IF(AND(H37=1,I37=1),H$15,$D35-H$12+1))*H37 -> 0 | I41: =IF(I39=1, IF(J37=0,$D35-$D34+1, I$13-$D34+1),IF(AND(I37=1,J37=1),I$15,$D35-I$12+1))*I37 -> 0 | J41: 0 | K41: 0 | L41: 0 | M41: 245 | N41: 365 | O41: 365 | P41: 365 | Q41: 366 | R41: 365 | S41: 365 | T41: 365 | U41: 366 | V41: 365 | W41: 365 | X41: 365 | Y41: 366 | Z41: 365 | AA41: 365 | AB41: 365 | AC41: 366 | AD41: 365 | AE41: 365 | AF41: 365 | AG41: 366 | AH41: 365 | AI41: 365 | AJ41: 365 | AK41: 366 | AL41: 365 | AM41: 365 | AN41: 365 | AO41: 0 | AP41: 0
B42: Factor de Operación | C42: % | H42: =+IF(ISERROR(H41/H$15),0,H41/H$15) -> 0 | I42: =+IF(ISERROR(I41/I$15),0,I41/I$15) -> 0 | J42: 0 | K42: 0 | L42: 0 | M42: 0.6693989071 | N42: 1 | O42: 1 | P42: 1 | Q42: 1 | R42: 1 | S42: 1 | T42: 1 | U42: 1 | V42: 1 | W42: 1 | X42: 1 | Y42: 1 | Z42: 1 | AA42: 1 | AB42: 1 | AC42: 1 | AD42: 1 | AE42: 1 | AF42: 1 | AG42: 1 | AH42: 1 | AI42: 1 | AJ42: 1 | AK42: 1 | AL42: 1 | AM42: 1 | AN42: 1 | AO42: 0 | AP42: 0
B43: Fecha Inicio de Financiación | D43: =+Control!D19 -> 2022-01-01
B44: Fecha Final de Financiación | D44: =+Control!D17 -> 2051-12-31
B45: Inicio de Financiación | C45: flag | H45: =AND($D43>=H$12,$D43<=H$13)*1 -> 0 | I45: =AND($D43>=I$12,$D43<=I$13)*1 -> 0 | J45: =AND($D43>=J$12,$D43<=J$13)*1 -> 0 | K45: 1 | L45: 0 | M45: 0 | N45: 0 | O45: 0 | P45: 0 | Q45: 0 | R45: 0 | S45: 0 | T45: 0 | U45: 0 | V45: 0 | W45: 0 | X45: 0 | Y45: 0 | Z45: 0 | AA45: 0 | AB45: 0 | AC45: 0 | AD45: 0 | AE45: 0 | AF45: 0 | AG45: 0 | AH45: 0 | AI45: 0 | AJ45: 0 | AK45: 0 | AL45: 0 | AM45: 0 | AN45: 0 | AO45: 0 | AP45: 0
B46: Periodo de Financiación | C46: flag | F46: =+MAX(H46:AP46) -> 1 | H46: =AND(H$12<=$D44,H$13>=$D43)*1 -> 0 | I46: =AND(I$12<=$D44,I$13>=$D43)*1 -> 0 | J46: 0 | K46: 1 | L46: 1 | M46: 1 | N46: 1 | O46: 1 | P46: 1 | Q46: 1 | R46: 1 | S46: 1 | T46: 1 | U46: 1 | V46: 1 | W46: 1 | X46: 1 | Y46: 1 | Z46: 1 | AA46: 1 | AB46: 1 | AC46: 1 | AD46: 1 | AE46: 1 | AF46: 1 | AG46: 1 | AH46: 1 | AI46: 1 | AJ46: 1 | AK46: 1 | AL46: 1 | AM46: 1 | AN46: 1 | AO46: 0 | AP46: 0
B47: Ultimo Periodo de Financiación | C47: flag | H47: =AND($D44>=H$12,$D44<=H$13)*1 -> 0 | I47: =AND($D44>=I$12,$D44<=I$13)*1 -> 0 | J47: 0 | K47: 0 | L47: 0 | M47: 0 | N47: 0 | O47: 0 | P47: 0 | Q47: 0 | R47: 0 | S47: 0 | T47: 0 | U47: 0 | V47: 0 | W47: 0 | X47: 0 | Y47: 0 | Z47: 0 | AA47: 0 | AB47: 0 | AC47: 0 | AD47: 0 | AE47: 0 | AF47: 0 | AG47: 0 | AH47: 0 | AI47: 0 | AJ47: 0 | AK47: 0 | AL47: 0 | AM47: 0 | AN47: 1 | AO47: 0 | AP47: 0
B48: Contador de Financiación | C48: Años | H48: =+(H46+G48)*H46 -> 0 | I48: =+(I46+H48)*I46 -> 0 | J48: =+(J46+I48)*J46 -> 0 | K48: =+(K46+J48)*K46 -> 1 | L48: 2 | M48: 3 | N48: 4 | O48: 5 | P48: 6 | Q48: 7 | R48: 8 | S48: 9 | T48: 10 | U48: 11 | V48: 12 | W48: 13 | X48: 14 | Y48: 15 | Z48: 16 | AA48: 17 | AB48: 18 | AC48: 19 | AD48: 20 | AE48: 21 | AF48: 22 | AG48: 23 | AH48: 24 | AI48: 25 | AJ48: 26 | AK48: 27 | AL48: 28 | AM48: 29 | AN48: 30 | AO48: 0 | AP48: 0
B49: Meses de Financiación | C49: Meses | H49: =+ROUND(H$14*H51,0) -> 0 | I49: =+ROUND(I$14*I51,0) -> 0 | J49: 0 | K49: 12 | L49: 12 | M49: 12 | N49: 12 | O49: 12 | P49: 12 | Q49: 12 | R49: 12 | S49: 12 | T49: 12 | U49: 12 | V49: 12 | W49: 12 | X49: 12 | Y49: 12 | Z49: 12 | AA49: 12 | AB49: 12 | AC49: 12 | AD49: 12 | AE49: 12 | AF49: 12 | AG49: 12 | AH49: 12 | AI49: 12 | AJ49: 12 | AK49: 12 | AL49: 12 | AM49: 12 | AN49: 12 | AO49: 0 | AP49: 0
B50: Días del periodo Financiación | C50: Días | H50: =IF(H48=1, IF(I46=0,$D44-$D43+1, H$13-$D43+1),IF(AND(H46=1,I46=1),H$15,$D44-H$12+1))*H46 -> 0 | I50: =IF(I48=1, IF(J46=0,$D44-$D43+1, I$13-$D43+1),IF(AND(I46=1,J46=1),I$15,$D44-I$12+1))*I46 -> 0 | J50: 0 | K50: 365 | L50: 365 | M50: 366 | N50: 365 | O50: 365 | P50: 365 | Q50: 366 | R50: 365 | S50: 365 | T50: 365 | U50: 366 | V50: 365 | W50: 365 | X50: 365 | Y50: 366 | Z50: 365 | AA50: 365 | AB50: 365 | AC50: 366 | AD50: 365 | AE50: 365 | AF50: 365 | AG50: 366 | AH50: 365 | AI50: 365 | AJ50: 365 | AK50: 366 | AL50: 365 | AM50: 365 | AN50: 365 | AO50: 0 | AP50: 0
B51: Factor de Financiación | C51: % | H51: =+IF(ISERROR(H50/H$15),0,H50/H$15) -> 0 | I51: =+IF(ISERROR(I50/I$15),0,I50/I$15) -> 0 | J51: 0 | K51: 1 | L51: 1 | M51: 1 | N51: 1 | O51: 1 | P51: 1 | Q51: 1 | R51: 1 | S51: 1 | T51: 1 | U51: 1 | V51: 1 | W51: 1 | X51: 1 | Y51: 1 | Z51: 1 | AA51: 1 | AB51: 1 | AC51: 1 | AD51: 1 | AE51: 1 | AF51: 1 | AG51: 1 | AH51: 1 | AI51: 1 | AJ51: 1 | AK51: 1 | AL51: 1 | AM51: 1 | AN51: 1 | AO51: 0 | AP51: 0
B54: IPC+Sensibilidad | H54: =+'Hipótesis '!H12 -> 0.01 | I54: =+'Hipótesis '!I12 -> 0.01 | J54: =+'Hipótesis '!J12 -> 0.01 | K54: =+'Hipótesis '!K12 -> 0.01 | L54: =+'Hipótesis '!L12 -> 0.01 | M54: =+'Hipótesis '!M12 -> 0.01 | N54: =+'Hipótesis '!N12 -> 0.01 | O54: =+'Hipótesis '!O12 -> 0.01 | P54: =+'Hipótesis '!P12 -> 0.01 | Q54: =+'Hipótesis '!Q12 -> 0.01 | R54: =+'Hipótesis '!R12 -> 0.01 | S54: =+'Hipótesis '!S12 -> 0.01 | T54: =+'Hipótesis '!T12 -> 0.01 | U54: =+'Hipótesis '!U12 -> 0.01 | V54: =+'Hipótesis '!V12 -> 0.01 | W54: =+'Hipótesis '!W12 -> 0.01 | X54: =+'Hipótesis '!X12 -> 0.01 | Y54: =+'Hipótesis '!Y12 -> 0.01 | Z54: =+'Hipótesis '!Z12 -> 0.01 | AA54: =+'Hipótesis '!AA12 -> 0.01 | AB54: =+'Hipótesis '!AB12 -> 0.01 | AC54: =+'Hipótesis '!AC12 -> 0.01 | AD54: =+'Hipótesis '!AD12 -> 0.01 | AE54: =+'Hipótesis '!AE12 -> 0.01 | AF54: =+'Hipótesis '!AF12 -> 0.01 | AG54: =+'Hipótesis '!AG12 -> 0.01 | AH54: =+'Hipótesis '!AH12 -> 0.01 | AI54: =+'Hipótesis '!AI12 -> 0.01 | AJ54: =+'Hipótesis '!AJ12 -> 0.01 | AK54: =+'Hipótesis '!AK12 -> 0.01 | AL54: =+'Hipótesis '!AL12 -> 0.01 | AM54: =+'Hipótesis '!AM12 -> 0.01 | AN54: =+'Hipótesis '!AN12 -> 0.01 | AO54: =+'Hipótesis '!AO12 -> 0.01 | AP54: =+'Hipótesis '!AP12 -> 0.01
B55: Factor de Actualización 2019 | H55: 1 | I55: =+H55*(1+H54) -> 1.01 | J55: =+I55*(1+I54) -> 1.0201 | K55: 1.030301 | L55: 1.04060401 | M55: 1.05101005 | N55: 1.061520151 | O55: 1.072135352 | P55: 1.082856706 | Q55: 1.093685273 | R55: 1.104622125 | S55: 1.115668347 | T55: 1.12682503 | U55: 1.13809328 | V55: 1.149474213 | W55: 1.160968955 | X55: 1.172578645 | Y55: 1.184304431 | Z55: 1.196147476 | AA55: 1.20810895 | AB55: 1.22019004 | AC55: 1.23239194 | AD55: 1.24471586 | AE55: 1.257163018 | AF55: 1.269734649 | AG55: 1.282431995 | AH55: 1.295256315 | AI55: 1.308208878 | AJ55: 1.321290967 | AK55: 1.334503877 | AL55: 1.347848915 | AM55: 1.361327404 | AN55: 1.374940679 | AO55: 1.388690085 | AP55: 1.402576986
B56: Factor de Actualización 2020 | I56: 1 | J56: =+I56*(1+I54) -> 1.01 | K56: 1.0201 | L56: 1.030301 | M56: 1.04060401 | N56: 1.05101005 | O56: 1.061520151 | P56: 1.072135352 | Q56: 1.082856706 | R56: 1.093685273 | S56: 1.104622125 | T56: 1.115668347 | U56: 1.12682503 | V56: 1.13809328 | W56: 1.149474213 | X56: 1.160968955 | Y56: 1.172578645 | Z56: 1.184304431 | AA56: 1.196147476 | AB56: 1.20810895 | AC56: 1.22019004 | AD56: 1.23239194 | AE56: 1.24471586 | AF56: 1.257163018 | AG56: 1.269734649 | AH56: 1.282431995 | AI56: 1.295256315 | AJ56: 1.308208878 | AK56: 1.321290967 | AL56: 1.334503877 | AM56: 1.347848915 | AN56: 1.361327404 | AO56: 1.374940679 | AP56: 1.388690085
B57: Factor de Actualización 2021 | J57: 1 | K57: =+J57*(1+J54) -> 1.01 | L57: =+K57*(1+K54) -> 1.0201 | M57: 1.030301 | N57: 1.04060401 | O57: 1.05101005 | P57: 1.061520151 | Q57: 1.072135352 | R57: 1.082856706 | S57: 1.093685273 | T57: 1.104622125 | U57: 1.115668347 | V57: 1.12682503 | W57: 1.13809328 | X57: 1.149474213 | Y57: 1.160968955 | Z57: 1.172578645 | AA57: 1.184304431 | AB57: 1.196147476 | AC57: 1.20810895 | AD57: 1.22019004 | AE57: 1.23239194 | AF57: 1.24471586 | AG57: 1.257163018 | AH57: 1.269734649 | AI57: 1.282431995 | AJ57: 1.295256315 | AK57: 1.308208878 | AL57: 1.321290967 | AM57: 1.334503877 | AN57: 1.347848915 | AO57: 1.361327404 | AP57: 1.374940679
B60: Mantenimiento mayor
B62: =+B37 -> Periodo de Operación | H62: =+H37 -> 0 | I62: =+I37 -> 0 | J62: 0 | K62: 0 | L62: 0 | M62: 1 | N62: 1 | O62: 1 | P62: 1 | Q62: 1 | R62: 1 | S62: 1 | T62: 1 | U62: 1 | V62: 1 | W62: 1 | X62: 1 | Y62: 1 | Z62: 1 | AA62: 1 | AB62: 1 | AC62: 1 | AD62: 1 | AE62: 1 | AF62: 1 | AG62: 1 | AH62: 1 | AI62: 1 | AJ62: 1 | AK62: 1 | AL62: 1 | AM62: 1 | AN62: 1 | AO62: 0 | AP62: 0
B63: =+B39 -> Contador de Operación | H63: =+H39 -> 0 | I63: =+I39 -> 0 | J63: 0 | K63: 0 | L63: 0 | M63: 1 | N63: 2 | O63: 3 | P63: 4 | Q63: 5 | R63: 6 | S63: 7 | T63: 8 | U63: 9 | V63: 10 | W63: 11 | X63: 12 | Y63: 13 | Z63: 14 | AA63: 15 | AB63: 16 | AC63: 17 | AD63: 18 | AE63: 19 | AF63: 20 | AG63: 21 | AH63: 22 | AI63: 23 | AJ63: 24 | AK63: 25 | AL63: 26 | AM63: 27 | AN63: 28 | AO63: 0 | AP63: 0
B65: Periodicidad
B66: Flag MM Bolsa 2 - Padre Damián | D66: =+Control!$D$89 -> 14 | H66: =IFERROR(IF(H$63/$D$66=INT(H$63/$D$66),1,0)*H$62,0) -> 0 | I66: 0 | J66: 0 | K66: 0 | L66: 0 | M66: 0 | N66: 0 | O66: 0 | P66: 0 | Q66: 0 | R66: 0 | S66: 0 | T66: 0 | U66: 0 | V66: 0 | W66: 0 | X66: 0 | Y66: 0 | Z66: 1 | AA66: 0 | AB66: 0 | AC66: 0 | AD66: 0 | AE66: 0 | AF66: 0 | AG66: 0 | AH66: 0 | AI66: 0 | AJ66: 0 | AK66: 0 | AL66: 0 | AM66: 0 | AN66: 1 | AO66: 0 | AP66: 0
B67: Flag MM Bolsa 3 - Paseo de la Castellana | D67: =+Control!$D$89 -> 14 | H67: =IFERROR(IF(H$63/$D$67=INT(H$63/$D$67),1,0)*H$62,0) -> 0 | I67: 0 | J67: 0 | K67: 0 | L67: 0 | M67: 0 | N67: 0 | O67: 0 | P67: 0 | Q67: 0 | R67: 0 | S67: 0 | T67: 0 | U67: 0 | V67: 0 | W67: 0 | X67: 0 | Y67: 0 | Z67: 1 | AA67: 0 | AB67: 0 | AC67: 0 | AD67: 0 | AE67: 0 | AF67: 0 | AG67: 0 | AH67: 0 | AI67: 0 | AJ67: 0 | AK67: 0 | AL67: 0 | AM67: 0 | AN67: 1 | AO67: 0 | AP67: 0

Sheet Hipótesis
A1: =+Control!A1 -> Real Madrid - Parking
A2: =RIGHT(CELL("filename", $H$3), LEN(CELL("filename", $H$3)) - SEARCH("]", CELL("filename", $H$3))) -> Hipótesis
A3: =+Control!A3 -> Cifras EUR
H4: =+YEAR(H5) -> 2019 | I4: =+YEAR(I5) -> 2020 | J4: 2021 | K4: 2022 | L4: 2023 | M4: 2024 | N4: 2025 | O4: 2026 | P4: 2027 | Q4: 2028 | R4: 2029 | S4: 2030 | T4: 2031 | U4: 2032 | V4: 2033 | W4: 2034 | X4: 2035 | Y4: 2036 | Z4: 2037 | AA4: 2038 | AB4: 2039 | AC4: 2040 | AD4: 2041 | AE4: 2042 | AF4: 2043 | AG4: 2044 | AH4: 2045 | AI4: 2046 | AJ4: 2047 | AK4: 2048 | AL4: 2049 | AM4: 2050 | AN4: 2051 | AO4: 2052 | AP4: 2053
B5: Errores | C5: =+Control!C4 -> 0 | H5: 2019-01-01 | I5: =+DATE(YEAR(H5)+1,MONTH(H5),DAY(H5)) -> 2020-01-01 | J5: 2021-01-01 | K5: 2022-01-01 | L5: 2023-01-01 | M5: 2024-01-01 | N5: 2025-01-01 | O5: 2026-01-01 | P5: 2027-01-01 | Q5: 2028-01-01 | R5: 2029-01-01 | S5: 2030-01-01 | T5: 2031-01-01 | U5: 2032-01-01 | V5: 2033-01-01 | W5: 2034-01-01 | X5: 2035-01-01 | Y5: =+DATE(YEAR(X5)+1,MONTH(X5),DAY(X5)) -> 2036-01-01 | Z5: 2037-01-01 | AA5: 2038-01-01 | AB5: 2039-01-01 | AC5: 2040-01-01 | AD5: 2041-01-01 | AE5: 2042-01-01 | AF5: 2043-01-01 | AG5: 2044-01-01 | AH5: 2045-01-01 | AI5: 2046-01-01 | AJ5: 2047-01-01 | AK5: 2048-01-01 | AL5: 2049-01-01 | AM5: 2050-01-01 | AN5: 2051-01-01 | AO5: =+DATE(YEAR(AN5)+1,MONTH(AN5),DAY(AN5)) -> 2052-01-01 | AP5: =+DATE(YEAR(AO5)+1,MONTH(AO5),DAY(AO5)) -> 2053-01-01
B6: TIR Accionistas (Dividendos) | C6: =+Control!C5 -> 0.0700448478 | H6: =+DATE(YEAR(H5),MONTH(H5)+12,DAY(H5)-1) -> 2019-12-31 | I6: =+DATE(YEAR(H6)+1,MONTH(H6),DAY(H6)) -> 2020-12-31 | J6: 2021-12-31 | K6: 2022-12-31 | L6: 2023-12-31 | M6: 2024-12-31 | N6: 2025-12-31 | O6: 2026-12-31 | P6: 2027-12-31 | Q6: 2028-12-31 | R6: 2029-12-31 | S6: 2030-12-31 | T6: 2031-12-31 | U6: 2032-12-31 | V6: 2033-12-31 | W6: 2034-12-31 | X6: 2035-12-31 | Y6: 2036-12-31 | Z6: 2037-12-31 | AA6: 2038-12-31 | AB6: 2039-12-31 | AC6: 2040-12-31 | AD6: 2041-12-31 | AE6: 2042-12-31 | AF6: 2043-12-31 | AG6: 2044-12-31 | AH6: 2045-12-31 | AI6: 2046-12-31 | AJ6: 2047-12-31 | AK6: 2048-12-31 | AL6: 2049-12-31 | AM6: 2050-12-31 | AN6: 2051-12-31 | AO6: =+DATE(YEAR(AN6)+1,MONTH(AN6),DAY(AN6)) -> 2052-12-31 | AP6: =+DATE(YEAR(AO6)+1,MONTH(AO6),DAY(AO6)) -> 2053-12-31
B9: Hipótesis Macroeconómicas
B11: Inflación | H11: 0.01 | I11: =+$H$11 -> 0.01 | J11: =+$H$11 -> 0.01 | K11: 0.01 | L11: 0.01 | M11: 0.01 | N11: 0.01 | O11: 0.01 | P11: 0.01 | Q11: 0.01 | R11: 0.01 | S11: 0.01 | T11: 0.01 | U11: 0.01 | V11: 0.01 | W11: 0.01 | X11: 0.01 | Y11: 0.01 | Z11: 0.01 | AA11: 0.01 | AB11: 0.01 | AC11: 0.01 | AD11: 0.01 | AE11: 0.01 | AF11: 0.01 | AG11: 0.01 | AH11: 0.01 | AI11: 0.01 | AJ11: 0.01 | AK11: 0.01 | AL11: 0.01 | AM11: 0.01 | AN11: 0.01 | AO11: 0.01 | AP11: 0.01
B12: Inflación + Sensibilidad | D12: =+Control!$Q$27 -> 0 | H12: =+H11+$D$12 -> 0.01 | I12: =+I11+$D$12 -> 0.01 | J12: 0.01 | K12: 0.01 | L12: 0.01 | M12: 0.01 | N12: 0.01 | O12: 0.01 | P12: 0.01 | Q12: 0.01 | R12: 0.01 | S12: 0.01 | T12: 0.01 | U12: 0.01 | V12: 0.01 | W12: 0.01 | X12: 0.01 | Y12: 0.01 | Z12: 0.01 | AA12: 0.01 | AB12: 0.01 | AC12: 0.01 | AD12: 0.01 | AE12: 0.01 | AF12: 0.01 | AG12: 0.01 | AH12: 0.01 | AI12: 0.01 | AJ12: 0.01 | AK12: 0.01 | AL12: 0.01 | AM12: 0.01 | AN12: 0.01 | AO12: 0.01 | AP12: 0.01
B14: Hipótesis Operativas
B16: Capex
B18: Cronograma de inversión | D18: % trabajo
B19: Redacción Anteproyecto | C19: 6 | D19: 0.1
B20: Ejecución obras | C20: 22 | D20: 0.9
C21: =+SUM(C19:C20) -> 28 | D21: =+SUM(D19:D20) -> 1
B23: =+Control!B12 -> Inicio de construcción | C23: =+Control!D12 -> 2022-01-01
B24: =+Control!B13 -> Periodo de construcción | C24: =+Control!D13 -> 28
B25: =+Control!B14 -> Fin de construcción | C25: =+Control!D14 -> 2024-04-30
B27: Obra Civil | C27: % de construcción al año | D27: Meses de construcción | E27: Padre Damián | F27: Paseo de la Castellana
B28: 1 | C28: =+SUMIF(Flags!$H$30:$AP$30,B28,Flags!$H$33:$AP$33) -> 1 | D28: =12/(1/C28) -> 12 | E28: =+(D20/C20*6)+(D19/C19*6) -> 0.3454545455 | F28: =+(D20/C20*6)+(D19/C19*6) -> 0.3454545455
B29: 2 | C29: =+SUMIF(Flags!$H$30:$AP$30,B29,Flags!$H$33:$AP$33) -> 1 | D29: =12/(1/C29) -> 12 | E29: =+(D20/C20*12) -> 0.4909090909 | F29: =+(D20/C20*12) -> 0.4909090909
B30: 3 | C30: =+SUMIF(Flags!$H$30:$AP$30,B30,Flags!$H$33:$AP$33) -> 0.3306010929 | D30: =IFERROR(12/(1/C30),0) -> 3.967213115 | E30: =+(D20/C20*4) -> 0.1636363636 | F30: =+(D20/C20*4) -> 0.1636363636
B31: Instalaciones y otras inversiones
B32: 1 | C32: =+SUMIF(Flags!$H$30:$AP$30,B32,Flags!$H$33:$AP$33) -> 1 | D32: =12/(1/C32) -> 12 | E32: 0 | F32: 0
B33: 2 | C33: =+SUMIF(Flags!$H$30:$AP$30,B33,Flags!$H$33:$AP$33) -> 1 | D33: =12/(1/C33) -> 12 | E33: 0.8 | F33: 0.8
B34: 3 | C34: =+SUMIF(Flags!$H$30:$AP$30,B34,Flags!$H$33:$AP$33) -> 0.3306010929 | D34: =+IFERROR(12/(1/C34),0) -> 3.967213115 | E34: 0.2 | F34: 0.2
B37: =+Flags!B30 -> Contador de Construcción | H37: =+Flags!H30 -> 0 | I37: =+Flags!I30 -> 0 | J37: =+Flags!J30 -> 0 | K37: =+Flags!K30 -> 1 | L37: =+Flags!L30 -> 2 | M37: =+Flags!M30 -> 3 | N37: =+Flags!N30 -> 0 | O37: =+Flags!O30 -> 0 | P37: =+Flags!P30 -> 0 | Q37: =+Flags!Q30 -> 0 | R37: =+Flags!R30 -> 0 | S37: =+Flags!S30 -> 0 | T37: =+Flags!T30 -> 0 | U37: =+Flags!U30 -> 0 | V37: =+Flags!V30 -> 0 | W37: =+Flags!W30 -> 0 | X37: =+Flags!X30 -> 0 | Y37: =+Flags!Y30 -> 0 | Z37: =+Flags!Z30 -> 0 | AA37: =+Flags!AA30 -> 0 | AB37: =+Flags!AB30 -> 0 | AC37: =+Flags!AC30 -> 0 | AD37: =+Flags!AD30 -> 0 | AE37: =+Flags!AE30 -> 0 | AF37: =+Flags!AF30 -> 0 | AG37: =+Flags!AG30 -> 0 | AH37: =+Flags!AH30 -> 0 | AI37: =+Flags!AI30 -> 0 | AJ37: =+Flags!AJ30 -> 0 | AK37: =+Flags!AK30 -> 0 | AL37: =+Flags!AL30 -> 0 | AM37: =+Flags!AM30 -> 0 | AN37: =+Flags!AN30 -> 0 | AO37: =+Flags!AO30 -> 0 | AP37: =+Flags!AP30 -> 0
B39: Cronograma Obra Civil y obras adicionales
B40: Bolsa 2 - Padre Damián | F40: =+SUM(H40:AP40) -> 1 | H40: =+IFERROR(VLOOKUP(H$37,$B$28:$F$30,4,FALSE),0) -> 0 | I40: 0 | J40: 0 | K40: 0.3454545455 | L40: 0.4909090909 | M40: 0.1636363636 | N40: 0 | O40: 0 | P40: 0 | Q40: 0 | R40: 0 | S40: 0 | T40: 0 | U40: 0 | V40: 0 | W40: 0 | X40: 0 | Y40: 0 | Z40: 0 | AA40: 0 | AB40: 0 | AC40: 0 | AD40: 0 | AE40: 0 | AF40: 0 | AG40: 0 | AH40: 0 | AI40: 0 | AJ40: 0 | AK40: 0 | AL40: 0 | AM40: 0 | AN40: 0 | AO40: 0 | AP40: 0
B41: Bolsa 3 - Paseo de la Castellana | F41: =+SUM(H41:AP41) -> 1 | H41: =+IFERROR(VLOOKUP(H$37,$B$28:$F$30,5,FALSE),0) -> 0 | I41: 0 | J41: 0 | K41: 0.3454545455 | L41: 0.4909090909 | M41: 0.1636363636 | N41: 0 | O41: 0 | P41: 0 | Q41: 0 | R41: 0 | S41: 0 | T41: 0 | U41: 0 | V41: 0 | W41: 0 | X41: 0 | Y41: 0 | Z41: 0 | AA41: 0 | AB41: 0 | AC41: 0 | AD41: 0 | AE41: 0 | AF41: 0 | AG41: 0 | AH41: 0 | AI41: 0 | AJ41: 0 | AK41: 0 | AL41: 0 | AM41: 0 | AN41: 0 | AO41: 0 | AP41: 0
B43: Cronograma Instalaciones y otras inversiones
B44: Bolsa 2 - Padre Damián | F44: =+SUM(H44:AP44) -> 1 | H44: =+IFERROR(VLOOKUP(H$37,$B$32:$F$34,4,FALSE),0) -> 0 | I44: =+IFERROR(VLOOKUP(I$37,$B$32:$F$34,4,FALSE),0) -> 0 | J44: 0 | K44: 0 | L44: 0.8 | M44: 0.2 | N44: 0 | O44: 0 | P44: 0 | Q44: 0 | R44: 0 | S44: 0 | T44: 0 | U44: 0 | V44: 0 | W44: 0 | X44: 0 | Y44: 0 | Z44: 0 | AA44: 0 | AB44: 0 | AC44: 0 | AD44: 0 | AE44: 0 | AF44: 0 | AG44: 0 | AH44: 0 | AI44: 0 | AJ44: 0 | AK44: 0 | AL44: 0 | AM44: 0 | AN44: 0 | AO44: 0 | AP44: 0
B45: Bolsa 3 - Paseo de la Castellana | F45: =+SUM(H45:AP45) -> 1 | H45: =+IFERROR(VLOOKUP(H$37,$B$32:$F$34,5,FALSE),0) -> 0 | I45: =+IFERROR(VLOOKUP(I$37,$B$32:$F$34,5,FALSE),0) -> 0 | J45: 0 | K45: 0 | L45: 0.8 | M45: 0.2 | N45: 0 | O45: 0 | P45: 0 | Q45: 0 | R45: 0 | S45: 0 | T45: 0 | U45: 0 | V45: 0 | W45: 0 | X45: 0 | Y45: 0 | Z45: 0 | AA45: 0 | AB45: 0 | AC45: 0 | AD45: 0 | AE45: 0 | AF45: 0 | AG45: 0 | AH45: 0 | AI45: 0 | AJ45: 0 | AK45: 0 | AL45: 0 | AM45: 0 | AN45: 0 | AO45: 0 | AP45: 0
B48: Mantenimiento Mayor
B50: CRMM | C50: No
B51: Adición Año N + 4 | D51: 0.25
B52: Adición Año N + 3 | D52: 0.5
B53: Adición Año N + 2 | D53: 0.75
B54: Adición Año N + 1 | D54: 1
B56: Ingresos
B58: =+Flags!B36 -> Inicio de Operación | H58: =+Flags!H36 -> 0 | I58: =+Flags!I36 -> 0 | J58: =+Flags!J36 -> 0 | K58: =+Flags!K36 -> 0 | L58: =+Flags!L36 -> 0 | M58: =+Flags!M36 -> 1 | N58: =+Flags!N36 -> 0 | O58: =+Flags!O36 -> 0 | P58: =+Flags!P36 -> 0 | Q58: =+Flags!Q36 -> 0 | R58: =+Flags!R36 -> 0 | S58: =+Flags!S36 -> 0 | T58: =+Flags!T36 -> 0 | U58: =+Flags!U36 -> 0 | V58: =+Flags!V36 -> 0 | W58: =+Flags!W36 -> 0 | X58: =+Flags!X36 -> 0 | Y58: =+Flags!Y36 -> 0 | Z58: =+Flags!Z36 -> 0 | AA58: =+Flags!AA36 -> 0 | AB58: =+Flags!AB36 -> 0 | AC58: =+Flags!AC36 -> 0 | AD58: =+Flags!AD36 -> 0 | AE58: =+Flags!AE36 -> 0 | AF58: =+Flags!AF36 -> 0 | AG58: =+Flags!AG36 -> 0 | AH58: =+Flags!AH36 -> 0 | AI58: =+Flags!AI36 -> 0 | AJ58: =+Flags!AJ36 -> 0 | AK58: =+Flags!AK36 -> 0 | AL58: =+Flags!AL36 -> 0 | AM58: =+Flags!AM36 -> 0 | AN58: =+Flags!AN36 -> 0 | AO58: =+Flags!AO36 -> 0 | AP58: =+Flags!AP36 -> 0
B59: =+Flags!B37 -> Periodo de Operación | H59: =+Flags!H37 -> 0 | I59: =+Flags!I37 -> 0 | J59: =+Flags!J37 -> 0 | K59: =+Flags!K37 -> 0 | L59: =+Flags!L37 -> 0 | M59: =+Flags!M37 -> 1 | N59: =+Flags!N37 -> 1 | O59: =+Flags!O37 -> 1 | P59: =+Flags!P37 -> 1 | Q59: =+Flags!Q37 -> 1 | R59: =+Flags!R37 -> 1 | S59: =+Flags!S37 -> 1 | T59: =+Flags!T37 -> 1 | U59: =+Flags!U37 -> 1 | V59: =+Flags!V37 -> 1 | W59: =+Flags!W37 -> 1 | X59: =+Flags!X37 -> 1 | Y59: =+Flags!Y37 -> 1 | Z59: =+Flags!Z37 -> 1 | AA59: =+Flags!AA37 -> 1 | AB59: =+Flags!AB37 -> 1 | AC59: =+Flags!AC37 -> 1 | AD59: =+Flags!AD37 -> 1 | AE59: =+Flags!AE37 -> 1 | AF59: =+Flags!AF37 -> 1 | AG59: =+Flags!AG37 -> 1 | AH59: =+Flags!AH37 -> 1 | AI59: =+Flags!AI37 -> 1 | AJ59: =+Flags!AJ37 -> 1 | AK59: =+Flags!AK37 -> 1 | AL59: =+Flags!AL37 -> 1 | AM59: =+Flags!AM37 -> 1 | AN59: =+Flags!AN37 -> 1 | AO59: =+Flags!AO37 -> 0 | AP59: =+Flags!AP37 -> 0
B60: =+Flags!B39 -> Contador de Operación | H60: =+Flags!H39 -> 0 | I60: =+Flags!I39 -> 0 | J60: =+Flags!J39 -> 0 | K60: =+Flags!K39 -> 0 | L60: =+Flags!L39 -> 0 | M60: =+Flags!M39 -> 1 | N60: =+Flags!N39 -> 2 | O60: =+Flags!O39 -> 3 | P60: =+Flags!P39 -> 4 | Q60: =+Flags!Q39 -> 5 | R60: =+Flags!R39 -> 6 | S60: =+Flags!S39 -> 7 | T60: =+Flags!T39 -> 8 | U60: =+Flags!U39 -> 9 | V60: =+Flags!V39 -> 10 | W60: =+Flags!W39 -> 11 | X60: =+Flags!X39 -> 12 | Y60: =+Flags!Y39 -> 13 | Z60: =+Flags!Z39 -> 14 | AA60: =+Flags!AA39 -> 15 | AB60: =+Flags!AB39 -> 16 | AC60: =+Flags!AC39 -> 17 | AD60: =+Flags!AD39 -> 18 | AE60: =+Flags!AE39 -> 19 | AF60: =+Flags!AF39 -> 20 | AG60: =+Flags!AG39 -> 21 | AH60: =+Flags!AH39 -> 22 | AI60: =+Flags!AI39 -> 23 | AJ60: =+Flags!AJ39 -> 24 | AK60: =+Flags!AK39 -> 25 | AL60: =+Flags!AL39 -> 26 | AM60: =+Flags!AM39 -> 27 | AN60: =+Flags!AN39 -> 28 | AO60: =+Flags!AO39 -> 0 | AP60: =+Flags!AP39 -> 0
B62: =+Control!B92 -> Rotación | H62: =+IF(H$60=1,$D$64,IF(H$60=2,$D$65,IF(H$60=3,$D$66,$D$67)))*H$59 -> 0 | I62: 0 | J62: 0 | K62: 0 | L62: 0 | M62: 0.23 | N62: =+IF(N$60=1,$D$64,IF(N$60=2,$D$65,IF(N$60=3,$D$66,$D$67)))*N$59 -> 0.25 | O62: 0.28 | P62: 0.31 | Q62: 0.31 | R62: 0.31 | S62: 0.31 | T62: 0.31 | U62: 0.31 | V62: 0.31 | W62: 0.31 | X62: 0.31 | Y62: 0.31 | Z62: 0.31 | AA62: 0.31 | AB62: 0.31 | AC62: 0.31 | AD62: 0.31 | AE62: 0.31 | AF62: 0.31 | AG62: 0.31 | AH62: 0.31 | AI62: 0.31 | AJ62: 0.31 | AK62: 0.31 | AL62: 0.31 | AM62: 0.31 | AN62: 0.31 | AO62: 0 | AP62: 0
B63: =+Control!B95 -> Ocupación (en operación)
B64: =+Control!B96 -> 1 | C64: =+Control!C96 -> % | D64: =+Control!D96 -> 0.23
B65: =+Control!B97 -> 2 | C65: =+Control!C97 -> % | D65: =+Control!D97 -> 0.25
B66: =+Control!B98 -> 3 | C66: =+Control!C98 -> % | D66: =+Control!D98 -> 0.28
B67: =+Control!B99 -> Ocupación estabilizada | C67: =+Control!C99 -> % | D67: =+Control!D99 -> 0.31
B69: =+Control!B100 -> Residentes/trabajadores | H69: =+IF(H$60=1,$D71,IF(H$60=2,$D72,IF(H$60=3,$D73,$D74)))*H$59 -> 0 | I69: =+IF(I$60=1,$D71,IF(I$60=2,$D72,IF(I$60=3,$D73,$D74)))*I$59 -> 0 | J69: 0 | K69: 0 | L69: 0 | M69: 0.9 | N69: 0.92 | O69: 0.96 | P69: 1 | Q69: 1 | R69: 1 | S69: 1 | T69: 1 | U69: 1 | V69: 1 | W69: 1 | X69: 1 | Y69: 1 | Z69: 1 | AA69: 1 | AB69: 1 | AC69: 1 | AD69: 1 | AE69: 1 | AF69: 1 | AG69: 1 | AH69: 1 | AI69: 1 | AJ69: 1 | AK69: 1 | AL69: 1 | AM69: 1 | AN69: 1 | AO69: 0 | AP69: 0
B70: =+Control!B102 -> Ocupación (en operación)
B71: =+Control!B103 -> 1 | C71: =+Control!C103 -> % | D71: =+Control!D103 -> 0.9
B72: =+Control!B104 -> 2 | C72: =+Control!C104 -> % | D72: =+Control!D104 -> 0.92
B73: =+Control!B105 -> 3 | C73: =+Control!C105 -> % | D73: =+Control!D105 -> 0.96
B74: =+Control!B106 -> Ocupación estabilizada | C74: =+Control!C106 -> % | D74: =+Control!D106 -> 1
B76: =+Control!B107 -> Mov. Compartida - Car Sharing | H76: =+IF(H$60=1,$D78,IF(H$60=2,$D79,IF(H$60=3,$D80,$D81)))*H$59 -> 0 | I76: =+IF(I$60=1,$D78,IF(I$60=2,$D79,IF(I$60=3,$D80,$D81)))*I$59 -> 0 | J76: 0 | K76: 0 | L76: 0 | M76: 0.9 | N76: 0.92 | O76: 0.96 | P76: 1 | Q76: 1 | R76: 1 | S76: 1 | T76: 1 | U76: 1 | V76: 1 | W76: 1 | X76: 1 | Y76: 1 | Z76: 1 | AA76: 1 | AB76: 1 | AC76: 1 | AD76: 1 | AE76: 1 | AF76: 1 | AG76: 1 | AH76: 1 | AI76: 1 | AJ76: 1 | AK76: 1 | AL76: 1 | AM76: 1 | AN76: 1 | AO76: 0 | AP76: 0
B77: =+Control!B109 -> Ocupación (en operación)
B78: =+Control!B110 -> 1 | C78: =+Control!C110 -> % | D78: =+Control!D110 -> 0.9
B79: =+Control!B111 -> 2 | C79: =+Control!C111 -> % | D79: =+Control!D111 -> 0.92
B80: =+Control!B112 -> 3 | C80: =+Control!C112 -> % | D80: =+Control!D112 -> 0.96
B81: =+Control!B113 -> Ocupación estabilizada | C81: =+Control!C113 -> % | D81: =+Control!D113 -> 1
B83: =+Control!B114 -> Mov. Compartida - Micromovilidad | H83: =+IF(H$60=1,$D85,IF(H$60=2,$D86,IF(H$60=3,$D87,$D88)))*H$59 -> 0 | I83: =+IF(I$60=1,$D85,IF(I$60=2,$D86,IF(I$60=3,$D87,$D88)))*I$59 -> 0 | J83: 0 | K83: 0 | L83: 0 | M83: 0.9 | N83: 0.92 | O83: 0.96 | P83: 1 | Q83: 1 | R83: 1 | S83: 1 | T83: 1 | U83: 1 | V83: 1 | W83: 1 | X83: 1 | Y83: 1 | Z83: 1 | AA83: 1 | AB83: 1 | AC83: 1 | AD83: 1 | AE83: 1 | AF83: 1 | AG83: 1 | AH83: 1 | AI83: 1 | AJ83: 1 | AK83: 1 | AL83: 1 | AM83: 1 | AN83: 1 | AO83: 0 | AP83: 0
B84: =+Control!B116 -> Ocupación (en operación)
B85: =+Control!B117 -> 1 | C85: =+Control!C117 -> % | D85: =+Control!D117 -> 0.9
B86: =+Control!B118 -> 2 | C86: =+Control!C118 -> % | D86: =+Control!D118 -> 0.92
B87: =+Control!B119 -> 3 | C87: =+Control!C119 -> % | D87: =+Control!D119 -> 0.96
B88: =+Control!B120 -> Ocupación estabilizada | C88: =+Control!C120 -> % | D88: =+Control!D120 -> 1
B90: =+Control!B121 -> Electrolineras | H90: =+IF(H$60=1,$D92,IF(H$60=2,$D93,IF(H$60=3,$D94,IF(H$60=4,$D95,IF(H$60=5,$D96,IF(H$60=6,$D97,IF(H$60=7,$D98,IF(H$60=8,$D99,IF(H$60=9,$D100,IF(H$60=10,$D101,$D$102)))*H$59))))))) -> 0 | I90: =+IF(I$60=1,$D92,IF(I$60=2,$D93,IF(I$60=3,$D94,IF(I$60=4,$D95,IF(I$60=5,$D96,IF(I$60=6,$D97,IF(I$60=7,$D98,IF(I$60=8,$D99,IF(I$60=9,$D100,IF(I$60=10,$D101,$D$102)))*I$59))))))) -> 0 | J90: 0 | K90: 0 | L90: 0 | M90: 0.6 | N90: 0.8 | O90: 0.8 | P90: 0.8 | Q90: 1 | R90: 1 | S90: 1 | T90: 1 | U90: 1 | V90: 1 | W90: 1.1 | X90: 1.1 | Y90: 1.1 | Z90: 1.1 | AA90: 1.1 | AB90: 1.1 | AC90: 1.1 | AD90: 1.1 | AE90: 1.1 | AF90: 1.1 | AG90: 1.1 | AH90: 1.1 | AI90: 1.1 | AJ90: 1.1 | AK90: 1.1 | AL90: 1.1 | AM90: 1.1 | AN90: 1.1 | AO90: 0 | AP90: 0
B91: =+Control!B130 -> Ocupación (en operación)
B92: =+Control!B131 -> 1 | C92: =+Control!C131 -> % | D92: =+Control!D131 -> 0.6
B93: =+Control!B132 -> 2 | C93: =+Control!C132 -> % | D93: =+Control!D132 -> 0.8
B94: =+Control!B133 -> 3 | C94: =+Control!C133 -> % | D94: =+Control!D133 -> 0.8
B95: =+Control!B134 -> 4 | C95: =+Control!C134 -> % | D95: =+Control!D134 -> 0.8
B96: =+Control!B135 -> 5 | C96: =+Control!C135 -> % | D96: =+Control!D135 -> 1
B97: =+Control!B136 -> 6 | C97: =+Control!C136 -> % | D97: =+Control!D136 -> 1
B98: =+Control!B137 -> 7 | C98: =+Control!C137 -> % | D98: =+Control!D137 -> 1
B99: =+Control!B138 -> 8 | C99: =+Control!C138 -> % | D99: =+Control!D138 -> 1
B100: =+Control!B139 -> 9 | C100: =+Control!C139 -> % | D100: =+Control!D139 -> 1
B101: =+Control!B140 -> 10 | C101: =+Control!C140 -> % | D101: =+Control!D140 -> 1
B102: =+Control!B141 -> Ocupación estabilizada | C102: =+Control!C141 -> % | D102: =+Control!D141 -> 1.1
B104: =+Control!B142 -> Área logística (PD-1) | H104: =+IF(H$60=1,$D106,IF(H$60=2,$D107,IF(H$60=3,$D108,$D109)))*H$59 -> 0 | I104: =+IF(I$60=1,$D106,IF(I$60=2,$D107,IF(I$60=3,$D108,$D109)))*I$59 -> 0 | J104: 0 | K104: 0 | L104: 0 | M104: 0.9 | N104: 0.92 | O104: 0.96 | P104: 1 | Q104: 1 | R104: 1 | S104: 1 | T104: 1 | U104: 1 | V104: 1 | W104: 1 | X104: 1 | Y104: 1 | Z104: 1 | AA104: 1 | AB104: 1 | AC104: 1 | AD104: 1 | AE104: 1 | AF104: 1 | AG104: 1 | AH104: 1 | AI104: 1 | AJ104: 1 | AK104: 1 | AL104: 1 | AM104: 1 | AN104: 1 | AO104: 0 | AP104: 0
B105: =+Control!B144 -> Ocupación (en operación)
B106: =+Control!B145 -> 1 | C106: =+Control!C145 -> % | D106: =+Control!D145 -> 0.9
B107: =+Control!B146 -> 2 | C107: =+Control!C146 -> % | D107: =+Control!D146 -> 0.92
B108: =+Control!B147 -> 3 | C108: =+Control!C147 -> % | D108: =+Control!D147 -> 0.96
B109: =+Control!B148 -> Ocupación estabilizada | C109: =+Control!C148 -> % | D109: =+Control!D148 -> 1
B111: =+Control!B149 -> Área logística (CDU) | H111: =+IF(H$60=1,$D113,IF(H$60=2,$D114,IF(H$60=3,$D115,$D116)))*H$59 -> 0 | I111: =+IF(I$60=1,$D113,IF(I$60=2,$D114,IF(I$60=3,$D115,$D116)))*I$59 -> 0 | J111: 0 | K111: 0 | L111: 0 | M111: 0.9 | N111: 0.92 | O111: 0.96 | P111: 1 | Q111: 1 | R111: 1 | S111: 1 | T111: 1 | U111: 1 | V111: 1 | W111: 1 | X111: 1 | Y111: 1 | Z111: 1 | AA111: 1 | AB111: 1 | AC111: 1 | AD111: 1 | AE111: 1 | AF111: 1 | AG111: 1 | AH111: 1 | AI111: 1 | AJ111: 1 | AK111: 1 | AL111: 1 | AM111: 1 | AN111: 1 | AO111: 0 | AP111: 0
B112: =+Control!B151 -> Ocupación (en operación)
B113: =+Control!B152 -> 1 | C113: =+Control!C152 -> % | D113: =+Control!D152 -> 0.9
B114: =+Control!B153 -> 2 | C114: =+Control!C153 -> % | D114: =+Control!D153 -> 0.92
B115: =+Control!B154 -> 3 | C115: =+Control!C154 -> % | D115: =+Control!D154 -> 0.96
B116: =+Control!B155 -> Ocupación estabilizada | C116: =+Control!C155 -> % | D116: =+Control!D155 -> 1
B118: =+Control!B156 -> Dársenas autobuses | H118: =+IF(H$60=1,$D120,IF(H$60=2,$D121,IF(H$60=3,$D122,$D123)))*H$59 -> 0 | I118: =+IF(I$60=1,$D120,IF(I$60=2,$D121,IF(I$60=3,$D122,$D123)))*I$59 -> 0 | J118: 0 | K118: 0 | L118: 0 | M118: 0.3 | N118: 0.32 | O118: 0.35 | P118: 0.4 | Q118: 0.4 | R118: 0.4 | S118: 0.4 | T118: 0.4 | U118: 0.4 | V118: 0.4 | W118: 0.4 | X118: 0.4 | Y118: 0.4 | Z118: 0.4 | AA118: 0.4 | AB118: 0.4 | AC118: 0.4 | AD118: 0.4 | AE118: 0.4 | AF118: 0.4 | AG118: 0.4 | AH118: 0.4 | AI118: 0.4 | AJ118: 0.4 | AK118: 0.4 | AL118: 0.4 | AM118: 0.4 | AN118: 0.4 | AO118: 0 | AP118: 0
B119: =+Control!B159 -> Ocupación (en operación)
B120: =+Control!B160 -> 1 | C120: =+Control!C160 -> % | D120: =+Control!D160 -> 0.3
B121: =+Control!B161 -> 2 | C121: =+Control!C161 -> % | D121: =+Control!D161 -> 0.32
B122: =+Control!B162 -> 3 | C122: =+Control!C162 -> % | D122: =+Control!D162 -> 0.35
B123: =+Control!B163 -> Ocupación estabilizada | C123: =+Control!C163 -> % | D123: =+Control!D163 -> 0.4
B125: Hipótesis Financieras
B127: Plazo máximo Deuda Senior | C127: años | D127: =+Control!H15 -> 15
B128: Margen | C128: % | D128: =+Control!H17 -> 0.04
B129: Base cálculo intereses | C129: días | D129: =+Control!H18 -> 360
B130: Comisión de Apertura | C130: % | D130: =+Control!H19 -> 0.02
B131: Comisión de Disponibilidad | C131: % | D131: =+Control!H20 -> 0.01
B132: Comisión de Agencia | C132: € | D132: =+Control!H21 -> 50000
B133: CRSD | C133: % | D133: =+Control!H22 -> 0.5
B134: RCSD Mínimo | C134: x | D134: =+Control!H24 -> 1.5
B136: Hipótesis mercantiles y contables
B138: Reserva Legal
B139: Saldo objetivo (% CS) | C139: % | D139: 0.2
B140: Dotación en el ejercicio | C140: % | D140: 0.1
B142: Causa de disolución
B143: Ratio Min | C143: % | D143: 0
B145: Capital mínimo | C145: EUR 2019 | D145: 3000
B147: Hipótesis Fiscales
B149: Tipo impositivo | D149: 0.25
B151: Limitación Deducibilidad de Gastos Financieros (RD 12/2012)
B153: Aplicación del RD 12/2012 | C153: switch | D153: No
B154: Máxima deducción de gastos financieros (% EBITDA) | C154: % | D154: 0.3
B155: Mínima deducción de gastos financieros | C155: € | D155: 1000000
B156: Plazo de compensación GF a deducir | C156: años | D156: 5
B159: Limitación a la aplicación de BINs
B160: Compensación máxima | C160: € | D160: 1000000
B162: INCN en 12 meses anteriores inferior a | C162: 20000000 | E162: 0.7
B163: INCN en 12 meses anteriores entre | C163: 20000000 | D163: 60000000 | E163: 0.5
B164: INCN en 12 meses anteriores superior a | C164: 60000000 | E164: 0.25

Sheet Detalle CAPEX (hidden)
D30: PEC | H30: PEC
C31: Obras de acondicionamiento | D31: 1297672 | E31: =+D31/$D$41 -> 0.03607205194 | G31: Obras de acondicionamiento | H31: 973005.67 | I31: =+H31/$H$39 -> 0.03085258349
C32: Demoliciones | D32: 97050 | E32: =+D32/$D$41 -> 0.002697748461 | G32: Demoliciones | H32: 78737.89 | I32: =+H32/$H$39 -> 0.002496663072
C33: Cimentaciones, muros pantallas y pilas de pilotes | D33: 11168415.81 | E33: 0.3104541635 | G33: Aparcamiento (sin instalaciones) | H33: =21153348.86-2826707.77 -> 18326641.09 | I33: 0.5811109243 | J33: Aparcamiento rotatorio
C34: Estructuras, forjados | D34: 6439997.13 | E34: 0.1790158923 | G34: Instalaciones | H34: 2826707.77 | I34: 0.08963075977 | J34: Dásena autobuses | L34: 3509041.92
C35: Arquitectura | D35: 2652047.39 | E35: 0.07372031701 | G35: Accesos | H35: 5357401.45 | I35: 0.1698753467
C36: Instalaciones | D36: 4604690.53 | E36: 0.1279989365 | G36: Urbanización | H36: 1462585.8 | I36: 0.04637645174
C37: Servicios afectados | D37: 3226053.59 | E37: 0.08967626078 | G37: Servicios afectados | H37: 1985000 | I37: 0.06294144023
C38: Accesos-salidas al aparcamiento | D38: 4575606.98 | E38: 0.1271904862 | G38: Seguridad y salud | H38: 527171.35 | I38: 0.01671583074
C39: Urbanización | D39: 1311567.5 | E39: 0.03645831226 | H39: =+SUM(H31:H38) -> 31537251.02
C40: Seguridad y salud | D40: 601342.72 | E40: 0.01671583099
D41: =+SUM(D31:D40) -> 35974443.65
C45: Obra civil | D45: =+D31+D32+D33+D34+D35+D37+D38+D39 -> 30768410.4 | E45: =+D45/$D$48 -> 0.8552852325 | G45: Obra civil | H45: =+H31+H32+H33+H35+H36+H37 -> 28183371.9 | I45: =+H45/$H$48 -> 0.8936534095
C46: Instalaciones | D46: =+D36 -> 4604690.53 | E46: =+D46/$D$48 -> 0.1279989365 | G46: Instalaciones | H46: =+H34 -> 2826707.77 | I46: =+H46/$H$48 -> 0.08963075977
C47: Otras inversiones | D47: =+D40 -> 601342.72 | E47: 0.01671583099 | G47: Otras inversiones | H47: =+H38 -> 527171.35 | I47: 0.01671583074
D48: =+SUM(D45:D47) -> 35974443.65 | E48: =+SUM(E45:E47) -> 1 | H48: =+SUM(H45:H47) -> 31537251.02 | I48: =+SUM(I45:I47) -> 1

Sheet Capex
A1: =+Control!A1 -> Real Madrid - Parking
A2: =RIGHT(CELL("filename", $H$3), LEN(CELL("filename", $H$3)) - SEARCH("]", CELL("filename", $H$3))) -> Capex
A3: =+Control!A3 -> Cifras EUR
H4: =+YEAR(H5) -> 2019 | I4: =+YEAR(I5) -> 2020 | J4: 2021 | K4: 2022 | L4: 2023 | M4: 2024 | N4: 2025 | O4: 2026 | P4: 2027 | Q4: 2028 | R4: 2029 | S4: 2030 | T4: 2031 | U4: 2032 | V4: 2033 | W4: 2034 | X4: 2035 | Y4: 2036 | Z4: 2037 | AA4: 2038 | AB4: 2039 | AC4: 2040 | AD4: 2041 | AE4: 2042 | AF4: 2043 | AG4: 2044 | AH4: 2045 | AI4: 2046 | AJ4: 2047 | AK4: 2048 | AL4: 2049 | AM4: 2050 | AN4: 2051 | AO4: 2052 | AP4: 2053
B5: Errores | C5: =+Control!C4 -> 0 | H5: 2019-01-01 | I5: =+DATE(YEAR(H5)+1,MONTH(H5),DAY(H5)) -> 2020-01-01 | J5: 2021-01-01 | K5: 2022-01-01 | L5: 2023-01-01 | M5: 2024-01-01 | N5: 2025-01-01 | O5: 2026-01-01 | P5: 2027-01-01 | Q5: 2028-01-01 | R5: 2029-01-01 | S5: 2030-01-01 | T5: 2031-01-01 | U5: 2032-01-01 | V5: 2033-01-01 | W5: 2034-01-01 | X5: 2035-01-01 | Y5: =+DATE(YEAR(X5)+1,MONTH(X5),DAY(X5)) -> 2036-01-01 | Z5: 2037-01-01 | AA5: 2038-01-01 | AB5: 2039-01-01 | AC5: 2040-01-01 | AD5: 2041-01-01 | AE5: 2042-01-01 | AF5: 2043-01-01 | AG5: 2044-01-01 | AH5: 2045-01-01 | AI5: 2046-01-01 | AJ5: 2047-01-01 | AK5: 2048-01-01 | AL5: 2049-01-01 | AM5: 2050-01-01 | AN5: 2051-01-01 | AO5: =+DATE(YEAR(AN5)+1,MONTH(AN5),DAY(AN5)) -> 2052-01-01 | AP5: =+DATE(YEAR(AO5)+1,MONTH(AO5),DAY(AO5)) -> 2053-01-01
B6: TIR Accionistas (Dividendos) | C6: =+Control!C5 -> 0.0700448478 | H6: =+DATE(YEAR(H5),MONTH(H5)+12,DAY(H5)-1) -> 2019-12-31 | I6: =+DATE(YEAR(H6)+1,MONTH(H6),DAY(H6)) -> 2020-12-31 | J6: 2021-12-31 | K6: 2022-12-31 | L6: 2023-12-31 | M6: 2024-12-31 | N6: 2025-12-31 | O6: 2026-12-31 | P6: 2027-12-31 | Q6: 2028-12-31 | R6: 2029-12-31 | S6: 2030-12-31 | T6: 2031-12-31 | U6: 2032-12-31 | V6: 2033-12-31 | W6: 2034-12-31 | X6: 2035-12-31 | Y6: 2036-12-31 | Z6: 2037-12-31 | AA6: 2038-12-31 | AB6: 2039-12-31 | AC6: 2040-12-31 | AD6: 2041-12-31 | AE6: 2042-12-31 | AF6: 2043-12-31 | AG6: 2044-12-31 | AH6: 2045-12-31 | AI6: 2046-12-31 | AJ6: 2047-12-31 | AK6: 2048-12-31 | AL6: 2049-12-31 | AM6: 2050-12-31 | AN6: 2051-12-31 | AO6: =+DATE(YEAR(AN6)+1,MONTH(AN6),DAY(AN6)) -> 2052-12-31 | AP6: =+DATE(YEAR(AO6)+1,MONTH(AO6),DAY(AO6)) -> 2053-12-31
B8: =+Flags!B15 -> Días del periodo | H8: =+Flags!H15 -> 365 | I8: =+Flags!I15 -> 366 | J8: =+Flags!J15 -> 365 | K8: =+Flags!K15 -> 365 | L8: =+Flags!L15 -> 365 | M8: =+Flags!M15 -> 366 | N8: =+Flags!N15 -> 365 | O8: =+Flags!O15 -> 365 | P8: =+Flags!P15 -> 365 | Q8: =+Flags!Q15 -> 366 | R8: =+Flags!R15 -> 365 | S8: =+Flags!S15 -> 365 | T8: =+Flags!T15 -> 365 | U8: =+Flags!U15 -> 366 | V8: =+Flags!V15 -> 365 | W8: =+Flags!W15 -> 365 | X8: =+Flags!X15 -> 365 | Y8: =+Flags!Y15 -> 366 | Z8: =+Flags!Z15 -> 365 | AA8: =+Flags!AA15 -> 365 | AB8: =+Flags!AB15 -> 365 | AC8: =+Flags!AC15 -> 366 | AD8: =+Flags!AD15 -> 365 | AE8: =+Flags!AE15 -> 365 | AF8: =+Flags!AF15 -> 365 | AG8: =+Flags!AG15 -> 366 | AH8: =+Flags!AH15 -> 365 | AI8: =+Flags!AI15 -> 365 | AJ8: =+Flags!AJ15 -> 365 | AK8: =+Flags!AK15 -> 366 | AL8: =+Flags!AL15 -> 365 | AM8: =+Flags!AM15 -> 365 | AN8: =+Flags!AN15 -> 365 | AO8: =+Flags!AO15 -> 366 | AP8: =+Flags!AP15 -> 365
B10: =+Flags!B18 -> Inicio de Proyecto | H10: =+Flags!H18 -> 0 | I10: =+Flags!I18 -> 0 | J10: =+Flags!J18 -> 0 | K10: =+Flags!K18 -> 1 | L10: =+Flags!L18 -> 0 | M10: =+Flags!M18 -> 0 | N10: =+Flags!N18 -> 0 | O10: =+Flags!O18 -> 0 | P10: =+Flags!P18 -> 0 | Q10: =+Flags!Q18 -> 0 | R10: =+Flags!R18 -> 0 | S10: =+Flags!S18 -> 0 | T10: =+Flags!T18 -> 0 | U10: =+Flags!U18 -> 0 | V10: =+Flags!V18 -> 0 | W10: =+Flags!W18 -> 0 | X10: =+Flags!X18 -> 0 | Y10: =+Flags!Y18 -> 0 | Z10: =+Flags!Z18 -> 0 | AA10: =+Flags!AA18 -> 0 | AB10: =+Flags!AB18 -> 0 | AC10: =+Flags!AC18 -> 0 | AD10: =+Flags!AD18 -> 0 | AE10: =+Flags!AE18 -> 0 | AF10: =+Flags!AF18 -> 0 | AG10: =+Flags!AG18 -> 0 | AH10: =+Flags!AH18 -> 0 | AI10: =+Flags!AI18 -> 0 | AJ10: =+Flags!AJ18 -> 0 | AK10: =+Flags!AK18 -> 0 | AL10: =+Flags!AL18 -> 0 | AM10: =+Flags!AM18 -> 0 | AN10: =+Flags!AN18 -> 0 | AO10: =+Flags!AO18 -> 0 | AP10: =+Flags!AP18 -> 0
B12: =+Flags!B27 -> Inicio de Construcción | H12: =+Flags!H27 -> 0 | I12: =+Flags!I27 -> 0 | J12: =+Flags!J27 -> 0 | K12: =+Flags!K27 -> 1 | L12: =+Flags!L27 -> 0 | M12: =+Flags!M27 -> 0 | N12: =+Flags!N27 -> 0 | O12: =+Flags!O27 -> 0 | P12: =+Flags!P27 -> 0 | Q12: =+Flags!Q27 -> 0 | R12: =+Flags!R27 -> 0 | S12: =+Flags!S27 -> 0 | T12: =+Flags!T27 -> 0 | U12: =+Flags!U27 -> 0 | V12: =+Flags!V27 -> 0 | W12: =+Flags!W27 -> 0 | X12: =+Flags!X27 -> 0 | Y12: =+Flags!Y27 -> 0 | Z12: =+Flags!Z27 -> 0 | AA12: =+Flags!AA27 -> 0 | AB12: =+Flags!AB27 -> 0 | AC12: =+Flags!AC27 -> 0 | AD12: =+Flags!AD27 -> 0 | AE12: =+Flags!AE27 -> 0 | AF12: =+Flags!AF27 -> 0 | AG12: =+Flags!AG27 -> 0 | AH12: =+Flags!AH27 -> 0 | AI12: =+Flags!AI27 -> 0 | AJ12: =+Flags!AJ27 -> 0 | AK12: =+Flags!AK27 -> 0 | AL12: =+Flags!AL27 -> 0 | AM12: =+Flags!AM27 -> 0 | AN12: =+Flags!AN27 -> 0 | AO12: =+Flags!AO27 -> 0 | AP12: =+Flags!AP27 -> 0
B13: =+Flags!B28 -> Periodo de Construcción | H13: =+Flags!H28 -> 0 | I13: =+Flags!I28 -> 0 | J13: =+Flags!J28 -> 0 | K13: =+Flags!K28 -> 1 | L13: =+Flags!L28 -> 1 | M13: =+Flags!M28 -> 1 | N13: =+Flags!N28 -> 0 | O13: =+Flags!O28 -> 0 | P13: =+Flags!P28 -> 0 | Q13: =+Flags!Q28 -> 0 | R13: =+Flags!R28 -> 0 | S13: =+Flags!S28 -> 0 | T13: =+Flags!T28 -> 0 | U13: =+Flags!U28 -> 0 | V13: =+Flags!V28 -> 0 | W13: =+Flags!W28 -> 0 | X13: =+Flags!X28 -> 0 | Y13: =+Flags!Y28 -> 0 | Z13: =+Flags!Z28 -> 0 | AA13: =+Flags!AA28 -> 0 | AB13: =+Flags!AB28 -> 0 | AC13: =+Flags!AC28 -> 0 | AD13: =+Flags!AD28 -> 0 | AE13: =+Flags!AE28 -> 0 | AF13: =+Flags!AF28 -> 0 | AG13: =+Flags!AG28 -> 0 | AH13: =+Flags!AH28 -> 0 | AI13: =+Flags!AI28 -> 0 | AJ13: =+Flags!AJ28 -> 0 | AK13: =+Flags!AK28 -> 0 | AL13: =+Flags!AL28 -> 0 | AM13: =+Flags!AM28 -> 0 | AN13: =+Flags!AN28 -> 0 | AO13: =+Flags!AO28 -> 0 | AP13: =+Flags!AP28 -> 0
B14: =+Flags!B32 -> Días del periodo Construcción | H14: =+Flags!H32 -> 0 | I14: =+Flags!I32 -> 0 | J14: =+Flags!J32 -> 0 | K14: =+Flags!K32 -> 365 | L14: =+Flags!L32 -> 365 | M14: =+Flags!M32 -> 121 | N14: =+Flags!N32 -> 0 | O14: =+Flags!O32 -> 0 | P14: =+Flags!P32 -> 0 | Q14: =+Flags!Q32 -> 0 | R14: =+Flags!R32 -> 0 | S14: =+Flags!S32 -> 0 | T14: =+Flags!T32 -> 0 | U14: =+Flags!U32 -> 0 | V14: =+Flags!V32 -> 0 | W14: =+Flags!W32 -> 0 | X14: =+Flags!X32 -> 0 | Y14: =+Flags!Y32 -> 0 | Z14: =+Flags!Z32 -> 0 | AA14: =+Flags!AA32 -> 0 | AB14: =+Flags!AB32 -> 0 | AC14: =+Flags!AC32 -> 0 | AD14: =+Flags!AD32 -> 0 | AE14: =+Flags!AE32 -> 0 | AF14: =+Flags!AF32 -> 0 | AG14: =+Flags!AG32 -> 0 | AH14: =+Flags!AH32 -> 0 | AI14: =+Flags!AI32 -> 0 | AJ14: =+Flags!AJ32 -> 0 | AK14: =+Flags!AK32 -> 0 | AL14: =+Flags!AL32 -> 0 | AM14: =+Flags!AM32 -> 0 | AN14: =+Flags!AN32 -> 0 | AO14: =+Flags!AO32 -> 0 | AP14: =+Flags!AP32 -> 0
B15: =+Flags!B33 -> Factor de Construcción | H15: =+Flags!H33 -> 0 | I15: =+Flags!I33 -> 0 | J15: =+Flags!J33 -> 0 | K15: =+Flags!K33 -> 1 | L15: =+Flags!L33 -> 1 | M15: =+Flags!M33 -> 0.3306010929 | N15: =+Flags!N33 -> 0 | O15: =+Flags!O33 -> 0 | P15: =+Flags!P33 -> 0 | Q15: =+Flags!Q33 -> 0 | R15: =+Flags!R33 -> 0 | S15: =+Flags!S33 -> 0 | T15: =+Flags!T33 -> 0 | U15: =+Flags!U33 -> 0 | V15: =+Flags!V33 -> 0 | W15: =+Flags!W33 -> 0 | X15: =+Flags!X33 -> 0 | Y15: =+Flags!Y33 -> 0 | Z15: =+Flags!Z33 -> 0 | AA15: =+Flags!AA33 -> 0 | AB15: =+Flags!AB33 -> 0 | AC15: =+Flags!AC33 -> 0 | AD15: =+Flags!AD33 -> 0 | AE15: =+Flags!AE33 -> 0 | AF15: =+Flags!AF33 -> 0 | AG15: =+Flags!AG33 -> 0 | AH15: =+Flags!AH33 -> 0 | AI15: =+Flags!AI33 -> 0 | AJ15: =+Flags!AJ33 -> 0 | AK15: =+Flags!AK33 -> 0 | AL15: =+Flags!AL33 -> 0 | AM15: =+Flags!AM33 -> 0 | AN15: =+Flags!AN33 -> 0 | AO15: =+Flags!AO33 -> 0 | AP15: =+Flags!AP33 -> 0
B17: =+Flags!B57 -> Factor de Actualización 2021 | H17: =+Flags!H57 -> 0 | I17: =+Flags!I57 -> 0 | J17: =+Flags!J57 -> 1 | K17: =+Flags!K57 -> 1.01 | L17: =+Flags!L57 -> 1.0201 | M17: =+Flags!M57 -> 1.030301 | N17: =+Flags!N57 -> 1.04060401 | O17: =+Flags!O57 -> 1.05101005 | P17: =+Flags!P57 -> 1.061520151 | Q17: =+Flags!Q57 -> 1.072135352 | R17: =+Flags!R57 -> 1.082856706 | S17: =+Flags!S57 -> 1.093685273 | T17: =+Flags!T57 -> 1.104622125 | U17: =+Flags!U57 -> 1.115668347 | V17: =+Flags!V57 -> 1.12682503 | W17: =+Flags!W57 -> 1.13809328 | X17: =+Flags!X57 -> 1.149474213 | Y17: =+Flags!Y57 -> 1.160968955 | Z17: =+Flags!Z57 -> 1.172578645 | AA17: =+Flags!AA57 -> 1.184304431 | AB17: =+Flags!AB57 -> 1.196147476 | AC17: =+Flags!AC57 -> 1.20810895 | AD17: =+Flags!AD57 -> 1.22019004 | AE17: =+Flags!AE57 -> 1.23239194 | AF17: =+Flags!AF57 -> 1.24471586 | AG17: =+Flags!AG57 -> 1.257163018 | AH17: =+Flags!AH57 -> 1.269734649 | AI17: =+Flags!AI57 -> 1.282431995 | AJ17: =+Flags!AJ57 -> 1.295256315 | AK17: =+Flags!AK57 -> 1.308208878 | AL17: =+Flags!AL57 -> 1.321290967 | AM17: =+Flags!AM57 -> 1.334503877 | AN17: =+Flags!AN57 -> 1.347848915 | AO17: =+Flags!AO57 -> 1.361327404 | AP17: =+Flags!AP57 -> 1.374940679
B19: =+Control!$B22 -> Padre Damián | C19: =+Control!D22 -> Si | D19: =+IF(C19="Si",1,0) -> 1
B20: =+Control!$B23 -> Paseo de la Castellana | C20: =+Control!D23 -> Si | D20: =+IF(C20="Si",1,0) -> 1
B22: Inversión
B24: =+Control!O28 -> Sensibilidad CAPEX | D24: =+Control!Q28 -> 0
B26: Padre Damián
B28: Cronograma obra civil | H28: =+'Hipótesis '!H40 -> 0 | I28: =+'Hipótesis '!I40 -> 0 | J28: =+'Hipótesis '!J40 -> 0 | K28: =+'Hipótesis '!K40 -> 0.3454545455 | L28: =+'Hipótesis '!L40 -> 0.4909090909 | M28: =+'Hipótesis '!M40 -> 0.1636363636 | N28: =+'Hipótesis '!N40 -> 0 | O28: =+'Hipótesis '!O40 -> 0 | P28: =+'Hipótesis '!P40 -> 0 | Q28: =+'Hipótesis '!Q40 -> 0 | R28: =+'Hipótesis '!R40 -> 0 | S28: =+'Hipótesis '!S40 -> 0 | T28: =+'Hipótesis '!T40 -> 0 | U28: =+'Hipótesis '!U40 -> 0 | V28: =+'Hipótesis '!V40 -> 0 | W28: =+'Hipótesis '!W40 -> 0 | X28: =+'Hipótesis '!X40 -> 0 | Y28: =+'Hipótesis '!Y40 -> 0 | Z28: =+'Hipótesis '!Z40 -> 0 | AA28: =+'Hipótesis '!AA40 -> 0 | AB28: =+'Hipótesis '!AB40 -> 0 | AC28: =+'Hipótesis '!AC40 -> 0 | AD28: =+'Hipótesis '!AD40 -> 0 | AE28: =+'Hipótesis '!AE40 -> 0 | AF28: =+'Hipótesis '!AF40 -> 0 | AG28: =+'Hipótesis '!AG40 -> 0 | AH28: =+'Hipótesis '!AH40 -> 0 | AI28: =+'Hipótesis '!AI40 -> 0 | AJ28: =+'Hipótesis '!AJ40 -> 0 | AK28: =+'Hipótesis '!AK40 -> 0 | AL28: =+'Hipótesis '!AL40 -> 0 | AM28: =+'Hipótesis '!AM40 -> 0 | AN28: =+'Hipótesis '!AN40 -> 0 | AO28: =+'Hipótesis '!AO40 -> 0 | AP28: =+'Hipótesis '!AP40 -> 0
B29: Cronograma instalaciones y otras inversiones | H29: =+'Hipótesis '!H44 -> 0 | I29: =+'Hipótesis '!I44 -> 0 | J29: =+'Hipótesis '!J44 -> 0 | K29: =+'Hipótesis '!K44 -> 0 | L29: =+'Hipótesis '!L44 -> 0.8 | M29: =+'Hipótesis '!M44 -> 0.2 | N29: =+'Hipótesis '!N44 -> 0 | O29: =+'Hipótesis '!O44 -> 0 | P29: =+'Hipótesis '!P44 -> 0 | Q29: =+'Hipótesis '!Q44 -> 0 | R29: =+'Hipótesis '!R44 -> 0 | S29: =+'Hipótesis '!S44 -> 0 | T29: =+'Hipótesis '!T44 -> 0 | U29: =+'Hipótesis '!U44 -> 0 | V29: =+'Hipótesis '!V44 -> 0 | W29: =+'Hipótesis '!W44 -> 0 | X29: =+'Hipótesis '!X44 -> 0 | Y29: =+'Hipótesis '!Y44 -> 0 | Z29: =+'Hipótesis '!Z44 -> 0 | AA29: =+'Hipótesis '!AA44 -> 0 | AB29: =+'Hipótesis '!AB44 -> 0 | AC29: =+'Hipótesis '!AC44 -> 0 | AD29: =+'Hipótesis '!AD44 -> 0 | AE29: =+'Hipótesis '!AE44 -> 0 | AF29: =+'Hipótesis '!AF44 -> 0 | AG29: =+'Hipótesis '!AG44 -> 0 | AH29: =+'Hipótesis '!AH44 -> 0 | AI29: =+'Hipótesis '!AI44 -> 0 | AJ29: =+'Hipótesis '!AJ44 -> 0 | AK29: =+'Hipótesis '!AK44 -> 0 | AL29: =+'Hipótesis '!AL44 -> 0 | AM29: =+'Hipótesis '!AM44 -> 0 | AN29: =+'Hipótesis '!AN44 -> 0 | AO29: =+'Hipótesis '!AO44 -> 0 | AP29: =+'Hipótesis '!AP44 -> 0
B31: =+Control!B71 -> Distribución inversión
B32: =+Control!B72 -> Obra civil | D32: =+Control!C72 -> 0.8936534095
B33: =+Control!B73 -> Instalaciones | D33: =+Control!C73 -> 0.08963075977
B34: =+Control!B74 -> Otras inversiones | D34: =+Control!C74 -> 0.01671583074
B36: Zona parking
B37: =+Control!B61 -> Coste unitario parking | C37: =+Control!C61 -> EUR 2021/plaza | D37: =+Control!D61 -> 40942.58381
B38: Nº plazas parking | C38: nº | D38: =+Control!D28 -> 684.5735294
D40: EUR/Plaza
B41: Obra Civil | D41: =+D37*D32 -> 36588.47961 | F41: =+SUM(H41:AP41) -> 25505377.11 | H41: =+$D41*H$28*H$17*$D38*$D$19 -> 0 | I41: 0 | J41: 0 | K41: =+$D41*K$28*K$17*$D38*$D$19 -> 8739302.068 | L41: =+$D41*L$28*L$17*$D38*$D$19 -> 12543198.28 | M41: 4222876.756 | N41: 0 | O41: 0 | P41: 0 | Q41: 0 | R41: 0 | S41: 0 | T41: 0 | U41: 0 | V41: 0 | W41: 0 | X41: 0 | Y41: 0 | Z41: 0 | AA41: 0 | AB41: 0 | AC41: 0 | AD41: 0 | AE41: 0 | AF41: 0 | AG41: 0 | AH41: 0 | AI41: 0 | AJ41: 0 | AK41: 0 | AL41: 0 | AM41: 0 | AN41: 0 | AO41: 0 | AP41: 0
B42: Instalaciones | D42: =+D37*D33 -> 3669.714894 | F42: =+SUM(H42:AP42) -> 2567810.059 | H42: =+$D42*H$29*H$17*$D$38*$D$19 -> 0 | I42: 0 | J42: 0 | K42: =+$D42*K$29*K$17*$D$38*$D$19 -> 0 | L42: =+$D42*L$29*L$17*$D$38*$D$19 -> 2050147.751 | M42: 517662.3072 | N42: 0 | O42: 0 | P42: 0 | Q42: 0 | R42: 0 | S42: 0 | T42: 0 | U42: 0 | V42: 0 | W42: 0 | X42: 0 | Y42: 0 | Z42: 0 | AA42: 0 | AB42: 0 | AC42: 0 | AD42: 0 | AE42: 0 | AF42: 0 | AG42: 0 | AH42: 0 | AI42: 0 | AJ42: 0 | AK42: 0 | AL42: 0 | AM42: 0 | AN42: 0 | AO42: 0 | AP42: 0
B43: Otras inversiones | D43: =+D37*D34 -> 684.3893009 | F43: =+SUM(H43:AP43) -> 478887.8106 | H43: 0 | I43: 0 | J43: 0 | K43: =+$D43*K$29*K$17*$D$38*$D$19 -> 0 | L43: 382345.5573 | M43: 96542.25323 | N43: 0 | O43: 0 | P43: 0 | Q43: 0 | R43: 0 | S43: 0 | T43: 0 | U43: 0 | V43: 0 | W43: 0 | X43: 0 | Y43: 0 | Z43: 0 | AA43: 0 | AB43: 0 | AC43: 0 | AD43: 0 | AE43: 0 | AF43: 0 | AG43: 0 | AH43: 0 | AI43: 0 | AJ43: 0 | AK43: 0 | AL43: 0 | AM43: 0 | AN43: 0 | AO43: 0 | AP43: 0
B44: Total | F44: =+SUM(H44:AP44) -> 28552074.98 | H44: =+SUM(H41:H43) -> 0 | I44: =+SUM(I41:I43) -> 0 | J44: 0 | K44: 8739302.068 | L44: 14975691.59 | M44: 4837081.316 | N44: 0 | O44: 0 | P44: 0 | Q44: 0 | R44: 0 | S44: 0 | T44: 0 | U44: 0 | V44: 0 | W44: 0 | X44: 0 | Y44: 0 | Z44: 0 | AA44: 0 | AB44: 0 | AC44: 0 | AD44: 0 | AE44: 0 | AF44: 0 | AG44: 0 | AH44: 0 | AI44: 0 | AJ44: 0 | AK44: 0 | AL44: 0 | AM44: 0 | AN44: 0 | AO44: 0 | AP44: 0
B48: Zona anexa
B49: Superficie | C49: m2 | D49: =+Control!D35 -> 3617.79
B50: Coste unitario | C50: =+Control!C64 -> EUR2021/m2 | D50: =+Control!D64 -> 969.9407428
B52: Obra Civil | D52: =+$D$50*D32 -> 866.7908518 | F52: =+SUM(H52:AP52) -> 3193191.443 | H52: =+$D$49*$D$52*H$17*H$28*$D$19 -> 0 | I52: 0 | J52: 0 | K52: =+$D$49*$D$52*K$17*K$28*$D$19 -> 1094132.6 | L52: =+$D$49*$D$52*L$17*L$28*$D$19 -> 1570368.211 | M52: 528690.6311 | N52: 0 | O52: 0 | P52: 0 | Q52: 0 | R52: 0 | S52: 0 | T52: 0 | U52: 0 | V52: 0 | W52: 0 | X52: 0 | Y52: 0 | Z52: 0 | AA52: 0 | AB52: 0 | AC52: 0 | AD52: 0 | AE52: 0 | AF52: 0 | AG52: 0 | AH52: 0 | AI52: 0 | AJ52: 0 | AK52: 0 | AL52: 0 | AM52: 0 | AN52: 0 | AO52: 0 | AP52: 0
B53: Instalaciones | D53: =+$D$50*D33 -> 86.93652571 | F53: =+SUM(H53:AP53) -> 321481.5868 | H53: =+$D$49*$D$53*H$17*H$29*$D$19 -> 0 | I53: 0 | J53: 0 | K53: =+$D$49*$D$53*K$17*K$29*$D$19 -> 0 | L53: =+$D$49*$D$53*L$17*L$29*$D$19 -> 256671.9256 | M53: 64809.66122 | N53: 0 | O53: 0 | P53: 0 | Q53: 0 | R53: 0 | S53: 0 | T53: 0 | U53: 0 | V53: 0 | W53: 0 | X53: 0 | Y53: 0 | Z53: 0 | AA53: 0 | AB53: 0 | AC53: 0 | AD53: 0 | AE53: 0 | AF53: 0 | AG53: 0 | AH53: 0 | AI53: 0 | AJ53: 0 | AK53: 0 | AL53: 0 | AM53: 0 | AN53: 0 | AO53: 0 | AP53: 0
B54: Otras inversiones | D54: =+$D$50*D34 -> 16.21336528 | F54: =+SUM(H54:AP54) -> 59955.21855 | H54: =+$D$49*$D$54*H$17*H$29*$D$19 -> 0 | I54: 0 | J54: 0 | K54: =+$D$49*$D$54*K$17*K$29*$D$19 -> 0 | L54: =+$D$49*$D$54*L$17*L$29*$D$19 -> 47868.43797 | M54: 12086.78059 | N54: 0 | O54: 0 | P54: 0 | Q54: 0 | R54: 0 | S54: 0 | T54: 0 | U54: 0 | V54: 0 | W54: 0 | X54: 0 | Y54: 0 | Z54: 0 | AA54: 0 | AB54: 0 | AC54: 0 | AD54: 0 | AE54: 0 | AF54: 0 | AG54: 0 | AH54: 0 | AI54: 0 | AJ54: 0 | AK54: 0 | AL54: 0 | AM54: 0 | AN54: 0 | AO54: 0 | AP54: 0
B55: Total | F55: =+SUM(H55:AP55) -> 3574628.248 | H55: =+SUM(H52:H54) -> 0 | I55: =+SUM(I52:I54) -> 0 | J55: 0 | K55: 1094132.6 | L55: 1874908.575 | M55: 605587.0729 | N55: 0 | O55: 0 | P55: 0 | Q55: 0 | R55: 0 | S55: 0 | T55: 0 | U55: 0 | V55: 0 | W55: 0 | X55: 0 | Y55: 0 | Z55: 0 | AA55: 0 | AB55: 0 | AC55: 0 | AD55: 0 | AE55: 0 | AF55: 0 | AG55: 0 | AH55: 0 | AI55: 0 | AJ55: 0 | AK55: 0 | AL55: 0 | AM55: 0 | AN55: 0 | AO55: 0 | AP55: 0
D58: %
B59: Gastos de diseño | D59: =+Control!D54 -> 0.05 | F59: =+SUM(H59:AP59) -> 1606335.161 | H59: =+$D59*($F$44+$F$55)*$D$19*H$12 -> 0 | I59: 0 | J59: 0 | K59: 1606335.161 | L59: 0 | M59: 0 | N59: 0 | O59: 0 | P59: 0 | Q59: 0 | R59: =+$D59*($F$44+$F$55)*$D$19*R$12 -> 0 | S59: 0 | T59: 0 | U59: 0 | V59: 0 | W59: 0 | X59: 0 | Y59: 0 | Z59: 0 | AA59: 0 | AB59: =+$D59*($F$44+$F$55)*$D$19*AB$12 -> 0 | AC59: 0 | AD59: 0 | AE59: 0 | AF59: 0 | AG59: 0 | AH59: 0 | AI59: 0 | AJ59: 0 | AK59: 0 | AL59: 0 | AM59: 0 | AN59: 0 | AO59: 0 | AP59: 0
B60: Otros gastos iniciales | D60: =+Control!D55 -> 0.01 | F60: =+SUM(H60:AP60) -> 321267.0322 | H60: 0 | I60: 0 | J60: 0 | K60: 321267.0322 | L60: 0 | M60: 0 | N60: 0 | O60: 0 | P60: 0 | Q60: 0 | R60: 0 | S60: 0 | T60: 0 | U60: 0 | V60: 0 | W60: 0 | X60: 0 | Y60: 0 | Z60: 0 | AA60: 0 | AB60: 0 | AC60: 0 | AD60: 0 | AE60: 0 | AF60: 0 | AG60: 0 | AH60: 0 | AI60: 0 | AJ60: 0 | AK60: 0 | AL60: 0 | AM60: 0 | AN60: 0 | AO60: 0 | AP60: 0
B62: Total Inversión | F62: =+SUM(H62:AP62) -> 34054305.42 | H62: =+H44+H55+H59+H60 -> 0 | I62: 0 | J62: 0 | K62: 11761036.86 | L62: 16850600.17 | M62: 5442668.389 | N62: 0 | O62: 0 | P62: 0 | Q62: 0 | R62: 0 | S62: 0 | T62: 0 | U62: 0 | V62: 0 | W62: 0 | X62: 0 | Y62: 0 | Z62: 0 | AA62: 0 | AB62: 0 | AC62: 0 | AD62: 0 | AE62: 0 | AF62: 0 | AG62: 0 | AH62: 0 | AI62: 0 | AJ62: 0 | AK62: 0 | AL62: 0 | AM62: 0 | AN62: 0 | AO62: 0 | AP62: 0
B65: Paseo de la Castellana
B67: Cronograma obra civil | H67: =+'Hipótesis '!H41 -> 0 | I67: =+'Hipótesis '!I41 -> 0 | J67: =+'Hipótesis '!J41 -> 0 | K67: =+'Hipótesis '!K41 -> 0.3454545455 | L67: =+'Hipótesis '!L41 -> 0.4909090909 | M67: =+'Hipótesis '!M41 -> 0.1636363636 | N67: =+'Hipótesis '!N41 -> 0 | O67: =+'Hipótesis '!O41 -> 0 | P67: =+'Hipótesis '!P41 -> 0 | Q67: =+'Hipótesis '!Q41 -> 0 | R67: =+'Hipótesis '!R41 -> 0 | S67: =+'Hipótesis '!S41 -> 0 | T67: =+'Hipótesis '!T41 -> 0 | U67: =+'Hipótesis '!U41 -> 0 | V67: =+'Hipótesis '!V41 -> 0 | W67: =+'Hipótesis '!W41 -> 0 | X67: =+'Hipótesis '!X41 -> 0 | Y67: =+'Hipótesis '!Y41 -> 0 | Z67: =+'Hipótesis '!Z41 -> 0 | AA67: =+'Hipótesis '!AA41 -> 0 | AB67: =+'Hipótesis '!AB41 -> 0 | AC67: =+'Hipótesis '!AC41 -> 0 | AD67: =+'Hipótesis '!AD41 -> 0 | AE67: =+'Hipótesis '!AE41 -> 0 | AF67: =+'Hipótesis '!AF41 -> 0 | AG67: =+'Hipótesis '!AG41 -> 0 | AH67: =+'Hipótesis '!AH41 -> 0 | AI67: =+'Hipótesis '!AI41 -> 0 | AJ67: =+'Hipótesis '!AJ41 -> 0 | AK67: =+'Hipótesis '!AK41 -> 0 | AL67: =+'Hipótesis '!AL41 -> 0 | AM67: =+'Hipótesis '!AM41 -> 0 | AN67: =+'Hipótesis '!AN41 -> 0 | AO67: =+'Hipótesis '!AO41 -> 0 | AP67: =+'Hipótesis '!AP41 -> 0
B68: Cronograma instalaciones y otrs inversiones | H68: =+'Hipótesis '!H45 -> 0 | I68: =+'Hipótesis '!I45 -> 0 | J68: =+'Hipótesis '!J45 -> 0 | K68: =+'Hipótesis '!K45 -> 0 | L68: =+'Hipótesis '!L45 -> 0.8 | M68: =+'Hipótesis '!M45 -> 0.2 | N68: =+'Hipótesis '!N45 -> 0 | O68: =+'Hipótesis '!O45 -> 0 | P68: =+'Hipótesis '!P45 -> 0 | Q68: =+'Hipótesis '!Q45 -> 0 | R68: =+'Hipótesis '!R45 -> 0 | S68: =+'Hipótesis '!S45 -> 0 | T68: =+'Hipótesis '!T45 -> 0 | U68: =+'Hipótesis '!U45 -> 0 | V68: =+'Hipótesis '!V45 -> 0 | W68: =+'Hipótesis '!W45 -> 0 | X68: =+'Hipótesis '!X45 -> 0 | Y68: =+'Hipótesis '!Y45 -> 0 | Z68: =+'Hipótesis '!Z45 -> 0 | AA68: =+'Hipótesis '!AA45 -> 0 | AB68: =+'Hipótesis '!AB45 -> 0 | AC68: =+'Hipótesis '!AC45 -> 0 | AD68: =+'Hipótesis '!AD45 -> 0 | AE68: =+'Hipótesis '!AE45 -> 0 | AF68: =+'Hipótesis '!AF45 -> 0 | AG68: =+'Hipótesis '!AG45 -> 0 | AH68: =+'Hipótesis '!AH45 -> 0 | AI68: =+'Hipótesis '!AI45 -> 0 | AJ68: =+'Hipótesis '!AJ45 -> 0 | AK68: =+'Hipótesis '!AK45 -> 0 | AL68: =+'Hipótesis '!AL45 -> 0 | AM68: =+'Hipótesis '!AM45 -> 0 | AN68: =+'Hipótesis '!AN45 -> 0 | AO68: =+'Hipótesis '!AO45 -> 0 | AP68: =+'Hipótesis '!AP45 -> 0
B70: Zona parking
B71: =+Control!B69 -> Coste unitario | C71: =+Control!C69 -> EUR 2021/plaza | D71: =+Control!D69 -> 27941.74631
B72: Nº plazas parking | D72: =+Control!D40 -> 1287.480147
B73: =+Control!B71 -> Distribución inversión
B74: =+Control!B72 -> Obra civil | D74: =+Control!D72 -> 0.8552852325
B75: =+Control!B73 -> Instalaciones | D75: =+Control!D73 -> 0.1279989365
B76: =+Control!B74 -> Otras inversiones | D76: =+Control!D74 -> 0.01671583099
D78: =+D40 -> EUR/Plaza
B79: Obra Civil | D79: =+D71*D74 -> 23898.16299 | F79: =+SUM(H79:AP79) -> 31330861.98 | H79: =+$D79*H$67*H$17*$D72*$D$20 -> 0 | I79: 0 | J79: 0 | K79: =+$D79*K$67*K$17*$D72*$D$20 -> 10735378.1 | L79: =+$D79*L$67*L$17*$D72*$D$20 -> 15408092.67 | M79: 5187391.201 | N79: 0 | O79: 0 | P79: 0 | Q79: 0 | R79: 0 | S79: 0 | T79: 0 | U79: 0 | V79: 0 | W79: 0 | X79: 0 | Y79: 0 | Z79: 0 | AA79: 0 | AB79: 0 | AC79: 0 | AD79: 0 | AE79: 0 | AF79: 0 | AG79: 0 | AH79: 0 | AI79: 0 | AJ79: 0 | AK79: 0 | AL79: 0 | AM79: 0 | AN79: 0 | AO79: 0 | AP79: 0
B80: Instalaciones | D80: =+D71*D75 -> 3576.513813 | F80: =+SUM(H80:AP80) -> 4706639.299 | H80: =+$D80*H$68*H$17*$D$72*$D$20 -> 0 | I80: 0 | J80: 0 | K80: =+$D80*K$68*K$17*$D$72*$D$20 -> 0 | L80: =+$D80*L$68*L$17*$D$72*$D$20 -> 3757795.848 | M80: 948843.4515 | N80: 0 | O80: 0 | P80: 0 | Q80: 0 | R80: 0 | S80: 0 | T80: 0 | U80: 0 | V80: 0 | W80: 0 | X80: 0 | Y80: 0 | Z80: 0 | AA80: 0 | AB80: 0 | AC80: 0 | AD80: 0 | AE80: 0 | AF80: 0 | AG80: 0 | AH80: 0 | AI80: 0 | AJ80: 0 | AK80: 0 | AL80: 0 | AM80: 0 | AN80: 0 | AO80: 0 | AP80: 0
B81: Otras inversiones | D81: =+D71*D76 -> 467.0695089 | F81: =+SUM(H81:AP81) -> 614656.5681 | H81: 0 | I81: 0 | J81: 0 | K81: =+$D81*K$68*K$17*$D$72*$D$20 -> 0 | L81: 490743.7669 | M81: 123912.8012 | N81: 0 | O81: 0 | P81: 0 | Q81: 0 | R81: 0 | S81: 0 | T81: 0 | U81: 0 | V81: 0 | W81: 0 | X81: 0 | Y81: 0 | Z81: 0 | AA81: 0 | AB81: 0 | AC81: 0 | AD81: 0 | AE81: 0 | AF81: 0 | AG81: 0 | AH81: 0 | AI81: 0 | AJ81: 0 | AK81: 0 | AL81: 0 | AM81: 0 | AN81: 0 | AO81: 0 | AP81: 0
B82: Total | F82: =+SUM(H82:AP82) -> 36652157.84 | H82: =+SUM(H79:H81) -> 0 | I82: 0 | J82: 0 | K82: 10735378.1 | L82: 19656632.29 | M82: 6260147.453 | N82: 0 | O82: 0 | P82: 0 | Q82: 0 | R82: 0 | S82: 0 | T82: 0 | U82: 0 | V82: 0 | W82: 0 | X82: 0 | Y82: 0 | Z82: 0 | AA82: 0 | AB82: 0 | AC82: 0 | AD82: 0 | AE82: 0 | AF82: 0 | AG82: 0 | AH82: 0 | AI82: 0 | AJ82: 0 | AK82: 0 | AL82: 0 | AM82: 0 | AN82: 0 | AO82: 0 | AP82: 0
D84: %
B85: Gastos de diseño | D85: =+Control!D54 -> 0.05 | F85: =+SUM(H85:AP85) -> 1832607.892 | H85: =+$D85*$F$82*$D$20*H$12 -> 0 | I85: 0 | J85: 0 | K85: 1832607.892 | L85: 0 | M85: 0 | N85: 0 | O85: 0 | P85: 0 | Q85: 0 | R85: =+$D85*$F$82*$D$20*R$12 -> 0 | S85: 0 | T85: 0 | U85: 0 | V85: 0 | W85: 0 | X85: 0 | Y85: 0 | Z85: 0 | AA85: 0 | AB85: =+$D85*$F$82*$D$20*AB$12 -> 0 | AC85: 0 | AD85: 0 | AE85: 0 | AF85: 0 | AG85: 0 | AH85: 0 | AI85: 0 | AJ85: 0 | AK85: 0 | AL85: 0 | AM85: 0 | AN85: 0 | AO85: 0 | AP85: 0
B86: Otros gastos iniciales | D86: =+Control!D55 -> 0.01 | F86: =+SUM(H86:AP86) -> 366521.5784 | H86: 0 | I86: 0 | J86: 0 | K86: 366521.5784 | L86: 0 | M86: 0 | N86: 0 | O86: 0 | P86: 0 | Q86: 0 | R86: 0 | S86: 0 | T86: 0 | U86: 0 | V86: 0 | W86: 0 | X86: 0 | Y86: 0 | Z86: 0 | AA86: 0 | AB86: 0 | AC86: 0 | AD86: 0 | AE86: 0 | AF86: 0 | AG86: 0 | AH86: 0 | AI86: 0 | AJ86: 0 | AK86: 0 | AL86: 0 | AM86: 0 | AN86: 0 | AO86: 0 | AP86: 0
B88: Total Inversión | F88: =+SUM(H88:AP88) -> 38851287.31 | H88: =+H82+H85+H86 -> 0 | I88: =+I82+I85+I86 -> 0 | J88: 0 | K88: 12934507.57 | L88: 19656632.29 | M88: 6260147.453 | N88: 0 | O88: 0 | P88: 0 | Q88: 0 | R88: 0 | S88: 0 | T88: 0 | U88: 0 | V88: 0 | W88: 0 | X88: 0 | Y88: 0 | Z88: 0 | AA88: 0 | AB88: 0 | AC88: 0 | AD88: 0 | AE88: 0 | AF88: 0 | AG88: 0 | AH88: 0 | AI88: 0 | AJ88: 0 | AK88: 0 | AL88: 0 | AM88: 0 | AN88: 0 | AO88: 0 | AP88: 0
B90: Indemnización pistas de pádel
B92: Indemnización | D92: =+Control!D56 -> 50000 | F92: =+SUM(H92:AP92) -> 118535.9318 | H92: =+$D$92*H$15*H$17 -> 0 | I92: =+$D$92*I$15*I$17 -> 0 | J92: 0 | K92: 50500 | L92: 51005 | M92: 17030.93183 | N92: 0 | O92: 0 | P92: 0 | Q92: 0 | R92: 0 | S92: 0 | T92: 0 | U92: 0 | V92: 0 | W92: 0 | X92: 0 | Y92: 0 | Z92: 0 | AA92: 0 | AB92: 0 | AC92: 0 | AD92: 0 | AE92: 0 | AF92: 0 | AG92: 0 | AH92: 0 | AI92: 0 | AJ92: 0 | AK92: 0 | AL92: 0 | AM92: 0 | AN92: 0 | AO92: 0 | AP92: 0
B94: Resumen inversión por concepto
B96: Obra civil | F96: =+SUM(H96:AP96) -> 60029430.53 | H96: =+(H41+H52+H79)*(1+$D$24) -> 0 | I96: =+(I41+I52+I79)*(1+$D$24) -> 0 | J96: 0 | K96: 20568812.77 | L96: 29521659.17 | M96: 9938958.587 | N96: 0 | O96: 0 | P96: 0 | Q96: 0 | R96: 0 | S96: 0 | T96: 0 | U96: 0 | V96: 0 | W96: 0 | X96: 0 | Y96: 0 | Z96: 0 | AA96: 0 | AB96: 0 | AC96: 0 | AD96: 0 | AE96: 0 | AF96: 0 | AG96: 0 | AH96: 0 | AI96: 0 | AJ96: 0 | AK96: 0 | AL96: 0 | AM96: 0 | AN96: 0 | AO96: 0 | AP96: 0
B97: Instalaciones | F97: 7595930.945 | H97: =+(H42+H53+H80)*(1+$D$24) -> 0 | I97: =+(I42+I53+I80)*(1+$D$24) -> 0 | J97: 0 | K97: 0 | L97: 6064615.525 | M97: 1531315.42 | N97: 0 | O97: 0 | P97: 0 | Q97: 0 | R97: 0 | S97: 0 | T97: 0 | U97: 0 | V97: 0 | W97: 0 | X97: 0 | Y97: 0 | Z97: 0 | AA97: 0 | AB97: 0 | AC97: 0 | AD97: 0 | AE97: 0 | AF97: 0 | AG97: 0 | AH97: 0 | AI97: 0 | AJ97: 0 | AK97: 0 | AL97: 0 | AM97: 0 | AN97: 0 | AO97: 0 | AP97: 0
B98: Otras inversiones | F98: 1153499.597 | H98: =+(H43+H54+H81)*(1+$D$24) -> 0 | I98: =+(I43+I54+I81)*(1+$D$24) -> 0 | J98: 0 | K98: 0 | L98: 920957.7622 | M98: 232541.835 | N98: 0 | O98: 0 | P98: 0 | Q98: 0 | R98: 0 | S98: 0 | T98: 0 | U98: 0 | V98: 0 | W98: 0 | X98: 0 | Y98: 0 | Z98: 0 | AA98: 0 | AB98: 0 | AC98: 0 | AD98: 0 | AE98: 0 | AF98: 0 | AG98: 0 | AH98: 0 | AI98: 0 | AJ98: 0 | AK98: 0 | AL98: 0 | AM98: 0 | AN98: 0 | AO98: 0 | AP98: 0
B99: Gastos de diseño | F99: 3438943.053 | H99: =+(H59+H85)*(1+$D$24) -> 0 | I99: =+(I59+I85)*(1+$D$24) -> 0 | J99: 0 | K99: 3438943.053 | L99: 0 | M99: 0 | N99: 0 | O99: 0 | P99: 0 | Q99: 0 | R99: 0 | S99: 0 | T99: 0 | U99: 0 | V99: 0 | W99: 0 | X99: 0 | Y99: 0 | Z99: 0 | AA99: 0 | AB99: 0 | AC99: 0 | AD99: 0 | AE99: 0 | AF99: 0 | AG99: 0 | AH99: 0 | AI99: 0 | AJ99: 0 | AK99: 0 | AL99: 0 | AM99: 0 | AN99: 0 | AO99: 0 | AP99: 0
B100: Otros gastos iniciales | F100: 687788.6107 | H100: =+(H60+H86)*(1+$D$24) -> 0 | I100: =+(I60+I86)*(1+$D$24) -> 0 | J100: 0 | K100: 687788.6107 | L100: 0 | M100: 0 | N100: 0 | O100: 0 | P100: 0 | Q100: 0 | R100: 0 | S100: 0 | T100: 0 | U100: 0 | V100: 0 | W100: 0 | X100: 0 | Y100: 0 | Z100: 0 | AA100: 0 | AB100: 0 | AC100: 0 | AD100: 0 | AE100: 0 | AF100: 0 | AG100: 0 | AH100: 0 | AI100: 0 | AJ100: 0 | AK100: 0 | AL100: 0 | AM100: 0 | AN100: 0 | AO100: 0 | AP100: 0
B101: Indemnización | F101: 118535.9318 | H101: =+H92 -> 0 | I101: =+I92 -> 0 | J101: 0 | K101: 50500 | L101: 51005 | M101: 17030.93183 | N101: 0 | O101: 0 | P101: 0 | Q101: 0 | R101: 0 | S101: 0 | T101: 0 | U101: 0 | V101: 0 | W101: 0 | X101: 0 | Y101: 0 | Z101: 0 | AA101: 0 | AB101: 0 | AC101: 0 | AD101: 0 | AE101: 0 | AF101: 0 | AG101: 0 | AH101: 0 | AI101: 0 | AJ101: 0 | AK101: 0 | AL101: 0 | AM101: 0 | AN101: 0 | AO101: 0 | AP101: 0
B102: Total Inversión | F102: 73024128.66 | H102: =+SUM(H96:H101) -> 0 | I102: =+SUM(I96:I101) -> 0 | J102: 0 | K102: 24746044.43 | L102: 36558237.46 | M102: 11719846.77 | N102: 0 | O102: 0 | P102: 0 | Q102: 0 | R102: 0 | S102: 0 | T102: 0 | U102: 0 | V102: 0 | W102: 0 | X102: 0 | Y102: 0 | Z102: 0 | AA102: 0 | AB102: 0 | AC102: 0 | AD102: 0 | AE102: 0 | AF102: 0 | AG102: 0 | AH102: 0 | AI102: 0 | AJ102: 0 | AK102: 0 | AL102: 0 | AM102: 0 | AN102: 0 | AO102: 0 | AP102: 0
E103: Check | F103: =+F102-F88-F62-F92 -> 1.370790415e-08
I104: VAN | J104: =SUM(K104:M104) -> 71714097.66 | K104: =K102/K17 -> 24501034.09 | L104: =L102/L17 -> 35837895.75 | M104: =M102/M17 -> 11375167.81
B106: Activo intangible
B108: =+Flags!B41 -> Días del periodo Operación | H108: =+Flags!H41 -> 0 | I108: =+Flags!I41 -> 0 | J108: =+Flags!J41 -> 0 | K108: =+Flags!K41 -> 0 | L108: =+Flags!L41 -> 0 | M108: =+Flags!M41 -> 245 | N108: =+Flags!N41 -> 365 | O108: =+Flags!O41 -> 365 | P108: =+Flags!P41 -> 365 | Q108: =+Flags!Q41 -> 366 | R108: =+Flags!R41 -> 365 | S108: =+Flags!S41 -> 365 | T108: =+Flags!T41 -> 365 | U108: =+Flags!U41 -> 366 | V108: =+Flags!V41 -> 365 | W108: =+Flags!W41 -> 365 | X108: =+Flags!X41 -> 365 | Y108: =+Flags!Y41 -> 366 | Z108: =+Flags!Z41 -> 365 | AA108: =+Flags!AA41 -> 365 | AB108: =+Flags!AB41 -> 365 | AC108: =+Flags!AC41 -> 366 | AD108: =+Flags!AD41 -> 365 | AE108: =+Flags!AE41 -> 365 | AF108: =+Flags!AF41 -> 365 | AG108: =+Flags!AG41 -> 366 | AH108: =+Flags!AH41 -> 365 | AI108: =+Flags!AI41 -> 365 | AJ108: =+Flags!AJ41 -> 365 | AK108: =+Flags!AK41 -> 366 | AL108: =+Flags!AL41 -> 365 | AM108: =+Flags!AM41 -> 365 | AN108: =+Flags!AN41 -> 365 | AO108: =+Flags!AO41 -> 0 | AP108: =+Flags!AP41 -> 0
B109: Amortización | F109: =+SUM(H109:AP109) -> 1 | H109: =+H108/SUM($H$108:$AP$108) -> 0 | I109: =+I108/SUM($H$108:$AP$108) -> 0 | J109: 0 | K109: 0 | L109: 0 | M109: 0.02424302395 | N109: 0.03611715812 | O109: 0.03611715812 | P109: 0.03611715812 | Q109: 0.03621610924 | R109: 0.03611715812 | S109: 0.03611715812 | T109: 0.03611715812 | U109: 0.03621610924 | V109: 0.03611715812 | W109: 0.03611715812 | X109: 0.03611715812 | Y109: 0.03621610924 | Z109: 0.03611715812 | AA109: 0.03611715812 | AB109: 0.03611715812 | AC109: 0.03621610924 | AD109: 0.03611715812 | AE109: 0.03611715812 | AF109: 0.03611715812 | AG109: 0.03621610924 | AH109: 0.03611715812 | AI109: 0.03611715812 | AJ109: 0.03611715812 | AK109: 0.03621610924 | AL109: 0.03611715812 | AM109: 0.03611715812 | AN109: 0.03611715812 | AO109: 0 | AP109: 0
B111: Activo Intangible
B112: Inversión | F112: =+SUM(H112:AP112) -> 73024128.66 | H112: =+H102 -> 0 | I112: =+I102 -> 0 | J112: 0 | K112: 24746044.43 | L112: 36558237.46 | M112: 11719846.77 | N112: 0 | O112: 0 | P112: 0 | Q112: 0 | R112: 0 | S112: 0 | T112: 0 | U112: 0 | V112: 0 | W112: 0 | X112: 0 | Y112: 0 | Z112: 0 | AA112: 0 | AB112: 0 | AC112: 0 | AD112: 0 | AE112: 0 | AF112: 0 | AG112: 0 | AH112: 0 | AI112: 0 | AJ112: 0 | AK112: 0 | AL112: 0 | AM112: 0 | AN112: 0 | AO112: 0 | AP112: 0
B113: Gastos financieros | F113: =+SUM(H113:AP113) -> 2017977.158 | H113: =+'Financiación '!H126+'Financiación '!H98 -> 0 | I113: =+'Financiación '!I126+'Financiación '!I98 -> 0 | J113: =+'Financiación '!J126+'Financiación '!J98 -> 0 | K113: =+'Financiación '!K126+'Financiación '!K98 -> 341778.4443 | L113: =+'Financiación '!L126+'Financiación '!L98 -> 1089562.181 | M113: =+'Financiación '!M126+'Financiación '!M98 -> 586636.5327 | N113: =+'Financiación '!N126+'Financiación '!N98 -> 0 | O113: =+'Financiación '!O126+'Financiación '!O98 -> 0 | P113: =+'Financiación '!P126+'Financiación '!P98 -> 0 | Q113: =+'Financiación '!Q126+'Financiación '!Q98 -> 0 | R113: =+'Financiación '!R126+'Financiación '!R98 -> 0 | S113: =+'Financiación '!S126+'Financiación '!S98 -> 0 | T113: =+'Financiación '!T126+'Financiación '!T98 -> 0 | U113: =+'Financiación '!U126+'Financiación '!U98 -> 0 | V113: =+'Financiación '!V126+'Financiación '!V98 -> 0 | W113: =+'Financiación '!W126+'Financiación '!W98 -> 0 | X113: =+'Financiación '!X126+'Financiación '!X98 -> 0 | Y113: =+'Financiación '!Y126+'Financiación '!Y98 -> 0 | Z113: =+'Financiación '!Z126+'Financiación '!Z98 -> 0 | AA113: =+'Financiación '!AA126+'Financiación '!AA98 -> 0 | AB113: =+'Financiación '!AB126+'Financiación '!AB98 -> 0 | AC113: =+'Financiación '!AC126+'Financiación '!AC98 -> 0 | AD113: =+'Financiación '!AD126+'Financiación '!AD98 -> 0 | AE113: =+'Financiación '!AE126+'Financiación '!AE98 -> 0 | AF113: =+'Financiación '!AF126+'Financiación '!AF98 -> 0 | AG113: =+'Financiación '!AG126+'Financiación '!AG98 -> 0 | AH113: =+'Financiación '!AH126+'Financiación '!AH98 -> 0 | AI113: =+'Financiación '!AI126+'Financiación '!AI98 -> 0 | AJ113: =+'Financiación '!AJ126+'Financiación '!AJ98 -> 0 | AK113: =+'Financiación '!AK126+'Financiación '!AK98 -> 0 | AL113: =+'Financiación '!AL126+'Financiación '!AL98 -> 0 | AM113: =+'Financiación '!AM126+'Financiación '!AM98 -> 0 | AN113: =+'Financiación '!AN126+'Financiación '!AN98 -> 0 | AO113: =+'Financiación '!AO126+'Financiación '!AO98 -> 0 | AP113: =+'Financiación '!AP126+'Financiación '!AP98 -> 0
B114: Gastos en construcción | F114: =+SUM(H114:AP114) -> 474143.7273 | H114: =+'Opex y MM'!H30 -> 0 | I114: =+'Opex y MM'!I30 -> 0 | J114: =+'Opex y MM'!J30 -> 0 | K114: =+'Opex y MM'!K30 -> 202000 | L114: =+'Opex y MM'!L30 -> 204020 | M114: =+'Opex y MM'!M30 -> 68123.72732 | N114: =+'Opex y MM'!N30 -> 0 | O114: =+'Opex y MM'!O30 -> 0 | P114: =+'Opex y MM'!P30 -> 0 | Q114: =+'Opex y MM'!Q30 -> 0 | R114: =+'Opex y MM'!R30 -> 0 | S114: =+'Opex y MM'!S30 -> 0 | T114: =+'Opex y MM'!T30 -> 0 | U114: =+'Opex y MM'!U30 -> 0 | V114: =+'Opex y MM'!V30 -> 0 | W114: =+'Opex y MM'!W30 -> 0 | X114: =+'Opex y MM'!X30 -> 0 | Y114: =+'Opex y MM'!Y30 -> 0 | Z114: =+'Opex y MM'!Z30 -> 0 | AA114: =+'Opex y MM'!AA30 -> 0 | AB114: =+'Opex y MM'!AB30 -> 0 | AC114: =+'Opex y MM'!AC30 -> 0 | AD114: =+'Opex y MM'!AD30 -> 0 | AE114: =+'Opex y MM'!AE30 -> 0 | AF114: =+'Opex y MM'!AF30 -> 0 | AG114: =+'Opex y MM'!AG30 -> 0 | AH114: =+'Opex y MM'!AH30 -> 0 | AI114: =+'Opex y MM'!AI30 -> 0 | AJ114: =+'Opex y MM'!AJ30 -> 0 | AK114: =+'Opex y MM'!AK30 -> 0 | AL114: =+'Opex y MM'!AL30 -> 0 | AM114: =+'Opex y MM'!AM30 -> 0 | AN114: =+'Opex y MM'!AN30 -> 0 | AO114: =+'Opex y MM'!AO30 -> 0 | AP114: =+'Opex y MM'!AP30 -> 0
B115: Activo intangible | F115: =+SUM(H115:AP115) -> 75516249.55 | H115: =+SUM(H112:H114) -> 0 | I115: 0 | J115: 0 | K115: 25289822.88 | L115: 37851819.64 | M115: 12374607.03 | N115: 0 | O115: 0 | P115: 0 | Q115: 0 | R115: 0 | S115: 0 | T115: 0 | U115: 0 | V115: 0 | W115: 0 | X115: 0 | Y115: 0 | Z115: 0 | AA115: 0 | AB115: 0 | AC115: 0 | AD115: 0 | AE115: 0 | AF115: 0 | AG115: 0 | AH115: 0 | AI115: 0 | AJ115: 0 | AK115: 0 | AL115: 0 | AM115: 0 | AN115: 0 | AO115: 0 | AP115: 0
B117: Saldo inicial | H117: =+G120 -> 0 | I117: =+H120 -> 0 | J117: 0 | K117: 0 | L117: 25289822.88 | M117: 63141642.52 | N117: 73685507.3 | O117: 70958074.98 | P117: 68230642.65 | Q117: 65503210.33 | R117: 62768305.58 | S117: 60040873.26 | T117: 57313440.93 | U117: 54586008.61 | V117: 51851103.86 | W117: 49123671.54 | X117: 46396239.21 | Y117: 43668806.88 | Z117: 40933902.14 | AA117: 38206469.82 | AB117: 35479037.49 | AC117: 32751605.16 | AD117: 30016700.42 | AE117: 27289268.09 | AF117: 24561835.77 | AG117: 21834403.44 | AH117: 19099498.7 | AI117: 16372066.37 | AJ117: 13644634.05 | AK117: 10917201.72 | AL117: 8182296.978 | AM117: 5454864.652 | AN117: 2727432.326 | AO117: -2.700835466e-08 | AP117: -2.700835466e-08
B118: Altas/bajas del Activo | F118: =+SUM(H118:AP118) -> 75516249.55 | H118: =+H115 -> 0 | I118: 0 | J118: 0 | K118: 25289822.88 | L118: 37851819.64 | M118: 12374607.03 | N118: 0 | O118: 0 | P118: 0 | Q118: 0 | R118: 0 | S118: 0 | T118: 0 | U118: 0 | V118: 0 | W118: 0 | X118: 0 | Y118: 0 | Z118: 0 | AA118: 0 | AB118: 0 | AC118: 0 | AD118: 0 | AE118: 0 | AF118: 0 | AG118: 0 | AH118: 0 | AI118: 0 | AJ118: 0 | AK118: 0 | AL118: 0 | AM118: 0 | AN118: 0 | AO118: 0 | AP118: 0
B119: Amortización | F119: =+SUM(H119:AP119) -> -75516249.55 | H119: =-($F$118)*H109 -> 0 | I119: 0 | J119: 0 | K119: 0 | L119: 0 | M119: -1830742.246 | N119: -2727432.326 | O119: -2727432.326 | P119: -2727432.326 | Q119: -2734904.743 | R119: -2727432.326 | S119: -2727432.326 | T119: -2727432.326 | U119: -2734904.743 | V119: -2727432.326 | W119: -2727432.326 | X119: -2727432.326 | Y119: -2734904.743 | Z119: -2727432.326 | AA119: -2727432.326 | AB119: -2727432.326 | AC119: -2734904.743 | AD119: -2727432.326 | AE119: -2727432.326 | AF119: -2727432.326 | AG119: -2734904.743 | AH119: -2727432.326 | AI119: -2727432.326 | AJ119: -2727432.326 | AK119: -2734904.743 | AL119: -2727432.326 | AM119: -2727432.326 | AN119: -2727432.326 | AO119: 0 | AP119: 0
B120: Saldo final | H120: =+SUM(H117:H119) -> 0 | I120: 0 | J120: 0 | K120: 25289822.88 | L120: 63141642.52 | M120: 73685507.3 | N120: 70958074.98 | O120: 68230642.65 | P120: 65503210.33 | Q120: 62768305.58 | R120: 60040873.26 | S120: 57313440.93 | T120: 54586008.61 | U120: 51851103.86 | V120: 49123671.54 | W120: 46396239.21 | X120: 43668806.88 | Y120: 40933902.14 | Z120: 38206469.82 | AA120: 35479037.49 | AB120: 32751605.16 | AC120: 30016700.42 | AD120: 27289268.09 | AE120: 24561835.77 | AF120: 21834403.44 | AG120: 19099498.7 | AH120: 16372066.37 | AI120: 13644634.05 | AJ120: 10917201.72 | AK120: 8182296.978 | AL120: 5454864.652 | AM120: 2727432.326 | AN120: -2.700835466e-08 | AO120: -2.700835466e-08 | AP120: -2.700835466e-08
B122: Check Amortización Activo | C122: =+IF(ROUND(SUM(F118:F119),1)=0,"Ok","Error") -> Ok
B125: CAPEX en constantes (para presentación)
B127: Padre Damián
B128: =+B32 -> Obra civil | F128: =+SUM(H128:AP128) -> 28183371.9 | H128: =+IFERROR((H41+H52)/H$17,0) -> 0 | I128: 0 | J128: 0 | K128: 9736073.929 | L128: =+IFERROR((L41+L52)/L$17,0) -> 13835473.48 | M128: =+IFERROR((M41+M52)/M$17,0) -> 4611824.493 | N128: 0 | O128: 0 | P128: 0 | Q128: 0 | R128: 0 | S128: 0 | T128: 0 | U128: 0 | V128: 0 | W128: 0 | X128: 0 | Y128: 0 | Z128: 0 | AA128: 0 | AB128: 0 | AC128: 0 | AD128: 0 | AE128: 0 | AF128: 0 | AG128: 0 | AH128: 0 | AI128: 0 | AJ128: 0 | AK128: 0 | AL128: 0 | AM128: 0 | AN128: 0 | AO128: 0 | AP128: 0
B129: =+B33 -> Instalaciones | F129: =+SUM(H129:AP129) -> 2826707.77 | H129: =+IFERROR((H42+H53)/H$17,0) -> 0 | I129: 0 | J129: 0 | K129: 0 | L129: =+IFERROR((L42+L53)/L$17,0) -> 2261366.216 | M129: =+IFERROR((M42+M53)/M$17,0) -> 565341.554 | N129: 0 | O129: 0 | P129: 0 | Q129: 0 | R129: 0 | S129: 0 | T129: 0 | U129: 0 | V129: 0 | W129: 0 | X129: 0 | Y129: 0 | Z129: 0 | AA129: 0 | AB129: 0 | AC129: 0 | AD129: 0 | AE129: 0 | AF129: 0 | AG129: 0 | AH129: 0 | AI129: 0 | AJ129: 0 | AK129: 0 | AL129: 0 | AM129: 0 | AN129: 0 | AO129: 0 | AP129: 0
B130: =+B34 -> Otras inversiones | F130: 527171.35 | H130: =+IFERROR((H43+H54)/H$17,0) -> 0 | I130: 0 | J130: 0 | K130: 0 | L130: =+IFERROR((L43+L54)/L$17,0) -> 421737.08 | M130: =+IFERROR((M43+M54)/M$17,0) -> 105434.27 | N130: 0 | O130: 0 | P130: 0 | Q130: 0 | R130: 0 | S130: 0 | T130: 0 | U130: 0 | V130: 0 | W130: 0 | X130: 0 | Y130: 0 | Z130: 0 | AA130: 0 | AB130: 0 | AC130: 0 | AD130: 0 | AE130: 0 | AF130: 0 | AG130: 0 | AH130: 0 | AI130: 0 | AJ130: 0 | AK130: 0 | AL130: 0 | AM130: 0 | AN130: 0 | AO130: 0 | AP130: 0
B131: Total Inversión | F131: 31537251.02 | H131: =+SUM(H128:H130) -> 0 | I131: 0 | J131: 0 | K131: 9736073.929 | L131: =+SUM(L128:L130) -> 16518576.77 | M131: =+SUM(M128:M130) -> 5282600.317 | N131: 0 | O131: 0 | P131: 0 | Q131: 0 | R131: 0 | S131: 0 | T131: 0 | U131: 0 | V131: 0 | W131: 0 | X131: 0 | Y131: 0 | Z131: 0 | AA131: 0 | AB131: 0 | AC131: 0 | AD131: 0 | AE131: 0 | AF131: 0 | AG131: 0 | AH131: 0 | AI131: 0 | AJ131: 0 | AK131: 0 | AL131: 0 | AM131: 0 | AN131: 0 | AO131: 0 | AP131: 0
B132: =+B59 -> Gastos de diseño | F132: 1590430.853 | H132: =+IFERROR((H59)/H$17,0) -> 0 | I132: 0 | J132: 0 | K132: 1590430.853 | L132: =+IFERROR((L59)/L$17,0) -> 0 | M132: =+IFERROR((M59)/M$17,0) -> 0 | N132: 0 | O132: 0 | P132: 0 | Q132: 0 | R132: 0 | S132: 0 | T132: 0 | U132: 0 | V132: 0 | W132: 0 | X132: 0 | Y132: 0 | Z132: 0 | AA132: 0 | AB132: 0 | AC132: 0 | AD132: 0 | AE132: 0 | AF132: 0 | AG132: 0 | AH132: 0 | AI132: 0 | AJ132: 0 | AK132: 0 | AL132: 0 | AM132: 0 | AN132: 0 | AO132: 0 | AP132: 0
B133: =+B60 -> Otros gastos iniciales | F133: 318086.1705 | H133: =+IFERROR((H60)/H$17,0) -> 0 | I133: 0 | J133: 0 | K133: 318086.1705 | L133: =+IFERROR((L60)/L$17,0) -> 0 | M133: =+IFERROR((M60)/M$17,0) -> 0 | N133: 0 | O133: 0 | P133: 0 | Q133: 0 | R133: 0 | S133: 0 | T133: 0 | U133: 0 | V133: 0 | W133: 0 | X133: 0 | Y133: 0 | Z133: 0 | AA133: 0 | AB133: 0 | AC133: 0 | AD133: 0 | AE133: 0 | AF133: 0 | AG133: 0 | AH133: 0 | AI133: 0 | AJ133: 0 | AK133: 0 | AL133: 0 | AM133: 0 | AN133: 0 | AO133: 0 | AP133: 0
B134: Total CAPEX | F134: 33445768.04 | H134: =+SUM(H131:H133) -> 0 | I134: 0 | J134: 0 | K134: 11644590.95 | L134: =+SUM(L131:L133) -> 16518576.77 | M134: =+SUM(M131:M133) -> 5282600.317 | N134: 0 | O134: 0 | P134: 0 | Q134: 0 | R134: 0 | S134: 0 | T134: 0 | U134: 0 | V134: 0 | W134: 0 | X134: 0 | Y134: 0 | Z134: 0 | AA134: 0 | AB134: 0 | AC134: 0 | AD134: 0 | AE134: 0 | AF134: 0 | AG134: 0 | AH134: 0 | AI134: 0 | AJ134: 0 | AK134: 0 | AL134: 0 | AM134: 0 | AN134: 0 | AO134: 0 | AP134: 0
B136: Paseo de la Castellana
B137: =+B41 -> Obra Civil | F137: =+SUM(H137:AP137) -> 30768410.4 | H137: =+IFERROR((H79)/H$17,0) -> 0 | I137: 0 | J137: 0 | K137: 10629087.23 | L137: =+IFERROR((L79)/L$17,0) -> 15104492.38 | M137: =+IFERROR((M79)/M$17,0) -> 5034830.793 | N137: 0 | O137: 0 | P137: 0 | Q137: 0 | R137: 0 | S137: 0 | T137: 0 | U137: 0 | V137: 0 | W137: 0 | X137: 0 | Y137: 0 | Z137: 0 | AA137: 0 | AB137: 0 | AC137: 0 | AD137: 0 | AE137: 0 | AF137: 0 | AG137: 0 | AH137: 0 | AI137: 0 | AJ137: 0 | AK137: 0 | AL137: 0 | AM137: 0 | AN137: 0 | AO137: 0 | AP137: 0
B138: =+B42 -> Instalaciones | F138: =+SUM(H138:AP138) -> 4604690.53 | H138: =+IFERROR((H80)/H$17,0) -> 0 | I138: 0 | J138: 0 | K138: 0 | L138: =+IFERROR((L80)/L$17,0) -> 3683752.424 | M138: =+IFERROR((M80)/M$17,0) -> 920938.106 | N138: 0 | O138: 0 | P138: 0 | Q138: 0 | R138: 0 | S138: 0 | T138: 0 | U138: 0 | V138: 0 | W138: 0 | X138: 0 | Y138: 0 | Z138: 0 | AA138: 0 | AB138: 0 | AC138: 0 | AD138: 0 | AE138: 0 | AF138: 0 | AG138: 0 | AH138: 0 | AI138: 0 | AJ138: 0 | AK138: 0 | AL138: 0 | AM138: 0 | AN138: 0 | AO138: 0 | AP138: 0
B139: =+B43 -> Otras inversiones | F139: 601342.72 | H139: =+IFERROR((H81)/H$17,0) -> 0 | I139: 0 | J139: 0 | K139: 0 | L139: =+IFERROR((L81)/L$17,0) -> 481074.176 | M139: =+IFERROR((M81)/M$17,0) -> 120268.544 | N139: 0 | O139: 0 | P139: 0 | Q139: 0 | R139: 0 | S139: 0 | T139: 0 | U139: 0 | V139: 0 | W139: 0 | X139: 0 | Y139: 0 | Z139: 0 | AA139: 0 | AB139: 0 | AC139: 0 | AD139: 0 | AE139: 0 | AF139: 0 | AG139: 0 | AH139: 0 | AI139: 0 | AJ139: 0 | AK139: 0 | AL139: 0 | AM139: 0 | AN139: 0 | AO139: 0 | AP139: 0
B140: Total Inversión | F140: 35974443.65 | H140: =+SUM(H137:H139) -> 0 | I140: 0 | J140: 0 | K140: 10629087.23 | L140: =+SUM(L137:L139) -> 19269318.98 | M140: =+SUM(M137:M139) -> 6076037.443 | N140: 0 | O140: 0 | P140: 0 | Q140: 0 | R140: 0 | S140: 0 | T140: 0 | U140: 0 | V140: 0 | W140: 0 | X140: 0 | Y140: 0 | Z140: 0 | AA140: 0 | AB140: 0 | AC140: 0 | AD140: 0 | AE140: 0 | AF140: 0 | AG140: 0 | AH140: 0 | AI140: 0 | AJ140: 0 | AK140: 0 | AL140: 0 | AM140: 0 | AN140: 0 | AO140: 0 | AP140: 0
B141: =+B85 -> Gastos de diseño | F141: 1814463.26 | H141: =+IFERROR((H85)/H$17,0) -> 0 | I141: 0 | J141: 0 | K141: 1814463.26 | L141: =+IFERROR((L85)/L$17,0) -> 0 | M141: =+IFERROR((M85)/M$17,0) -> 0 | N141: 0 | O141: 0 | P141: 0 | Q141: 0 | R141: 0 | S141: 0 | T141: 0 | U141: 0 | V141: 0 | W141: 0 | X141: 0 | Y141: 0 | Z141: 0 | AA141: 0 | AB141: 0 | AC141: 0 | AD141: 0 | AE141: 0 | AF141: 0 | AG141: 0 | AH141: 0 | AI141: 0 | AJ141: 0 | AK141: 0 | AL141: 0 | AM141: 0 | AN141: 0 | AO141: 0 | AP141: 0
B142: =+B86 -> Otros gastos iniciales | F142: 362892.6519 | H142: =+IFERROR((H86)/H$17,0) -> 0 | I142: 0 | J142: 0 | K142: 362892.6519 | L142: =+IFERROR((L86)/L$17,0) -> 0 | M142: =+IFERROR((M86)/M$17,0) -> 0 | N142: 0 | O142: 0 | P142: 0 | Q142: 0 | R142: 0 | S142: 0 | T142: 0 | U142: 0 | V142: 0 | W142: 0 | X142: 0 | Y142: 0 | Z142: 0 | AA142: 0 | AB142: 0 | AC142: 0 | AD142: 0 | AE142: 0 | AF142: 0 | AG142: 0 | AH142: 0 | AI142: 0 | AJ142: 0 | AK142: 0 | AL142: 0 | AM142: 0 | AN142: 0 | AO142: 0 | AP142: 0
B143: Total CAPEX | F143: 38151799.56 | H143: =+SUM(H140:H142) -> 0 | I143: 0 | J143: 0 | K143: 12806443.14 | L143: =+SUM(L140:L142) -> 19269318.98 | M143: =+SUM(M140:M142) -> 6076037.443 | N143: 0 | O143: 0 | P143: 0 | Q143: 0 | R143: 0 | S143: 0 | T143: 0 | U143: 0 | V143: 0 | W143: 0 | X143: 0 | Y143: 0 | Z143: 0 | AA143: 0 | AB143: 0 | AC143: 0 | AD143: 0 | AE143: 0 | AF143: 0 | AG143: 0 | AH143: 0 | AI143: 0 | AJ143: 0 | AK143: 0 | AL143: 0 | AM143: 0 | AN143: 0 | AO143: 0 | AP143: 0

Sheet Opex y MM
A1: =+Control!A1 -> Real Madrid - Parking
A2: =RIGHT(CELL("filename", $H$3), LEN(CELL("filename", $H$3)) - SEARCH("]", CELL("filename", $H$3))) -> Opex y MM
A3: =+Control!A3 -> Cifras EUR
H4: =+YEAR(H5) -> 2019 | I4: 2020 | J4: 2021 | K4: 2022 | L4: 2023 | M4: 2024 | N4: 2025 | O4: 2026 | P4: 2027 | Q4: 2028 | R4: 2029 | S4: 2030 | T4: 2031 | U4: 2032 | V4: 2033 | W4: 2034 | X4: 2035 | Y4: 2036 | Z4: 2037 | AA4: 2038 | AB4: 2039 | AC4: 2040 | AD4: 2041 | AE4: 2042 | AF4: 2043 | AG4: 2044 | AH4: 2045 | AI4: 2046 | AJ4: 2047 | AK4: 2048 | AL4: 2049 | AM4: 2050 | AN4: 2051 | AO4: 2052 | AP4: 2053
B5: Errores | C5: =+Control!C4 -> 0 | H5: 2019-01-01 | I5: =+DATE(YEAR(H5)+1,MONTH(H5),DAY(H5)) -> 2020-01-01 | J5: 2021-01-01 | K5: 2022-01-01 | L5: 2023-01-01 | M5: 2024-01-01 | N5: 2025-01-01 | O5: 2026-01-01 | P5: 2027-01-01 | Q5: 2028-01-01 | R5: 2029-01-01 | S5: 2030-01-01 | T5: 2031-01-01 | U5: 2032-01-01 | V5: 2033-01-01 | W5: 2034-01-01 | X5: 2035-01-01 | Y5: 2036-01-01 | Z5: 2037-01-01 | AA5: 2038-01-01 | AB5: 2039-01-01 | AC5: 2040-01-01 | AD5: 2041-01-01 | AE5: 2042-01-01 | AF5: 2043-01-01 | AG5: 2044-01-01 | AH5: 2045-01-01 | AI5: 2046-01-01 | AJ5: 2047-01-01 | AK5: 2048-01-01 | AL5: 2049-01-01 | AM5: 2050-01-01 | AN5: 2051-01-01 | AO5: 2052-01-01 | AP5: 2053-01-01
B6: TIR Accionistas (Dividendos) | C6: =+Control!C5 -> 0.0700448478 | H6: =+DATE(YEAR(H5),MONTH(H5)+12,DAY(H5)-1) -> 2019-12-31 | I6: =+DATE(YEAR(H6)+1,MONTH(H6),DAY(H6)) -> 2020-12-31 | J6: 2021-12-31 | K6: 2022-12-31 | L6: 2023-12-31 | M6: 2024-12-31 | N6: 2025-12-31 | O6: 2026-12-31 | P6: 2027-12-31 | Q6: 2028-12-31 | R6: 2029-12-31 | S6: 2030-12-31 | T6: 2031-12-31 | U6: 2032-12-31 | V6: 2033-12-31 | W6: 2034-12-31 | X6: 2035-12-31 | Y6: 2036-12-31 | Z6: 2037-12-31 | AA6: 2038-12-31 | AB6: 2039-12-31 | AC6: 2040-12-31 | AD6: 2041-12-31 | AE6: 2042-12-31 | AF6: 2043-12-31 | AG6: 2044-12-31 | AH6: 2045-12-31 | AI6: 2046-12-31 | AJ6: 2047-12-31 | AK6: 2048-12-31 | AL6: 2049-12-31 | AM6: 2050-12-31 | AN6: 2051-12-31 | AO6: 2052-12-31 | AP6: 2053-12-31
B8: =+Flags!B18 -> Inicio de Proyecto | H8: =+Flags!H18 -> 0 | I8: =+Flags!I18 -> 0 | J8: =+Flags!J18 -> 0 | K8: =+Flags!K18 -> 1 | L8: =+Flags!L18 -> 0 | M8: =+Flags!M18 -> 0 | N8: =+Flags!N18 -> 0 | O8: =+Flags!O18 -> 0 | P8: =+Flags!P18 -> 0 | Q8: =+Flags!Q18 -> 0 | R8: =+Flags!R18 -> 0 | S8: =+Flags!S18 -> 0 | T8: =+Flags!T18 -> 0 | U8: =+Flags!U18 -> 0 | V8: =+Flags!V18 -> 0 | W8: =+Flags!W18 -> 0 | X8: =+Flags!X18 -> 0 | Y8: =+Flags!Y18 -> 0 | Z8: =+Flags!Z18 -> 0 | AA8: =+Flags!AA18 -> 0 | AB8: =+Flags!AB18 -> 0 | AC8: =+Flags!AC18 -> 0 | AD8: =+Flags!AD18 -> 0 | AE8: =+Flags!AE18 -> 0 | AF8: =+Flags!AF18 -> 0 | AG8: =+Flags!AG18 -> 0 | AH8: =+Flags!AH18 -> 0 | AI8: =+Flags!AI18 -> 0 | AJ8: =+Flags!AJ18 -> 0 | AK8: =+Flags!AK18 -> 0 | AL8: =+Flags!AL18 -> 0 | AM8: =+Flags!AM18 -> 0 | AN8: =+Flags!AN18 -> 0 | AO8: =+Flags!AO18 -> 0 | AP8: =+Flags!AP18 -> 0
B9: =+Flags!B19 -> Periodo de Proyecto | H9: =+Flags!H19 -> 0 | I9: =+Flags!I19 -> 0 | J9: =+Flags!J19 -> 0 | K9: =+Flags!K19 -> 1 | L9: =+Flags!L19 -> 1 | M9: =+Flags!M19 -> 1 | N9: =+Flags!N19 -> 1 | O9: =+Flags!O19 -> 1 | P9: =+Flags!P19 -> 1 | Q9: =+Flags!Q19 -> 1 | R9: =+Flags!R19 -> 1 | S9: =+Flags!S19 -> 1 | T9: =+Flags!T19 -> 1 | U9: =+Flags!U19 -> 1 | V9: =+Flags!V19 -> 1 | W9: =+Flags!W19 -> 1 | X9: =+Flags!X19 -> 1 | Y9: =+Flags!Y19 -> 1 | Z9: =+Flags!Z19 -> 1 | AA9: =+Flags!AA19 -> 1 | AB9: =+Flags!AB19 -> 1 | AC9: =+Flags!AC19 -> 1 | AD9: =+Flags!AD19 -> 1 | AE9: =+Flags!AE19 -> 1 | AF9: =+Flags!AF19 -> 1 | AG9: =+Flags!AG19 -> 1 | AH9: =+Flags!AH19 -> 1 | AI9: =+Flags!AI19 -> 1 | AJ9: =+Flags!AJ19 -> 1 | AK9: =+Flags!AK19 -> 1 | AL9: =+Flags!AL19 -> 1 | AM9: =+Flags!AM19 -> 1 | AN9: =+Flags!AN19 -> 1 | AO9: =+Flags!AO19 -> 0 | AP9: =+Flags!AP19 -> 0
B11: =+Flags!B29 -> Ultimo Periodo de Construcción | H11: =+Flags!H29 -> 0 | I11: =+Flags!I29 -> 0 | J11: =+Flags!J29 -> 0 | K11: =+Flags!K29 -> 0 | L11: =+Flags!L29 -> 0 | M11: =+Flags!M29 -> 1 | N11: =+Flags!N29 -> 0 | O11: =+Flags!O29 -> 0 | P11: =+Flags!P29 -> 0 | Q11: =+Flags!Q29 -> 0 | R11: =+Flags!R29 -> 0 | S11: =+Flags!S29 -> 0 | T11: =+Flags!T29 -> 0 | U11: =+Flags!U29 -> 0 | V11: =+Flags!V29 -> 0 | W11: =+Flags!W29 -> 0 | X11: =+Flags!X29 -> 0 | Y11: =+Flags!Y29 -> 0 | Z11: =+Flags!Z29 -> 0 | AA11: =+Flags!AA29 -> 0 | AB11: =+Flags!AB29 -> 0 | AC11: =+Flags!AC29 -> 0 | AD11: =+Flags!AD29 -> 0 | AE11: =+Flags!AE29 -> 0 | AF11: =+Flags!AF29 -> 0 | AG11: =+Flags!AG29 -> 0 | AH11: =+Flags!AH29 -> 0 | AI11: =+Flags!AI29 -> 0 | AJ11: =+Flags!AJ29 -> 0 | AK11: =+Flags!AK29 -> 0 | AL11: =+Flags!AL29 -> 0 | AM11: =+Flags!AM29 -> 0 | AN11: =+Flags!AN29 -> 0 | AO11: =+Flags!AO29 -> 0 | AP11: =+Flags!AP29 -> 0
B13: =+Flags!B37 -> Periodo de Operación | H13: =+Flags!H37 -> 0 | I13: =+Flags!I37 -> 0 | J13: =+Flags!J37 -> 0 | K13: =+Flags!K37 -> 0 | L13: =+Flags!L37 -> 0 | M13: =+Flags!M37 -> 1 | N13: =+Flags!N37 -> 1 | O13: =+Flags!O37 -> 1 | P13: =+Flags!P37 -> 1 | Q13: =+Flags!Q37 -> 1 | R13: =+Flags!R37 -> 1 | S13: =+Flags!S37 -> 1 | T13: =+Flags!T37 -> 1 | U13: =+Flags!U37 -> 1 | V13: =+Flags!V37 -> 1 | W13: =+Flags!W37 -> 1 | X13: =+Flags!X37 -> 1 | Y13: =+Flags!Y37 -> 1 | Z13: =+Flags!Z37 -> 1 | AA13: =+Flags!AA37 -> 1 | AB13: =+Flags!AB37 -> 1 | AC13: =+Flags!AC37 -> 1 | AD13: =+Flags!AD37 -> 1 | AE13: =+Flags!AE37 -> 1 | AF13: =+Flags!AF37 -> 1 | AG13: =+Flags!AG37 -> 1 | AH13: =+Flags!AH37 -> 1 | AI13: =+Flags!AI37 -> 1 | AJ13: =+Flags!AJ37 -> 1 | AK13: =+Flags!AK37 -> 1 | AL13: =+Flags!AL37 -> 1 | AM13: =+Flags!AM37 -> 1 | AN13: =+Flags!AN37 -> 1 | AO13: =+Flags!AO37 -> 0 | AP13: =+Flags!AP37 -> 0
B14: =+Flags!B42 -> Factor de Operación | H14: =+Flags!H42 -> 0 | I14: =+Flags!I42 -> 0 | J14: =+Flags!J42 -> 0 | K14: =+Flags!K42 -> 0 | L14: =+Flags!L42 -> 0 | M14: =+Flags!M42 -> 0.6693989071 | N14: =+Flags!N42 -> 1 | O14: =+Flags!O42 -> 1 | P14: =+Flags!P42 -> 1 | Q14: =+Flags!Q42 -> 1 | R14: =+Flags!R42 -> 1 | S14: =+Flags!S42 -> 1 | T14: =+Flags!T42 -> 1 | U14: =+Flags!U42 -> 1 | V14: =+Flags!V42 -> 1 | W14: =+Flags!W42 -> 1 | X14: =+Flags!X42 -> 1 | Y14: =+Flags!Y42 -> 1 | Z14: =+Flags!Z42 -> 1 | AA14: =+Flags!AA42 -> 1 | AB14: =+Flags!AB42 -> 1 | AC14: =+Flags!AC42 -> 1 | AD14: =+Flags!AD42 -> 1 | AE14: =+Flags!AE42 -> 1 | AF14: =+Flags!AF42 -> 1 | AG14: =+Flags!AG42 -> 1 | AH14: =+Flags!AH42 -> 1 | AI14: =+Flags!AI42 -> 1 | AJ14: =+Flags!AJ42 -> 1 | AK14: =+Flags!AK42 -> 1 | AL14: =+Flags!AL42 -> 1 | AM14: =+Flags!AM42 -> 1 | AN14: =+Flags!AN42 -> 1 | AO14: =+Flags!AO42 -> 0 | AP14: =+Flags!AP42 -> 0
B16: =+Flags!B29 -> Ultimo Periodo de Construcción | H16: =+Flags!H29 -> 0 | I16: =+Flags!I29 -> 0 | J16: =+Flags!J29 -> 0 | K16: =+Flags!K29 -> 0 | L16: =+Flags!L29 -> 0 | M16: =+Flags!M29 -> 1 | N16: =+Flags!N29 -> 0 | O16: =+Flags!O29 -> 0 | P16: =+Flags!P29 -> 0 | Q16: =+Flags!Q29 -> 0 | R16: =+Flags!R29 -> 0 | S16: =+Flags!S29 -> 0 | T16: =+Flags!T29 -> 0 | U16: =+Flags!U29 -> 0 | V16: =+Flags!V29 -> 0 | W16: =+Flags!W29 -> 0 | X16: =+Flags!X29 -> 0 | Y16: =+Flags!Y29 -> 0 | Z16: =+Flags!Z29 -> 0 | AA16: =+Flags!AA29 -> 0 | AB16: =+Flags!AB29 -> 0 | AC16: =+Flags!AC29 -> 0 | AD16: =+Flags!AD29 -> 0 | AE16: =+Flags!AE29 -> 0 | AF16: =+Flags!AF29 -> 0 | AG16: =+Flags!AG29 -> 0 | AH16: =+Flags!AH29 -> 0 | AI16: =+Flags!AI29 -> 0 | AJ16: =+Flags!AJ29 -> 0 | AK16: =+Flags!AK29 -> 0 | AL16: =+Flags!AL29 -> 0 | AM16: =+Flags!AM29 -> 0 | AN16: =+Flags!AN29 -> 0 | AO16: =+Flags!AO29 -> 0 | AP16: =+Flags!AP29 -> 0
B18: =+Flags!B57 -> Factor de Actualización 2021 | H18: =+Flags!H57 -> 0 | I18: =+Flags!I57 -> 0 | J18: =+Flags!J57 -> 1 | K18: =+Flags!K57 -> 1.01 | L18: =+Flags!L57 -> 1.0201 | M18: =+Flags!M57 -> 1.030301 | N18: =+Flags!N57 -> 1.04060401 | O18: =+Flags!O57 -> 1.05101005 | P18: =+Flags!P57 -> 1.061520151 | Q18: =+Flags!Q57 -> 1.072135352 | R18: =+Flags!R57 -> 1.082856706 | S18: =+Flags!S57 -> 1.093685273 | T18: =+Flags!T57 -> 1.104622125 | U18: =+Flags!U57 -> 1.115668347 | V18: =+Flags!V57 -> 1.12682503 | W18: =+Flags!W57 -> 1.13809328 | X18: =+Flags!X57 -> 1.149474213 | Y18: =+Flags!Y57 -> 1.160968955 | Z18: =+Flags!Z57 -> 1.172578645 | AA18: =+Flags!AA57 -> 1.184304431 | AB18: =+Flags!AB57 -> 1.196147476 | AC18: =+Flags!AC57 -> 1.20810895 | AD18: =+Flags!AD57 -> 1.22019004 | AE18: =+Flags!AE57 -> 1.23239194 | AF18: =+Flags!AF57 -> 1.24471586 | AG18: =+Flags!AG57 -> 1.257163018 | AH18: =+Flags!AH57 -> 1.269734649 | AI18: =+Flags!AI57 -> 1.282431995 | AJ18: =+Flags!AJ57 -> 1.295256315 | AK18: =+Flags!AK57 -> 1.308208878 | AL18: =+Flags!AL57 -> 1.321290967 | AM18: =+Flags!AM57 -> 1.334503877 | AN18: =+Flags!AN57 -> 1.347848915 | AO18: =+Flags!AO57 -> 1.361327404 | AP18: =+Flags!AP57 -> 1.374940679
B20: =+Control!$B22 -> Padre Damián | C20: =+Control!$D22 -> Si | D20: =+IF(C20="Si",1,0) -> 1
B21: =+Control!$B23 -> Paseo de la Castellana | C21: =+Control!$D23 -> Si | D21: =+IF(C21="Si",1,0) -> 1
B23: Opex
B25: =+Control!O31 -> Sensibilidad OPEX | D25: =+Control!Q31 -> 0
B27: Gastos SPV | D27: =+Control!D78 -> 0 | H27: =+($D$27*H18*H$9) -> 0 | I27: =+($D$27*I18*I$9) -> 0 | J27: 0 | K27: 0 | L27: 0 | M27: 0 | N27: 0 | O27: 0 | P27: 0 | Q27: 0 | R27: 0 | S27: 0 | T27: 0 | U27: 0 | V27: 0 | W27: 0 | X27: 0 | Y27: 0 | Z27: 0 | AA27: 0 | AB27: 0 | AC27: 0 | AD27: 0 | AE27: 0 | AF27: 0 | AG27: 0 | AH27: 0 | AI27: 0 | AJ27: 0 | AK27: 0 | AL27: 0 | AM27: 0 | AN27: 0 | AO27: 0 | AP27: 0
B28: Canon | D28: =+Control!D79 -> 200000 | H28: =+($D$28*H18*H$9) -> 0 | I28: =+($D$28*I18*I$9) -> 0 | J28: 0 | K28: 202000 | L28: 204020 | M28: 206060.2 | N28: 208120.802 | O28: 210202.01 | P28: 212304.0301 | Q28: 214427.0704 | R28: 216571.3411 | S28: 218737.0545 | T28: 220924.4251 | U28: 223133.6693 | V28: 225365.006 | W28: 227618.6561 | X28: 229894.8426 | Y28: 232193.7911 | Z28: 234515.729 | AA28: 236860.8863 | AB28: 239229.4951 | AC28: 241621.7901 | AD28: 244038.008 | AE28: 246478.3881 | AF28: 248943.172 | AG28: 251432.6037 | AH28: 253946.9297 | AI28: 256486.399 | AJ28: 259051.263 | AK28: 261641.7756 | AL28: 264258.1934 | AM28: 266900.7753 | AN28: 269569.7831 | AO28: 0 | AP28: 0
B29: Gastos canon | F29: =+SUM(H29:AP29) -> 7026548.09 | H29: =+(+H27+H28)*(1+$D$25) -> 0 | I29: =+(+I27+I28)*(1+$D$25) -> 0 | J29: 0 | K29: 202000 | L29: 204020 | M29: 206060.2 | N29: 208120.802 | O29: 210202.01 | P29: 212304.0301 | Q29: 214427.0704 | R29: 216571.3411 | S29: 218737.0545 | T29: 220924.4251 | U29: 223133.6693 | V29: 225365.006 | W29: 227618.6561 | X29: 229894.8426 | Y29: 232193.7911 | Z29: 234515.729 | AA29: 236860.8863 | AB29: 239229.4951 | AC29: 241621.7901 | AD29: 244038.008 | AE29: 246478.3881 | AF29: 248943.172 | AG29: 251432.6037 | AH29: 253946.9297 | AI29: 256486.399 | AJ29: 259051.263 | AK29: 261641.7756 | AL29: 264258.1934 | AM29: 266900.7753 | AN29: 269569.7831 | AO29: 0 | AP29: 0
B30: En construcción | F30: =+SUM(H30:AP30) -> 474143.7273 | H30: =+H29-H31 -> 0 | I30: =+I29-I31 -> 0 | J30: =+J29-J31 -> 0 | K30: 202000 | L30: 204020 | M30: 68123.72732 | N30: 0 | O30: 0 | P30: 0 | Q30: 0 | R30: 0 | S30: 0 | T30: 0 | U30: 0 | V30: 0 | W30: 0 | X30: 0 | Y30: 0 | Z30: 0 | AA30: 0 | AB30: 0 | AC30: 0 | AD30: 0 | AE30: 0 | AF30: 0 | AG30: 0 | AH30: 0 | AI30: 0 | AJ30: 0 | AK30: 0 | AL30: 0 | AM30: 0 | AN30: 0 | AO30: 0 | AP30: 0
B31: En operación | F31: =+SUM(H31:AP31) -> 6552404.362 | H31: =+H29*H14 -> 0 | I31: 0 | J31: 0 | K31: 0 | L31: 0 | M31: 137936.4727 | N31: 208120.802 | O31: 210202.01 | P31: 212304.0301 | Q31: 214427.0704 | R31: 216571.3411 | S31: 218737.0545 | T31: 220924.4251 | U31: 223133.6693 | V31: 225365.006 | W31: 227618.6561 | X31: 229894.8426 | Y31: 232193.7911 | Z31: 234515.729 | AA31: 236860.8863 | AB31: 239229.4951 | AC31: 241621.7901 | AD31: 244038.008 | AE31: 246478.3881 | AF31: 248943.172 | AG31: 251432.6037 | AH31: 253946.9297 | AI31: 256486.399 | AJ31: 259051.263 | AK31: 261641.7756 | AL31: 264258.1934 | AM31: 266900.7753 | AN31: 269569.7831 | AO31: 0 | AP31: 0
B33: Padre Damián - Zona Parking - Nº Plazas | C33: nº plazas | D33: =+Control!D28 -> 684.5735294
B34: Padre Damián - Zona Anexa - m2 | C34: =+Control!C35 -> m2 | D34: =+Control!D35 -> 3617.79 | I34: ,
B35: Paseo de la Castellana - Nº Plazas | C35: nº plazas | D35: =+Control!D40 -> 1287.480147
B36: Plaza de Castellana - m2 | C36: =+Control!C50 -> m2 | D36: =+Control!D50 -> 19661.78
B38: Gastos operativos
B39: Padre Damián
B40: En función de plazas | C40: EUR/Plaza/año | D40: =+Control!D81 -> 708.624642 | F40: =+SUM(H40:AP40) -> 15893042.61 | H40: =+($D40*$D$33*H$18*H$14*$D$20)*(1+$D$25) -> 0 | I40: 0 | J40: 0 | K40: 0 | L40: 0 | M40: 334568.8265 | N40: 504802.9077 | O40: 509850.9368 | P40: 514949.4462 | Q40: 520098.9407 | R40: 525299.9301 | S40: 530552.9294 | T40: 535858.4587 | U40: 541217.0432 | V40: 546629.2137 | W40: 552095.5058 | X40: 557616.4609 | Y40: 563192.6255 | Z40: 568824.5517 | AA40: 574512.7972 | AB40: 580257.9252 | AC40: 586060.5045 | AD40: 591921.1095 | AE40: 597840.3206 | AF40: 603818.7238 | AG40: 609856.9111 | AH40: 615955.4802 | AI40: 622115.035 | AJ40: 628336.1853 | AK40: 634619.5472 | AL40: 640965.7426 | AM40: 647375.4001 | AN40: 653849.1541 | AO40: 0 | AP40: 0
B41: En función de m2 | C41: =+Control!C84 -> EUR/m2/año | D41: =+Control!D84 -> 26.05237654 | F41: =+SUM(H41:AP41) -> 3087886.975 | H41: =+($D41*$D$34*H$18*H$14*$D$20)*(1+$D$25) -> 0 | I41: 0 | J41: 0 | K41: 0 | L41: 0 | M41: 65003.96097 | N41: 98079.03759 | O41: 99059.82797 | P41: 100050.4262 | Q41: 101050.9305 | R41: 102061.4398 | S41: 103082.0542 | T41: 104112.8748 | U41: 105154.0035 | V41: 106205.5435 | W41: 107267.599 | X41: 108340.275 | Y41: 109423.6777 | Z41: 110517.9145 | AA41: 111623.0936 | AB41: 112739.3246 | AC41: 113866.7178 | AD41: 115005.385 | AE41: 116155.4388 | AF41: 117316.9932 | AG41: 118490.1632 | AH41: 119675.0648 | AI41: 120871.8154 | AJ41: 122080.5336 | AK41: 123301.3389 | AL41: 124534.3523 | AM41: 125779.6959 | AN41: 127037.4928 | AO41: 0 | AP41: 0
B42: Paseo de la Castellana
B43: En función de plazas | C43: EUR/Plaza/año | D43: =+Control!D82 -> 616 | F43: =+SUM(H43:AP43) -> 25983158.84 | H43: =+($D43*$D$35*H$18*H$14*$D$21)*(1+$D$25) -> 0 | I43: 0 | J43: 0 | K43: 0 | L43: 0 | M43: 546978.648 | N43: 825290.3144 | O43: 833543.2175 | P43: 841878.6497 | Q43: 850297.4362 | R43: 858800.4105 | S43: 867388.4146 | T43: 876062.2988 | U43: 884822.9218 | V43: 893671.151 | W43: 902607.8625 | X43: 911633.9411 | Y43: 920750.2805 | Z43: 929957.7833 | AA43: 939257.3612 | AB43: 948649.9348 | AC43: 958136.4341 | AD43: 967717.7985 | AE43: 977394.9765 | AF43: 987168.9262 | AG43: 997040.6155 | AH43: 1007011.022 | AI43: 1017081.132 | AJ43: 1027251.943 | AK43: 1037524.463 | AL43: 1047899.707 | AM43: 1058378.704 | AN43: 1068962.491 | AO43: 0 | AP43: 0
B44: En función de m2 | C44: =+Control!C85 -> EUR/m2/año | D44: =+Control!D85 -> 7 | F44: =+SUM(H44:AP44) -> 4509117.657 | H44: =+($D44*$D$36*H$18*H$14*$D$21)*(1+$D$25) -> 0 | I44: 0 | J44: 0 | K44: 0 | L44: 0 | M44: 94922.68029 | N44: 143220.8898 | O44: 144653.0987 | P44: 146099.6297 | Q44: 147560.626 | R44: 149036.2322 | S44: 150526.5945 | T44: 152031.8605 | U44: 153552.1791 | V44: 155087.7009 | W44: 156638.5779 | X44: 158204.9637 | Y44: 159787.0133 | Z44: 161384.8834 | AA44: 162998.7323 | AB44: 164628.7196 | AC44: 166275.0068 | AD44: 167937.7569 | AE44: 169617.1344 | AF44: 171313.3058 | AG44: 173026.4388 | AH44: 174756.7032 | AI44: 176504.2703 | AJ44: 178269.313 | AK44: 180052.0061 | AL44: 181852.5261 | AM44: 183671.0514 | AN44: 185507.7619 | AO44: 0 | AP44: 0
B46: Total Gastos Operativos | F46: =+SUM(H46:AP46) -> 49473206.08 | H46: =SUM(H40:H44) -> 0 | I46: =SUM(I40:I44) -> 0 | J46: 0 | K46: 0 | L46: 0 | M46: 1041474.116 | N46: 1571393.149 | O46: 1587107.081 | P46: 1602978.152 | Q46: 1619007.933 | R46: 1635198.013 | S46: 1651549.993 | T46: 1668065.493 | U46: 1684746.148 | V46: 1701593.609 | W46: 1718609.545 | X46: 1735795.641 | Y46: 1753153.597 | Z46: 1770685.133 | AA46: 1788391.984 | AB46: 1806275.904 | AC46: 1824338.663 | AD46: 1842582.05 | AE46: 1861007.87 | AF46: 1879617.949 | AG46: 1898414.129 | AH46: 1917398.27 | AI46: 1936572.253 | AJ46: 1955937.975 | AK46: 1975497.355 | AL46: 1995252.328 | AM46: 2015204.852 | AN46: 2035356.9 | AO46: 0 | AP46: 0 | AR46: 0
M47: VAN | N47: =N46/N18 -> 1510077.93
B49: Mantenimiento Mayor (MM)
B51: Tasa libre de riesgo | C51: % | D51: 0.0041
B53: Bolsa 2 - Padre Damián
B55: =+Flags!B66 -> Flag MM Bolsa 2 - Padre Damián | H55: =+Flags!H66 -> 0 | I55: =+Flags!I66 -> 0 | J55: =+Flags!J66 -> 0 | K55: =+Flags!K66 -> 0 | L55: =+Flags!L66 -> 0 | M55: =+Flags!M66 -> 0 | N55: =+Flags!N66 -> 0 | O55: =+Flags!O66 -> 0 | P55: =+Flags!P66 -> 0 | Q55: =+Flags!Q66 -> 0 | R55: =+Flags!R66 -> 0 | S55: =+Flags!S66 -> 0 | T55: =+Flags!T66 -> 0 | U55: =+Flags!U66 -> 0 | V55: =+Flags!V66 -> 0 | W55: =+Flags!W66 -> 0 | X55: =+Flags!X66 -> 0 | Y55: =+Flags!Y66 -> 0 | Z55: =+Flags!Z66 -> 1 | AA55: =+Flags!AA66 -> 0 | AB55: =+Flags!AB66 -> 0 | AC55: =+Flags!AC66 -> 0 | AD55: =+Flags!AD66 -> 0 | AE55: =+Flags!AE66 -> 0 | AF55: =+Flags!AF66 -> 0 | AG55: =+Flags!AG66 -> 0 | AH55: =+Flags!AH66 -> 0 | AI55: =+Flags!AI66 -> 0 | AJ55: =+Flags!AJ66 -> 0 | AK55: =+Flags!AK66 -> 0 | AL55: =+Flags!AL66 -> 0 | AM55: =+Flags!AM66 -> 0 | AN55: =+Flags!AN66 -> 1 | AO55: =+Flags!AO66 -> 0 | AP55: =+Flags!AP66 -> 0
B56: Plazo Mantenimiento Mayor | C56: años | D56: =+Control!D89 -> 14
B58: Importe actuación MM | D58: =+Control!$D$88*('Capex '!F42+'Capex '!F53) -> 2022504.152 | F58: =+SUM(H58:AP58) -> 2548787.602 | H58: =+IFERROR($D$58*H55/SUM($H$55:$AP$55),0)*H$18*$D$20 -> 0 | I58: 0 | J58: 0 | K58: 0 | L58: 0 | M58: 0 | N58: 0 | O58: 0 | P58: 0 | Q58: 0 | R58: 0 | S58: 0 | T58: 0 | U58: 0 | V58: 0 | W58: 0 | X58: 0 | Y58: 0 | Z58: 1185772.589 | AA58: 0 | AB58: 0 | AC58: 0 | AD58: 0 | AE58: 0 | AF58: 0 | AG58: 0 | AH58: 0 | AI58: 0 | AJ58: 0 | AK58: 0 | AL58: 0 | AM58: 0 | AN58: 1363015.014 | AO58: 0 | AP58: 0
B59: VAN MM | H59: =+NPV($D$51,I58:OFFSET(I58,,$D$56-2))+H58 -> 0 | I59: =+NPV($D$51,J58:OFFSET(J58,,$D$56-2))+I58 -> 0 | J59: =+NPV($D$51,K58:OFFSET(K58,,$D$56-2))+J58 -> 0 | K59: =+NPV($D$51,L58:OFFSET(L58,,$D$56-2))+K58 -> 0 | L59: =+NPV($D$51,M58:OFFSET(M58,,$D$56-2))+L58 -> 0 | M59: =+NPV($D$51,N58:OFFSET(N58,,$D$56-2))+M58 -> 1124348.215 | N59: =+NPV($D$51,O58:OFFSET(O58,,$D$56-2))+N58 -> 1128958.042 | O59: =+NPV($D$51,P58:OFFSET(P58,,$D$56-2))+O58 -> 1133586.77 | P59: =+NPV($D$51,Q58:OFFSET(Q58,,$D$56-2))+P58 -> 1138234.476 | Q59: =+NPV($D$51,R58:OFFSET(R58,,$D$56-2))+Q58 -> 1142901.238 | R59: =+NPV($D$51,S58:OFFSET(S58,,$D$56-2))+R58 -> 1147587.133 | S59: =+NPV($D$51,T58:OFFSET(T58,,$D$56-2))+S58 -> 1152292.24 | T59: =+NPV($D$51,U58:OFFSET(U58,,$D$56-2))+T58 -> 1157016.638 | U59: =+NPV($D$51,V58:OFFSET(V58,,$D$56-2))+U58 -> 1161760.406 | V59: =+NPV($D$51,W58:OFFSET(W58,,$D$56-2))+V58 -> 1166523.624 | W59: =+NPV($D$51,X58:OFFSET(X58,,$D$56-2))+W58 -> 1171306.371 | X59: =+NPV($D$51,Y58:OFFSET(Y58,,$D$56-2))+X58 -> 1176108.727 | Y59: =+NPV($D$51,Z58:OFFSET(Z58,,$D$56-2))+Y58 -> 1180930.773 | Z59: =+NPV($D$51,AA58:OFFSET(AA58,,$D$56-2))+Z58 -> 1185772.589 | AA59: =+NPV($D$51,AB58:OFFSET(AB58,,$D$56-2))+AA58 -> 1292409.28 | AB59: =+NPV($D$51,AC58:OFFSET(AC58,,$D$56-2))+AB58 -> 1297708.158 | AC59: =+NPV($D$51,AD58:OFFSET(AD58,,$D$56-2))+AC58 -> 1303028.761 | AD59: =+NPV($D$51,AE58:OFFSET(AE58,,$D$56-2))+AD58 -> 1308371.179 | AE59: =+NPV($D$51,AF58:OFFSET(AF58,,$D$56-2))+AE58 -> 1313735.501 | AF59: =+NPV($D$51,AG58:OFFSET(AG58,,$D$56-2))+AF58 -> 1319121.816 | AG59: =+NPV($D$51,AH58:OFFSET(AH58,,$D$56-2))+AG58 -> 1324530.216 | AH59: =+NPV($D$51,AI58:OFFSET(AI58,,$D$56-2))+AH58 -> 1329960.79 | AI59: =+NPV($D$51,AJ58:OFFSET(AJ58,,$D$56-2))+AI58 -> 1335413.629 | AJ59: =+NPV($D$51,AK58:OFFSET(AK58,,$D$56-2))+AJ58 -> 1340888.825 | AK59: =+NPV($D$51,AL58:OFFSET(AL58,,$D$56-2))+AK58 -> 1346386.469 | AL59: =+NPV($D$51,AM58:OFFSET(AM58,,$D$56-2))+AL58 -> 1351906.653 | AM59: =+NPV($D$51,AN58:OFFSET(AN58,,$D$56-2))+AM58 -> 1357449.471 | AN59: =+NPV($D$51,AO58:OFFSET(AO58,,$D$56-2))+AN58 -> 1363015.014 | AO59: =+NPV($D$51,AP58:OFFSET(AP58,,$D$56-2))+AO58 -> 0 | AP59: =+NPV($D$51,AQ58:OFFSET(AQ58,,$D$56-2))+AP58 -> 0
B61: Provisión MM
B62: Saldo inicial | H62: =+G66 -> 0 | I62: =+H66 -> 0 | J62: 0 | K62: 0 | L62: 0 | M62: 0 | N62: 80310.58677 | O62: 161279.7203 | P62: 242911.4508 | Q62: 325209.8503 | R62: 408179.0134 | S62: 491823.0568 | T62: 576146.1199 | U62: 661152.3646 | V62: 746845.9754 | W62: 833231.1599 | X62: 920312.1484 | Y62: 1008093.194 | Z62: 1096578.575 | AA62: 0 | AB62: 92314.94854 | AC62: 185386.8797 | AD62: 279220.4488 | AE62: 373820.3368 | AF62: 469191.2503 | AG62: 565337.9213 | AH62: 662265.1079 | AI62: 759977.5941 | AJ62: 858480.19 | AK62: 957777.732 | AL62: 1057875.083 | AM62: 1158777.132 | AN62: 1260488.794 | AO62: 0 | AP62: 0
B63: Dotación | F63: =+SUM(H63:AP63) -> 2482232.357 | H63: =+IFERROR(H59/$D$56,0) -> 0 | I63: =+IFERROR(I59/$D$56,0) -> 0 | J63: 0 | K63: 0 | L63: 0 | M63: 80310.58677 | N63: 80639.86017 | O63: 80970.4836 | P63: 81302.46258 | Q63: 81635.80268 | R63: 81970.50947 | S63: 82306.58856 | T63: 82644.04557 | U63: 82982.88616 | V63: 83323.11599 | W63: 83664.74077 | X63: 84007.7662 | Y63: 84352.19805 | Z63: 84698.04206 | AA63: 92314.94854 | AB63: 92693.43983 | AC63: 93073.48293 | AD63: 93455.08421 | AE63: 93838.25006 | AF63: 94222.98688 | AG63: 94609.30113 | AH63: 94997.19926 | AI63: 95386.68778 | AJ63: 95777.7732 | AK63: 96170.46207 | AL63: 96564.76096 | AM63: 96960.67648 | AN63: 97358.21526 | AO63: 0 | AP63: 0
B64: Actualización financiera | F64: =+SUM(H64:AP64) -> 66555.2452 | H64: =+H62*$D$51 -> 0 | I64: =+I62*$D$51 -> 0 | J64: 0 | K64: 0 | L64: 0 | M64: 0 | N64: 329.2734057 | O64: 661.2468534 | P64: 995.9369483 | Q64: 1333.360386 | R64: 1673.533955 | S64: 2016.474533 | T64: 2362.199092 | U64: 2710.724695 | V64: 3062.068499 | W64: 3416.247756 | X64: 3773.279809 | Y64: 4133.182097 | Z64: 4495.972156 | AA64: 0 | AB64: 378.491289 | AC64: 760.0862066 | AD64: 1144.80384 | AE64: 1532.663381 | AF64: 1923.684126 | AG64: 2317.885477 | AH64: 2715.286942 | AI64: 3115.908136 | AJ64: 3519.768779 | AK64: 3926.888701 | AL64: 4337.287839 | AM64: 4750.986239 | AN64: 5168.004057 | AO64: 0 | AP64: 0
B65: Desdotación | F65: =+SUM(H65:AP65) -> -2548787.602 | H65: =-H58 -> 0 | I65: =-I58 -> 0 | J65: 0 | K65: 0 | L65: 0 | M65: 0 | N65: 0 | O65: 0 | P65: 0 | Q65: 0 | R65: 0 | S65: 0 | T65: 0 | U65: 0 | V65: 0 | W65: 0 | X65: 0 | Y65: 0 | Z65: -1185772.589 | AA65: 0 | AB65: 0 | AC65: 0 | AD65: 0 | AE65: 0 | AF65: 0 | AG65: 0 | AH65: 0 | AI65: 0 | AJ65: 0 | AK65: 0 | AL65: 0 | AM65: 0 | AN65: -1363015.014 | AO65: 0 | AP65: 0
B66: Saldo final | H66: =+SUM(H62:H65) -> 0 | I66: 0 | J66: 0 | K66: 0 | L66: 0 | M66: 80310.58677 | N66: 161279.7203 | O66: 242911.4508 | P66: 325209.8503 | Q66: 408179.0134 | R66: 491823.0568 | S66: 576146.1199 | T66: 661152.3646 | U66: 746845.9754 | V66: 833231.1599 | W66: 920312.1484 | X66: 1008093.194 | Y66: 1096578.575 | Z66: 0 | AA66: 92314.94854 | AB66: 185386.8797 | AC66: 279220.4488 | AD66: 373820.3368 | AE66: 469191.2503 | AF66: 565337.9213 | AG66: 662265.1079 | AH66: 759977.5941 | AI66: 858480.19 | AJ66: 957777.732 | AK66: 1057875.083 | AL66: 1158777.132 | AM66: 1260488.794 | AN66: 0 | AO66: 0 | AP66: 0
B67: Check provisión MM | C67: =+IF(ROUND(SUM(F63:F65),2)=0,"Ok","Error") -> Ok
B69: Bolsa 3 - Paseo de la Castellana
B71: =+Flags!B67 -> Flag MM Bolsa 3 - Paseo de la Castellana | H71: =+Flags!H67 -> 0 | I71: =+Flags!I67 -> 0 | J71: =+Flags!J67 -> 0 | K71: =+Flags!K67 -> 0 | L71: =+Flags!L67 -> 0 | M71: =+Flags!M67 -> 0 | N71: =+Flags!N67 -> 0 | O71: =+Flags!O67 -> 0 | P71: =+Flags!P67 -> 0 | Q71: =+Flags!Q67 -> 0 | R71: =+Flags!R67 -> 0 | S71: =+Flags!S67 -> 0 | T71: =+Flags!T67 -> 0 | U71: =+Flags!U67 -> 0 | V71: =+Flags!V67 -> 0 | W71: =+Flags!W67 -> 0 | X71: =+Flags!X67 -> 0 | Y71: =+Flags!Y67 -> 0 | Z71: =+Flags!Z67 -> 1 | AA71: =+Flags!AA67 -> 0 | AB71: =+Flags!AB67 -> 0 | AC71: =+Flags!AC67 -> 0 | AD71: =+Flags!AD67 -> 0 | AE71: =+Flags!AE67 -> 0 | AF71: =+Flags!AF67 -> 0 | AG71: =+Flags!AG67 -> 0 | AH71: =+Flags!AH67 -> 0 | AI71: =+Flags!AI67 -> 0 | AJ71: =+Flags!AJ67 -> 0 | AK71: =+Flags!AK67 -> 0 | AL71: =+Flags!AL67 -> 0 | AM71: =+Flags!AM67 -> 0 | AN71: =+Flags!AN67 -> 1 | AO71: =+Flags!AO67 -> 0 | AP71: =+Flags!AP67 -> 0
B72: Plazo Mantenimiento Mayor | C72: años | D72: =+Control!D89 -> 14
B74: Bolsa 3 - Paseo de la Castellana | D74: =+Control!D88*'Capex '!F80 -> 3294647.509 | F74: =+SUM(H74:AP74) -> 4151960.192 | H74: =+IFERROR($D$74*H71/SUM($H$71:$AP$71),0)*H$18*$D$21 -> 0 | I74: 0 | J74: 0 | K74: 0 | L74: 0 | M74: 0 | N74: 0 | O74: 0 | P74: 0 | Q74: 0 | R74: 0 | S74: 0 | T74: 0 | U74: 0 | V74: 0 | W74: 0 | X74: 0 | Y74: 0 | Z74: 1931616.656 | AA74: 0 | AB74: 0 | AC74: 0 | AD74: 0 | AE74: 0 | AF74: 0 | AG74: 0 | AH74: 0 | AI74: 0 | AJ74: 0 | AK74: 0 | AL74: 0 | AM74: 0 | AN74: 2220343.536 | AO74: 0 | AP74: 0
B75: VAN MM | H75: =+NPV($D$51,I74:OFFSET(I74,,$D$72-2))+H74 -> 0 | I75: =+NPV($D$51,J74:OFFSET(J74,,$D$72-2))+I74 -> 0 | J75: =+NPV($D$51,K74:OFFSET(K74,,$D$72-2))+J74 -> 0 | K75: =+NPV($D$51,L74:OFFSET(L74,,$D$72-2))+K74 -> 0 | L75: =+NPV($D$51,M74:OFFSET(M74,,$D$72-2))+L74 -> 0 | M75: =+NPV($D$51,N74:OFFSET(N74,,$D$72-2))+M74 -> 1831556.708 | N75: =+NPV($D$51,O74:OFFSET(O74,,$D$72-2))+N74 -> 1839066.09 | O75: =+NPV($D$51,P74:OFFSET(P74,,$D$72-2))+O74 -> 1846606.261 | P75: =+NPV($D$51,Q74:OFFSET(Q74,,$D$72-2))+P74 -> 1854177.347 | Q75: =+NPV($D$51,R74:OFFSET(R74,,$D$72-2))+Q74 -> 1861779.474 | R75: =+NPV($D$51,S74:OFFSET(S74,,$D$72-2))+R74 -> 1869412.77 | S75: =+NPV($D$51,T74:OFFSET(T74,,$D$72-2))+S74 -> 1877077.362 | T75: =+NPV($D$51,U74:OFFSET(U74,,$D$72-2))+T74 -> 1884773.379 | U75: =+NPV($D$51,V74:OFFSET(V74,,$D$72-2))+U74 -> 1892500.95 | V75: =+NPV($D$51,W74:OFFSET(W74,,$D$72-2))+V74 -> 1900260.204 | W75: =+NPV($D$51,X74:OFFSET(X74,,$D$72-2))+W74 -> 1908051.271 | X75: =+NPV($D$51,Y74:OFFSET(Y74,,$D$72-2))+X74 -> 1915874.281 | Y75: =+NPV($D$51,Z74:OFFSET(Z74,,$D$72-2))+Y74 -> 1923729.366 | Z75: =+NPV($D$51,AA74:OFFSET(AA74,,$D$72-2))+Z74 -> 1931616.656 | AA75: =+NPV($D$51,AB74:OFFSET(AB74,,$D$72-2))+AA74 -> 2105327.206 | AB75: =+NPV($D$51,AC74:OFFSET(AC74,,$D$72-2))+AB74 -> 2113959.047 | AC75: =+NPV($D$51,AD74:OFFSET(AD74,,$D$72-2))+AC74 -> 2122626.279 | AD75: =+NPV($D$51,AE74:OFFSET(AE74,,$D$72-2))+AD74 -> 2131329.047 | AE75: =+NPV($D$51,AF74:OFFSET(AF74,,$D$72-2))+AE74 -> 2140067.496 | AF75: =+NPV($D$51,AG74:OFFSET(AG74,,$D$72-2))+AF74 -> 2148841.773 | AG75: =+NPV($D$51,AH74:OFFSET(AH74,,$D$72-2))+AG74 -> 2157652.024 | AH75: =+NPV($D$51,AI74:OFFSET(AI74,,$D$72-2))+AH74 -> 2166498.397 | AI75: =+NPV($D$51,AJ74:OFFSET(AJ74,,$D$72-2))+AI74 -> 2175381.041 | AJ75: =+NPV($D$51,AK74:OFFSET(AK74,,$D$72-2))+AJ74 -> 2184300.103 | AK75: =+NPV($D$51,AL74:OFFSET(AL74,,$D$72-2))+AK74 -> 2193255.733 | AL75: =+NPV($D$51,AM74:OFFSET(AM74,,$D$72-2))+AL74 -> 2202248.082 | AM75: =+NPV($D$51,AN74:OFFSET(AN74,,$D$72-2))+AM74 -> 2211277.299 | AN75: =+NPV($D$51,AO74:OFFSET(AO74,,$D$72-2))+AN74 -> 2220343.536 | AO75: =+NPV($D$51,AP74:OFFSET(AP74,,$D$72-2))+AO74 -> 0 | AP75: =+NPV($D$51,AQ74:OFFSET(AQ74,,$D$72-2))+AP74 -> 0
B77: Provisión MM
B78: Saldo inicial | H78: =+G82 -> 0 | I78: =+H82 -> 0 | J78: 0 | K78: 0 | L78: 0 | M78: 0 | N78: 130825.4791 | O78: 262723.7272 | P78: 395701.3417 | Q78: 529764.9562 | R78: 664921.2407 | S78: 801176.9013 | T78: 938538.6811 | U78: 1077013.36 | V78: 1216607.754 | W78: 1357328.717 | X78: 1499183.141 | Y78: 1642177.955 | Z78: 1786320.125 | AA78: 0 | AB78: 150380.5147 | AC78: 301994.1496 | AD78: 454848.4884 | AE78: 608951.1563 | AF78: 764309.82 | AG78: 920932.1883 | AH78: 1078826.012 | AI78: 1237999.084 | AJ78: 1398459.24 | AK78: 1560214.359 | AL78: 1723272.362 | AM78: 1887641.213 | AN78: 2053328.921 | AO78: 0 | AP78: 0
B79: Dotación | F79: =+SUM(H79:AP79) -> 4043542.084 | H79: =+IFERROR(H75/$D$72,0) -> 0 | I79: =+IFERROR(I75/$D$72,0) -> 0 | J79: 0 | K79: 0 | L79: 0 | M79: 130825.4791 | N79: 131361.8636 | O79: 131900.4472 | P79: 132441.2391 | Q79: 132984.2481 | R79: 133529.4836 | S79: 134076.9544 | T79: 134626.67 | U79: 135178.6393 | V79: 135732.8717 | W79: 136289.3765 | X79: 136848.1629 | Y79: 137409.2404 | Z79: 137972.6183 | AA79: 150380.5147 | AB79: 150997.0748 | AC79: 151616.1628 | AD79: 152237.7891 | AE79: 152861.964 | AF79: 153488.6981 | AG79: 154118.0017 | AH79: 154749.8855 | AI79: 155384.3601 | AJ79: 156021.4359 | AK79: 156661.1238 | AL79: 157303.4344 | AM79: 157948.3785 | AN79: 158595.9669 | AO79: 0 | AP79: 0
B80: Actualización financiera | F80: =+SUM(H80:AP80) -> 108418.1076 | H80: =+H78*$D$51 -> 0 | I80: =+I78*$D$51 -> 0 | J80: 0 | K80: 0 | L80: 0 | M80: 0 | N80: 536.3844644 | O80: 1077.167281 | P80: 1622.375501 | Q80: 2172.036321 | R80: 2726.177087 | S80: 3284.825296 | T80: 3848.008592 | U80: 4415.754774 | V80: 4988.09179 | W80: 5565.047741 | X80: 6146.65088 | Y80: 6732.929617 | Z80: 7323.912514 | AA80: 0 | AB80: 616.5601102 | AC80: 1238.176013 | AD80: 1864.878802 | AE80: 2496.699741 | AF80: 3133.670262 | AG80: 3775.821972 | AH80: 4423.186649 | AI80: 5075.796245 | AJ80: 5733.682886 | AK80: 6396.878873 | AL80: 7065.416684 | AM80: 7739.328974 | AN80: 8418.648574 | AO80: 0 | AP80: 0
B81: Desdotación | F81: =+SUM(H81:AP81) -> -4151960.192 | H81: =-H74 -> 0 | I81: =-I74 -> 0 | J81: 0 | K81: 0 | L81: 0 | M81: 0 | N81: 0 | O81: 0 | P81: 0 | Q81: 0 | R81: 0 | S81: 0 | T81: 0 | U81: 0 | V81: 0 | W81: 0 | X81: 0 | Y81: 0 | Z81: -1931616.656 | AA81: 0 | AB81: 0 | AC81: 0 | AD81: 0 | AE81: 0 | AF81: 0 | AG81: 0 | AH81: 0 | AI81: 0 | AJ81: 0 | AK81: 0 | AL81: 0 | AM81: 0 | AN81: -2220343.536 | AO81: 0 | AP81: 0
B82: Saldo final | H82: =+SUM(H78:H81) -> 0 | I82: 0 | J82: 0 | K82: 0 | L82: 0 | M82: 130825.4791 | N82: 262723.7272 | O82: 395701.3417 | P82: 529764.9562 | Q82: 664921.2407 | R82: 801176.9013 | S82: 938538.6811 | T82: 1077013.36 | U82: 1216607.754 | V82: 1357328.717 | W82: 1499183.141 | X82: 1642177.955 | Y82: 1786320.125 | Z82: 0 | AA82: 150380.5147 | AB82: 301994.1496 | AC82: 454848.4884 | AD82: 608951.1563 | AE82: 764309.82 | AF82: 920932.1883 | AG82: 1078826.012 | AH82: 1237999.084 | AI82: 1398459.24 | AJ82: 1560214.359 | AK82: 1723272.362 | AL82: 1887641.213 | AM82: 2053328.921 | AN82: 0 | AO82: 0 | AP82: 0
B83: Check provisión MM | C83: =+IF(ROUND(SUM(F79:F81),2)=0,"Ok","Error") -> Ok
B85: Resumen MM
B88: Provisión MM
B89: Saldo inicial | H89: =+G93 -> 0 | I89: =+H93 -> 0 | J89: 0 | K89: 0 | L89: 0 | M89: 0 | N89: 211136.0659 | O89: 424003.4475 | P89: 638612.7925 | Q89: 854974.8066 | R89: 1073100.254 | S89: 1292999.958 | T89: 1514684.801 | U89: 1738165.724 | V89: 1963453.729 | W89: 2190559.877 | X89: 2419495.29 | Y89: 2650271.15 | Z89: 2882898.7 | AA89: 0 | AB89: 242695.4632 | AC89: 487381.0292 | AD89: 734068.9372 | AE89: 982771.4931 | AF89: 1233501.07 | AG89: 1486270.11 | AH89: 1741091.12 | AI89: 1997976.678 | AJ89: 2256939.431 | AK89: 2517992.091 | AL89: 2781147.445 | AM89: 3046418.345 | AN89: 3313817.715 | AO89: 0 | AP89: 0
B90: Dotación | F90: =+SUM(H90:AP90) -> 6525774.442 | H90: =+H63+H79 -> 0 | I90: =+I63+I79 -> 0 | J90: 0 | K90: 0 | L90: 0 | M90: 211136.0659 | N90: 212001.7238 | O90: 212870.9308 | P90: 213743.7016 | Q90: 214620.0508 | R90: 215499.993 | S90: 216383.543 | T90: 217270.7155 | U90: 218161.5255 | V90: 219055.9877 | W90: 219954.1173 | X90: 220855.9291 | Y90: 221761.4385 | Z90: 222670.6604 | AA90: 242695.4632 | AB90: 243690.5146 | AC90: 244689.6457 | AD90: 245692.8733 | AE90: 246700.2141 | AF90: 247711.6849 | AG90: 248727.3028 | AH90: 249747.0848 | AI90: 250771.0478 | AJ90: 251799.2091 | AK90: 252831.5859 | AL90: 253868.1954 | AM90: 254909.055 | AN90: 255954.1821 | AO90: 0 | AP90: 0
B91: Actualización financiera | F91: =+SUM(H91:AP91) -> 174973.3528 | H91: =+H64+H80 -> 0 | I91: 0 | J91: 0 | K91: 0 | L91: 0 | M91: 0 | N91: 865.6578701 | O91: 1738.414135 | P91: 2618.312449 | Q91: 3505.396707 | R91: 4399.711042 | S91: 5301.299828 | T91: 6210.207684 | U91: 7126.479469 | V91: 8050.160289 | W91: 8981.295496 | X91: 9919.930689 | Y91: 10866.11171 | Z91: 11819.88467 | AA91: 0 | AB91: 995.0513992 | AC91: 1998.26222 | AD91: 3009.682642 | AE91: 4029.363122 | AF91: 5057.354388 | AG91: 6093.707449 | AH91: 7138.473592 | AI91: 8191.704381 | AJ91: 9253.451665 | AK91: 10323.76757 | AL91: 11402.70452 | AM91: 12490.31521 | AN91: 13586.65263 | AO91: 0 | AP91: 0
B92: Desdotación | F92: =+SUM(H92:AP92) -> -6700747.795 | H92: 0 | I92: 0 | J92: 0 | K92: 0 | L92: 0 | M92: 0 | N92: 0 | O92: 0 | P92: 0 | Q92: 0 | R92: 0 | S92: 0 | T92: 0 | U92: 0 | V92: 0 | W92: 0 | X92: 0 | Y92: 0 | Z92: -3117389.245 | AA92: 0 | AB92: 0 | AC92: 0 | AD92: 0 | AE92: 0 | AF92: 0 | AG92: 0 | AH92: 0 | AI92: 0 | AJ92: 0 | AK92: 0 | AL92: 0 | AM92: 0 | AN92: -3583358.55 | AO92: 0 | AP92: 0
B93: Saldo final | H93: =+SUM(H89:H92) -> 0 | I93: =+SUM(I89:I92) -> 0 | J93: 0 | K93: 0 | L93: 0 | M93: 211136.0659 | N93: 424003.4475 | O93: 638612.7925 | P93: 854974.8066 | Q93: 1073100.254 | R93: 1292999.958 | S93: 1514684.801 | T93: 1738165.724 | U93: 1963453.729 | V93: 2190559.877 | W93: 2419495.29 | X93: 2650271.15 | Y93: 2882898.7 | Z93: 0 | AA93: 242695.4632 | AB93: 487381.0292 | AC93: 734068.9372 | AD93: 982771.4931 | AE93: 1233501.07 | AF93: 1486270.11 | AG93: 1741091.12 | AH93: 1997976.678 | AI93: 2256939.431 | AJ93: 2517992.091 | AK93: 2781147.445 | AL93: 3046418.345 | AM93: 3313817.715 | AN93: 0 | AO93: 0 | AP93: 0
B94: Check provisión MM | C94: =+IF(ROUND(SUM(F90:F92),2)=0,"Ok","Error") -> Ok
B97: Actuaciones MM | F97: =+SUM(H97:AP97) -> 6700747.795 | H97: =+H58+H74 -> 0 | I97: 0 | J97: 0 | K97: 0 | L97: 0 | M97: 0 | N97: 0 | O97: 0 | P97: 0 | Q97: 0 | R97: 0 | S97: 0 | T97: 0 | U97: 0 | V97: 0 | W97: =+W58+W74 -> 0 | X97: =+X58+X74 -> 0 | Y97: 0 | Z97: 3117389.245 | AA97: 0 | AB97: 0 | AC97: 0 | AD97: 0 | AE97: 0 | AF97: 0 | AG97: 0 | AH97: 0 | AI97: 0 | AJ97: 0 | AK97: 0 | AL97: 0 | AM97: 0 | AN97: 3583358.55 | AO97: 0 | AP97: 0
K98: VAN | L98: =SUM(M98:AP98) -> 5317151.661 | M98: =M97/M18 -> 0 | N98: =N97/N18 -> 0 | O98: =O97/O18 -> 0 | P98: =P97/P18 -> 0 | Q98: =Q97/Q18 -> 0 | R98: =R97/R18 -> 0 | S98: =S97/S18 -> 0 | T98: =T97/T18 -> 0 | U98: =U97/U18 -> 0 | V98: =V97/V18 -> 0 | W98: =W97/W18 -> 0 | X98: =X97/X18 -> 0 | Y98: 0 | Z98: 2658575.831 | AA98: 0 | AB98: 0 | AC98: 0 | AD98: 0 | AE98: 0 | AF98: 0 | AG98: 0 | AH98: 0 | AI98: 0 | AJ98: 0 | AK98: 0 | AL98: 0 | AM98: 0 | AN98: =AN97/AN18 -> 2658575.831
B100: Cuenta de Reserva para Mantenimiento Mayor (CRMM)
B102: CRMM | C102: =+'Hipótesis '!C50 -> No
B104: Adición Año N + 4 | C104: =+'Hipótesis '!D51 -> 0.25
B105: Adición Año N + 3 | C105: =+'Hipótesis '!D52 -> 0.5
B106: Adición Año N + 2 | C106: =+'Hipótesis '!D53 -> 0.75
B107: Adición Año N + 1 | C107: =+'Hipótesis '!D54 -> 1
B109: Total mantenimiento mayor dentro del periodo de dotación CRMM | H109: =+H97*($C$102="Si") -> 0 | I109: =+I97*($C$102="Si") -> 0 | J109: 0 | K109: 0 | L109: 0 | M109: 0 | N109: 0 | O109: 0 | P109: 0 | Q109: 0 | R109: 0 | S109: 0 | T109: 0 | U109: 0 | V109: 0 | W109: 0 | X109: 0 | Y109: 0 | Z109: 0 | AA109: 0 | AB109: 0 | AC109: 0 | AD109: 0 | AE109: 0 | AF109: 0 | AG109: 0 | AH109: 0 | AI109: 0 | AJ109: 0 | AK109: 0 | AL109: 0 | AM109: 0 | AN109: 0 | AO109: 0 | AP109: 0
B110: Flag dotación CRMM | H110: =+IF(AND($C$102="Si",OR(H13=1,H11=1)),1,0) -> 0 | I110: 0 | J110: 0 | K110: 0 | L110: 0 | M110: 0 | N110: 0 | O110: 0 | P110: 0 | Q110: 0 | R110: 0 | S110: 0 | T110: 0 | U110: 0 | V110: 0 | W110: 0 | X110: 0 | Y110: 0 | Z110: 0 | AA110: 0 | AB110: 0 | AC110: 0 | AD110: 0 | AE110: 0 | AF110: 0 | AG110: 0 | AH110: 0 | AI110: 0 | AJ110: 0 | AK110: 0 | AL110: 0 | AM110: 0 | AN110: 0 | AO110: 0 | AP110: 0
B111: Saldo necesario | H111: =+(I109*$C107+J109*$C106+K109*$C105+L109*$C104)*H110 -> 0 | I111: =+(J109*$C107+K109*$C106+L109*$C105+M109*$C104)*I110 -> 0 | J111: 0 | K111: 0 | L111: 0 | M111: 0 | N111: 0 | O111: 0 | P111: 0 | Q111: 0 | R111: 0 | S111: 0 | T111: 0 | U111: 0 | V111: 0 | W111: 0 | X111: 0 | Y111: 0 | Z111: 0 | AA111: 0 | AB111: 0 | AC111: 0 | AD111: 0 | AE111: 0 | AF111: 0 | AG111: 0 | AH111: 0 | AI111: 0 | AJ111: 0 | AK111: 0 | AL111: 0 | AM111: =+(AN109*$C107+AO109*$C106+AP109*$C105+AQ109*$C104)*AM110 -> 0 | AN111: =+(AO109*$C107+AP109*$C106+AQ109*$C105+AR109*$C104)*AN110 -> 0 | AO111: =+(AP109*$C107+AQ109*$C106+AR109*$C105+AS109*$C104)*AO110 -> 0 | AP111: =+(AQ109*$C107+AR109*$C106+AS109*$C105+AT109*$C104)*AP110 -> 0
B114: Saldo Inicial | H114: =+G117 -> 0 | I114: 0 | J114: 0 | K114: 0 | L114: 0 | M114: 0 | N114: 0 | O114: 0 | P114: 0 | Q114: 0 | R114: 0 | S114: 0 | T114: 0 | U114: 0 | V114: 0 | W114: 0 | X114: 0 | Y114: 0 | Z114: 0 | AA114: 0 | AB114: 0 | AC114: 0 | AD114: 0 | AE114: 0 | AF114: 0 | AG114: 0 | AH114: 0 | AI114: 0 | AJ114: 0 | AK114: 0 | AL114: 0 | AM114: 0 | AN114: 0 | AO114: =+AN117 -> 0 | AP114: =+AO117 -> 0
B115: Dotación | F115: =+SUM(H115:AP115) -> 0 | H115: =(H111-(H114+H116)) -> 0 | I115: =(I111-(I114+I116)) -> 0 | J115: 0 | K115: 0 | L115: 0 | M115: 0 | N115: 0 | O115: 0 | P115: 0 | Q115: 0 | R115: 0 | S115: 0 | T115: 0 | U115: 0 | V115: 0 | W115: 0 | X115: 0 | Y115: 0 | Z115: 0 | AA115: 0 | AB115: 0 | AC115: 0 | AD115: 0 | AE115: 0 | AF115: 0 | AG115: 0 | AH115: 0 | AI115: 0 | AJ115: 0 | AK115: 0 | AL115: 0 | AM115: 0 | AN115: 0 | AO115: =(AO111-(AO114+AO116)) -> 0 | AP115: =(AP111-(AP114+AP116)) -> 0
B116: Desdotación | F116: =+SUM(H116:AP116) -> 0 | H116: =-H109 -> 0 | I116: =-I109 -> 0 | J116: 0 | K116: 0 | L116: 0 | M116: 0 | N116: 0 | O116: 0 | P116: 0 | Q116: 0 | R116: 0 | S116: 0 | T116: 0 | U116: 0 | V116: 0 | W116: 0 | X116: 0 | Y116: 0 | Z116: 0 | AA116: 0 | AB116: 0 | AC116: 0 | AD116: 0 | AE116: 0 | AF116: 0 | AG116: 0 | AH116: 0 | AI116: 0 | AJ116: 0 | AK116: 0 | AL116: 0 | AM116: 0 | AN116: 0 | AO116: =-AO109 -> 0 | AP116: =-AP109 -> 0
B117: Saldo Final | H117: =+SUM(H114:H116) -> 0 | I117: 0 | J117: 0 | K117: 0 | L117: 0 | M117: 0 | N117: 0 | O117: 0 | P117: 0 | Q117: 0 | R117: 0 | S117: 0 | T117: 0 | U117: 0 | V117: 0 | W117: 0 | X117: 0 | Y117: 0 | Z117: 0 | AA117: 0 | AB117: 0 | AC117: 0 | AD117: 0 | AE117: 0 | AF117: 0 | AG117: 0 | AH117: 0 | AI117: 0 | AJ117: 0 | AK117: 0 | AL117: 0 | AM117: 0 | AN117: 0 | AO117: =+SUM(AO114:AO116) -> 0 | AP117: =+SUM(AP114:AP116) -> 0
B119: Check CRMM | C119: =+IF(ROUND(SUM(F115:F116),2)=0,"Ok","Error") -> Ok

Sheet Ingresos
A1: =+Control!A1 -> Real Madrid - Parking
A2: =RIGHT(CELL("filename", $H$3), LEN(CELL("filename", $H$3)) - SEARCH("]", CELL("filename", $H$3))) -> Ingresos
A3: =+Control!A3 -> Cifras EUR
H4: =+YEAR(H5) -> 2019 | I4: =+YEAR(I5) -> 2020 | J4: 2021 | K4: 2022 | L4: 2023 | M4: 2024 | N4: 2025 | O4: 2026 | P4: 2027 | Q4: 2028 | R4: 2029 | S4: 2030 | T4: 2031 | U4: 2032 | V4: 2033 | W4: 2034 | X4: 2035 | Y4: 2036 | Z4: 2037 | AA4: 2038 | AB4: 2039 | AC4: 2040 | AD4: 2041 | AE4: 2042 | AF4: 2043 | AG4: 2044 | AH4: 2045 | AI4: 2046 | AJ4: 2047 | AK4: 2048 | AL4: 2049 | AM4: 2050 | AN4: 2051 | AO4: 2052 | AP4: 2053
B5: Errores | C5: =+Control!C4 -> 0 | H5: 2019-01-01 | I5: =+DATE(YEAR(H5)+1,MONTH(H5),DAY(H5)) -> 2020-01-01 | J5: 2021-01-01 | K5: 2022-01-01 | L5: 2023-01-01 | M5: 2024-01-01 | N5: 2025-01-01 | O5: 2026-01-01 | P5: 2027-01-01 | Q5: 2028-01-01 | R5: 2029-01-01 | S5: 2030-01-01 | T5: 2031-01-01 | U5: 2032-01-01 | V5: 2033-01-01 | W5: 2034-01-01 | X5: 2035-01-01 | Y5: =+DATE(YEAR(X5)+1,MONTH(X5),DAY(X5)) -> 2036-01-01 | Z5: 2037-01-01 | AA5: 2038-01-01 | AB5: 2039-01-01 | AC5: 2040-01-01 | AD5: 2041-01-01 | AE5: 2042-01-01 | AF5: 2043-01-01 | AG5: 2044-01-01 | AH5: 2045-01-01 | AI5: 2046-01-01 | AJ5: 2047-01-01 | AK5: 2048-01-01 | AL5: 2049-01-01 | AM5: 2050-01-01 | AN5: 2051-01-01 | AO5: =+DATE(YEAR(AN5)+1,MONTH(AN5),DAY(AN5)) -> 2052-01-01 | AP5: =+DATE(YEAR(AO5)+1,MONTH(AO5),DAY(AO5)) -> 2053-01-01
B6: TIR Accionistas (Dividendos) | C6: =+Control!C5 -> 0.0700448478 | H6: =+DATE(YEAR(H5),MONTH(H5)+12,DAY(H5)-1) -> 2019-12-31 | I6: =+DATE(YEAR(H6)+1,MONTH(H6),DAY(H6)) -> 2020-12-31 | J6: 2021-12-31 | K6: 2022-12-31 | L6: 2023-12-31 | M6: 2024-12-31 | N6: 2025-12-31 | O6: 2026-12-31 | P6: 2027-12-31 | Q6: 2028-12-31 | R6: 2029-12-31 | S6: 2030-12-31 | T6: 2031-12-31 | U6: 2032-12-31 | V6: 2033-12-31 | W6: 2034-12-31 | X6: 2035-12-31 | Y6: 2036-12-31 | Z6: 2037-12-31 | AA6: 2038-12-31 | AB6: 2039-12-31 | AC6: 2040-12-31 | AD6: 2041-12-31 | AE6: 2042-12-31 | AF6: 2043-12-31 | AG6: 2044-12-31 | AH6: 2045-12-31 | AI6: 2046-12-31 | AJ6: 2047-12-31 | AK6: 2048-12-31 | AL6: 2049-12-31 | AM6: 2050-12-31 | AN6: 2051-12-31 | AO6: =+DATE(YEAR(AN6)+1,MONTH(AN6),DAY(AN6)) -> 2052-12-31 | AP6: =+DATE(YEAR(AO6)+1,MONTH(AO6),DAY(AO6)) -> 2053-12-31
B8: =+Flags!B37 -> Periodo de Operación | H8: =+Flags!H37 -> 0 | I8: =+Flags!I37 -> 0 | J8: =+Flags!J37 -> 0 | K8: =+Flags!K37 -> 0 | L8: =+Flags!L37 -> 0 | M8: =+Flags!M37 -> 1 | N8: =+Flags!N37 -> 1 | O8: =+Flags!O37 -> 1 | P8: =+Flags!P37 -> 1 | Q8: =+Flags!Q37 -> 1 | R8: =+Flags!R37 -> 1 | S8: =+Flags!S37 -> 1 | T8: =+Flags!T37 -> 1 | U8: =+Flags!U37 -> 1 | V8: =+Flags!V37 -> 1 | W8: =+Flags!W37 -> 1 | X8: =+Flags!X37 -> 1 | Y8: =+Flags!Y37 -> 1 | Z8: =+Flags!Z37 -> 1 | AA8: =+Flags!AA37 -> 1 | AB8: =+Flags!AB37 -> 1 | AC8: =+Flags!AC37 -> 1 | AD8: =+Flags!AD37 -> 1 | AE8: =+Flags!AE37 -> 1 | AF8: =+Flags!AF37 -> 1 | AG8: =+Flags!AG37 -> 1 | AH8: =+Flags!AH37 -> 1 | AI8: =+Flags!AI37 -> 1 | AJ8: =+Flags!AJ37 -> 1 | AK8: =+Flags!AK37 -> 1 | AL8: =+Flags!AL37 -> 1 | AM8: =+Flags!AM37 -> 1 | AN8: =+Flags!AN37 -> 1 | AO8: =+Flags!AO37 -> 0 | AP8: =+Flags!AP37 -> 0
B9: =+Flags!B42 -> Factor de Operación | H9: =+Flags!H42 -> 0 | I9: =+Flags!I42 -> 0 | J9: =+Flags!J42 -> 0 | K9: =+Flags!K42 -> 0 | L9: =+Flags!L42 -> 0 | M9: =+Flags!M42 -> 0.6693989071 | N9: =+Flags!N42 -> 1 | O9: =+Flags!O42 -> 1 | P9: =+Flags!P42 -> 1 | Q9: =+Flags!Q42 -> 1 | R9: =+Flags!R42 -> 1 | S9: =+Flags!S42 -> 1 | T9: =+Flags!T42 -> 1 | U9: =+Flags!U42 -> 1 | V9: =+Flags!V42 -> 1 | W9: =+Flags!W42 -> 1 | X9: =+Flags!X42 -> 1 | Y9: =+Flags!Y42 -> 1 | Z9: =+Flags!Z42 -> 1 | AA9: =+Flags!AA42 -> 1 | AB9: =+Flags!AB42 -> 1 | AC9: =+Flags!AC42 -> 1 | AD9: =+Flags!AD42 -> 1 | AE9: =+Flags!AE42 -> 1 | AF9: =+Flags!AF42 -> 1 | AG9: =+Flags!AG42 -> 1 | AH9: =+Flags!AH42 -> 1 | AI9: =+Flags!AI42 -> 1 | AJ9: =+Flags!AJ42 -> 1 | AK9: =+Flags!AK42 -> 1 | AL9: =+Flags!AL42 -> 1 | AM9: =+Flags!AM42 -> 1 | AN9: =+Flags!AN42 -> 1 | AO9: =+Flags!AO42 -> 0 | AP9: =+Flags!AP42 -> 0
B10: =+Flags!B41 -> Días del periodo Operación | H10: =+Flags!H41 -> 0 | I10: =+Flags!I41 -> 0 | J10: =+Flags!J41 -> 0 | K10: =+Flags!K41 -> 0 | L10: =+Flags!L41 -> 0 | M10: =+Flags!M41 -> 245 | N10: =+Flags!N41 -> 365 | O10: =+Flags!O41 -> 365 | P10: =+Flags!P41 -> 365 | Q10: =+Flags!Q41 -> 366 | R10: =+Flags!R41 -> 365 | S10: =+Flags!S41 -> 365 | T10: =+Flags!T41 -> 365 | U10: =+Flags!U41 -> 366 | V10: =+Flags!V41 -> 365 | W10: =+Flags!W41 -> 365 | X10: =+Flags!X41 -> 365 | Y10: =+Flags!Y41 -> 366 | Z10: =+Flags!Z41 -> 365 | AA10: =+Flags!AA41 -> 365 | AB10: =+Flags!AB41 -> 365 | AC10: =+Flags!AC41 -> 366 | AD10: =+Flags!AD41 -> 365 | AE10: =+Flags!AE41 -> 365 | AF10: =+Flags!AF41 -> 365 | AG10: =+Flags!AG41 -> 366 | AH10: =+Flags!AH41 -> 365 | AI10: =+Flags!AI41 -> 365 | AJ10: =+Flags!AJ41 -> 365 | AK10: =+Flags!AK41 -> 366 | AL10: =+Flags!AL41 -> 365 | AM10: =+Flags!AM41 -> 365 | AN10: =+Flags!AN41 -> 365 | AO10: =+Flags!AO41 -> 0 | AP10: =+Flags!AP41 -> 0
B11: =+Flags!B40 -> Meses de Operación | H11: =+Flags!H40 -> 0 | I11: =+Flags!I40 -> 0 | J11: =+Flags!J40 -> 0 | K11: =+Flags!K40 -> 0 | L11: =+Flags!L40 -> 0 | M11: =+Flags!M40 -> 8 | N11: =+Flags!N40 -> 12 | O11: =+Flags!O40 -> 12 | P11: =+Flags!P40 -> 12 | Q11: =+Flags!Q40 -> 12 | R11: =+Flags!R40 -> 12 | S11: =+Flags!S40 -> 12 | T11: =+Flags!T40 -> 12 | U11: =+Flags!U40 -> 12 | V11: =+Flags!V40 -> 12 | W11: =+Flags!W40 -> 12 | X11: =+Flags!X40 -> 12 | Y11: =+Flags!Y40 -> 12 | Z11: =+Flags!Z40 -> 12 | AA11: =+Flags!AA40 -> 12 | AB11: =+Flags!AB40 -> 12 | AC11: =+Flags!AC40 -> 12 | AD11: =+Flags!AD40 -> 12 | AE11: =+Flags!AE40 -> 12 | AF11: =+Flags!AF40 -> 12 | AG11: =+Flags!AG40 -> 12 | AH11: =+Flags!AH40 -> 12 | AI11: =+Flags!AI40 -> 12 | AJ11: =+Flags!AJ40 -> 12 | AK11: =+Flags!AK40 -> 12 | AL11: =+Flags!AL40 -> 12 | AM11: =+Flags!AM40 -> 12 | AN11: =+Flags!AN40 -> 12 | AO11: =+Flags!AO40 -> 0 | AP11: =+Flags!AP40 -> 0
B13: =+Flags!B57 -> Factor de Actualización 2021 | H13: =+Flags!H57 -> 0 | I13: =+Flags!I57 -> 0 | J13: =+Flags!J57 -> 1 | K13: =+Flags!K57 -> 1.01 | L13: =+Flags!L57 -> 1.0201 | M13: =+Flags!M57 -> 1.030301 | N13: =+Flags!N57 -> 1.04060401 | O13: =+Flags!O57 -> 1.05101005 | P13: =+Flags!P57 -> 1.061520151 | Q13: =+Flags!Q57 -> 1.072135352 | R13: =+Flags!R57 -> 1.082856706 | S13: =+Flags!S57 -> 1.093685273 | T13: =+Flags!T57 -> 1.104622125 | U13: =+Flags!U57 -> 1.115668347 | V13: =+Flags!V57 -> 1.12682503 | W13: =+Flags!W57 -> 1.13809328 | X13: =+Flags!X57 -> 1.149474213 | Y13: =+Flags!Y57 -> 1.160968955 | Z13: =+Flags!Z57 -> 1.172578645 | AA13: =+Flags!AA57 -> 1.184304431 | AB13: =+Flags!AB57 -> 1.196147476 | AC13: =+Flags!AC57 -> 1.20810895 | AD13: =+Flags!AD57 -> 1.22019004 | AE13: =+Flags!AE57 -> 1.23239194 | AF13: =+Flags!AF57 -> 1.24471586 | AG13: =+Flags!AG57 -> 1.257163018 | AH13: =+Flags!AH57 -> 1.269734649 | AI13: =+Flags!AI57 -> 1.282431995 | AJ13: =+Flags!AJ57 -> 1.295256315 | AK13: =+Flags!AK57 -> 1.308208878 | AL13: =+Flags!AL57 -> 1.321290967 | AM13: =+Flags!AM57 -> 1.334503877 | AN13: =+Flags!AN57 -> 1.347848915 | AO13: =+Flags!AO57 -> 1.361327404 | AP13: =+Flags!AP57 -> 1.374940679
B15: =+Control!$B22 -> Padre Damián | C15: =+Control!$D22 -> Si | D15: =+IF(C15="Si",1,0) -> 1
B16: =+Control!$B23 -> Paseo de la Castellana | C16: =+Control!$D23 -> Si | D16: =+IF(C16="Si",1,0) -> 1
B18: Ingresos
B20: Ingresos por Rotación
B22: Demanda (ocupación) - ramp up | H22: =+'Hipótesis '!H62 -> 0 | I22: =+'Hipótesis '!I62 -> 0 | J22: =+'Hipótesis '!J62 -> 0 | K22: =+'Hipótesis '!K62 -> 0 | L22: =+'Hipótesis '!L62 -> 0 | M22: =+'Hipótesis '!M62 -> 0.23 | N22: =+'Hipótesis '!N62 -> 0.25 | O22: =+'Hipótesis '!O62 -> 0.28 | P22: =+'Hipótesis '!P62 -> 0.31 | Q22: =+'Hipótesis '!Q62 -> 0.31 | R22: =+'Hipótesis '!R62 -> 0.31 | S22: =+'Hipótesis '!S62 -> 0.31 | T22: =+'Hipótesis '!T62 -> 0.31 | U22: =+'Hipótesis '!U62 -> 0.31 | V22: =+'Hipótesis '!V62 -> 0.31 | W22: =+'Hipótesis '!W62 -> 0.31 | X22: =+'Hipótesis '!X62 -> 0.31 | Y22: =+'Hipótesis '!Y62 -> 0.31 | Z22: =+'Hipótesis '!Z62 -> 0.31 | AA22: =+'Hipótesis '!AA62 -> 0.31 | AB22: =+'Hipótesis '!AB62 -> 0.31 | AC22: =+'Hipótesis '!AC62 -> 0.31 | AD22: =+'Hipótesis '!AD62 -> 0.31 | AE22: =+'Hipótesis '!AE62 -> 0.31 | AF22: =+'Hipótesis '!AF62 -> 0.31 | AG22: =+'Hipótesis '!AG62 -> 0.31 | AH22: =+'Hipótesis '!AH62 -> 0.31 | AI22: =+'Hipótesis '!AI62 -> 0.31 | AJ22: =+'Hipótesis '!AJ62 -> 0.31 | AK22: =+'Hipótesis '!AK62 -> 0.31 | AL22: =+'Hipótesis '!AL62 -> 0.31 | AM22: =+'Hipótesis '!AM62 -> 0.31 | AN22: =+'Hipótesis '!AN62 -> 0.31 | AO22: =+'Hipótesis '!AO62 -> 0 | AP22: =+'Hipótesis '!AP62 -> 0
B24: Padre Damián
B25: =+Control!$B$93 -> Tarifa | C25: =+Control!$C$93 -> EUR2021/plaza/hora | D25: =+Control!$D$93 -> 1.968723889
B26: =+Control!$B$94 -> Horas diarias consideradas | C26: =+Control!$C$94 -> horas | D26: =+Control!$D$94 -> 24
B27: =+Control!B29 -> Rotación (REALES) | C27: =+Control!C29 -> nº plazas | D27: =+Control!$D$29 -> 552
B28: Ingresos por rotación | F28: =+SUM(H28:AP28) -> 95327214.11 | H28: =+($D$25*$D$27*$D$26)*H$10*H$13*$D$15*H$22 -> 0 | I28: 0 | J28: 0 | K28: 0 | L28: 0 | M28: 1514234.624 | N28: 2476586.486 | O28: 2801514.634 | P28: 3132693.685 | Q28: 3172689.171 | R28: 3195660.828 | S28: 3227617.436 | T28: 3259893.611 | U28: 3301513.074 | V28: 3325417.472 | W28: 3358671.647 | X28: 3392258.363 | Y28: 3435567.744 | Z28: 3460442.756 | AA28: 3495047.184 | AB28: 3529997.656 | AC28: 3575065.571 | AD28: 3600950.609 | AE28: 3636960.115 | AF28: 3673329.716 | AG28: 3720227.569 | AH28: 3747163.643 | AI28: 3784635.28 | AJ28: 3822481.632 | AK28: 3871283.727 | AL28: 3899313.513 | AM28: 3938306.648 | AN28: 3977689.715 | AO28: 0 | AP28: 0
B29: Ingreso por plaza | H29: =+H28/$D$27 -> 0 | I29: =+I28/$D$27 -> 0 | J29: 0 | K29: 0 | L29: 0 | M29: 2743.178666 | N29: 4486.569722 | O29: 5075.207669 | P29: 5675.169719 | Q29: 5747.62531 | R29: 5789.24063 | S29: 5847.133037 | T29: 5905.604367 | U29: 5981.001946 | V29: 6024.307015 | W29: 6084.550085 | X29: 6145.395586 | Y29: 6223.854609 | Z29: 6268.918037 | AA29: 6331.607217 | AB29: 6394.92329 | AC29: 6476.568064 | AD29: 6523.461248 | AE29: 6588.69586 | AF29: 6654.582819 | AG29: 6739.542698 | AH29: 6788.339933 | AI29: 6856.223333 | AJ29: 6924.785566 | AK29: 7013.195157 | AL29: 7063.973756 | AM29: 7134.613493 | AN29: 7205.959628 | AO29: 0 | AP29: 0
B31: Paseo de la Castellana
B32: =+Control!$B$93 -> Tarifa | C32: =+Control!$C$93 -> EUR2021/plaza/hora | D32: =+Control!$D$93 -> 1.968723889
B33: =+Control!$B$94 -> Horas diarias consideradas | C33: =+Control!$C$94 -> horas | D33: =+Control!$D$94 -> 24
B34: =+Control!B41 -> Rotación (REALES) | C34: =+Control!C41 -> nº plazas | D34: =+Control!D41 -> 621
B35: Ingresos por rotación | F35: =+SUM(H35:AP35) -> 107243115.9 | H35: =+($D$32*$D$33*$D$34)*H$10*H$13*$D$16*H$22 -> 0 | I35: 0 | J35: 0 | K35: 0 | L35: 0 | M35: 1703513.952 | N35: 2786159.797 | O35: 3151703.963 | P35: 3524280.395 | Q35: 3569275.318 | R35: 3595118.431 | S35: 3631069.616 | T35: 3667380.312 | U35: 3714202.208 | V35: 3741094.656 | W35: 3778505.603 | X35: 3816290.659 | Y35: 3865013.712 | Z35: 3892998.101 | AA35: 3931928.082 | AB35: 3971247.363 | AC35: 4021948.767 | AD35: 4051069.435 | AE35: 4091580.129 | AF35: 4132495.93 | AG35: 4185256.015 | AH35: 4215559.099 | AI35: 4257714.69 | AJ35: 4300291.837 | AK35: 4355194.193 | AL35: 4386727.702 | AM35: 4430594.979 | AN35: 4474900.929 | AO35: 0 | AP35: 0
B36: Ingreso por plaza | H36: =+H35/$D$34 -> 0 | I36: =+I35/$D$34 -> 0 | J36: 0 | K36: 0 | L36: 0 | M36: 2743.178666 | N36: 4486.569722 | O36: 5075.207669 | P36: 5675.169719 | Q36: 5747.62531 | R36: 5789.24063 | S36: 5847.133037 | T36: 5905.604367 | U36: 5981.001946 | V36: 6024.307015 | W36: 6084.550085 | X36: 6145.395586 | Y36: 6223.854609 | Z36: 6268.918037 | AA36: 6331.607217 | AB36: 6394.92329 | AC36: 6476.568064 | AD36: 6523.461248 | AE36: 6588.69586 | AF36: 6654.582819 | AG36: 6739.542698 | AH36: 6788.339933 | AI36: 6856.223333 | AJ36: 6924.785566 | AK36: 7013.195157 | AL36: 7063.973756 | AM36: 7134.613493 | AN36: 7205.959628 | AO36: 0 | AP36: 0
B38: Ingresos por Rotación | F38: =+SUM(H38:AP38) -> 202570330 | H38: =+(+H28+H35) -> 0 | I38: 0 | J38: 0 | K38: 0 | L38: 0 | M38: 3217748.576 | N38: 5262746.284 | O38: 5953218.596 | P38: 6656974.08 | Q38: 6741964.489 | R38: 6790779.259 | S38: 6858687.052 | T38: 6927273.922 | U38: 7015715.283 | V38: 7066512.128 | W38: 7137177.25 | X38: 7208549.022 | Y38: 7300581.456 | Z38: 7353440.857 | AA38: 7426975.266 | AB38: 7501245.019 | AC38: 7597014.339 | AD38: 7652020.043 | AE38: 7728540.244 | AF38: 7805825.646 | AG38: 7905483.585 | AH38: 7962722.742 | AI38: 8042349.969 | AJ38: 8122773.469 | AK38: 8226477.919 | AL38: 8286041.216 | AM38: 8368901.628 | AN38: 8452590.644 | AO38: 0 | AP38: 0
B40: Ingresos por Residentes/trabajadores
B42: Demanda (ocupación) - ramp up | H42: =+'Hipótesis '!H69 -> 0 | I42: =+'Hipótesis '!I69 -> 0 | J42: =+'Hipótesis '!J69 -> 0 | K42: =+'Hipótesis '!K69 -> 0 | L42: =+'Hipótesis '!L69 -> 0 | M42: =+'Hipótesis '!M69 -> 0.9 | N42: =+'Hipótesis '!N69 -> 0.92 | O42: =+'Hipótesis '!O69 -> 0.96 | P42: =+'Hipótesis '!P69 -> 1 | Q42: =+'Hipótesis '!Q69 -> 1 | R42: =+'Hipótesis '!R69 -> 1 | S42: =+'Hipótesis '!S69 -> 1 | T42: =+'Hipótesis '!T69 -> 1 | U42: =+'Hipótesis '!U69 -> 1 | V42: =+'Hipótesis '!V69 -> 1 | W42: =+'Hipótesis '!W69 -> 1 | X42: =+'Hipótesis '!X69 -> 1 | Y42: =+'Hipótesis '!Y69 -> 1 | Z42: =+'Hipótesis '!Z69 -> 1 | AA42: =+'Hipótesis '!AA69 -> 1 | AB42: =+'Hipótesis '!AB69 -> 1 | AC42: =+'Hipótesis '!AC69 -> 1 | AD42: =+'Hipótesis '!AD69 -> 1 | AE42: =+'Hipótesis '!AE69 -> 1 | AF42: =+'Hipótesis '!AF69 -> 1 | AG42: =+'Hipótesis '!AG69 -> 1 | AH42: =+'Hipótesis '!AH69 -> 1 | AI42: =+'Hipótesis '!AI69 -> 1 | AJ42: =+'Hipótesis '!AJ69 -> 1 | AK42: =+'Hipótesis '!AK69 -> 1 | AL42: =+'Hipótesis '!AL69 -> 1 | AM42: =+'Hipótesis '!AM69 -> 1 | AN42: =+'Hipótesis '!AN69 -> 1 | AO42: =+'Hipótesis '!AO69 -> 0 | AP42: =+'Hipótesis '!AP69 -> 0
B44: Padre Damián
B45: =+Control!$B$101 -> Abono | C45: =+Control!$C$101 -> EUR2021/plaza/mes | D45: =+Control!$D$101 -> 97
B46: =+Control!B30 -> Residentes/trabajadores | C46: =+Control!C30 -> nº plazas | D46: =+Control!D30 -> 0
B47: Ingresos por residentes/trabajadores | F47: =+SUM(H47:AP47) -> 0 | H47: =($D$45*$D$46*H$42)*H$11*H$13*$D$15 -> 0 | I47: 0 | J47: 0 | K47: 0 | L47: 0 | M47: 0 | N47: 0 | O47: 0 | P47: 0 | Q47: 0 | R47: 0 | S47: 0 | T47: 0 | U47: 0 | V47: 0 | W47: 0 | X47: 0 | Y47: 0 | Z47: 0 | AA47: 0 | AB47: 0 | AC47: 0 | AD47: 0 | AE47: 0 | AF47: 0 | AG47: 0 | AH47: 0 | AI47: 0 | AJ47: 0 | AK47: 0 | AL47: 0 | AM47: 0 | AN47: 0 | AO47: 0 | AP47: 0
B48: Ingreso por plaza | H48: =+IFERROR(H47/$D$46,0) -> 0 | I48: =+IFERROR(I47/$D$46,0) -> 0 | J48: 0 | K48: 0 | L48: 0 | M48: 0 | N48: 0 | O48: 0 | P48: 0 | Q48: 0 | R48: 0 | S48: 0 | T48: 0 | U48: 0 | V48: 0 | W48: 0 | X48: 0 | Y48: 0 | Z48: 0 | AA48: 0 | AB48: 0 | AC48: 0 | AD48: 0 | AE48: 0 | AF48: 0 | AG48: 0 | AH48: 0 | AI48: 0 | AJ48: 0 | AK48: 0 | AL48: 0 | AM48: 0 | AN48: 0 | AO48: 0 | AP48: 0
B50: Paseo de la Castellana
B51: =+Control!$B$101 -> Abono | C51: =+Control!$C$101 -> EUR2021/plaza/mes | D51: =+Control!$D$101 -> 97
B52: =+Control!B42 -> Abonados (REALES) | C52: =+Control!C42 -> nº plazas | D52: =+Control!D42 -> 494
B53: Ingresos por residentes/trabajadores | F53: =+SUM(H53:AP53) -> 18725529.06 | H53: =($D$51*$D$52*H$42)*H$11*H$13*$D$16 -> 0 | I53: 0 | J53: 0 | K53: 0 | L53: 0 | M53: 355463.7359 | N53: 550494.839 | O53: 580173.6912 | P53: 610391.0709 | Q53: 616494.9816 | R53: 622659.9314 | S53: 628886.5308 | T53: 635175.3961 | U53: 641527.15 | V53: 647942.4215 | W53: 654421.8457 | X53: 660966.0642 | Y53: 667575.7248 | Z53: 674251.4821 | AA53: 680993.9969 | AB53: 687803.9369 | AC53: 694681.9762 | AD53: 701628.796 | AE53: 708645.084 | AF53: 715731.5348 | AG53: 722888.8502 | AH53: 730117.7387 | AI53: 737418.916 | AJ53: 744793.1052 | AK53: 752241.0363 | AL53: 759763.4466 | AM53: 767361.0811 | AN53: 775034.6919 | AO53: 0 | AP53: 0
B54: Ingreso por plaza | H54: =+IFERROR(H53/$D$52,0) -> 0 | I54: =+IFERROR(I53/$D$52,0) -> 0 | J54: 0 | K54: 0 | L54: 0 | M54: 719.5622184 | N54: 1114.362022 | O54: 1174.44067 | P54: 1235.609455 | Q54: 1247.96555 | R54: 1260.445205 | S54: 1273.049657 | T54: 1285.780154 | U54: 1298.637956 | V54: 1311.624335 | W54: 1324.740578 | X54: 1337.987984 | Y54: 1351.367864 | Z54: 1364.881543 | AA54: 1378.530358 | AB54: 1392.315662 | AC54: 1406.238818 | AD54: 1420.301206 | AE54: 1434.504219 | AF54: 1448.849261 | AG54: 1463.337753 | AH54: 1477.971131 | AI54: 1492.750842 | AJ54: 1507.678351 | AK54: 1522.755134 | AL54: 1537.982685 | AM54: 1553.362512 | AN54: 1568.896137 | AO54: 0 | AP54: 0
B56: Ingresos por Residentes/trabajadores | F56: =+SUM(H56:AP56) -> 18725529.06 | H56: =+(H47+H53) -> 0 | I56: 0 | J56: 0 | K56: 0 | L56: 0 | M56: 355463.7359 | N56: 550494.839 | O56: 580173.6912 | P56: 610391.0709 | Q56: 616494.9816 | R56: 622659.9314 | S56: 628886.5308 | T56: 635175.3961 | U56: 641527.15 | V56: 647942.4215 | W56: 654421.8457 | X56: 660966.0642 | Y56: 667575.7248 | Z56: 674251.4821 | AA56: 680993.9969 | AB56: 687803.9369 | AC56: 694681.9762 | AD56: 701628.796 | AE56: 708645.084 | AF56: 715731.5348 | AG56: 722888.8502 | AH56: 730117.7387 | AI56: 737418.916 | AJ56: 744793.1052 | AK56: 752241.0363 | AL56: 759763.4466 | AM56: 767361.0811 | AN56: 775034.6919 | AO56: 0 | AP56: 0
B58: Ingresos Plat. Mov. compartida - Car Sharing
B60: Demanda (ocupación) - ramp up | H60: =+'Hipótesis '!H76 -> 0 | I60: =+'Hipótesis '!I76 -> 0 | J60: =+'Hipótesis '!J76 -> 0 | K60: =+'Hipótesis '!K76 -> 0 | L60: =+'Hipótesis '!L76 -> 0 | M60: =+'Hipótesis '!M76 -> 0.9 | N60: =+'Hipótesis '!N76 -> 0.92 | O60: =+'Hipótesis '!O76 -> 0.96 | P60: =+'Hipótesis '!P76 -> 1 | Q60: =+'Hipótesis '!Q76 -> 1 | R60: =+'Hipótesis '!R76 -> 1 | S60: =+'Hipótesis '!S76 -> 1 | T60: =+'Hipótesis '!T76 -> 1 | U60: =+'Hipótesis '!U76 -> 1 | V60: =+'Hipótesis '!V76 -> 1 | W60: =+'Hipótesis '!W76 -> 1 | X60: =+'Hipótesis '!X76 -> 1 | Y60: =+'Hipótesis '!Y76 -> 1 | Z60: =+'Hipótesis '!Z76 -> 1 | AA60: =+'Hipótesis '!AA76 -> 1 | AB60: =+'Hipótesis '!AB76 -> 1 | AC60: =+'Hipótesis '!AC76 -> 1 | AD60: =+'Hipótesis '!AD76 -> 1 | AE60: =+'Hipótesis '!AE76 -> 1 | AF60: =+'Hipótesis '!AF76 -> 1 | AG60: =+'Hipótesis '!AG76 -> 1 | AH60: =+'Hipótesis '!AH76 -> 1 | AI60: =+'Hipótesis '!AI76 -> 1 | AJ60: =+'Hipótesis '!AJ76 -> 1 | AK60: =+'Hipótesis '!AK76 -> 1 | AL60: =+'Hipótesis '!AL76 -> 1 | AM60: =+'Hipótesis '!AM76 -> 1 | AN60: =+'Hipótesis '!AN76 -> 1 | AO60: =+'Hipótesis '!AO76 -> 0 | AP60: =+'Hipótesis '!AP76 -> 0
B62: Padre Damián
B63: =+Control!B108 -> Tarifa | C63: =+Control!C108 -> EUR2021/plaza/mes | D63: =+Control!D108 -> 130
B64: =+Control!B31 -> Mov. Compartida (Car Sharing) | C64: =+Control!C31 -> nº plazas | D64: =+Control!D31 -> 0
B65: Ingresos Movilidad compartida - Car Sharing | F65: =+SUM(H65:AP65) -> 0 | H65: =($D$63*$D$64*H$60)*H$11*H$13*$D$15 -> 0 | I65: 0 | J65: 0 | K65: 0 | L65: 0 | M65: 0 | N65: 0 | O65: 0 | P65: 0 | Q65: 0 | R65: 0 | S65: 0 | T65: 0 | U65: 0 | V65: 0 | W65: 0 | X65: 0 | Y65: 0 | Z65: 0 | AA65: 0 | AB65: 0 | AC65: 0 | AD65: 0 | AE65: 0 | AF65: 0 | AG65: 0 | AH65: 0 | AI65: 0 | AJ65: 0 | AK65: 0 | AL65: 0 | AM65: 0 | AN65: 0 | AO65: 0 | AP65: 0
B66: Ingreso por plaza | H66: =+IFERROR(H65/$D$64,0) -> 0 | I66: =+IFERROR(I65/$D$64,0) -> 0 | J66: 0 | K66: 0 | L66: 0 | M66: 0 | N66: 0 | O66: 0 | P66: 0 | Q66: 0 | R66: 0 | S66: 0 | T66: 0 | U66: 0 | V66: 0 | W66: 0 | X66: 0 | Y66: 0 | Z66: 0 | AA66: 0 | AB66: 0 | AC66: 0 | AD66: 0 | AE66: 0 | AF66: 0 | AG66: 0 | AH66: 0 | AI66: 0 | AJ66: 0 | AK66: 0 | AL66: 0 | AM66: 0 | AN66: 0 | AO66: 0 | AP66: 0
B68: Paseo de la Castellana
B69: =+Control!B108 -> Tarifa | C69: =+Control!C108 -> EUR2021/plaza/mes | D69: =+Control!D108 -> 130
B70: =+Control!B44 -> Car Sharing | C70: =+Control!C44 -> nº plazas | D70: =+Control!D44 -> 100
B71: Ingresos Movilidad compartida - Car Sharing | F71: =+SUM(H71:AP71) -> 5080176.087 | H71: =($D$69*$D$70*H$60)*H$11*H$13*$D$16 -> 0 | I71: 0 | J71: 0 | K71: 0 | L71: 0 | M71: 96436.1736 | N71: 149347.4875 | O71: 157399.2651 | P71: 165597.1435 | Q71: 167253.1149 | R71: 168925.6461 | S71: 170614.9025 | T71: 172321.0516 | U71: 174044.2621 | V71: 175784.7047 | W71: 177542.5517 | X71: 179317.9773 | Y71: 181111.157 | Z71: 182922.2686 | AA71: 184751.4913 | AB71: 186599.0062 | AC71: 188464.9963 | AD71: 190349.6462 | AE71: 192253.1427 | AF71: 194175.6741 | AG71: 196117.4309 | AH71: 198078.6052 | AI71: 200059.3912 | AJ71: 202059.9851 | AK71: 204080.585 | AL71: 206121.3908 | AM71: 208182.6047 | AN71: 210264.4308 | AO71: 0 | AP71: 0
B72: Ingreso por plaza | H72: =+IFERROR(H71/$D$70,0) -> 0 | I72: =+IFERROR(I71/$D$70,0) -> 0 | J72: 0 | K72: 0 | L72: 0 | M72: 964.361736 | N72: 1493.474875 | O72: 1573.992651 | P72: 1655.971435 | Q72: 1672.531149 | R72: 1689.256461 | S72: 1706.149025 | T72: 1723.210516 | U72: 1740.442621 | V72: 1757.847047 | W72: 1775.425517 | X72: 1793.179773 | Y72: 1811.11157 | Z72: 1829.222686 | AA72: 1847.514913 | AB72: 1865.990062 | AC72: 1884.649963 | AD72: 1903.496462 | AE72: 1922.531427 | AF72: 1941.756741 | AG72: 1961.174309 | AH72: 1980.786052 | AI72: 2000.593912 | AJ72: 2020.599851 | AK72: 2040.80585 | AL72: 2061.213908 | AM72: 2081.826047 | AN72: 2102.644308 | AO72: 0 | AP72: 0
B74: Ingresos por Movilidad compartida - Car Sharing | F74: =+SUM(H74:AP74) -> 5080176.087 | H74: =+H71+H65 -> 0 | I74: 0 | J74: 0 | K74: 0 | L74: 0 | M74: 96436.1736 | N74: 149347.4875 | O74: 157399.2651 | P74: 165597.1435 | Q74: 167253.1149 | R74: 168925.6461 | S74: 170614.9025 | T74: 172321.0516 | U74: 174044.2621 | V74: 175784.7047 | W74: 177542.5517 | X74: 179317.9773 | Y74: 181111.157 | Z74: 182922.2686 | AA74: 184751.4913 | AB74: 186599.0062 | AC74: 188464.9963 | AD74: 190349.6462 | AE74: 192253.1427 | AF74: 194175.6741 | AG74: 196117.4309 | AH74: 198078.6052 | AI74: 200059.3912 | AJ74: 202059.9851 | AK74: 204080.585 | AL74: 206121.3908 | AM74: 208182.6047 | AN74: 210264.4308 | AO74: 0 | AP74: 0
B76: Ingresos Plat. Mov. compartida - Micromovilidad
B78: Demanda (ocupación) - ramp up | H78: =+'Hipótesis '!H83 -> 0 | I78: =+'Hipótesis '!I83 -> 0 | J78: =+'Hipótesis '!J83 -> 0 | K78: =+'Hipótesis '!K83 -> 0 | L78: =+'Hipótesis '!L83 -> 0 | M78: =+'Hipótesis '!M83 -> 0.9 | N78: =+'Hipótesis '!N83 -> 0.92 | O78: =+'Hipótesis '!O83 -> 0.96 | P78: =+'Hipótesis '!P83 -> 1 | Q78: =+'Hipótesis '!Q83 -> 1 | R78: =+'Hipótesis '!R83 -> 1 | S78: =+'Hipótesis '!S83 -> 1 | T78: =+'Hipótesis '!T83 -> 1 | U78: =+'Hipótesis '!U83 -> 1 | V78: =+'Hipótesis '!V83 -> 1 | W78: =+'Hipótesis '!W83 -> 1 | X78: =+'Hipótesis '!X83 -> 1 | Y78: =+'Hipótesis '!Y83 -> 1 | Z78: =+'Hipótesis '!Z83 -> 1 | AA78: =+'Hipótesis '!AA83 -> 1 | AB78: =+'Hipótesis '!AB83 -> 1 | AC78: =+'Hipótesis '!AC83 -> 1 | AD78: =+'Hipótesis '!AD83 -> 1 | AE78: =+'Hipótesis '!AE83 -> 1 | AF78: =+'Hipótesis '!AF83 -> 1 | AG78: =+'Hipótesis '!AG83 -> 1 | AH78: =+'Hipótesis '!AH83 -> 1 | AI78: =+'Hipótesis '!AI83 -> 1 | AJ78: =+'Hipótesis '!AJ83 -> 1 | AK78: =+'Hipótesis '!AK83 -> 1 | AL78: =+'Hipótesis '!AL83 -> 1 | AM78: =+'Hipótesis '!AM83 -> 1 | AN78: =+'Hipótesis '!AN83 -> 1 | AO78: =+'Hipótesis '!AO83 -> 0 | AP78: =+'Hipótesis '!AP83 -> 0
B80: Padre Damián
B81: Tarifa | C81: =+Control!C115 -> EUR2021/plaza/mes | D81: =+Control!D115 -> 0
B82: Mov. Compartida - Micromovilidad
B83: Ingresos Movilidad compartida - Micromovilidad | F83: =+SUM(H83:AP83) -> 0 | H83: =($D$81*$D$82*H$78)*H$11*H$13*$D$15 -> 0 | I83: 0 | J83: 0 | K83: 0 | L83: 0 | M83: 0 | N83: 0 | O83: 0 | P83: 0 | Q83: 0 | R83: 0 | S83: 0 | T83: 0 | U83: 0 | V83: 0 | W83: 0 | X83: 0 | Y83: 0 | Z83: 0 | AA83: 0 | AB83: 0 | AC83: 0 | AD83: 0 | AE83: 0 | AF83: 0 | AG83: 0 | AH83: 0 | AI83: 0 | AJ83: 0 | AK83: 0 | AL83: 0 | AM83: 0 | AN83: 0 | AO83: 0 | AP83: 0
B84: Ingreso por plaza | H84: =+IFERROR(H83/$D$82,0) -> 0 | I84: =+IFERROR(I83/$D$82,0) -> 0 | J84: 0 | K84: 0 | L84: 0 | M84: 0 | N84: 0 | O84: 0 | P84: 0 | Q84: 0 | R84: 0 | S84: 0 | T84: 0 | U84: 0 | V84: 0 | W84: 0 | X84: 0 | Y84: 0 | Z84: 0 | AA84: 0 | AB84: 0 | AC84: 0 | AD84: 0 | AE84: 0 | AF84: 0 | AG84: 0 | AH84: 0 | AI84: 0 | AJ84: 0 | AK84: 0 | AL84: 0 | AM84: 0 | AN84: 0 | AO84: 0 | AP84: 0
B86: Paseo de la Castellana
B87: Tarifa | C87: =+Control!C115 -> EUR2021/plaza/mes | D87: =+Control!D115 -> 0
B88: Mov. Compartida - Micromovilidad | C88: =+Control!C47 -> nº plazas | D88: =+Control!D47 -> 66.48014706
B89: Ingresos Movilidad compartida - Micromovilidad | F89: =+SUM(H89:AP89) -> 0 | H89: =($D$87*$D$88*H$78)*H$11*H$13*$D$16 -> 0 | I89: 0 | J89: 0 | K89: 0 | L89: 0 | M89: 0 | N89: 0 | O89: 0 | P89: 0 | Q89: 0 | R89: 0 | S89: 0 | T89: 0 | U89: 0 | V89: 0 | W89: 0 | X89: 0 | Y89: 0 | Z89: 0 | AA89: 0 | AB89: 0 | AC89: 0 | AD89: 0 | AE89: 0 | AF89: 0 | AG89: 0 | AH89: 0 | AI89: 0 | AJ89: 0 | AK89: 0 | AL89: 0 | AM89: 0 | AN89: 0 | AO89: 0 | AP89: 0
B90: Ingreso por plaza | H90: =+IFERROR(H89/$D$88,0) -> 0 | I90: =+IFERROR(I89/$D$88,0) -> 0 | J90: 0 | K90: 0 | L90: 0 | M90: 0 | N90: 0 | O90: 0 | P90: 0 | Q90: 0 | R90: 0 | S90: 0 | T90: 0 | U90: 0 | V90: 0 | W90: 0 | X90: 0 | Y90: 0 | Z90: 0 | AA90: 0 | AB90: 0 | AC90: 0 | AD90: 0 | AE90: 0 | AF90: 0 | AG90: 0 | AH90: 0 | AI90: 0 | AJ90: 0 | AK90: 0 | AL90: 0 | AM90: 0 | AN90: 0 | AO90: 0 | AP90: 0
B92: Ingresos por Movilidad compartida - Micromovilidad | F92: =+SUM(H92:AP92) -> 0 | H92: =+H89+H83 -> 0 | I92: 0 | J92: 0 | K92: 0 | L92: 0 | M92: 0 | N92: 0 | O92: 0 | P92: 0 | Q92: 0 | R92: 0 | S92: 0 | T92: 0 | U92: 0 | V92: 0 | W92: 0 | X92: 0 | Y92: 0 | Z92: 0 | AA92: 0 | AB92: 0 | AC92: 0 | AD92: 0 | AE92: 0 | AF92: 0 | AG92: 0 | AH92: 0 | AI92: 0 | AJ92: 0 | AK92: 0 | AL92: 0 | AM92: 0 | AN92: 0 | AO92: 0 | AP92: 0
B94: Ingresos Electrolineras
B96: Demanda (ocupación) - ramp up | H96: =+'Hipótesis '!H90 -> 0 | I96: =+'Hipótesis '!I90 -> 0 | J96: =+'Hipótesis '!J90 -> 0 | K96: =+'Hipótesis '!K90 -> 0 | L96: =+'Hipótesis '!L90 -> 0 | M96: =+'Hipótesis '!M90 -> 0.6 | N96: =+'Hipótesis '!N90 -> 0.8 | O96: =+'Hipótesis '!O90 -> 0.8 | P96: =+'Hipótesis '!P90 -> 0.8 | Q96: =+'Hipótesis '!Q90 -> 1 | R96: =+'Hipótesis '!R90 -> 1 | S96: =+'Hipótesis '!S90 -> 1 | T96: =+'Hipótesis '!T90 -> 1 | U96: =+'Hipótesis '!U90 -> 1 | V96: =+'Hipótesis '!V90 -> 1 | W96: =+'Hipótesis '!W90 -> 1.1 | X96: =+'Hipótesis '!X90 -> 1.1 | Y96: =+'Hipótesis '!Y90 -> 1.1 | Z96: =+'Hipótesis '!Z90 -> 1.1 | AA96: =+'Hipótesis '!AA90 -> 1.1 | AB96: =+'Hipótesis '!AB90 -> 1.1 | AC96: =+'Hipótesis '!AC90 -> 1.1 | AD96: =+'Hipótesis '!AD90 -> 1.1 | AE96: =+'Hipótesis '!AE90 -> 1.1 | AF96: =+'Hipótesis '!AF90 -> 1.1 | AG96: =+'Hipótesis '!AG90 -> 1.1 | AH96: =+'Hipótesis '!AH90 -> 1.1 | AI96: =+'Hipótesis '!AI90 -> 1.1 | AJ96: =+'Hipótesis '!AJ90 -> 1.1 | AK96: =+'Hipótesis '!AK90 -> 1.1 | AL96: =+'Hipótesis '!AL90 -> 1.1 | AM96: =+'Hipótesis '!AM90 -> 1.1 | AN96: =+'Hipótesis '!AN90 -> 1.1 | AO96: =+'Hipótesis '!AO90 -> 0 | AP96: =+'Hipótesis '!AP90 -> 0
B98: Paseo de la Castellana
B99: =+Control!B48 -> Electrolineras | C99: =+Control!C48 -> nº plazas | D99: =+Control!D48 -> 6
B100: =+Control!B122 -> Tarifa recarga completa | C100: =+Control!C122 -> EUR2021/recarga | D100: =+Control!D122 -> 12.5
B101: =+Control!B123 -> Tarifa recarga 100 km | C101: =+Control!C123 -> EUR2021/recarga | D101: =+Control!D123 -> 4.5
B102: =+Control!B124 -> Uso medio al año | C102: =+Control!C124 -> días | D102: =+Control!D124 -> 220
B103: =+Control!B125 -> Horas de uso al día | C103: =+Control!C125 -> horas | D103: =+Control!D125 -> 15
B104: =+Control!B126 -> Recargas por hora | C104: =+Control!C126 -> nº | D104: =+Control!D126 -> 2
B105: =+Control!B127 -> Tipología recargas
B106: =+Control!B128 -> Recarga completa | C106: =+Control!C128 -> % | D106: =+Control!D128 -> 0.3
B107: =+Control!B129 -> Recarga 100 km | C107: =+Control!C129 -> % | D107: =+Control!D129 -> 0.7
B110: Ingreso por Electrolinera / día | C110: EUR2021/día | D110: =($D$103*$D$104*($D$107*$D$101+$D$106*$D$100)) -> 207
B113: Ingresos Electrolineras | F113: =+SUM(H113:AP113) -> 9370010.14 | H113: =+$D$110*$D$102*$D$99*H$13*$D$16*H$96 -> 0 | I113: =+$D$110*$D$102*$D$99*I$13*$D$16*I$96 -> 0 | J113: 0 | K113: 0 | L113: 0 | M113: 168911.6671 | N113: 227467.7118 | O113: 229742.3889 | P113: 232039.8128 | Q113: 292950.2636 | R113: 295879.7662 | S113: 298838.5639 | T113: 301826.9495 | U113: 304845.219 | V113: 307893.6712 | W113: 342069.8687 | X113: 345490.5674 | Y113: 348945.4731 | Z113: 352434.9278 | AA113: 355959.2771 | AB113: 359518.8699 | AC113: 363114.0586 | AD113: 366745.1992 | AE113: 370412.6512 | AF113: 374116.7777 | AG113: 377857.9454 | AH113: 381636.5249 | AI113: 385452.8902 | AJ113: 389307.4191 | AK113: 393200.4932 | AL113: 397132.4982 | AM113: 401103.8232 | AN113: 405114.8614 | AO113: 0 | AP113: 0
B114: Ingreso por plaza | H114: =+IFERROR(H113/$D$99,0) -> 0 | I114: 0 | J114: 0 | K114: 0 | L114: 0 | M114: 28151.94452 | N114: 37911.28529 | O114: 38290.39815 | P114: 38673.30213 | Q114: 48825.04393 | R114: 49313.29437 | S114: 49806.42732 | T114: 50304.49159 | U114: =+IFERROR(U113/$D$99,0) -> 50807.53651 | V114: =+IFERROR(V113/$D$99,0) -> 51315.61187 | W114: 57011.64479 | X114: 57581.76124 | Y114: 58157.57885 | Z114: 58739.15464 | AA114: 59326.54619 | AB114: 59919.81165 | AC114: 60519.00976 | AD114: 61124.19986 | AE114: 61735.44186 | AF114: 62352.79628 | AG114: 62976.32424 | AH114: 63606.08748 | AI114: 64242.14836 | AJ114: 64884.56984 | AK114: 65533.41554 | AL114: 66188.7497 | AM114: 66850.63719 | AN114: 67519.14356 | AO114: 0 | AP114: 0
B116: Ingresos por Electrolineras | F116: =+SUM(H116:AP116) -> 9370010.14 | H116: =+H113 -> 0 | I116: =+I113 -> 0 | J116: 0 | K116: 0 | L116: 0 | M116: 168911.6671 | N116: 227467.7118 | O116: 229742.3889 | P116: 232039.8128 | Q116: 292950.2636 | R116: 295879.7662 | S116: 298838.5639 | T116: 301826.9495 | U116: 304845.219 | V116: 307893.6712 | W116: 342069.8687 | X116: 345490.5674 | Y116: 348945.4731 | Z116: 352434.9278 | AA116: 355959.2771 | AB116: 359518.8699 | AC116: 363114.0586 | AD116: 366745.1992 | AE116: 370412.6512 | AF116: 374116.7777 | AG116: 377857.9454 | AH116: 381636.5249 | AI116: 385452.8902 | AJ116: 389307.4191 | AK116: 393200.4932 | AL116: 397132.4982 | AM116: 401103.8232 | AN116: 405114.8614 | AO116: 0 | AP116: 0
B118: Ingresos DUM (Plataforma logística)
B120: Demanda (ocupación) - ramp up - (PD-1) | H120: =+'Hipótesis '!H104 -> 0 | I120: =+'Hipótesis '!I104 -> 0 | J120: =+'Hipótesis '!J104 -> 0 | K120: =+'Hipótesis '!K104 -> 0 | L120: =+'Hipótesis '!L104 -> 0 | M120: =+'Hipótesis '!M104 -> 0.9 | N120: =+'Hipótesis '!N104 -> 0.92 | O120: =+'Hipótesis '!O104 -> 0.96 | P120: =+'Hipótesis '!P104 -> 1 | Q120: =+'Hipótesis '!Q104 -> 1 | R120: =+'Hipótesis '!R104 -> 1 | S120: =+'Hipótesis '!S104 -> 1 | T120: =+'Hipótesis '!T104 -> 1 | U120: =+'Hipótesis '!U104 -> 1 | V120: =+'Hipótesis '!V104 -> 1 | W120: =+'Hipótesis '!W104 -> 1 | X120: =+'Hipótesis '!X104 -> 1 | Y120: =+'Hipótesis '!Y104 -> 1 | Z120: =+'Hipótesis '!Z104 -> 1 | AA120: =+'Hipótesis '!AA104 -> 1 | AB120: =+'Hipótesis '!AB104 -> 1 | AC120: =+'Hipótesis '!AC104 -> 1 | AD120: =+'Hipótesis '!AD104 -> 1 | AE120: =+'Hipótesis '!AE104 -> 1 | AF120: =+'Hipótesis '!AF104 -> 1 | AG120: =+'Hipótesis '!AG104 -> 1 | AH120: =+'Hipótesis '!AH104 -> 1 | AI120: =+'Hipótesis '!AI104 -> 1 | AJ120: =+'Hipótesis '!AJ104 -> 1 | AK120: =+'Hipótesis '!AK104 -> 1 | AL120: =+'Hipótesis '!AL104 -> 1 | AM120: =+'Hipótesis '!AM104 -> 1 | AN120: =+'Hipótesis '!AN104 -> 1 | AO120: =+'Hipótesis '!AO104 -> 0 | AP120: =+'Hipótesis '!AP104 -> 0
B121: Demanda (ocupación) - ramp up - (CDU) | H121: =+'Hipótesis '!H111 -> 0 | I121: =+'Hipótesis '!I111 -> 0 | J121: =+'Hipótesis '!J111 -> 0 | K121: =+'Hipótesis '!K111 -> 0 | L121: =+'Hipótesis '!L111 -> 0 | M121: =+'Hipótesis '!M111 -> 0.9 | N121: =+'Hipótesis '!N111 -> 0.92 | O121: =+'Hipótesis '!O111 -> 0.96 | P121: =+'Hipótesis '!P111 -> 1 | Q121: =+'Hipótesis '!Q111 -> 1 | R121: =+'Hipótesis '!R111 -> 1 | S121: =+'Hipótesis '!S111 -> 1 | T121: =+'Hipótesis '!T111 -> 1 | U121: =+'Hipótesis '!U111 -> 1 | V121: =+'Hipótesis '!V111 -> 1 | W121: =+'Hipótesis '!W111 -> 1 | X121: =+'Hipótesis '!X111 -> 1 | Y121: =+'Hipótesis '!Y111 -> 1 | Z121: =+'Hipótesis '!Z111 -> 1 | AA121: =+'Hipótesis '!AA111 -> 1 | AB121: =+'Hipótesis '!AB111 -> 1 | AC121: =+'Hipótesis '!AC111 -> 1 | AD121: =+'Hipótesis '!AD111 -> 1 | AE121: =+'Hipótesis '!AE111 -> 1 | AF121: =+'Hipótesis '!AF111 -> 1 | AG121: =+'Hipótesis '!AG111 -> 1 | AH121: =+'Hipótesis '!AH111 -> 1 | AI121: =+'Hipótesis '!AI111 -> 1 | AJ121: =+'Hipótesis '!AJ111 -> 1 | AK121: =+'Hipótesis '!AK111 -> 1 | AL121: =+'Hipótesis '!AL111 -> 1 | AM121: =+'Hipótesis '!AM111 -> 1 | AN121: =+'Hipótesis '!AN111 -> 1 | AO121: =+'Hipótesis '!AO111 -> 0 | AP121: =+'Hipótesis '!AP111 -> 0
B123: Padre Damián
B124: =+Control!B143 -> Tarifa | C124: =+Control!C143 -> EUR2021/m2/mes | D124: =+Control!D143 -> 7.5
B125: =+Control!B32 -> Área logística (PD-1) | C125: =+Control!C32 -> m2 | D125: =+Control!D32 -> 3606
B126: Ingresos área logística (PD-1) | F126: =+SUM(H126:AP126) -> 10568720.17 | H126: =($D$124*$D$125*H$120)*H$11*H$13*$D$15 -> 0 | I126: 0 | J126: 0 | K126: 0 | L126: 0 | M126: 200624.3319 | N126: 310700.2154 | O126: 327451.0096 | P126: 344505.7497 | Q126: 347950.8072 | R126: 351430.3152 | S126: 354944.6184 | T126: 358494.0646 | U126: 362079.0052 | V126: 365699.7953 | W126: 369356.7932 | X126: 373050.3612 | Y126: 376780.8648 | Z126: 380548.6734 | AA126: 384354.1602 | AB126: 388197.7018 | AC126: 392079.6788 | AD126: 396000.4756 | AE126: 399960.4803 | AF126: 403960.0851 | AG126: 407999.686 | AH126: 412079.6828 | AI126: 416200.4797 | AJ126: 420362.4845 | AK126: 424566.1093 | AL126: 428811.7704 | AM126: 433099.8881 | AN126: 437430.887 | AO126: 0 | AP126: 0
B127: Ingreso por m2 | H127: =+IFERROR(H126/$D$125,0) -> 0 | I127: =+IFERROR(I126/$D$125,0) -> 0 | J127: 0 | K127: 0 | L127: 0 | M127: 55.636254 | N127: 86.16201203 | O127: 90.80726833 | P127: 95.53681355 | Q127: 96.49218169 | R127: 97.45710351 | S127: 98.43167454 | T127: 99.41599129 | U127: 100.4101512 | V127: 101.4142527 | W127: 102.4283952 | X127: 103.4526792 | Y127: 104.487206 | Z127: 105.532078 | AA127: 106.5873988 | AB127: 107.6532728 | AC127: 108.7298055 | AD127: 109.8171036 | AE127: 110.9152746 | AF127: 112.0244274 | AG127: 113.1446717 | AH127: 114.2761184 | AI127: 115.4188796 | AJ127: 116.5730683 | AK127: 117.738799 | AL127: 118.916187 | AM127: 120.1053489 | AN127: 121.3064024 | AO127: 0 | AP127: 0
B129: =+Control!B150 -> Tarifa | C129: =+Control!C150 -> EUR2021/m2/mes | D129: =+Control!D150 -> 7.5
B130: =+Control!B36 -> Área logística (CDU) | C130: =+Control!C36 -> m2 | D130: =+Control!D36 -> 0
B131: Ingresos área logística (CDU) | F131: =+SUM(H131:AP131) -> 0 | H131: =($D$129*$D$130*H$121)*H$11*H$13*$D$15 -> 0 | I131: 0 | J131: 0 | K131: 0 | L131: 0 | M131: 0 | N131: 0 | O131: 0 | P131: 0 | Q131: 0 | R131: 0 | S131: 0 | T131: 0 | U131: 0 | V131: 0 | W131: 0 | X131: 0 | Y131: 0 | Z131: 0 | AA131: 0 | AB131: 0 | AC131: 0 | AD131: 0 | AE131: 0 | AF131: 0 | AG131: 0 | AH131: 0 | AI131: 0 | AJ131: 0 | AK131: 0 | AL131: 0 | AM131: 0 | AN131: 0 | AO131: 0 | AP131: 0
B132: Ingreso por m2 | H132: =+IFERROR(H131/$D$130,0) -> 0 | I132: =+IFERROR(I131/$D$130,0) -> 0 | J132: 0 | K132: 0 | L132: 0 | M132: 0 | N132: 0 | O132: 0 | P132: 0 | Q132: 0 | R132: 0 | S132: 0 | T132: 0 | U132: 0 | V132: 0 | W132: 0 | X132: 0 | Y132: 0 | Z132: 0 | AA132: 0 | AB132: 0 | AC132: 0 | AD132: 0 | AE132: 0 | AF132: 0 | AG132: 0 | AH132: 0 | AI132: 0 | AJ132: 0 | AK132: 0 | AL132: 0 | AM132: 0 | AN132: 0 | AO132: 0 | AP132: 0
B134: Paseo de la Castellana
B135: =+Control!B143 -> Tarifa | C135: =+Control!C143 -> EUR2021/m2/mes | D135: =+Control!D143 -> 7.5
B136: =+Control!B49 -> Área logística | C136: =+Control!C49 -> m2 | D136: =+Control!D49 -> 0
B137: Ingresos DUM (Plataforma logística) | F137: =+SUM(H137:AP137) -> 0 | H137: =($D$135*$D$136*H$120)*H$11*H$13*$D$16 -> 0 | I137: 0 | J137: 0 | K137: 0 | L137: 0 | M137: 0 | N137: 0 | O137: 0 | P137: 0 | Q137: 0 | R137: 0 | S137: 0 | T137: 0 | U137: 0 | V137: 0 | W137: 0 | X137: 0 | Y137: 0 | Z137: 0 | AA137: 0 | AB137: 0 | AC137: 0 | AD137: 0 | AE137: 0 | AF137: 0 | AG137: 0 | AH137: 0 | AI137: 0 | AJ137: 0 | AK137: 0 | AL137: 0 | AM137: 0 | AN137: 0 | AO137: 0 | AP137: 0
B138: Ingreso por m2 | H138: =+IFERROR(H137/$D$136,0) -> 0 | I138: =+IFERROR(I137/$D$136,0) -> 0 | J138: 0 | K138: 0 | L138: 0 | M138: 0 | N138: 0 | O138: 0 | P138: 0 | Q138: 0 | R138: 0 | S138: 0 | T138: 0 | U138: 0 | V138: 0 | W138: 0 | X138: 0 | Y138: 0 | Z138: 0 | AA138: 0 | AB138: 0 | AC138: 0 | AD138: 0 | AE138: 0 | AF138: 0 | AG138: 0 | AH138: 0 | AI138: 0 | AJ138: 0 | AK138: 0 | AL138: 0 | AM138: 0 | AN138: 0 | AO138: 0 | AP138: 0
B140: Ingresos por Plat. Logística | F140: =+SUM(H140:AP140) -> 10568720.17 | H140: =+H137+H126+H131 -> 0 | I140: =+I137+I126+I131 -> 0 | J140: 0 | K140: 0 | L140: 0 | M140: 200624.3319 | N140: 310700.2154 | O140: 327451.0096 | P140: 344505.7497 | Q140: 347950.8072 | R140: 351430.3152 | S140: 354944.6184 | T140: 358494.0646 | U140: 362079.0052 | V140: 365699.7953 | W140: 369356.7932 | X140: 373050.3612 | Y140: 376780.8648 | Z140: 380548.6734 | AA140: 384354.1602 | AB140: 388197.7018 | AC140: 392079.6788 | AD140: 396000.4756 | AE140: 399960.4803 | AF140: 403960.0851 | AG140: 407999.686 | AH140: 412079.6828 | AI140: 416200.4797 | AJ140: 420362.4845 | AK140: 424566.1093 | AL140: 428811.7704 | AM140: 433099.8881 | AN140: 437430.887 | AO140: 0 | AP140: 0
B142: Ingresos Autobuses
B144: Demanda (ocupación) - ramp up | H144: =+'Hipótesis '!H118 -> 0 | I144: =+'Hipótesis '!I118 -> 0 | J144: =+'Hipótesis '!J118 -> 0 | K144: =+'Hipótesis '!K118 -> 0 | L144: =+'Hipótesis '!L118 -> 0 | M144: =+'Hipótesis '!M118 -> 0.3 | N144: =+'Hipótesis '!N118 -> 0.32 | O144: =+'Hipótesis '!O118 -> 0.35 | P144: =+'Hipótesis '!P118 -> 0.4 | Q144: =+'Hipótesis '!Q118 -> 0.4 | R144: =+'Hipótesis '!R118 -> 0.4 | S144: =+'Hipótesis '!S118 -> 0.4 | T144: =+'Hipótesis '!T118 -> 0.4 | U144: =+'Hipótesis '!U118 -> 0.4 | V144: =+'Hipótesis '!V118 -> 0.4 | W144: =+'Hipótesis '!W118 -> 0.4 | X144: =+'Hipótesis '!X118 -> 0.4 | Y144: =+'Hipótesis '!Y118 -> 0.4 | Z144: =+'Hipótesis '!Z118 -> 0.4 | AA144: =+'Hipótesis '!AA118 -> 0.4 | AB144: =+'Hipótesis '!AB118 -> 0.4 | AC144: =+'Hipótesis '!AC118 -> 0.4 | AD144: =+'Hipótesis '!AD118 -> 0.4 | AE144: =+'Hipótesis '!AE118 -> 0.4 | AF144: =+'Hipótesis '!AF118 -> 0.4 | AG144: =+'Hipótesis '!AG118 -> 0.4 | AH144: =+'Hipótesis '!AH118 -> 0.4 | AI144: =+'Hipótesis '!AI118 -> 0.4 | AJ144: =+'Hipótesis '!AJ118 -> 0.4 | AK144: =+'Hipótesis '!AK118 -> 0.4 | AL144: =+'Hipótesis '!AL118 -> 0.4 | AM144: =+'Hipótesis '!AM118 -> 0.4 | AN144: =+'Hipótesis '!AN118 -> 0.4 | AO144: =+'Hipótesis '!AO118 -> 0 | AP144: =+'Hipótesis '!AP118 -> 0
B146: Padre Damián
B147: =+Control!B157 -> Tarifa | C147: =+Control!C157 -> EUR2021/dársena/hora | D147: =+Control!D157 -> 7.471188
B148: =+Control!B158 -> Horas diarias consideradas | C148: =+Control!C158 -> horas | D148: =+Control!D158 -> 24
B149: =+Control!B37 -> Dársenas autobuses | C149: =+Control!C38 -> nº dársenas | D149: =+Control!D38 -> 12
B150: Ingresos Autobuses | F150: =+SUM(H150:AP150) -> 10137897.45 | H150: =+($D$147*$D$148*$D$149*H$144)*H$10*H$13*$D$15 -> 0 | I150: 0 | J150: 0 | K150: 0 | L150: 0 | M150: 162942.214 | N150: 261523.3619 | O150: 288901.5889 | P150: 333474.9769 | Q150: 337732.493 | R150: 340177.8239 | S150: 343579.6021 | T150: 347015.3982 | U150: 351445.7865 | V150: 353990.4077 | W150: 357530.3117 | X150: 361105.6148 | Y150: 365715.8948 | Z150: 368363.8377 | AA150: 372047.4761 | AB150: 375767.9508 | AC150: 380565.4266 | AD150: 383320.8867 | AE150: 387154.0955 | AF150: 391025.6365 | AG150: 396017.909 | AH150: 398885.2518 | AI150: 402874.1043 | AJ150: 406902.8453 | AK150: 412097.8241 | AL150: 415081.5925 | AM150: 419232.4084 | AN150: 423424.7325 | AO150: 0 | AP150: 0
B151: Ingreso por dársena | H151: =+IFERROR(H150/$D$149,0) -> 0 | I151: =+IFERROR(I150/$D$149,0) -> 0 | J151: 0 | K151: 0 | L151: 0 | M151: 13578.51783 | N151: 21793.61349 | O151: 24075.13241 | P151: 27789.5814 | Q151: 28144.37442 | R151: 28348.15199 | S151: 28631.63351 | T151: 28917.94985 | U151: 29287.14888 | V151: 29499.20064 | W151: 29794.19264 | X151: 30092.13457 | Y151: 30476.32456 | Z151: 30696.98648 | AA151: 31003.95634 | AB151: 31313.9959 | AC151: 31713.78555 | AD151: 31943.40722 | AE151: 32262.84129 | AF151: 32585.46971 | AG151: 33001.49242 | AH151: 33240.43765 | AI151: 33572.84202 | AJ151: 33908.57044 | AK151: 34341.48534 | AL151: 34590.13271 | AM151: 34936.03404 | AN151: 35285.39438 | AO151: 0 | AP151: 0
B153: Paseo de la Castellana
B154: =+Control!B157 -> Tarifa | C154: =+Control!C157 -> EUR2021/dársena/hora | D154: =+Control!D157 -> 7.471188
B155: =+Control!B158 -> Horas diarias consideradas | C155: =+Control!C158 -> horas | D155: =+Control!D158 -> 24
B156: =+Control!B51 -> Dársenas autobuses | C156: =+Control!C51 -> m2 | D156: =+Control!D51 -> 0
B157: Ingresos Autobuses | F157: =+SUM(H157:AP157) -> 0 | H157: =+($D$154*$D$155*$D$156*H$144)*H$10*H$13*$D$16 -> 0 | I157: 0 | J157: 0 | K157: 0 | L157: 0 | M157: 0 | N157: 0 | O157: 0 | P157: 0 | Q157: 0 | R157: 0 | S157: 0 | T157: 0 | U157: 0 | V157: 0 | W157: 0 | X157: 0 | Y157: 0 | Z157: 0 | AA157: 0 | AB157: 0 | AC157: 0 | AD157: 0 | AE157: 0 | AF157: 0 | AG157: 0 | AH157: 0 | AI157: 0 | AJ157: 0 | AK157: 0 | AL157: 0 | AM157: 0 | AN157: 0 | AO157: 0 | AP157: 0
B158: Ingreso por dársena | H158: =+IFERROR(#REF!/$D$156,0) -> 0 | I158: =+IFERROR(#REF!/$D$156,0) -> 0 | J158: =+IFERROR(#REF!/$D$156,0) -> 0 | K158: =+IFERROR(#REF!/$D$156,0) -> 0 | L158: =+IFERROR(#REF!/$D$156,0) -> 0 | M158: =+IFERROR(#REF!/$D$156,0) -> 0 | N158: =+IFERROR(#REF!/$D$156,0) -> 0 | O158: =+IFERROR(#REF!/$D$156,0) -> 0 | P158: =+IFERROR(#REF!/$D$156,0) -> 0 | Q158: =+IFERROR(#REF!/$D$156,0) -> 0 | R158: =+IFERROR(#REF!/$D$156,0) -> 0 | S158: =+IFERROR(#REF!/$D$156,0) -> 0 | T158: =+IFERROR(#REF!/$D$156,0) -> 0 | U158: =+IFERROR(#REF!/$D$156,0) -> 0 | V158: =+IFERROR(#REF!/$D$156,0) -> 0 | W158: =+IFERROR(#REF!/$D$156,0) -> 0 | X158: =+IFERROR(#REF!/$D$156,0) -> 0 | Y158: =+IFERROR(#REF!/$D$156,0) -> 0 | Z158: =+IFERROR(#REF!/$D$156,0) -> 0 | AA158: =+IFERROR(#REF!/$D$156,0) -> 0 | AB158: =+IFERROR(#REF!/$D$156,0) -> 0 | AC158: =+IFERROR(#REF!/$D$156,0) -> 0 | AD158: =+IFERROR(#REF!/$D$156,0) -> 0 | AE158: =+IFERROR(#REF!/$D$156,0) -> 0 | AF158: =+IFERROR(#REF!/$D$156,0) -> 0 | AG158: =+IFERROR(#REF!/$D$156,0) -> 0 | AH158: =+IFERROR(#REF!/$D$156,0) -> 0 | AI158: =+IFERROR(#REF!/$D$156,0) -> 0 | AJ158: =+IFERROR(#REF!/$D$156,0) -> 0 | AK158: =+IFERROR(#REF!/$D$156,0) -> 0 | AL158: =+IFERROR(#REF!/$D$156,0) -> 0 | AM158: =+IFERROR(#REF!/$D$156,0) -> 0 | AN158: =+IFERROR(#REF!/$D$156,0) -> 0 | AO158: =+IFERROR(#REF!/$D$156,0) -> 0 | AP158: =+IFERROR(#REF!/$D$156,0) -> 0
B160: Ingresos Autobuses | F160: =+SUM(H160:AP160) -> 10137897.45 | H160: =+(H150+H157) -> 0 | I160: 0 | J160: 0 | K160: 0 | L160: 0 | M160: 162942.214 | N160: 261523.3619 | O160: 288901.5889 | P160: 333474.9769 | Q160: 337732.493 | R160: 340177.8239 | S160: 343579.6021 | T160: 347015.3982 | U160: 351445.7865 | V160: 353990.4077 | W160: 357530.3117 | X160: 361105.6148 | Y160: 365715.8948 | Z160: 368363.8377 | AA160: 372047.4761 | AB160: 375767.9508 | AC160: 380565.4266 | AD160: 383320.8867 | AE160: 387154.0955 | AF160: 391025.6365 | AG160: 396017.909 | AH160: 398885.2518 | AI160: 402874.1043 | AJ160: 406902.8453 | AK160: 412097.8241 | AL160: 415081.5925 | AM160: 419232.4084 | AN160: 423424.7325 | AO160: 0 | AP160: 0
B162: Ingresos actividades complementarias Plaza de Castellana
B164: Paseo de la Castellana | D164: =+Control!D165 -> 300000 | F164: =+SUM(H164:AP164) -> 9828606.544 | H164: =+$D$164*H$9*H$13 -> 0 | I164: 0 | J164: 0 | K164: 0 | L164: 0 | M164: 206904.709 | N164: 312181.203 | O164: 315303.015 | P164: 318456.0452 | Q164: 321640.6056 | R164: 324857.0117 | S164: 328105.5818 | T164: 331386.6376 | U164: 334700.504 | V164: 338047.509 | W164: 341427.9841 | X164: 344842.264 | Y164: 348290.6866 | Z164: 351773.5935 | AA164: 355291.3294 | AB164: 358844.2427 | AC164: 362432.6851 | AD164: 366057.012 | AE164: 369717.5821 | AF164: 373414.7579 | AG164: 377148.9055 | AH164: 380920.3946 | AI164: 384729.5985 | AJ164: 388576.8945 | AK164: 392462.6634 | AL164: 396387.2901 | AM164: 400351.163 | AN164: 404354.6746 | AO164: 0 | AP164: 0
B166: Ingresos actividades complementarias Plaza Castellana | F166: =+SUM(H166:AP166) -> 9828606.544 | H166: =+H164 -> 0 | I166: =+I164 -> 0 | J166: 0 | K166: 0 | L166: 0 | M166: 206904.709 | N166: 312181.203 | O166: 315303.015 | P166: 318456.0452 | Q166: 321640.6056 | R166: 324857.0117 | S166: 328105.5818 | T166: 331386.6376 | U166: 334700.504 | V166: 338047.509 | W166: 341427.9841 | X166: 344842.264 | Y166: 348290.6866 | Z166: 351773.5935 | AA166: 355291.3294 | AB166: 358844.2427 | AC166: 362432.6851 | AD166: 366057.012 | AE166: 369717.5821 | AF166: 373414.7579 | AG166: 377148.9055 | AH166: 380920.3946 | AI166: 384729.5985 | AJ166: 388576.8945 | AK166: 392462.6634 | AL166: 396387.2901 | AM166: 400351.163 | AN166: 404354.6746 | AO166: 0 | AP166: 0
B168: Otros ingresos
B170: Padre Damián | D170: =+Control!$D$167 -> 0.025 | F170: =+SUM(H170:AP170) -> 2900845.793 | H170: =+((H28+H47+H65+H126+H131+H150)*$D170*$D$15) -> 0 | I170: 0 | J170: 0 | K170: 0 | L170: 0 | M170: 46945.02924 | N170: 76220.25159 | O170: 85446.6808 | P170: 95266.86028 | Q170: 96459.31179 | R170: 97181.72418 | S170: 98153.54142 | T170: 99135.07683 | U170: 100375.9466 | V170: 101127.6919 | W170: 102138.9688 | X170: 103160.3585 | Y170: 104451.6126 | Z170: 105233.8817 | AA170: 106286.2205 | AB170: 107349.0827 | AC170: 108692.7669 | AD170: 109506.7993 | AE170: 110601.8673 | AF170: 111707.8859 | AG170: 113106.1291 | AH170: 113953.2144 | AI170: 115092.7466 | AJ170: 116243.6741 | AK170: 117698.6915 | AL170: 118580.1719 | AM170: 119765.9736 | AN170: 120963.6334 | AO170: 0 | AP170: 0
B172: Paseo de la Castellana | D172: =+Control!$D$167 -> 0.025 | F172: =+SUM(H172:AP172) -> 3276220.525 | H172: =+((H35+H53+H71+H137+H157)*$D172*$D$16) -> 0 | I172: 0 | J172: 0 | K172: 0 | L172: 0 | M172: 53885.34653 | N172: 87150.0531 | O172: 97231.92297 | P172: 107506.7152 | Q172: 108825.5854 | R172: 109667.6002 | S172: 110764.2762 | T172: 111871.919 | U172: 113244.3405 | V172: 114120.5446 | W172: 115261.75 | X172: 116414.3675 | Y172: 117842.5148 | Z172: 118754.2963 | AA172: 119941.8393 | AB172: 121141.2576 | AC172: 122627.3935 | AD172: 123576.1969 | AE172: 124811.9589 | AF172: 126060.0785 | AG172: 127606.5574 | AH172: 128593.8861 | AI172: 129879.8249 | AJ172: 131178.6232 | AK172: 132787.8953 | AL172: 133815.3135 | AM172: 135153.4666 | AN172: 136505.0013 | AO172: 0 | AP172: 0
B174: Otros ingresos totales | F174: =+SUM(H174:AP174) -> 6177066.319 | H174: =+(+H170+H172) -> 0 | I174: 0 | J174: 0 | K174: 0 | L174: 0 | M174: 100830.3758 | N174: 163370.3047 | O174: 182678.6038 | P174: =+(+P170+P172) -> 202773.5755 | Q174: =+(+Q170+Q172) -> 205284.8971 | R174: 206849.3244 | S174: 208917.8176 | T174: 211006.9958 | U174: 213620.2872 | V174: 215248.2364 | W174: 217400.7188 | X174: 219574.726 | Y174: 222294.1274 | Z174: 223988.178 | AA174: 226228.0598 | AB174: 228490.3404 | AC174: 231320.1604 | AD174: 233082.9962 | AE174: 235413.8262 | AF174: 237767.9644 | AG174: 240712.6865 | AH174: 242547.1005 | AI174: 244972.5715 | AJ174: 247422.2972 | AK174: 250486.5868 | AL174: 252395.4854 | AM174: 254919.4403 | AN174: 257468.6347 | AO174: 0 | AP174: 0
B177: Resumen ingresos
B179: =+B20 -> Ingresos por Rotación | E179: =+F179/$F$188 -> 0.7434910348 | F179: =+SUM(H179:AP179) -> 202570330 | H179: =+H38 -> 0 | I179: 0 | J179: 0 | K179: 0 | L179: 0 | M179: 3217748.576 | N179: 5262746.284 | O179: 5953218.596 | P179: 6656974.08 | Q179: 6741964.489 | R179: 6790779.259 | S179: 6858687.052 | T179: 6927273.922 | U179: 7015715.283 | V179: 7066512.128 | W179: 7137177.25 | X179: 7208549.022 | Y179: 7300581.456 | Z179: 7353440.857 | AA179: 7426975.266 | AB179: 7501245.019 | AC179: 7597014.339 | AD179: 7652020.043 | AE179: 7728540.244 | AF179: 7805825.646 | AG179: 7905483.585 | AH179: 7962722.742 | AI179: 8042349.969 | AJ179: 8122773.469 | AK179: 8226477.919 | AL179: 8286041.216 | AM179: 8368901.628 | AN179: 8452590.644 | AO179: 0 | AP179: 0
B180: =+B40 -> Ingresos por Residentes/trabajadores | E180: 0.06872804608 | F180: 18725529.06 | H180: =+H56 -> 0 | I180: 0 | J180: 0 | K180: 0 | L180: 0 | M180: 355463.7359 | N180: 550494.839 | O180: 580173.6912 | P180: 610391.0709 | Q180: 616494.9816 | R180: 622659.9314 | S180: 628886.5308 | T180: 635175.3961 | U180: 641527.15 | V180: 647942.4215 | W180: 654421.8457 | X180: 660966.0642 | Y180: 667575.7248 | Z180: 674251.4821 | AA180: 680993.9969 | AB180: 687803.9369 | AC180: 694681.9762 | AD180: 701628.796 | AE180: 708645.084 | AF180: 715731.5348 | AG180: 722888.8502 | AH180: 730117.7387 | AI180: 737418.916 | AJ180: 744793.1052 | AK180: 752241.0363 | AL180: 759763.4466 | AM180: 767361.0811 | AN180: 775034.6919 | AO180: 0 | AP180: 0
B181: =+B58 -> Ingresos Plat. Mov. compartida - Car Sharing | E181: 0.01864569888 | F181: 5080176.087 | H181: =+H74 -> 0 | I181: 0 | J181: 0 | K181: 0 | L181: 0 | M181: 96436.1736 | N181: 149347.4875 | O181: 157399.2651 | P181: 165597.1435 | Q181: 167253.1149 | R181: 168925.6461 | S181: 170614.9025 | T181: 172321.0516 | U181: 174044.2621 | V181: 175784.7047 | W181: 177542.5517 | X181: 179317.9773 | Y181: 181111.157 | Z181: 182922.2686 | AA181: 184751.4913 | AB181: 186599.0062 | AC181: 188464.9963 | AD181: 190349.6462 | AE181: 192253.1427 | AF181: 194175.6741 | AG181: 196117.4309 | AH181: 198078.6052 | AI181: 200059.3912 | AJ181: 202059.9851 | AK181: 204080.585 | AL181: 206121.3908 | AM181: 208182.6047 | AN181: 210264.4308 | AO181: 0 | AP181: 0
B182: =+B92 -> Ingresos por Movilidad compartida - Micromovilidad | E182: 0 | F182: =+SUM(H182:AP182) -> 0 | H182: =+H92 -> 0 | I182: 0 | J182: 0 | K182: 0 | L182: 0 | M182: 0 | N182: 0 | O182: 0 | P182: 0 | Q182: 0 | R182: 0 | S182: 0 | T182: 0 | U182: 0 | V182: 0 | W182: 0 | X182: 0 | Y182: 0 | Z182: 0 | AA182: 0 | AB182: 0 | AC182: 0 | AD182: 0 | AE182: 0 | AF182: 0 | AG182: 0 | AH182: 0 | AI182: 0 | AJ182: 0 | AK182: 0 | AL182: 0 | AM182: 0 | AN182: 0 | AO182: 0 | AP182: 0
B183: =+B116 -> Ingresos por Electrolineras | E183: 0.03439061651 | F183: =+SUM(H183:AP183) -> 9370010.14 | H183: =+H116 -> 0 | I183: 0 | J183: 0 | K183: 0 | L183: 0 | M183: 168911.6671 | N183: 227467.7118 | O183: 229742.3889 | P183: 232039.8128 | Q183: 292950.2636 | R183: 295879.7662 | S183: 298838.5639 | T183: 301826.9495 | U183: 304845.219 | V183: 307893.6712 | W183: 342069.8687 | X183: 345490.5674 | Y183: 348945.4731 | Z183: 352434.9278 | AA183: 355959.2771 | AB183: 359518.8699 | AC183: 363114.0586 | AD183: 366745.1992 | AE183: 370412.6512 | AF183: 374116.7777 | AG183: 377857.9454 | AH183: 381636.5249 | AI183: 385452.8902 | AJ183: 389307.4191 | AK183: 393200.4932 | AL183: 397132.4982 | AM183: 401103.8232 | AN183: 405114.8614 | AO183: 0 | AP183: 0
B184: =+B118 -> Ingresos DUM (Plataforma logística) | E184: 0.0387902251 | F184: 10568720.17 | H184: =+H140 -> 0 | I184: 0 | J184: 0 | K184: 0 | L184: 0 | M184: 200624.3319 | N184: 310700.2154 | O184: 327451.0096 | P184: 344505.7497 | Q184: 347950.8072 | R184: 351430.3152 | S184: 354944.6184 | T184: 358494.0646 | U184: 362079.0052 | V184: 365699.7953 | W184: 369356.7932 | X184: 373050.3612 | Y184: 376780.8648 | Z184: 380548.6734 | AA184: 384354.1602 | AB184: 388197.7018 | AC184: 392079.6788 | AD184: 396000.4756 | AE184: 399960.4803 | AF184: 403960.0851 | AG184: 407999.686 | AH184: 412079.6828 | AI184: 416200.4797 | AJ184: 420362.4845 | AK184: 424566.1093 | AL184: 428811.7704 | AM184: 433099.8881 | AN184: 437430.887 | AO184: 0 | AP184: 0
B185: =+B142 -> Ingresos Autobuses | E185: 0.03720898252 | F185: 10137897.45 | H185: =+H160 -> 0 | I185: 0 | J185: 0 | K185: 0 | L185: 0 | M185: 162942.214 | N185: 261523.3619 | O185: 288901.5889 | P185: 333474.9769 | Q185: 337732.493 | R185: 340177.8239 | S185: 343579.6021 | T185: 347015.3982 | U185: 351445.7865 | V185: 353990.4077 | W185: 357530.3117 | X185: 361105.6148 | Y185: 365715.8948 | Z185: 368363.8377 | AA185: 372047.4761 | AB185: 375767.9508 | AC185: 380565.4266 | AD185: 383320.8867 | AE185: 387154.0955 | AF185: 391025.6365 | AG185: 396017.909 | AH185: 398885.2518 | AI185: 402874.1043 | AJ185: 406902.8453 | AK185: 412097.8241 | AL185: 415081.5925 | AM185: 419232.4084 | AN185: 423424.7325 | AO185: 0 | AP185: 0
B186: =+B166 -> Ingresos actividades complementarias Plaza Castellana | E186: 0.03607379644 | F186: =+SUM(H186:AP186) -> 9828606.544 | H186: =+H166 -> 0 | I186: =+I166 -> 0 | J186: 0 | K186: 0 | L186: 0 | M186: 206904.709 | N186: 312181.203 | O186: 315303.015 | P186: 318456.0452 | Q186: 321640.6056 | R186: 324857.0117 | S186: 328105.5818 | T186: 331386.6376 | U186: 334700.504 | V186: 338047.509 | W186: 341427.9841 | X186: 344842.264 | Y186: 348290.6866 | Z186: 351773.5935 | AA186: 355291.3294 | AB186: 358844.2427 | AC186: 362432.6851 | AD186: 366057.012 | AE186: 369717.5821 | AF186: 373414.7579 | AG186: 377148.9055 | AH186: 380920.3946 | AI186: 384729.5985 | AJ186: 388576.8945 | AK186: 392462.6634 | AL186: 396387.2901 | AM186: 400351.163 | AN186: 404354.6746 | AO186: 0 | AP186: 0
B187: =+B168 -> Otros ingresos | E187: 0.02267159968 | F187: 6177066.319 | H187: =+H174 -> 0 | I187: =+I174 -> 0 | J187: 0 | K187: 0 | L187: 0 | M187: 100830.3758 | N187: 163370.3047 | O187: 182678.6038 | P187: 202773.5755 | Q187: 205284.8971 | R187: 206849.3244 | S187: 208917.8176 | T187: 211006.9958 | U187: 213620.2872 | V187: 215248.2364 | W187: 217400.7188 | X187: 219574.726 | Y187: 222294.1274 | Z187: 223988.178 | AA187: 226228.0598 | AB187: 228490.3404 | AC187: 231320.1604 | AD187: 233082.9962 | AE187: 235413.8262 | AF187: 237767.9644 | AG187: 240712.6865 | AH187: 242547.1005 | AI187: 244972.5715 | AJ187: 247422.2972 | AK187: 250486.5868 | AL187: 252395.4854 | AM187: 254919.4403 | AN187: 257468.6347 | AO187: 0 | AP187: 0
B188: Total ingresos | E188: =+SUM(E179:E187) -> 1 | F188: =+SUM(H188:AP188) -> 272458335.8 | H188: =+SUM(H179:H187) -> 0 | I188: =+SUM(I179:I187) -> 0 | J188: 0 | K188: 0 | L188: 0 | M188: 4509861.783 | N188: 7237831.407 | O188: 8034868.159 | P188: 8864212.455 | Q188: 9031271.652 | R188: 9101559.078 | S188: 9192574.669 | T188: 9284500.416 | U188: 9397977.497 | V188: 9471118.874 | W188: 9596927.324 | X188: 9692896.597 | Y188: 9811295.385 | Z188: 9887723.818 | AA188: 9986601.057 | AB188: 10086467.07 | AC188: 10209673.32 | AD188: 10289205.06 | AE188: 10392097.11 | AF188: 10496018.08 | AG188: 10624227 | AH188: 10706988.04 | AI188: 10814057.92 | AJ188: 10922198.5 | AK188: 11055613.22 | AL188: 11141734.69 | AM188: 11253152.04 | AN188: 11365683.56 | AO188: 0 | AP188: 0
B190: Ingresos totales Padre Damián | E190: =+F190/$F$192 -> 0.4365242752 | F190: =+SUM(H190:AP190) -> 118934677.5 | H190: =+H28+H47+H65+H126+H131+H150+H170+H83 -> 0 | I190: 0 | J190: 0 | K190: 0 | L190: 0 | M190: 1924746.199 | N190: 3125030.315 | O190: 3503313.913 | P190: 3905941.272 | Q190: 3954831.783 | R190: 3984450.691 | S190: 4024295.198 | T190: 4064538.15 | U190: 4115413.813 | V190: 4146235.367 | W190: 4187697.721 | X190: 4229574.698 | Y190: 4282516.116 | Z190: 4314589.149 | AA190: 4357735.041 | AB190: 4401312.391 | AC190: 4456403.443 | AD190: 4489778.77 | AE190: 4534676.558 | AF190: 4580023.323 | AG190: 4637351.293 | AH190: 4672081.792 | AI190: 4718802.61 | AJ190: 4765990.636 | AK190: 4825646.352 | AL190: 4861787.048 | AM190: 4910404.919 | AN190: 4959508.968 | AO190: 0 | AP190: 0
B191: Ingresos totales Paseo de la Castellana | E191: =+F191/$F$192 -> 0.5634757248 | F191: =+SUM(H191:AP191) -> 153523658.2 | H191: =+H35+H53+H71+H137+H157+H172+H89+H116+H166 -> 0 | I191: =+I35+I53+I71+I137+I157+I172+I89+I116+I166 -> 0 | J191: 0 | K191: 0 | L191: 0 | M191: 2585115.584 | N191: 4112801.092 | O191: 4531554.246 | P191: 4958271.183 | Q191: 5076439.869 | R191: 5117108.387 | S191: 5168279.471 | T191: 5219962.266 | U191: 5282563.684 | V191: 5324883.507 | W191: 5409229.603 | X191: 5463321.899 | Y191: 5528779.269 | Z191: 5573134.669 | AA191: 5628866.016 | AB191: 5685154.676 | AC191: 5753269.877 | AD191: 5799426.285 | AE191: 5857420.548 | AF191: 5915994.753 | AG191: 5986875.705 | AH191: 6034906.248 | AI191: 6095255.31 | AJ191: 6156207.864 | AK191: 6229966.866 | AL191: 6279947.642 | AM191: 6342747.118 | AN191: 6406174.589 | AO191: 0 | AP191: 0
B192: Total ingresos | E192: =+SUM(E190:E191) -> 1 | F192: =+SUM(H192:AP192) -> 272458335.8 | H192: =+SUM(H190:H191) -> 0 | I192: =+SUM(I190:I191) -> 0 | J192: 0 | K192: 0 | L192: 0 | M192: 4509861.783 | N192: 7237831.407 | O192: 8034868.159 | P192: 8864212.455 | Q192: 9031271.652 | R192: 9101559.078 | S192: 9192574.669 | T192: 9284500.416 | U192: 9397977.497 | V192: 9471118.874 | W192: 9596927.324 | X192: 9692896.597 | Y192: 9811295.385 | Z192: 9887723.818 | AA192: 9986601.057 | AB192: 10086467.07 | AC192: 10209673.32 | AD192: 10289205.06 | AE192: 10392097.11 | AF192: 10496018.08 | AG192: 10624227 | AH192: 10706988.04 | AI192: 10814057.92 | AJ192: 10922198.5 | AK192: 11055613.22 | AL192: 11141734.69 | AM192: 11253152.04 | AN192: 11365683.56 | AO192: 0 | AP192: 0

Sheet Financiación
A1: =+Control!A1 -> Real Madrid - Parking
A2: =RIGHT(CELL("filename", $H$3), LEN(CELL("filename", $H$3)) - SEARCH("]", CELL("filename", $H$3))) -> Financiación
A3: =+Control!A3 -> Cifras EUR
H4: =+YEAR(H5) -> 2019 | I4: =+YEAR(I5) -> 2020 | J4: 2021 | K4: 2022 | L4: 2023 | M4: 2024 | N4: 2025 | O4: 2026 | P4: 2027 | Q4: 2028 | R4: 2029 | S4: 2030 | T4: 2031 | U4: 2032 | V4: 2033 | W4: 2034 | X4: 2035 | Y4: 2036 | Z4: 2037 | AA4: 2038 | AB4: 2039 | AC4: 2040 | AD4: 2041 | AE4: 2042 | AF4: 2043 | AG4: 2044 | AH4: 2045 | AI4: 2046 | AJ4: 2047 | AK4: 2048 | AL4: 2049 | AM4: 2050 | AN4: 2051 | AO4: 2052 | AP4: 2053
B5: Errores | C5: =+Control!C4 -> 0 | H5: 2019-01-01 | I5: =+DATE(YEAR(H5)+1,MONTH(H5),DAY(H5)) -> 2020-01-01 | J5: 2021-01-01 | K5: 2022-01-01 | L5: 2023-01-01 | M5: 2024-01-01 | N5: 2025-01-01 | O5: 2026-01-01 | P5: 2027-01-01 | Q5: 2028-01-01 | R5: 2029-01-01 | S5: 2030-01-01 | T5: 2031-01-01 | U5: 2032-01-01 | V5: 2033-01-01 | W5: 2034-01-01 | X5: 2035-01-01 | Y5: =+DATE(YEAR(X5)+1,MONTH(X5),DAY(X5)) -> 2036-01-01 | Z5: 2037-01-01 | AA5: 2038-01-01 | AB5: 2039-01-01 | AC5: 2040-01-01 | AD5: 2041-01-01 | AE5: 2042-01-01 | AF5: 2043-01-01 | AG5: 2044-01-01 | AH5: 2045-01-01 | AI5: 2046-01-01 | AJ5: 2047-01-01 | AK5: 2048-01-01 | AL5: 2049-01-01 | AM5: 2050-01-01 | AN5: 2051-01-01 | AO5: =+DATE(YEAR(AN5)+1,MONTH(AN5),DAY(AN5)) -> 2052-01-01 | AP5: =+DATE(YEAR(AO5)+1,MONTH(AO5),DAY(AO5)) -> 2053-01-01
B6: TIR Accionistas (Dividendos) | C6: =+Control!C5 -> 0.0700448478 | H6: =+DATE(YEAR(H5),MONTH(H5)+12,DAY(H5)-1) -> 2019-12-31 | I6: =+DATE(YEAR(H6)+1,MONTH(H6),DAY(H6)) -> 2020-12-31 | J6: 2021-12-31 | K6: 2022-12-31 | L6: 2023-12-31 | M6: 2024-12-31 | N6: 2025-12-31 | O6: 2026-12-31 | P6: 2027-12-31 | Q6: 2028-12-31 | R6: 2029-12-31 | S6: 2030-12-31 | T6: 2031-12-31 | U6: 2032-12-31 | V6: 2033-12-31 | W6: 2034-12-31 | X6: 2035-12-31 | Y6: 2036-12-31 | Z6: 2037-12-31 | AA6: 2038-12-31 | AB6: 2039-12-31 | AC6: 2040-12-31 | AD6: 2041-12-31 | AE6: 2042-12-31 | AF6: 2043-12-31 | AG6: 2044-12-31 | AH6: 2045-12-31 | AI6: 2046-12-31 | AJ6: 2047-12-31 | AK6: 2048-12-31 | AL6: 2049-12-31 | AM6: 2050-12-31 | AN6: 2051-12-31 | AO6: =+DATE(YEAR(AN6)+1,MONTH(AN6),DAY(AN6)) -> 2052-12-31 | AP6: =+DATE(YEAR(AO6)+1,MONTH(AO6),DAY(AO6)) -> 2053-12-31
B8: =+Flags!B15 -> Días del periodo | H8: =+Flags!H15 -> 365 | I8: =+Flags!I15 -> 366 | J8: =+Flags!J15 -> 365 | K8: =+Flags!K15 -> 365 | L8: =+Flags!L15 -> 365 | M8: =+Flags!M15 -> 366 | N8: =+Flags!N15 -> 365 | O8: =+Flags!O15 -> 365 | P8: =+Flags!P15 -> 365 | Q8: =+Flags!Q15 -> 366 | R8: =+Flags!R15 -> 365 | S8: =+Flags!S15 -> 365 | T8: =+Flags!T15 -> 365 | U8: =+Flags!U15 -> 366 | V8: =+Flags!V15 -> 365 | W8: =+Flags!W15 -> 365 | X8: =+Flags!X15 -> 365 | Y8: =+Flags!Y15 -> 366 | Z8: =+Flags!Z15 -> 365 | AA8: =+Flags!AA15 -> 365 | AB8: =+Flags!AB15 -> 365 | AC8: =+Flags!AC15 -> 366 | AD8: =+Flags!AD15 -> 365 | AE8: =+Flags!AE15 -> 365 | AF8: =+Flags!AF15 -> 365 | AG8: =+Flags!AG15 -> 366 | AH8: =+Flags!AH15 -> 365 | AI8: =+Flags!AI15 -> 365 | AJ8: =+Flags!AJ15 -> 365 | AK8: =+Flags!AK15 -> 366 | AL8: =+Flags!AL15 -> 365 | AM8: =+Flags!AM15 -> 365 | AN8: =+Flags!AN15 -> 365 | AO8: =+Flags!AO15 -> 366 | AP8: =+Flags!AP15 -> 365
B10: =+Flags!B19 -> Periodo de Proyecto | H10: =+Flags!H19 -> 0 | I10: =+Flags!I19 -> 0 | J10: =+Flags!J19 -> 0 | K10: =+Flags!K19 -> 1 | L10: =+Flags!L19 -> 1 | M10: =+Flags!M19 -> 1 | N10: =+Flags!N19 -> 1 | O10: =+Flags!O19 -> 1 | P10: =+Flags!P19 -> 1 | Q10: =+Flags!Q19 -> 1 | R10: =+Flags!R19 -> 1 | S10: =+Flags!S19 -> 1 | T10: =+Flags!T19 -> 1 | U10: =+Flags!U19 -> 1 | V10: =+Flags!V19 -> 1 | W10: =+Flags!W19 -> 1 | X10: =+Flags!X19 -> 1 | Y10: =+Flags!Y19 -> 1 | Z10: =+Flags!Z19 -> 1 | AA10: =+Flags!AA19 -> 1 | AB10: =+Flags!AB19 -> 1 | AC10: =+Flags!AC19 -> 1 | AD10: =+Flags!AD19 -> 1 | AE10: =+Flags!AE19 -> 1 | AF10: =+Flags!AF19 -> 1 | AG10: =+Flags!AG19 -> 1 | AH10: =+Flags!AH19 -> 1 | AI10: =+Flags!AI19 -> 1 | AJ10: =+Flags!AJ19 -> 1 | AK10: =+Flags!AK19 -> 1 | AL10: =+Flags!AL19 -> 1 | AM10: =+Flags!AM19 -> 1 | AN10: =+Flags!AN19 -> 1 | AO10: =+Flags!AO19 -> 0 | AP10: =+Flags!AP19 -> 0
B12: =+Flags!B32 -> Días del periodo Construcción | H12: =+Flags!H32 -> 0 | I12: =+Flags!I32 -> 0 | J12: =+Flags!J32 -> 0 | K12: =+Flags!K32 -> 365 | L12: =+Flags!L32 -> 365 | M12: =+Flags!M32 -> 121 | N12: =+Flags!N32 -> 0 | O12: =+Flags!O32 -> 0 | P12: =+Flags!P32 -> 0 | Q12: =+Flags!Q32 -> 0 | R12: =+Flags!R32 -> 0 | S12: =+Flags!S32 -> 0 | T12: =+Flags!T32 -> 0 | U12: =+Flags!U32 -> 0 | V12: =+Flags!V32 -> 0 | W12: =+Flags!W32 -> 0 | X12: =+Flags!X32 -> 0 | Y12: =+Flags!Y32 -> 0 | Z12: =+Flags!Z32 -> 0 | AA12: =+Flags!AA32 -> 0 | AB12: =+Flags!AB32 -> 0 | AC12: =+Flags!AC32 -> 0 | AD12: =+Flags!AD32 -> 0 | AE12: =+Flags!AE32 -> 0 | AF12: =+Flags!AF32 -> 0 | AG12: =+Flags!AG32 -> 0 | AH12: =+Flags!AH32 -> 0 | AI12: =+Flags!AI32 -> 0 | AJ12: =+Flags!AJ32 -> 0 | AK12: =+Flags!AK32 -> 0 | AL12: =+Flags!AL32 -> 0 | AM12: =+Flags!AM32 -> 0 | AN12: =+Flags!AN32 -> 0 | AO12: =+Flags!AO32 -> 0 | AP12: =+Flags!AP32 -> 0
B13: =+Flags!B29 -> Ultimo Periodo de Construcción | H13: =+Flags!H29 -> 0 | I13: =+Flags!I29 -> 0 | J13: =+Flags!J29 -> 0 | K13: =+Flags!K29 -> 0 | L13: =+Flags!L29 -> 0 | M13: =+Flags!M29 -> 1 | N13: =+Flags!N29 -> 0 | O13: =+Flags!O29 -> 0 | P13: =+Flags!P29 -> 0 | Q13: =+Flags!Q29 -> 0 | R13: =+Flags!R29 -> 0 | S13: =+Flags!S29 -> 0 | T13: =+Flags!T29 -> 0 | U13: =+Flags!U29 -> 0 | V13: =+Flags!V29 -> 0 | W13: =+Flags!W29 -> 0 | X13: =+Flags!X29 -> 0 | Y13: =+Flags!Y29 -> 0 | Z13: =+Flags!Z29 -> 0 | AA13: =+Flags!AA29 -> 0 | AB13: =+Flags!AB29 -> 0 | AC13: =+Flags!AC29 -> 0 | AD13: =+Flags!AD29 -> 0 | AE13: =+Flags!AE29 -> 0 | AF13: =+Flags!AF29 -> 0 | AG13: =+Flags!AG29 -> 0 | AH13: =+Flags!AH29 -> 0 | AI13: =+Flags!AI29 -> 0 | AJ13: =+Flags!AJ29 -> 0 | AK13: =+Flags!AK29 -> 0 | AL13: =+Flags!AL29 -> 0 | AM13: =+Flags!AM29 -> 0 | AN13: =+Flags!AN29 -> 0 | AO13: =+Flags!AO29 -> 0 | AP13: =+Flags!AP29 -> 0
B14: =+Flags!B33 -> Factor de Construcción | H14: =+Flags!H33 -> 0 | I14: =+Flags!I33 -> 0 | J14: =+Flags!J33 -> 0 | K14: =+Flags!K33 -> 1 | L14: =+Flags!L33 -> 1 | M14: =+Flags!M33 -> 0.3306010929 | N14: =+Flags!N33 -> 0 | O14: =+Flags!O33 -> 0 | P14: =+Flags!P33 -> 0 | Q14: =+Flags!Q33 -> 0 | R14: =+Flags!R33 -> 0 | S14: =+Flags!S33 -> 0 | T14: =+Flags!T33 -> 0 | U14: =+Flags!U33 -> 0 | V14: =+Flags!V33 -> 0 | W14: =+Flags!W33 -> 0 | X14: =+Flags!X33 -> 0 | Y14: =+Flags!Y33 -> 0 | Z14: =+Flags!Z33 -> 0 | AA14: =+Flags!AA33 -> 0 | AB14: =+Flags!AB33 -> 0 | AC14: =+Flags!AC33 -> 0 | AD14: =+Flags!AD33 -> 0 | AE14: =+Flags!AE33 -> 0 | AF14: =+Flags!AF33 -> 0 | AG14: =+Flags!AG33 -> 0 | AH14: =+Flags!AH33 -> 0 | AI14: =+Flags!AI33 -> 0 | AJ14: =+Flags!AJ33 -> 0 | AK14: =+Flags!AK33 -> 0 | AL14: =+Flags!AL33 -> 0 | AM14: =+Flags!AM33 -> 0 | AN14: =+Flags!AN33 -> 0 | AO14: =+Flags!AO33 -> 0 | AP14: =+Flags!AP33 -> 0
B16: =+Flags!B37 -> Periodo de Operación | H16: =+Flags!H37 -> 0 | I16: =+Flags!I37 -> 0 | J16: =+Flags!J37 -> 0 | K16: =+Flags!K37 -> 0 | L16: =+Flags!L37 -> 0 | M16: =+Flags!M37 -> 1 | N16: =+Flags!N37 -> 1 | O16: =+Flags!O37 -> 1 | P16: =+Flags!P37 -> 1 | Q16: =+Flags!Q37 -> 1 | R16: =+Flags!R37 -> 1 | S16: =+Flags!S37 -> 1 | T16: =+Flags!T37 -> 1 | U16: =+Flags!U37 -> 1 | V16: =+Flags!V37 -> 1 | W16: =+Flags!W37 -> 1 | X16: =+Flags!X37 -> 1 | Y16: =+Flags!Y37 -> 1 | Z16: =+Flags!Z37 -> 1 | AA16: =+Flags!AA37 -> 1 | AB16: =+Flags!AB37 -> 1 | AC16: =+Flags!AC37 -> 1 | AD16: =+Flags!AD37 -> 1 | AE16: =+Flags!AE37 -> 1 | AF16: =+Flags!AF37 -> 1 | AG16: =+Flags!AG37 -> 1 | AH16: =+Flags!AH37 -> 1 | AI16: =+Flags!AI37 -> 1 | AJ16: =+Flags!AJ37 -> 1 | AK16: =+Flags!AK37 -> 1 | AL16: =+Flags!AL37 -> 1 | AM16: =+Flags!AM37 -> 1 | AN16: =+Flags!AN37 -> 1 | AO16: =+Flags!AO37 -> 0 | AP16: =+Flags!AP37 -> 0
B17: =+Flags!B41 -> Días del periodo Operación | H17: =+Flags!H41 -> 0 | I17: =+Flags!I41 -> 0 | J17: =+Flags!J41 -> 0 | K17: =+Flags!K41 -> 0 | L17: =+Flags!L41 -> 0 | M17: =+Flags!M41 -> 245 | N17: =+Flags!N41 -> 365 | O17: =+Flags!O41 -> 365 | P17: =+Flags!P41 -> 365 | Q17: =+Flags!Q41 -> 366 | R17: =+Flags!R41 -> 365 | S17: =+Flags!S41 -> 365 | T17: =+Flags!T41 -> 365 | U17: =+Flags!U41 -> 366 | V17: =+Flags!V41 -> 365 | W17: =+Flags!W41 -> 365 | X17: =+Flags!X41 -> 365 | Y17: =+Flags!Y41 -> 366 | Z17: =+Flags!Z41 -> 365 | AA17: =+Flags!AA41 -> 365 | AB17: =+Flags!AB41 -> 365 | AC17: =+Flags!AC41 -> 366 | AD17: =+Flags!AD41 -> 365 | AE17: =+Flags!AE41 -> 365 | AF17: =+Flags!AF41 -> 365 | AG17: =+Flags!AG41 -> 366 | AH17: =+Flags!AH41 -> 365 | AI17: =+Flags!AI41 -> 365 | AJ17: =+Flags!AJ41 -> 365 | AK17: =+Flags!AK41 -> 366 | AL17: =+Flags!AL41 -> 365 | AM17: =+Flags!AM41 -> 365 | AN17: =+Flags!AN41 -> 365 | AO17: =+Flags!AO41 -> 0 | AP17: =+Flags!AP41 -> 0
B18: =+Flags!B38 -> Ultimo Periodo de Operación | H18: =+Flags!H38 -> 0 | I18: =+Flags!I38 -> 0 | J18: =+Flags!J38 -> 0 | K18: =+Flags!K38 -> 0 | L18: =+Flags!L38 -> 0 | M18: =+Flags!M38 -> 0 | N18: =+Flags!N38 -> 0 | O18: =+Flags!O38 -> 0 | P18: =+Flags!P38 -> 0 | Q18: =+Flags!Q38 -> 0 | R18: =+Flags!R38 -> 0 | S18: =+Flags!S38 -> 0 | T18: =+Flags!T38 -> 0 | U18: =+Flags!U38 -> 0 | V18: =+Flags!V38 -> 0 | W18: =+Flags!W38 -> 0 | X18: =+Flags!X38 -> 0 | Y18: =+Flags!Y38 -> 0 | Z18: =+Flags!Z38 -> 0 | AA18: =+Flags!AA38 -> 0 | AB18: =+Flags!AB38 -> 0 | AC18: =+Flags!AC38 -> 0 | AD18: =+Flags!AD38 -> 0 | AE18: =+Flags!AE38 -> 0 | AF18: =+Flags!AF38 -> 0 | AG18: =+Flags!AG38 -> 0 | AH18: =+Flags!AH38 -> 0 | AI18: =+Flags!AI38 -> 0 | AJ18: =+Flags!AJ38 -> 0 | AK18: =+Flags!AK38 -> 0 | AL18: =+Flags!AL38 -> 0 | AM18: =+Flags!AM38 -> 0 | AN18: =+Flags!AN38 -> 1 | AO18: =+Flags!AO38 -> 0 | AP18: =+Flags!AP38 -> 0
B19: =+Flags!B42 -> Factor de Operación | H19: =+Flags!H42 -> 0 | I19: =+Flags!I42 -> 0 | J19: =+Flags!J42 -> 0 | K19: =+Flags!K42 -> 0 | L19: =+Flags!L42 -> 0 | M19: =+Flags!M42 -> 0.6693989071 | N19: =+Flags!N42 -> 1 | O19: =+Flags!O42 -> 1 | P19: =+Flags!P42 -> 1 | Q19: =+Flags!Q42 -> 1 | R19: =+Flags!R42 -> 1 | S19: =+Flags!S42 -> 1 | T19: =+Flags!T42 -> 1 | U19: =+Flags!U42 -> 1 | V19: =+Flags!V42 -> 1 | W19: =+Flags!W42 -> 1 | X19: =+Flags!X42 -> 1 | Y19: =+Flags!Y42 -> 1 | Z19: =+Flags!Z42 -> 1 | AA19: =+Flags!AA42 -> 1 | AB19: =+Flags!AB42 -> 1 | AC19: =+Flags!AC42 -> 1 | AD19: =+Flags!AD42 -> 1 | AE19: =+Flags!AE42 -> 1 | AF19: =+Flags!AF42 -> 1 | AG19: =+Flags!AG42 -> 1 | AH19: =+Flags!AH42 -> 1 | AI19: =+Flags!AI42 -> 1 | AJ19: =+Flags!AJ42 -> 1 | AK19: =+Flags!AK42 -> 1 | AL19: =+Flags!AL42 -> 1 | AM19: =+Flags!AM42 -> 1 | AN19: =+Flags!AN42 -> 1 | AO19: =+Flags!AO42 -> 0 | AP19: =+Flags!AP42 -> 0
B21: =+Flags!B45 -> Inicio de Financiación | H21: =+Flags!H45 -> 0 | I21: =+Flags!I45 -> 0 | J21: =+Flags!J45 -> 0 | K21: =+Flags!K45 -> 1 | L21: =+Flags!L45 -> 0 | M21: =+Flags!M45 -> 0 | N21: =+Flags!N45 -> 0 | O21: =+Flags!O45 -> 0 | P21: =+Flags!P45 -> 0 | Q21: =+Flags!Q45 -> 0 | R21: =+Flags!R45 -> 0 | S21: =+Flags!S45 -> 0 | T21: =+Flags!T45 -> 0 | U21: =+Flags!U45 -> 0 | V21: =+Flags!V45 -> 0 | W21: =+Flags!W45 -> 0 | X21: =+Flags!X45 -> 0 | Y21: =+Flags!Y45 -> 0 | Z21: =+Flags!Z45 -> 0 | AA21: =+Flags!AA45 -> 0 | AB21: =+Flags!AB45 -> 0 | AC21: =+Flags!AC45 -> 0 | AD21: =+Flags!AD45 -> 0 | AE21: =+Flags!AE45 -> 0 | AF21: =+Flags!AF45 -> 0 | AG21: =+Flags!AG45 -> 0 | AH21: =+Flags!AH45 -> 0 | AI21: =+Flags!AI45 -> 0 | AJ21: =+Flags!AJ45 -> 0 | AK21: =+Flags!AK45 -> 0 | AL21: =+Flags!AL45 -> 0 | AM21: =+Flags!AM45 -> 0 | AN21: =+Flags!AN45 -> 0 | AO21: =+Flags!AO45 -> 0 | AP21: =+Flags!AP45 -> 0
B22: =+Flags!B50 -> Días del periodo Financiación | H22: =+Flags!H50 -> 0 | I22: =+Flags!I50 -> 0 | J22: =+Flags!J50 -> 0 | K22: =+Flags!K50 -> 365 | L22: =+Flags!L50 -> 365 | M22: =+Flags!M50 -> 366 | N22: =+Flags!N50 -> 365 | O22: =+Flags!O50 -> 365 | P22: =+Flags!P50 -> 365 | Q22: =+Flags!Q50 -> 366 | R22: =+Flags!R50 -> 365 | S22: =+Flags!S50 -> 365 | T22: =+Flags!T50 -> 365 | U22: =+Flags!U50 -> 366 | V22: =+Flags!V50 -> 365 | W22: =+Flags!W50 -> 365 | X22: =+Flags!X50 -> 365 | Y22: =+Flags!Y50 -> 366 | Z22: =+Flags!Z50 -> 365 | AA22: =+Flags!AA50 -> 365 | AB22: =+Flags!AB50 -> 365 | AC22: =+Flags!AC50 -> 366 | AD22: =+Flags!AD50 -> 365 | AE22: =+Flags!AE50 -> 365 | AF22: =+Flags!AF50 -> 365 | AG22: =+Flags!AG50 -> 366 | AH22: =+Flags!AH50 -> 365 | AI22: =+Flags!AI50 -> 365 | AJ22: =+Flags!AJ50 -> 365 | AK22: =+Flags!AK50 -> 366 | AL22: =+Flags!AL50 -> 365 | AM22: =+Flags!AM50 -> 365 | AN22: =+Flags!AN50 -> 365 | AO22: =+Flags!AO50 -> 0 | AP22: =+Flags!AP50 -> 0
B24: =+Flags!B57 -> Factor de Actualización 2021 | H24: =+Flags!H57 -> 0 | I24: =+Flags!I57 -> 0 | J24: =+Flags!J57 -> 1 | K24: =+Flags!K57 -> 1.01 | L24: =+Flags!L57 -> 1.0201 | M24: =+Flags!M57 -> 1.030301 | N24: =+Flags!N57 -> 1.04060401 | O24: =+Flags!O57 -> 1.05101005 | P24: =+Flags!P57 -> 1.061520151 | Q24: =+Flags!Q57 -> 1.072135352 | R24: =+Flags!R57 -> 1.082856706 | S24: =+Flags!S57 -> 1.093685273 | T24: =+Flags!T57 -> 1.104622125 | U24: =+Flags!U57 -> 1.115668347 | V24: =+Flags!V57 -> 1.12682503 | W24: =+Flags!W57 -> 1.13809328 | X24: =+Flags!X57 -> 1.149474213 | Y24: =+Flags!Y57 -> 1.160968955 | Z24: =+Flags!Z57 -> 1.172578645 | AA24: =+Flags!AA57 -> 1.184304431 | AB24: =+Flags!AB57 -> 1.196147476 | AC24: =+Flags!AC57 -> 1.20810895 | AD24: =+Flags!AD57 -> 1.22019004 | AE24: =+Flags!AE57 -> 1.23239194 | AF24: =+Flags!AF57 -> 1.24471586 | AG24: =+Flags!AG57 -> 1.257163018 | AH24: =+Flags!AH57 -> 1.269734649 | AI24: =+Flags!AI57 -> 1.282431995 | AJ24: =+Flags!AJ57 -> 1.295256315 | AK24: =+Flags!AK57 -> 1.308208878 | AL24: =+Flags!AL57 -> 1.321290967 | AM24: =+Flags!AM57 -> 1.334503877 | AN24: =+Flags!AN57 -> 1.347848915 | AO24: =+Flags!AO57 -> 1.361327404 | AP24: =+Flags!AP57 -> 1.374940679
B26: Necesidades de financiación
B28: Inversión | F28: =+SUM(H28:AP28) -> 73024128.66 | H28: =+'Capex '!H102 -> 0 | I28: =+'Capex '!I102 -> 0 | J28: =+'Capex '!J102 -> 0 | K28: =+'Capex '!K102 -> 24746044.43 | L28: =+'Capex '!L102 -> 36558237.46 | M28: =+'Capex '!M102 -> 11719846.77 | N28: =+'Capex '!N102 -> 0 | O28: =+'Capex '!O102 -> 0 | P28: =+'Capex '!P102 -> 0 | Q28: =+'Capex '!Q102 -> 0 | R28: =+'Capex '!R102 -> 0 | S28: =+'Capex '!S102 -> 0 | T28: =+'Capex '!T102 -> 0 | U28: =+'Capex '!U102 -> 0 | V28: =+'Capex '!V102 -> 0 | W28: =+'Capex '!W102 -> 0 | X28: =+'Capex '!X102 -> 0 | Y28: =+'Capex '!Y102 -> 0 | Z28: =+'Capex '!Z102 -> 0 | AA28: =+'Capex '!AA102 -> 0 | AB28: =+'Capex '!AB102 -> 0 | AC28: =+'Capex '!AC102 -> 0 | AD28: =+'Capex '!AD102 -> 0 | AE28: =+'Capex '!AE102 -> 0 | AF28: =+'Capex '!AF102 -> 0 | AG28: =+'Capex '!AG102 -> 0 | AH28: =+'Capex '!AH102 -> 0 | AI28: =+'Capex '!AI102 -> 0 | AJ28: =+'Capex '!AJ102 -> 0 | AK28: =+'Capex '!AK102 -> 0 | AL28: =+'Capex '!AL102 -> 0 | AM28: =+'Capex '!AM102 -> 0 | AN28: =+'Capex '!AN102 -> 0 | AO28: =+'Capex '!AO102 -> 0 | AP28: =+'Capex '!AP102 -> 0
B29: Intereses en construcción | F29: =+SUM(H29:AP29) -> 2327721.745 | H29: =+H85 -> 0 | I29: =+I85 -> 0 | J29: =+J85 -> 0 | K29: 527828.1163 | L29: 1286361.032 | M29: 513532.597 | N29: 0 | O29: 0 | P29: 0 | Q29: 0 | R29: 0 | S29: 0 | T29: 0 | U29: 0 | V29: 0 | W29: 0 | X29: 0 | Y29: 0 | Z29: 0 | AA29: 0 | AB29: 0 | AC29: 0 | AD29: 0 | AE29: 0 | AF29: 0 | AG29: 0 | AH29: 0 | AI29: 0 | AJ29: 0 | AK29: 0 | AL29: 0 | AM29: 0 | AN29: 0 | AO29: 0 | AP29: 0
B30: Comisiones en construcción | F30: 1258638.684 | H30: =+H94*(H14>0) -> 0 | I30: 0 | J30: 0 | K30: 1085229.194 | L30: 121894.4393 | M30: 51515.05 | N30: 0 | O30: 0 | P30: 0 | Q30: 0 | R30: 0 | S30: 0 | T30: 0 | U30: 0 | V30: 0 | W30: 0 | X30: 0 | Y30: 0 | Z30: 0 | AA30: 0 | AB30: 0 | AC30: 0 | AD30: 0 | AE30: 0 | AF30: 0 | AG30: 0 | AH30: 0 | AI30: 0 | AJ30: 0 | AK30: 0 | AL30: 0 | AM30: 0 | AN30: 0 | AO30: 0 | AP30: 0
B31: CRSD a financiar | F31: 1609532.201 | H31: =+H169 -> 0 | I31: =+I169 -> 0 | J31: 0 | K31: 0 | L31: 0 | M31: 1609532.201 | N31: 0 | O31: 0 | P31: 0 | Q31: 0 | R31: 0 | S31: 0 | T31: 0 | U31: 0 | V31: 0 | W31: 0 | X31: 0 | Y31: 0 | Z31: 0 | AA31: 0 | AB31: 0 | AC31: 0 | AD31: 0 | AE31: 0 | AF31: 0 | AG31: 0 | AH31: 0 | AI31: 0 | AJ31: 0 | AK31: 0 | AL31: 0 | AM31: 0 | AN31: 0 | AO31: 0 | AP31: 0
B32: Impuesto de Sociedades en Construcción | F32: 106500.9008 | H32: =Impuestos!H89*H14 -> 0 | I32: =Impuestos!I89*I14 -> 0 | J32: =Impuestos!J89*J14 -> 0 | K32: =Impuestos!K89*K14 -> 0 | L32: =Impuestos!L89*L14 -> 0 | M32: =Impuestos!M89*M14 -> 106500.9008 | N32: =Impuestos!N89*N14 -> 0 | O32: =Impuestos!O89*O14 -> 0 | P32: =Impuestos!P89*P14 -> 0 | Q32: =Impuestos!Q89*Q14 -> 0 | R32: =Impuestos!R89*R14 -> 0 | S32: =Impuestos!S89*S14 -> 0 | T32: =Impuestos!T89*T14 -> 0 | U32: =Impuestos!U89*U14 -> 0 | V32: =Impuestos!V89*V14 -> 0 | W32: =Impuestos!W89*W14 -> 0 | X32: =Impuestos!X89*X14 -> 0 | Y32: =Impuestos!Y89*Y14 -> 0 | Z32: =Impuestos!Z89*Z14 -> 0 | AA32: =Impuestos!AA89*AA14 -> 0 | AB32: =Impuestos!AB89*AB14 -> 0 | AC32: =Impuestos!AC89*AC14 -> 0 | AD32: =Impuestos!AD89*AD14 -> 0 | AE32: =Impuestos!AE89*AE14 -> 0 | AF32: =Impuestos!AF89*AF14 -> 0 | AG32: =Impuestos!AG89*AG14 -> 0 | AH32: =Impuestos!AH89*AH14 -> 0 | AI32: =Impuestos!AI89*AI14 -> 0 | AJ32: =Impuestos!AJ89*AJ14 -> 0 | AK32: =Impuestos!AK89*AK14 -> 0 | AL32: =Impuestos!AL89*AL14 -> 0 | AM32: =Impuestos!AM89*AM14 -> 0 | AN32: =Impuestos!AN89*AN14 -> 0 | AO32: =Impuestos!AO89*AO14 -> 0 | AP32: =Impuestos!AP89*AP14 -> 0
B33: Gastos en construcción | F33: 474143.7273 | H33: =+'Capex '!H114 -> 0 | I33: =+'Capex '!I114 -> 0 | J33: =+'Capex '!J114 -> 0 | K33: =+'Capex '!K114 -> 202000 | L33: =+'Capex '!L114 -> 204020 | M33: =+'Capex '!M114 -> 68123.72732 | N33: =+'Capex '!N114 -> 0 | O33: =+'Capex '!O114 -> 0 | P33: =+'Capex '!P114 -> 0 | Q33: =+'Capex '!Q114 -> 0 | R33: =+'Capex '!R114 -> 0 | S33: =+'Capex '!S114 -> 0 | T33: =+'Capex '!T114 -> 0 | U33: =+'Capex '!U114 -> 0 | V33: =+'Capex '!V114 -> 0 | W33: =+'Capex '!W114 -> 0 | X33: =+'Capex '!X114 -> 0 | Y33: =+'Capex '!Y114 -> 0 | Z33: =+'Capex '!Z114 -> 0 | AA33: =+'Capex '!AA114 -> 0 | AB33: =+'Capex '!AB114 -> 0 | AC33: =+'Capex '!AC114 -> 0 | AD33: =+'Capex '!AD114 -> 0 | AE33: =+'Capex '!AE114 -> 0 | AF33: =+'Capex '!AF114 -> 0 | AG33: =+'Capex '!AG114 -> 0 | AH33: =+'Capex '!AH114 -> 0 | AI33: =+'Capex '!AI114 -> 0 | AJ33: =+'Capex '!AJ114 -> 0 | AK33: =+'Capex '!AK114 -> 0 | AL33: =+'Capex '!AL114 -> 0 | AM33: =+'Capex '!AM114 -> 0 | AN33: =+'Capex '!AN114 -> 0 | AO33: =+'Capex '!AO114 -> 0 | AP33: =+'Capex '!AP114 -> 0
B34: Caja mínima | F34: 200000 | H34: =+H181*H13 -> 0 | I34: =+I181*I13 -> 0 | J34: 0 | K34: 0 | L34: 0 | M34: 200000 | N34: 0 | O34: 0 | P34: 0 | Q34: 0 | R34: 0 | S34: 0 | T34: 0 | U34: 0 | V34: 0 | W34: 0 | X34: 0 | Y34: 0 | Z34: 0 | AA34: 0 | AB34: 0 | AC34: 0 | AD34: 0 | AE34: 0 | AF34: 0 | AG34: 0 | AH34: 0 | AI34: 0 | AJ34: 0 | AK34: 0 | AL34: 0 | AM34: 0 | AN34: 0 | AO34: 0 | AP34: 0
B36: Necesidades de Financiación | F36: 79000665.92 | H36: =+SUM(H28:H35) -> 0 | I36: 0 | J36: 0 | K36: 26561101.74 | L36: 38170512.93 | M36: 14269051.25 | N36: 0 | O36: 0 | P36: 0 | Q36: 0 | R36: 0 | S36: 0 | T36: 0 | U36: 0 | V36: 0 | W36: 0 | X36: 0 | Y36: 0 | Z36: 0 | AA36: 0 | AB36: 0 | AC36: 0 | AD36: 0 | AE36: 0 | AF36: 0 | AG36: 0 | AH36: 0 | AI36: 0 | AJ36: 0 | AK36: 0 | AL36: 0 | AM36: 0 | AN36: 0 | AO36: 0 | AP36: 0
B38: Estructura de financiación
B39: Capital | D39: =+Control!H10 -> 0.51 | F39: =+SUM(H39:AP39) -> 40290339.62 | H39: =+$D$39*H$36 -> 0 | I39: 0 | J39: 0 | K39: 13546161.89 | L39: 19466961.59 | M39: 7277216.138 | N39: 0 | O39: 0 | P39: 0 | Q39: 0 | R39: 0 | S39: 0 | T39: 0 | U39: 0 | V39: 0 | W39: 0 | X39: 0 | Y39: 0 | Z39: 0 | AA39: 0 | AB39: 0 | AC39: 0 | AD39: 0 | AE39: 0 | AF39: 0 | AG39: 0 | AH39: 0 | AI39: 0 | AJ39: 0 | AK39: 0 | AL39: 0 | AM39: 0 | AN39: 0 | AO39: 0 | AP39: 0
B40: Deuda | D40: =+Control!H11 -> 0.49 | F40: =+SUM(H40:AP40) -> 38710326.3 | H40: =+$D$40*H$36 -> 0 | I40: 0 | J40: 0 | K40: 13014939.85 | L40: 18703551.33 | M40: 6991835.113 | N40: 0 | O40: 0 | P40: 0 | Q40: 0 | R40: 0 | S40: 0 | T40: 0 | U40: 0 | V40: 0 | W40: 0 | X40: 0 | Y40: 0 | Z40: 0 | AA40: 0 | AB40: 0 | AC40: 0 | AD40: 0 | AE40: 0 | AF40: 0 | AG40: 0 | AH40: 0 | AI40: 0 | AJ40: 0 | AK40: 0 | AL40: 0 | AM40: 0 | AN40: 0 | AO40: 0 | AP40: 0
B42: Capital
B44: Saldo inicial | H44: =+G48 -> 0 | I44: =+H48 -> 0 | J44: 0 | K44: 0 | L44: 13546161.89 | M44: 33013123.48 | N44: 40270075.58 | O44: 39582389.06 | P44: 39416214.61 | Q44: 39381350.93 | R44: 39381350.93 | S44: 39381350.93 | T44: 39381350.93 | U44: 39381350.93 | V44: 39381350.93 | W44: 39381350.93 | X44: 39381350.93 | Y44: 39381350.93 | Z44: 39381350.93 | AA44: 39381350.93 | AB44: 36541760.49 | AC44: 32821064.34 | AD44: 29070420 | AE44: 25336298.61 | AF44: 22299622.76 | AG44: 19461939.88 | AH44: 16603118.42 | AI44: 13764466.97 | AJ44: 10911496.61 | AK44: 8053340.687 | AL44: 5173276.418 | AM44: 2314353.012 | AN44: 3000 | AO44: 0 | AP44: 0
B45: Aportaciones de capital | F45: =+SUM(H45:AP45) -> 40290339.62 | H45: =+H39 -> 0 | I45: 0 | J45: 0 | K45: 13546161.89 | L45: 19466961.59 | M45: 7277216.138 | N45: 0 | O45: 0 | P45: 0 | Q45: 0 | R45: 0 | S45: 0 | T45: 0 | U45: 0 | V45: 0 | W45: 0 | X45: 0 | Y45: 0 | Z45: 0 | AA45: 0 | AB45: 0 | AC45: 0 | AD45: 0 | AE45: 0 | AF45: 0 | AG45: 0 | AH45: 0 | AI45: 0 | AJ45: 0 | AK45: 0 | AL45: 0 | AM45: 0 | AN45: 0 | AO45: 0 | AP45: 0
B46: Reducciones de capital | F46: =+SUM(H46:AP46) -> -40287339.62 | H46: =-MAX(0,MIN(SUM(H44:H45),H60,H54,H64)) -> 0 | I46: =-MAX(0,MIN(SUM(I44:I45),I60,I54,I64)) -> 0 | J46: =-MAX(0,MIN(SUM(J44:J45),J60,J54,J64)) -> 0 | K46: =-MAX(0,MIN(SUM(K44:K45),K60,K54,K64)) -> 0 | L46: =-MAX(0,MIN(SUM(L44:L45),L60,L54,L64)) -> 0 | M46: =-MAX(0,MIN(SUM(M44:M45),M60,M54,M64)) -> -20264.03964 | N46: -687686.5166 | O46: -166174.4555 | P46: -34863.67612 | Q46: 0 | R46: 0 | S46: 0 | T46: 0 | U46: 0 | V46: 0 | W46: 0 | X46: 0 | Y46: 0 | Z46: 0 | AA46: -2839590.442 | AB46: -3720696.154 | AC46: -3750644.339 | AD46: -3734121.39 | AE46: -3036675.843 | AF46: -2837682.887 | AG46: -2858821.455 | AH46: -2838651.456 | AI46: -2852970.353 | AJ46: -2858155.926 | AK46: -2880064.269 | AL46: -2858923.406 | AM46: -2311353.012 | AN46: 0 | AO46: 0 | AP46: 0
B47: Liquidación | F47: =+SUM(H47:AP47) -> -3000 | G47: =-SUM(G44:G46)*G$18 -> 0 | I47: =-SUM(I44:I46)*I$18 -> 0 | J47: =-SUM(J44:J46)*J$18 -> 0 | K47: 0 | L47: 0 | M47: 0 | N47: 0 | O47: 0 | P47: 0 | Q47: 0 | R47: 0 | S47: 0 | T47: 0 | U47: 0 | V47: 0 | W47: 0 | X47: 0 | Y47: 0 | Z47: 0 | AA47: 0 | AB47: 0 | AC47: 0 | AD47: 0 | AE47: 0 | AF47: 0 | AG47: 0 | AH47: 0 | AI47: 0 | AJ47: 0 | AK47: 0 | AL47: 0 | AM47: =-SUM(AM44:AM46)*AM$18 -> 0 | AN47: -3000 | AO47: 0 | AP47: 0 | AQ47: 0
B48: Saldo final | H48: =+SUM(H44:H47) -> 0 | I48: =+SUM(I44:I47) -> 0 | J48: 0 | K48: 13546161.89 | L48: 33013123.48 | M48: 40270075.58 | N48: 39582389.06 | O48: 39416214.61 | P48: 39381350.93 | Q48: 39381350.93 | R48: 39381350.93 | S48: 39381350.93 | T48: 39381350.93 | U48: 39381350.93 | V48: 39381350.93 | W48: 39381350.93 | X48: 39381350.93 | Y48: 39381350.93 | Z48: 39381350.93 | AA48: 36541760.49 | AB48: 32821064.34 | AC48: 29070420 | AD48: 25336298.61 | AE48: 22299622.76 | AF48: 19461939.88 | AG48: 16603118.42 | AH48: 13764466.97 | AI48: 10911496.61 | AJ48: 8053340.687 | AK48: 5173276.418 | AL48: 2314353.012 | AM48: 3000 | AN48: 0 | AO48: 0 | AP48: 0
B50: Reducciones de capital | C50: =+Control!$H$30 -> Si | D50: =+Control!H31*(C50="Si") -> 2024
B52: Flag para reducción de capital | H52: =+IF(AND($D$50<>0,H4>=$D$50),1,0)*H16 -> 0 | I52: 0 | J52: 0 | K52: 0 | L52: 0 | M52: 1 | N52: 1 | O52: 1 | P52: 1 | Q52: 1 | R52: 1 | S52: 1 | T52: 1 | U52: 1 | V52: 1 | W52: 1 | X52: 1 | Y52: 1 | Z52: 1 | AA52: 1 | AB52: 1 | AC52: 1 | AD52: 1 | AE52: 1 | AF52: 1 | AG52: 1 | AH52: 1 | AI52: 1 | AJ52: 1 | AK52: 1 | AL52: 1 | AM52: 1 | AN52: 1 | AO52: 0 | AP52: 0
B54: CF disponible para Reducciones de Capital | H54: =+'Cash Flow'!H111 -> 0 | I54: =+'Cash Flow'!I111 -> 0 | J54: =+'Cash Flow'!J111 -> 0 | K54: =+'Cash Flow'!K111 -> 0 | L54: =+'Cash Flow'!L111 -> 0 | M54: =+'Cash Flow'!M111 -> 20264.03964 | N54: =+'Cash Flow'!N111 -> 687686.5166 | O54: =+'Cash Flow'!O111 -> 166174.4555 | P54: =+'Cash Flow'!P111 -> 34863.67612 | Q54: =+'Cash Flow'!Q111 -> 0 | R54: =+'Cash Flow'!R111 -> 0 | S54: =+'Cash Flow'!S111 -> 0 | T54: =+'Cash Flow'!T111 -> 0 | U54: =+'Cash Flow'!U111 -> 0 | V54: =+'Cash Flow'!V111 -> 0 | W54: =+'Cash Flow'!W111 -> 0 | X54: =+'Cash Flow'!X111 -> 0 | Y54: =+'Cash Flow'!Y111 -> 0 | Z54: =+'Cash Flow'!Z111 -> 0 | AA54: =+'Cash Flow'!AA111 -> 2839590.442 | AB54: =+'Cash Flow'!AB111 -> 3720696.154 | AC54: =+'Cash Flow'!AC111 -> 3750644.339 | AD54: =+'Cash Flow'!AD111 -> 3734121.39 | AE54: =+'Cash Flow'!AE111 -> 3036675.843 | AF54: =+'Cash Flow'!AF111 -> 2837682.887 | AG54: =+'Cash Flow'!AG111 -> 2858821.455 | AH54: =+'Cash Flow'!AH111 -> 2838651.456 | AI54: =+'Cash Flow'!AI111 -> 2852970.353 | AJ54: =+'Cash Flow'!AJ111 -> 2858155.926 | AK54: =+'Cash Flow'!AK111 -> 2880064.269 | AL54: =+'Cash Flow'!AL111 -> 2858923.406 | AM54: =+'Cash Flow'!AM111 -> 2986514.704 | AN54: =+'Cash Flow'!AN111 -> 747032.4914 | AO54: =+'Cash Flow'!AO111 -> 0 | AP54: =+'Cash Flow'!AP111 -> 0
B56: Apalancamiento
B57: Deuda | H57: =+H71 -> 0 | I57: =+I71 -> 0 | J57: 0 | K57: 13014939.85 | L57: 31718491.19 | M57: 36655578.87 | N57: 34957919.66 | O57: 32797473.41 | P57: 30139054.62 | Q57: 27298935.95 | R57: 24314560.46 | S57: 21171690.23 | T57: 17863470.24 | U57: 14372988.32 | V57: 10711953.77 | W57: 6847526.027 | X57: 2786546.709 | Y57: 0 | Z57: 0 | AA57: 0 | AB57: 0 | AC57: 0 | AD57: 0 | AE57: 0 | AF57: 0 | AG57: 0 | AH57: 0 | AI57: 0 | AJ57: 0 | AK57: 0 | AL57: 0 | AM57: 0 | AN57: 0 | AO57: 0 | AP57: 0
B58: Apalancamiento máximo | D58: =+Control!$H$16 -> 0.6
B59: Capital mínimo | H59: =+H57*(1-$D$58)/$D$58 -> 0 | I59: =+I57*(1-$D$58)/$D$58 -> 0 | J59: 0 | K59: 8676626.57 | L59: 21145660.79 | M59: 24437052.58 | N59: 23305279.77 | O59: 21864982.28 | P59: 20092703.08 | Q59: 18199290.63 | R59: 16209706.98 | S59: 14114460.16 | T59: 11908980.16 | U59: 9581992.217 | V59: 7141302.51 | W59: 4565017.351 | X59: 1857697.806 | Y59: 0 | Z59: 0 | AA59: 0 | AB59: 0 | AC59: 0 | AD59: 0 | AE59: 0 | AF59: 0 | AG59: 0 | AH59: 0 | AI59: 0 | AJ59: 0 | AK59: 0 | AL59: 0 | AM59: 0 | AN59: 0 | AO59: 0 | AP59: 0
B60: Capital excedentario | H60: =+MAX(0,H44+H45-H59) -> 0 | I60: =+MAX(0,I44+I45-I59) -> 0 | J60: 0 | K60: 4869535.32 | L60: 11867462.69 | M60: 15853287.04 | N60: 16964795.81 | O60: 17717406.79 | P60: 19323511.53 | Q60: 21182060.3 | R60: 23171643.96 | S60: 25266890.78 | T60: 27472370.78 | U60: 29799358.72 | V60: 32240048.42 | W60: 34816333.58 | X60: 37523653.13 | Y60: 39381350.93 | Z60: 39381350.93 | AA60: 39381350.93 | AB60: 36541760.49 | AC60: 32821064.34 | AD60: 29070420 | AE60: 25336298.61 | AF60: 22299622.76 | AG60: 19461939.88 | AH60: 16603118.42 | AI60: 13764466.97 | AJ60: 10911496.61 | AK60: 8053340.687 | AL60: 5173276.418 | AM60: 2314353.012 | AN60: 3000 | AO60: 0 | AP60: 0
B62: Capital mínimo
B63: Capital mínimo | D63: =+'Hipótesis '!D145 -> 3000
B64: Capital excedentario | H64: =+MAX(0,H44+H45-$D$63) -> 0 | I64: 0 | J64: 0 | K64: 13543161.89 | L64: 33010123.48 | M64: 40287339.62 | N64: 40267075.58 | O64: 39579389.06 | P64: 39413214.61 | Q64: 39378350.93 | R64: 39378350.93 | S64: 39378350.93 | T64: 39378350.93 | U64: 39378350.93 | V64: 39378350.93 | W64: 39378350.93 | X64: 39378350.93 | Y64: 39378350.93 | Z64: 39378350.93 | AA64: 39378350.93 | AB64: 36538760.49 | AC64: 32818064.34 | AD64: 29067420 | AE64: 25333298.61 | AF64: 22296622.76 | AG64: 19458939.88 | AH64: 16600118.42 | AI64: 13761466.97 | AJ64: 10908496.61 | AK64: 8050340.687 | AL64: 5170276.418 | AM64: 2311353.012 | AN64: 0 | AO64: 0 | AP64: 0
B66: Deuda
B68: Saldo inicial | H68: =+G71 -> 0 | I68: =+H71 -> 0 | J68: 0 | K68: 0 | L68: 13014939.85 | M68: 31718491.19 | N68: 36655578.87 | O68: 34957919.66 | P68: 32797473.41 | Q68: 30139054.62 | R68: 27298935.95 | S68: 24314560.46 | T68: 21171690.23 | U68: 17863470.24 | V68: 14372988.32 | W68: 10711953.77 | X68: 6847526.027 | Y68: 2786546.709 | Z68: 0 | AA68: 0 | AB68: 0 | AC68: 0 | AD68: 0 | AE68: 0 | AF68: 0 | AG68: 0 | AH68: 0 | AI68: 0 | AJ68: 0 | AK68: 0 | AL68: 0 | AM68: 0 | AN68: 0 | AO68: 0 | AP68: 0
B69: Disposiciones | F69: =+SUM(H69:AP69) -> 38710326.3 | H69: =+H40 -> 0 | I69: 0 | J69: 0 | K69: 13014939.85 | L69: 18703551.33 | M69: 6991835.113 | N69: 0 | O69: 0 | P69: 0 | Q69: 0 | R69: 0 | S69: 0 | T69: 0 | U69: 0 | V69: 0 | W69: 0 | X69: 0 | Y69: 0 | Z69: 0 | AA69: 0 | AB69: 0 | AC69: 0 | AD69: 0 | AE69: 0 | AF69: 0 | AG69: 0 | AH69: 0 | AI69: 0 | AJ69: 0 | AK69: 0 | AL69: 0 | AM69: 0 | AN69: 0 | AO69: 0 | AP69: 0
B70: Repagos de Principal | F70: =+SUM(H70:AP70) -> -38710326.3 | H70: =-MAX(MIN(SUM(H68,H69),H139)) -> 0 | I70: 0 | J70: 0 | K70: 0 | L70: 0 | M70: -2054747.428 | N70: -1697659.215 | O70: -2160446.246 | P70: -2658418.791 | Q70: -2840118.674 | R70: -2984375.485 | S70: -3142870.23 | T70: -3308219.998 | U70: -3490481.911 | V70: -3661034.56 | W70: -3864427.738 | X70: -4060979.318 | Y70: -2786546.709 | Z70: 0 | AA70: 0 | AB70: 0 | AC70: 0 | AD70: 0 | AE70: 0 | AF70: 0 | AG70: 0 | AH70: 0 | AI70: 0 | AJ70: 0 | AK70: 0 | AL70: 0 | AM70: 0 | AN70: 0 | AO70: 0 | AP70: 0
B71: Saldo final | H71: =+SUM(H68:H70) -> 0 | I71: =+SUM(I68:I70) -> 0 | J71: 0 | K71: 13014939.85 | L71: 31718491.19 | M71: 36655578.87 | N71: 34957919.66 | O71: 32797473.41 | P71: 30139054.62 | Q71: 27298935.95 | R71: 24314560.46 | S71: 21171690.23 | T71: 17863470.24 | U71: 14372988.32 | V71: 10711953.77 | W71: 6847526.027 | X71: 2786546.709 | Y71: 0 | Z71: 0 | AA71: 0 | AB71: 0 | AC71: 0 | AD71: 0 | AE71: 0 | AF71: 0 | AG71: 0 | AH71: 0 | AI71: 0 | AJ71: 0 | AK71: 0 | AL71: 0 | AM71: 0 | AN71: 0 | AO71: 0 | AP71: 0
B73: Check Repago | E73: =+IF(ROUND(SUM(F69:F70),2)=0,"Ok","Error") -> Ok
B75: Saldo medio | H75: =+(H68+H69+H70/4) -> 0 | I75: =+(I68+I69+I70/4) -> 0 | J75: =+(J68+J69+J70/4) -> 0 | K75: =+(K68+K69+K70/4) -> 13014939.85 | L75: 31718491.19 | M75: 38196639.45 | N75: 36231164.07 | O75: 34417808.1 | P75: 32132868.72 | Q75: 29429024.95 | R75: 26552842.08 | S75: 23528842.91 | T75: 20344635.23 | U75: 16990849.76 | V75: 13457729.68 | W75: 9745846.83 | X75: 5832281.197 | Y75: 2089910.032 | Z75: 0 | AA75: 0 | AB75: 0 | AC75: 0 | AD75: 0 | AE75: 0 | AF75: 0 | AG75: 0 | AH75: 0 | AI75: 0 | AJ75: 0 | AK75: 0 | AL75: 0 | AM75: 0 | AN75: 0 | AO75: 0 | AP75: 0
B77: Intereses
B78: Tipo de interés | D78: =+Control!H17 -> 0.04
B80: Tipo de interés | H80: =+$D$78 -> 0.04 | I80: =+$D$78 -> 0.04 | J80: 0.04 | K80: 0.04 | L80: 0.04 | M80: 0.04 | N80: 0.04 | O80: 0.04 | P80: 0.04 | Q80: 0.04 | R80: 0.04 | S80: 0.04 | T80: 0.04 | U80: 0.04 | V80: 0.04 | W80: 0.04 | X80: 0.04 | Y80: 0.04 | Z80: 0.04 | AA80: 0.04 | AB80: 0.04 | AC80: 0.04 | AD80: 0.04 | AE80: 0.04 | AF80: 0.04 | AG80: 0.04 | AH80: 0.04 | AI80: 0.04 | AJ80: 0.04 | AK80: 0.04 | AL80: 0.04 | AM80: 0.04 | AN80: 0.04 | AO80: 0.04 | AP80: 0.04
B81: Base | D81: =+Control!H18 -> 360
B83: Intereses | H83: =+H75*H80 -> 0 | I83: =+I75*I80 -> 0 | J83: 0 | K83: 520597.5942 | L83: 1268739.648 | M83: 1527865.578 | N83: 1449246.563 | O83: 1376712.324 | P83: 1285314.749 | Q83: 1177160.998 | R83: 1062113.683 | S83: 941153.7162 | T83: 813785.4094 | U83: 679633.9903 | V83: 538309.1874 | W83: 389833.8732 | X83: 233291.2479 | Y83: 83596.40126 | Z83: 0 | AA83: 0 | AB83: 0 | AC83: 0 | AD83: 0 | AE83: 0 | AF83: 0 | AG83: 0 | AH83: 0 | AI83: 0 | AJ83: 0 | AK83: 0 | AL83: 0 | AM83: 0 | AN83: 0 | AO83: 0 | AP83: 0
B84: Intereses (paste) | H84: =+Macro!H23 -> 0 | I84: =+Macro!I23 -> 0 | J84: =+Macro!J23 -> 0 | K84: =+Macro!K23 -> 520597.5942 | L84: =+Macro!L23 -> 1268739.648 | M84: =+Macro!M23 -> 1527865.578 | N84: =+Macro!N23 -> 1449246.563 | O84: =+Macro!O23 -> 1376712.324 | P84: =+Macro!P23 -> 1285314.749 | Q84: =+Macro!Q23 -> 1177160.998 | R84: =+Macro!R23 -> 1062113.683 | S84: =+Macro!S23 -> 941153.7162 | T84: =+Macro!T23 -> 813785.4094 | U84: =+Macro!U23 -> 679633.9903 | V84: =+Macro!V23 -> 538309.1874 | W84: =+Macro!W23 -> 389833.8732 | X84: =+Macro!X23 -> 233291.2479 | Y84: =+Macro!Y23 -> 83596.40126 | Z84: =+Macro!Z23 -> 0 | AA84: =+Macro!AA23 -> 0 | AB84: =+Macro!AB23 -> 0 | AC84: =+Macro!AC23 -> 0 | AD84: =+Macro!AD23 -> 0 | AE84: =+Macro!AE23 -> 0 | AF84: =+Macro!AF23 -> 0 | AG84: =+Macro!AG23 -> 0 | AH84: =+Macro!AH23 -> 0 | AI84: =+Macro!AI23 -> 0 | AJ84: =+Macro!AJ23 -> 0 | AK84: =+Macro!AK23 -> 0 | AL84: =+Macro!AL23 -> 0 | AM84: =+Macro!AM23 -> 0 | AN84: =+Macro!AN23 -> 0 | AO84: =+Macro!AO23 -> 0 | AP84: =+Macro!AP23 -> 0
B85: Intereses en construcción | F85: =+SUM(H85:AP85) -> 2327721.745 | H85: =+H84*H$12/$D81 -> 0 | I85: =+I84*I$12/$D81 -> 0 | J85: 0 | K85: 527828.1163 | L85: 1286361.032 | M85: 513532.597 | N85: 0 | O85: 0 | P85: 0 | Q85: 0 | R85: 0 | S85: 0 | T85: 0 | U85: 0 | V85: 0 | W85: 0 | X85: 0 | Y85: 0 | Z85: 0 | AA85: 0 | AB85: 0 | AC85: 0 | AD85: 0 | AE85: 0 | AF85: 0 | AG85: 0 | AH85: 0 | AI85: 0 | AJ85: 0 | AK85: 0 | AL85: 0 | AM85: 0 | AN85: 0 | AO85: 0 | AP85: 0
B86: Intereses en operación | F86: =+SUM(H86:AP86) -> 11214647.19 | H86: =+H84*H$17/$D81 -> 0 | I86: =+I84*I$17/$D81 -> 0 | J86: =+J84*J$17/$D81 -> 0 | K86: =+K84*K$17/$D81 -> 0 | L86: 0 | M86: 1039797.407 | N86: 1469374.987 | O86: 1395833.328 | P86: 1303166.342 | Q86: 1196780.348 | R86: 1076865.262 | S86: 954225.2956 | T86: 825087.9845 | U86: 690961.2235 | V86: 545785.7039 | W86: 395248.2326 | X86: 236531.4041 | Y86: 84989.67462 | Z86: 0 | AA86: 0 | AB86: 0 | AC86: 0 | AD86: 0 | AE86: 0 | AF86: 0 | AG86: 0 | AH86: 0 | AI86: 0 | AJ86: 0 | AK86: 0 | AL86: 0 | AM86: 0 | AN86: 0 | AO86: 0 | AP86: 0
B88: Gastos de formalización
B90: Comisión de apertura | D90: =+Control!H19 -> 0.02 | H90: =+$D$90*$F69*H$21 -> 0 | I90: 0 | J90: 0 | K90: 774206.526 | L90: 0 | M90: 0 | N90: 0 | O90: 0 | P90: 0 | Q90: 0 | R90: 0 | S90: 0 | T90: 0 | U90: 0 | V90: 0 | W90: 0 | X90: 0 | Y90: 0 | Z90: 0 | AA90: 0 | AB90: 0 | AC90: 0 | AD90: 0 | AE90: 0 | AF90: 0 | AG90: 0 | AH90: 0 | AI90: 0 | AJ90: 0 | AK90: 0 | AL90: 0 | AM90: 0 | AN90: 0 | AO90: 0 | AP90: 0
B91: Comisión de disponibilidad | D91: =+Control!H20 -> 0.01 | H91: =+$D$91*($F69-(H68+H69))*(H69<>0)*H22/$D$81 -> 0 | I91: 0 | J91: 0 | K91: 260522.6681 | L91: 70889.43934 | M91: 0 | N91: 0 | O91: 0 | P91: 0 | Q91: 0 | R91: 0 | S91: 0 | T91: 0 | U91: 0 | V91: 0 | W91: 0 | X91: 0 | Y91: 0 | Z91: 0 | AA91: 0 | AB91: 0 | AC91: 0 | AD91: 0 | AE91: 0 | AF91: 0 | AG91: 0 | AH91: 0 | AI91: 0 | AJ91: 0 | AK91: 0 | AL91: 0 | AM91: 0 | AN91: 0 | AO91: 0 | AP91: 0
B92: Comisión de agencia | D92: =+Control!H21 -> 50000 | H92: =+$D$92*H$24*OR(H21=1,(ROUND(H68,0)<>0)) -> 0 | I92: 0 | J92: =+$D$92*J$24*OR(J21=1,(ROUND(J68,0)<>0)) -> 0 | K92: 50500 | L92: 51005 | M92: 51515.05 | N92: 52030.2005 | O92: 52550.5025 | P92: 53076.00753 | Q92: 53606.76761 | R92: 54142.83528 | S92: 54684.26363 | T92: 55231.10627 | U92: 55783.41733 | V92: 56341.25151 | W92: 56904.66402 | X92: 57473.71066 | Y92: 58048.44777 | Z92: 0 | AA92: 0 | AB92: 0 | AC92: 0 | AD92: 0 | AE92: 0 | AF92: 0 | AG92: 0 | AH92: 0 | AI92: 0 | AJ92: 0 | AK92: 0 | AL92: 0 | AM92: 0 | AN92: 0 | AO92: 0 | AP92: 0
B93: Total Comisiones | H93: =+SUM(H90:H92) -> 0 | I93: =+SUM(I90:I92) -> 0 | J93: 0 | K93: 1085229.194 | L93: 121894.4393 | M93: 51515.05 | N93: 52030.2005 | O93: 52550.5025 | P93: 53076.00753 | Q93: 53606.76761 | R93: 54142.83528 | S93: 54684.26363 | T93: 55231.10627 | U93: 55783.41733 | V93: 56341.25151 | W93: 56904.66402 | X93: 57473.71066 | Y93: 58048.44777 | Z93: 0 | AA93: 0 | AB93: 0 | AC93: 0 | AD93: 0 | AE93: 0 | AF93: 0 | AG93: 0 | AH93: 0 | AI93: 0 | AJ93: 0 | AK93: 0 | AL93: 0 | AM93: 0 | AN93: 0 | AO93: 0 | AP93: 0
B94: Total Comisiones (paste) | H94: =+Macro!H24 -> 0 | I94: =+Macro!I24 -> 0 | J94: =+Macro!J24 -> 0 | K94: =+Macro!K24 -> 1085229.194 | L94: =+Macro!L24 -> 121894.4393 | M94: =+Macro!M24 -> 51515.05 | N94: =+Macro!N24 -> 52030.2005 | O94: =+Macro!O24 -> 52550.5025 | P94: =+Macro!P24 -> 53076.00753 | Q94: =+Macro!Q24 -> 53606.76761 | R94: =+Macro!R24 -> 54142.83528 | S94: =+Macro!S24 -> 54684.26363 | T94: =+Macro!T24 -> 55231.10627 | U94: =+Macro!U24 -> 55783.41733 | V94: =+Macro!V24 -> 56341.25151 | W94: =+Macro!W24 -> 56904.66402 | X94: =+Macro!X24 -> 57473.71066 | Y94: =+Macro!Y24 -> 58048.44777 | Z94: =+Macro!Z24 -> 0 | AA94: =+Macro!AA24 -> 0 | AB94: =+Macro!AB24 -> 0 | AC94: =+Macro!AC24 -> 0 | AD94: =+Macro!AD24 -> 0 | AE94: =+Macro!AE24 -> 0 | AF94: =+Macro!AF24 -> 0 | AG94: =+Macro!AG24 -> 0 | AH94: =+Macro!AH24 -> 0 | AI94: =+Macro!AI24 -> 0 | AJ94: =+Macro!AJ24 -> 0 | AK94: =+Macro!AK24 -> 0 | AL94: =+Macro!AL24 -> 0 | AM94: =+Macro!AM24 -> 0 | AN94: =+Macro!AN24 -> 0 | AO94: =+Macro!AO24 -> 0 | AP94: =+Macro!AP24 -> 0
B95: Comisiones en construcción | H95: =+SUM(H96:H98) -> 0 | I95: =+SUM(I96:I98) -> 0 | J95: =+SUM(J96:J98) -> 0 | K95: =+SUM(K96:K98) -> 1085229.194 | L95: 121894.4393 | M95: 51515.05 | N95: 0 | O95: 0 | P95: 0 | Q95: 0 | R95: 0 | S95: 0 | T95: 0 | U95: 0 | V95: 0 | W95: 0 | X95: 0 | Y95: 0 | Z95: 0 | AA95: 0 | AB95: 0 | AC95: 0 | AD95: 0 | AE95: 0 | AF95: 0 | AG95: 0 | AH95: 0 | AI95: 0 | AJ95: 0 | AK95: 0 | AL95: 0 | AM95: 0 | AN95: 0 | AO95: 0 | AP95: 0
B96: =+B90 -> Comisión de apertura | H96: =+H90*(H$14>0) -> 0 | I96: 0 | J96: 0 | K96: 774206.526 | L96: 0 | M96: 0 | N96: 0 | O96: 0 | P96: 0 | Q96: 0 | R96: 0 | S96: 0 | T96: 0 | U96: 0 | V96: 0 | W96: 0 | X96: 0 | Y96: 0 | Z96: 0 | AA96: 0 | AB96: 0 | AC96: 0 | AD96: 0 | AE96: 0 | AF96: 0 | AG96: 0 | AH96: 0 | AI96: 0 | AJ96: 0 | AK96: 0 | AL96: 0 | AM96: 0 | AN96: 0 | AO96: 0 | AP96: 0
B97: =+B91 -> Comisión de disponibilidad | H97: =+H91*(H$14>0) -> 0 | I97: 0 | J97: 0 | K97: 260522.6681 | L97: 70889.43934 | M97: 0 | N97: 0 | O97: 0 | P97: 0 | Q97: 0 | R97: 0 | S97: 0 | T97: 0 | U97: 0 | V97: 0 | W97: 0 | X97: 0 | Y97: 0 | Z97: 0 | AA97: 0 | AB97: 0 | AC97: 0 | AD97: 0 | AE97: 0 | AF97: 0 | AG97: 0 | AH97: 0 | AI97: 0 | AJ97: 0 | AK97: 0 | AL97: 0 | AM97: 0 | AN97: 0 | AO97: 0 | AP97: 0
B98: =+B92 -> Comisión de agencia | H98: =+H92*(H$14>0) -> 0 | I98: 0 | J98: 0 | K98: 50500 | L98: 51005 | M98: 51515.05 | N98: 0 | O98: 0 | P98: 0 | Q98: 0 | R98: 0 | S98: 0 | T98: 0 | U98: 0 | V98: 0 | W98: 0 | X98: 0 | Y98: 0 | Z98: 0 | AA98: 0 | AB98: 0 | AC98: 0 | AD98: 0 | AE98: 0 | AF98: 0 | AG98: 0 | AH98: 0 | AI98: 0 | AJ98: 0 | AK98: 0 | AL98: 0 | AM98: 0 | AN98: 0 | AO98: 0 | AP98: 0
B99: Comisiones en operación | H99: =+H94-SUM(H96:H98) -> 0 | I99: 0 | J99: 0 | K99: 0 | L99: 0 | M99: 0 | N99: 52030.2005 | O99: 52550.5025 | P99: 53076.00753 | Q99: 53606.76761 | R99: 54142.83528 | S99: 54684.26363 | T99: 55231.10627 | U99: 55783.41733 | V99: 56341.25151 | W99: 56904.66402 | X99: 57473.71066 | Y99: 58048.44777 | Z99: 0 | AA99: 0 | AB99: 0 | AC99: 0 | AD99: 0 | AE99: 0 | AF99: 0 | AG99: 0 | AH99: 0 | AI99: 0 | AJ99: 0 | AK99: 0 | AL99: 0 | AM99: 0 | AN99: 0 | AO99: 0 | AP99: 0
B101: Diferimiento de gastos de formalización
B103: Disposiciones | F103: =+SUM(H103:AP103) -> 38710326.3 | H103: =+H69 -> 0 | I103: 0 | J103: 0 | K103: 13014939.85 | L103: 18703551.33 | M103: 6991835.113 | N103: 0 | O103: 0 | P103: 0 | Q103: 0 | R103: 0 | S103: 0 | T103: 0 | U103: 0 | V103: 0 | W103: 0 | X103: 0 | Y103: 0 | Z103: 0 | AA103: 0 | AB103: 0 | AC103: 0 | AD103: 0 | AE103: 0 | AF103: 0 | AG103: 0 | AH103: 0 | AI103: 0 | AJ103: 0 | AK103: 0 | AL103: 0 | AM103: 0 | AN103: 0 | AO103: 0 | AP103: 0
B104: Comisión de apertura y disponibilidad | F104: =+SUM(H104:AP104) -> -1105618.634 | H104: =-H90-H91 -> 0 | I104: 0 | J104: 0 | K104: -1034729.194 | L104: -70889.43934 | M104: 0 | N104: 0 | O104: 0 | P104: 0 | Q104: 0 | R104: 0 | S104: 0 | T104: 0 | U104: 0 | V104: 0 | W104: 0 | X104: 0 | Y104: 0 | Z104: 0 | AA104: 0 | AB104: 0 | AC104: 0 | AD104: 0 | AE104: 0 | AF104: 0 | AG104: 0 | AH104: 0 | AI104: 0 | AJ104: 0 | AK104: 0 | AL104: 0 | AM104: 0 | AN104: 0 | AO104: 0 | AP104: 0
B105: Intereses | F105: =+SUM(H105:AP105) -> -13542368.94 | H105: =-H85-H86 -> 0 | I105: 0 | J105: 0 | K105: -527828.1163 | L105: -1286361.032 | M105: -1553330.004 | N105: -1469374.987 | O105: -1395833.328 | P105: -1303166.342 | Q105: -1196780.348 | R105: -1076865.262 | S105: -954225.2956 | T105: -825087.9845 | U105: -690961.2235 | V105: -545785.7039 | W105: -395248.2326 | X105: -236531.4041 | Y105: -84989.67462 | Z105: 0 | AA105: 0 | AB105: 0 | AC105: 0 | AD105: 0 | AE105: 0 | AF105: 0 | AG105: 0 | AH105: 0 | AI105: 0 | AJ105: 0 | AK105: 0 | AL105: 0 | AM105: 0 | AN105: 0 | AO105: 0 | AP105: 0
B106: Repagos | F106: =+SUM(H106:AP106) -> -38710326.3 | H106: =+H70 -> 0 | I106: 0 | J106: 0 | K106: 0 | L106: 0 | M106: -2054747.428 | N106: -1697659.215 | O106: -2160446.246 | P106: -2658418.791 | Q106: -2840118.674 | R106: -2984375.485 | S106: -3142870.23 | T106: -3308219.998 | U106: -3490481.911 | V106: -3661034.56 | W106: -3864427.738 | X106: -4060979.318 | Y106: -2786546.709 | Z106: 0 | AA106: 0 | AB106: 0 | AC106: 0 | AD106: 0 | AE106: 0 | AF106: 0 | AG106: 0 | AH106: 0 | AI106: 0 | AJ106: 0 | AK106: 0 | AL106: 0 | AM106: 0 | AN106: 0 | AO106: 0 | AP106: 0
B107: Total flujos | H107: =+SUM(H103:H106) -> 0 | I107: =+SUM(I103:I106) -> 0 | J107: =+SUM(J103:J106) -> 0 | K107: =+SUM(K103:K106) -> 11452382.54 | L107: 17346300.86 | M107: 3383757.681 | N107: -3167034.202 | O107: -3556279.574 | P107: -3961585.133 | Q107: -4036899.022 | R107: -4061240.747 | S107: -4097095.525 | T107: -4133307.983 | U107: -4181443.134 | V107: -4206820.264 | W107: -4259675.971 | X107: -4297510.722 | Y107: -2871536.383 | Z107: 0 | AA107: 0 | AB107: 0 | AC107: 0 | AD107: 0 | AE107: 0 | AF107: 0 | AG107: 0 | AH107: 0 | AI107: 0 | AJ107: 0 | AK107: 0 | AL107: 0 | AM107: 0 | AN107: 0 | AO107: 0 | AP107: 0
B109: TIE de la deuda | D109: =+IFERROR(IRR(H107:AP107),0) -> 0.05086774619
B111: Saldo incicial | H111: =+G117 -> 0 | I111: 0 | J111: 0 | K111: 0 | L111: 11743660.99 | M111: 30128519.03 | N111: 35130908.64 | O111: 33670354.63 | P111: 31736360.15 | Q111: 29288373.68 | R111: 26638634.23 | S111: 23829147.69 | T111: 20839982.19 | U111: 17661631.11 | V111: 14272245.05 | W111: 10684425.99 | X111: 6859902.629 | Y111: 2802037.351 | Z111: -2.884189598e-08 | AA111: -3.030901823e-08 | AB111: -3.185076967e-08 | AC111: -3.347094654e-08 | AD111: -3.517353816e-08 | AE111: -3.696273677e-08 | AF111: -3.884294788e-08 | AG111: -4.081880109e-08 | AH111: =+AG117 -> -4.289516151e-08 | AI111: -4.50771417e-08 | AJ111: -4.73701143e-08 | AK111: -4.977972525e-08 | AL111: -5.231190768e-08 | AM111: -5.497289652e-08 | AN111: -5.776924387e-08 | AO111: -6.070783511e-08 | AP111: -6.379590585e-08
B112: Disposiciones | F112: =+SUM(H112:AP112) -> 38710326.3 | H112: =+H103 -> 0 | I112: 0 | J112: 0 | K112: 13014939.85 | L112: 18703551.33 | M112: 6991835.113 | N112: 0 | O112: 0 | P112: 0 | Q112: 0 | R112: 0 | S112: 0 | T112: 0 | U112: 0 | V112: 0 | W112: 0 | X112: 0 | Y112: 0 | Z112: 0 | AA112: 0 | AB112: 0 | AC112: 0 | AD112: 0 | AE112: 0 | AF112: 0 | AG112: 0 | AH112: 0 | AI112: 0 | AJ112: 0 | AK112: 0 | AL112: 0 | AM112: 0 | AN112: 0 | AO112: 0 | AP112: 0
B113: Repagos | F113: =+SUM(H113:AP113) -> -38710326.3 | H113: =+H106 -> 0 | I113: 0 | J113: 0 | K113: 0 | L113: 0 | M113: -2054747.428 | N113: -1697659.215 | O113: -2160446.246 | P113: -2658418.791 | Q113: -2840118.674 | R113: -2984375.485 | S113: -3142870.23 | T113: -3308219.998 | U113: -3490481.911 | V113: -3661034.56 | W113: -3864427.738 | X113: -4060979.318 | Y113: -2786546.709 | Z113: 0 | AA113: 0 | AB113: 0 | AC113: 0 | AD113: 0 | AE113: 0 | AF113: 0 | AG113: 0 | AH113: =+AH106 -> 0 | AI113: 0 | AJ113: 0 | AK113: 0 | AL113: 0 | AM113: 0 | AN113: 0 | AO113: 0 | AP113: 0
B114: Comisiones | F114: =+SUM(H114:AP114) -> -1105618.634 | H114: =+H104 -> 0 | I114: 0 | J114: 0 | K114: -1034729.194 | L114: -70889.43934 | M114: 0 | N114: 0 | O114: 0 | P114: 0 | Q114: 0 | R114: 0 | S114: 0 | T114: 0 | U114: 0 | V114: 0 | W114: 0 | X114: 0 | Y114: 0 | Z114: 0 | AA114: 0 | AB114: 0 | AC114: 0 | AD114: 0 | AE114: 0 | AF114: 0 | AG114: 0 | AH114: 0 | AI114: 0 | AJ114: 0 | AK114: 0 | AL114: 0 | AM114: 0 | AN114: 0 | AO114: 0 | AP114: 0
B115: =+B105 -> Intereses | F115: =+SUM(H115:AP115) -> -13542368.94 | H115: =+H105 -> 0 | I115: 0 | J115: 0 | K115: -527828.1163 | L115: -1286361.032 | M115: -1553330.004 | N115: -1469374.987 | O115: -1395833.328 | P115: -1303166.342 | Q115: -1196780.348 | R115: -1076865.262 | S115: -954225.2956 | T115: -825087.9845 | U115: -690961.2235 | V115: -545785.7039 | W115: -395248.2326 | X115: -236531.4041 | Y115: -84989.67462 | Z115: 0 | AA115: 0 | AB115: 0 | AC115: 0 | AD115: 0 | AE115: 0 | AF115: 0 | AG115: 0 | AH115: 0 | AI115: 0 | AJ115: 0 | AK115: 0 | AL115: 0 | AM115: 0 | AN115: 0 | AO115: 0 | AP115: 0
B116: Gastos financieros devengados | F116: =+SUM(H116:AP116) -> 14647987.57 | H116: =+(H111+SUM(H112:H115))*$D109 -> 0 | I116: =+(I111+SUM(I112:I115)/2)*$D109 -> 0 | J116: 0 | K116: 291278.4443 | L116: 1038557.181 | M116: 1618631.923 | N116: 1706480.198 | O116: 1622285.09 | P116: 1513598.66 | Q116: 1387159.581 | R116: 1251754.203 | S116: 1107930.029 | T116: 954956.8943 | U116: 792057.0744 | V116: 619001.2059 | W116: 435152.6113 | X116: 239645.4435 | Y116: 69499.0328 | Z116: -1.467122245e-09 | AA116: -1.541751447e-09 | AB116: -1.620176868e-09 | AC116: -1.702591614e-09 | AD116: -1.789198612e-09 | AE116: -1.880211112e-09 | AF116: -1.975853214e-09 | AG116: -2.076360414e-09 | AH116: -2.181980188e-09 | AI116: -2.292972603e-09 | AJ116: -2.409610951e-09 | AK116: -2.53218243e-09 | AL116: -2.660988843e-09 | AM116: -2.796347348e-09 | AN116: -2.938591235e-09 | AO116: -3.088070748e-09 | AP116: -3.245153947e-09
B117: Saldo final | H117: =+SUM(H111:H116) -> 0 | I117: 0 | J117: 0 | K117: 11743660.99 | L117: 30128519.03 | M117: 35130908.64 | N117: 33670354.63 | O117: 31736360.15 | P117: 29288373.68 | Q117: 26638634.23 | R117: 23829147.69 | S117: 20839982.19 | T117: 17661631.11 | U117: 14272245.05 | V117: 10684425.99 | W117: 6859902.629 | X117: 2802037.351 | Y117: -2.884189598e-08 | Z117: -3.030901823e-08 | AA117: -3.185076967e-08 | AB117: -3.347094654e-08 | AC117: -3.517353816e-08 | AD117: -3.696273677e-08 | AE117: -3.884294788e-08 | AF117: -4.081880109e-08 | AG117: -4.289516151e-08 | AH117: -4.50771417e-08 | AI117: -4.73701143e-08 | AJ117: -4.977972525e-08 | AK117: -5.231190768e-08 | AL117: -5.497289652e-08 | AM117: -5.776924387e-08 | AN117: -6.070783511e-08 | AO117: -6.379590585e-08 | AP117: -6.70410598e-08
B119: Gastos formalización
B120: Saldo incicial | H120: =+G124 -> 0 | I120: 0 | J120: 0 | K120: 0 | L120: -1271278.866 | M120: -1589972.156 | N120: -1524670.237 | O120: -1287565.026 | P120: -1061113.264 | Q120: -850680.947 | R120: -660301.714 | S120: -485412.7726 | T120: -331708.0391 | U120: -201839.1293 | V120: -100743.2784 | W120: -27527.77636 | X120: 12376.60241 | Y120: 15490.64181 | Z120: -5.19794412e-08 | AA120: -5.344656344e-08 | AB120: -5.498831489e-08 | AC120: -5.660849175e-08 | AD120: -5.831108337e-08 | AE120: -6.010028198e-08 | AF120: -6.198049309e-08 | AG120: -6.395634631e-08 | AH120: =+AG124 -> -6.603270672e-08 | AI120: -6.821468691e-08 | AJ120: -7.050765951e-08 | AK120: -7.291727046e-08 | AL120: -7.544945289e-08 | AM120: -7.811044174e-08 | AN120: -8.090678908e-08 | AO120: -8.384538032e-08 | AP120: -8.693345107e-08
B121: Comisiones | F121: =+SUM(H121:AP121) -> -1105618.634 | H121: =+H114 -> 0 | I121: 0 | J121: 0 | K121: -1034729.194 | L121: -70889.43934 | M121: 0 | N121: 0 | O121: 0 | P121: 0 | Q121: 0 | R121: 0 | S121: 0 | T121: 0 | U121: 0 | V121: 0 | W121: 0 | X121: 0 | Y121: 0 | Z121: 0 | AA121: 0 | AB121: 0 | AC121: 0 | AD121: 0 | AE121: 0 | AF121: 0 | AG121: 0 | AH121: 0 | AI121: 0 | AJ121: 0 | AK121: 0 | AL121: 0 | AM121: 0 | AN121: 0 | AO121: 0 | AP121: 0
B122: Intereses | F122: =+SUM(H122:AP122) -> -13542368.94 | H122: =+H115 -> 0 | I122: =+I115 -> 0 | J122: 0 | K122: -527828.1163 | L122: -1286361.032 | M122: -1553330.004 | N122: -1469374.987 | O122: -1395833.328 | P122: -1303166.342 | Q122: -1196780.348 | R122: -1076865.262 | S122: -954225.2956 | T122: -825087.9845 | U122: -690961.2235 | V122: -545785.7039 | W122: -395248.2326 | X122: -236531.4041 | Y122: -84989.67462 | Z122: 0 | AA122: 0 | AB122: 0 | AC122: 0 | AD122: 0 | AE122: 0 | AF122: 0 | AG122: 0 | AH122: 0 | AI122: 0 | AJ122: 0 | AK122: 0 | AL122: 0 | AM122: 0 | AN122: 0 | AO122: 0 | AP122: 0
B123: Gastos financieros devengados | F123: =+SUM(H123:AP123) -> 14647987.57 | H123: =+H116 -> 0 | I123: 0 | J123: 0 | K123: 291278.4443 | L123: 1038557.181 | M123: 1618631.923 | N123: 1706480.198 | O123: 1622285.09 | P123: 1513598.66 | Q123: 1387159.581 | R123: 1251754.203 | S123: 1107930.029 | T123: 954956.8943 | U123: 792057.0744 | V123: 619001.2059 | W123: 435152.6113 | X123: 239645.4435 | Y123: 69499.0328 | Z123: -1.467122245e-09 | AA123: -1.541751447e-09 | AB123: -1.620176868e-09 | AC123: -1.702591614e-09 | AD123: -1.789198612e-09 | AE123: -1.880211112e-09 | AF123: -1.975853214e-09 | AG123: -2.076360414e-09 | AH123: -2.181980188e-09 | AI123: -2.292972603e-09 | AJ123: -2.409610951e-09 | AK123: -2.53218243e-09 | AL123: -2.660988843e-09 | AM123: -2.796347348e-09 | AN123: -2.938591235e-09 | AO123: -3.088070748e-09 | AP123: -3.245153947e-09
B124: Saldo final | H124: =+SUM(H120:H123) -> 0 | I124: 0 | J124: 0 | K124: -1271278.866 | L124: -1589972.156 | M124: -1524670.237 | N124: -1287565.026 | O124: -1061113.264 | P124: -850680.947 | Q124: -660301.714 | R124: -485412.7726 | S124: -331708.0391 | T124: -201839.1293 | U124: -100743.2784 | V124: -27527.77636 | W124: 12376.60241 | X124: 15490.64181 | Y124: -5.19794412e-08 | Z124: -5.344656344e-08 | AA124: -5.498831489e-08 | AB124: -5.660849175e-08 | AC124: -5.831108337e-08 | AD124: -6.010028198e-08 | AE124: -6.198049309e-08 | AF124: -6.395634631e-08 | AG124: -6.603270672e-08 | AH124: -6.821468691e-08 | AI124: -7.050765951e-08 | AJ124: -7.291727046e-08 | AK124: -7.544945289e-08 | AL124: -7.811044174e-08 | AM124: -8.090678908e-08 | AN124: -8.384538032e-08 | AO124: -8.693345107e-08 | AP124: -9.017860501e-08
B126: Gastos financieros diferidos TIE durante construcción | F126: =+SUM(H126:AP126) -> 1864957.108 | H126: =+H123*H14 -> 0 | I126: 0 | J126: 0 | K126: 291278.4443 | L126: 1038557.181 | M126: 535121.4827 | N126: 0 | O126: 0 | P126: 0 | Q126: 0 | R126: 0 | S126: 0 | T126: 0 | U126: 0 | V126: 0 | W126: 0 | X126: 0 | Y126: 0 | Z126: 0 | AA126: 0 | AB126: 0 | AC126: 0 | AD126: 0 | AE126: 0 | AF126: 0 | AG126: 0 | AH126: 0 | AI126: 0 | AJ126: 0 | AK126: 0 | AL126: 0 | AM126: 0 | AN126: 0 | AO126: 0 | AP126: 0
B127: Gastos financieros diferidos TIE durante operación | F127: =+SUM(H127:AP127) -> 12783030.46 | H127: =+H123-H126 -> 0 | I127: =+I123-I126 -> 0 | J127: 0 | K127: 0 | L127: 0 | M127: 1083510.44 | N127: 1706480.198 | O127: 1622285.09 | P127: 1513598.66 | Q127: 1387159.581 | R127: 1251754.203 | S127: 1107930.029 | T127: 954956.8943 | U127: 792057.0744 | V127: 619001.2059 | W127: 435152.6113 | X127: 239645.4435 | Y127: 69499.0328 | Z127: -1.467122245e-09 | AA127: -1.541751447e-09 | AB127: -1.620176868e-09 | AC127: -1.702591614e-09 | AD127: -1.789198612e-09 | AE127: -1.880211112e-09 | AF127: -1.975853214e-09 | AG127: -2.076360414e-09 | AH127: -2.181980188e-09 | AI127: -2.292972603e-09 | AJ127: -2.409610951e-09 | AK127: -2.53218243e-09 | AL127: -2.660988843e-09 | AM127: -2.796347348e-09 | AN127: -2.938591235e-09 | AO127: -3.088070748e-09 | AP127: -3.245153947e-09
B128: % de ingresos | H128: =+'Ingresos '!H192/'Ingresos '!$F$192 -> 0 | I128: =+'Ingresos '!I192/'Ingresos '!$F$192 -> 0 | J128: =+'Ingresos '!J192/'Ingresos '!$F$192 -> 0 | K128: =+'Ingresos '!K192/'Ingresos '!$F$192 -> 0 | L128: =+'Ingresos '!L192/'Ingresos '!$F$192 -> 0 | M128: =+'Ingresos '!M192/'Ingresos '!$F$192 -> 0.01655248231 | N128: =+'Ingresos '!N192/'Ingresos '!$F$192 -> 0.02656491088 | O128: =+'Ingresos '!O192/'Ingresos '!$F$192 -> 0.02949026366 | P128: =+'Ingresos '!P192/'Ingresos '!$F$192 -> 0.03253419438 | Q128: =+'Ingresos '!Q192/'Ingresos '!$F$192 -> 0.0331473494 | R128: =+'Ingresos '!R192/'Ingresos '!$F$192 -> 0.03340532435 | S128: =+'Ingresos '!S192/'Ingresos '!$F$192 -> 0.0337393776 | T128: =+'Ingresos '!T192/'Ingresos '!$F$192 -> 0.03407677137 | U128: =+'Ingresos '!U192/'Ingresos '!$F$192 -> 0.03449326471 | V128: =+'Ingresos '!V192/'Ingresos '!$F$192 -> 0.03476171448 | W128: =+'Ingresos '!W192/'Ingresos '!$F$192 -> 0.03522346746 | X128: =+'Ingresos '!X192/'Ingresos '!$F$192 -> 0.03557570213 | Y128: =+'Ingresos '!Y192/'Ingresos '!$F$192 -> 0.03601025954 | Z128: =+'Ingresos '!Z192/'Ingresos '!$F$192 -> 0.03629077375 | AA128: =+'Ingresos '!AA192/'Ingresos '!$F$192 -> 0.03665368148 | AB128: =+'Ingresos '!AB192/'Ingresos '!$F$192 -> 0.0370202183 | AC128: =+'Ingresos '!AC192/'Ingresos '!$F$192 -> 0.03747242048 | AD128: =+'Ingresos '!AD192/'Ingresos '!$F$192 -> 0.03776432469 | AE128: =+'Ingresos '!AE192/'Ingresos '!$F$192 -> 0.03814196793 | AF128: =+'Ingresos '!AF192/'Ingresos '!$F$192 -> 0.03852338761 | AG128: =+'Ingresos '!AG192/'Ingresos '!$F$192 -> 0.03899395102 | AH128: =+'Ingresos '!AH192/'Ingresos '!$F$192 -> 0.0392977077 | AI128: =+'Ingresos '!AI192/'Ingresos '!$F$192 -> 0.03969068478 | AJ128: =+'Ingresos '!AJ192/'Ingresos '!$F$192 -> 0.04008759163 | AK128: =+'Ingresos '!AK192/'Ingresos '!$F$192 -> 0.04057726179 | AL128: =+'Ingresos '!AL192/'Ingresos '!$F$192 -> 0.04089335222 | AM128: =+'Ingresos '!AM192/'Ingresos '!$F$192 -> 0.04130228574 | AN128: =+'Ingresos '!AN192/'Ingresos '!$F$192 -> 0.0417153086 | AO128: =+'Ingresos '!AO192/'Ingresos '!$F$192 -> 0 | AP128: =+'Ingresos '!AP192/'Ingresos '!$F$192 -> 0
B129: Gastos financieros diferidos ingresos durante operación | H129: =+$F$127*H128 -> 0 | I129: =+$F$127*I128 -> 0 | J129: 0 | K129: 0 | L129: 0 | M129: 211590.8856 | N129: 339580.065 | O129: 376974.9388 | P129: 415885.5978 | Q129: 423723.5772 | R129: 427021.2789 | S129: 431291.4916 | T129: 435604.4066 | U129: 440928.4536 | V129: 444360.0551 | W129: 450262.6576 | X129: 454765.2842 | Y129: 460320.2447 | Z129: 463906.0664 | AA129: 468545.127 | AB129: 473230.5783 | AC129: 479011.0926 | AD129: 482742.5129 | AE129: 487569.9381 | AF129: 492445.6374 | AG129: 498460.8637 | AH129: 502343.7948 | AI129: 507367.2327 | AJ129: 512440.905 | AK129: 518700.3736 | AL129: 522740.9672 | AM129: 527968.3769 | AN129: 533248.0607 | AO129: 0 | AP129: 0
B131: Total Gastos Financieros P&L | F131: =+SUM(H131:AP131) -> 15460880.8 | H131: =+H126+H129+H92 -> 0 | I131: 0 | J131: 0 | K131: 341778.4443 | L131: 1089562.181 | M131: 798227.4183 | N131: 391610.2655 | O131: 429525.4413 | P131: 468961.6054 | Q131: 477330.3448 | R131: 481164.1141 | S131: 485975.7553 | T131: 490835.5128 | U131: 496711.8709 | V131: 500701.3066 | W131: 507167.3216 | X131: 512238.9948 | Y131: 518368.6925 | Z131: 463906.0664 | AA131: 468545.127 | AB131: 473230.5783 | AC131: 479011.0926 | AD131: 482742.5129 | AE131: 487569.9381 | AF131: 492445.6374 | AG131: 498460.8637 | AH131: 502343.7948 | AI131: 507367.2327 | AJ131: 512440.905 | AK131: 518700.3736 | AL131: 522740.9672 | AM131: 527968.3769 | AN131: 533248.0607 | AO131: 0 | AP131: 0
B132: Total Gastos Financieros CF | F132: =+SUM(H132:AP132) -> 15460880.8 | H132: =-H121-H122+H92 -> 0 | I132: 0 | J132: =-J121-J122+J92 -> 0 | K132: 1613057.311 | L132: 1408255.471 | M132: 1604845.054 | N132: 1521405.188 | O132: 1448383.831 | P132: 1356242.35 | Q132: 1250387.116 | R132: 1131008.097 | S132: 1008909.559 | T132: 880319.0908 | U132: 746744.6408 | V132: 602126.9554 | W132: 452152.8966 | X132: 294005.1148 | Y132: 143038.1224 | Z132: 0 | AA132: 0 | AB132: 0 | AC132: 0 | AD132: 0 | AE132: 0 | AF132: 0 | AG132: 0 | AH132: 0 | AI132: 0 | AJ132: 0 | AK132: 0 | AL132: 0 | AM132: 0 | AN132: 0 | AO132: 0 | AP132: 0
B133: Total Gastos Financieros Balance | H133: =-H132+H131+G133 -> 0 | I133: =-I132+I131+H133 -> 0 | J133: 0 | K133: -1271278.866 | L133: -1589972.156 | M133: -2396589.792 | N133: -3526384.714 | O133: -4545243.103 | P133: -5432523.848 | Q133: -6205580.619 | R133: -6855424.602 | S133: -7378358.406 | T133: -7767841.984 | U133: -8017874.754 | V133: -8119300.403 | W133: -8064285.978 | X133: -7846052.098 | Y133: -7470721.527 | Z133: -7006815.461 | AA133: -6538270.334 | AB133: -6065039.756 | AC133: -5586028.663 | AD133: -5103286.15 | AE133: -4615716.212 | AF133: -4123270.575 | AG133: -3624809.711 | AH133: -3122465.916 | AI133: -2615098.683 | AJ133: -2102657.778 | AK133: -1583957.405 | AL133: -1061216.438 | AM133: -533248.0607 | AN133: -8.975621313e-08 | AO133: -8.975621313e-08 | AP133: -8.975621313e-08
B135: Repago de Principal
B136: CF Disponible para el Servicio de la Deuda | H136: =+'Cash Flow'!H108 -> 0 | I136: =+'Cash Flow'!I108 -> 0 | J136: =+'Cash Flow'!J108 -> 0 | K136: =+'Cash Flow'!K108 -> 0 | L136: =+'Cash Flow'!L108 -> 0 | M136: =+'Cash Flow'!M108 -> 5489388.723 | N136: =+'Cash Flow'!N108 -> 4828596.604 | O136: =+'Cash Flow'!O108 -> 5413245.115 | P136: =+'Cash Flow'!P108 -> 6021991.712 | Q136: =+'Cash Flow'!Q108 -> 6135758.685 | R136: =+'Cash Flow'!R108 -> 6173075.373 | S136: =+'Cash Flow'!S108 -> 6227669.684 | T136: =+'Cash Flow'!T108 -> 6282808.634 | U136: =+'Cash Flow'!U108 -> 6355839.827 | V136: =+'Cash Flow'!V108 -> 6394742.273 | W136: =+'Cash Flow'!W108 -> 6474870.953 | X136: =+'Cash Flow'!X108 -> 6532476.649 | Y136: =+'Cash Flow'!Y108 -> 6608627.543 | Z136: =+'Cash Flow'!Z108 -> 3532028.719 | AA136: =+'Cash Flow'!AA108 -> 6713543.087 | AB136: =+'Cash Flow'!AB108 -> 6773501.961 | AC136: =+'Cash Flow'!AC108 -> 6852683.248 | AD136: =+'Cash Flow'!AD108 -> 6895220.048 | AE136: =+'Cash Flow'!AE108 -> 6956991.271 | AF136: =+'Cash Flow'!AF108 -> 7019378.72 | AG136: =+'Cash Flow'!AG108 -> 7101693.211 | AH136: =+'Cash Flow'!AH108 -> 7146026.983 | AI136: =+'Cash Flow'!AI108 -> 7210300.295 | AJ136: =+'Cash Flow'!AJ108 -> 7275214.83 | AK136: =+'Cash Flow'!AK108 -> 7360789.648 | AL136: =+'Cash Flow'!AL108 -> 7406993.256 | AM136: =+'Cash Flow'!AM108 -> 7473870.152 | AN136: =+'Cash Flow'!AN108 -> 3958055.733 | AO136: =+'Cash Flow'!AO108 -> 0 | AP136: =+'Cash Flow'!AP108 -> 0
B137: RCSDesculpido | D137: =+Control!H23 -> 1.5 | H137: =+$D$137 -> 1.5 | I137: =+$D$137 -> 1.5 | J137: 1.5 | K137: 1.5 | L137: 1.5 | M137: 1.5 | N137: 1.5 | O137: 1.5 | P137: 1.5 | Q137: 1.5 | R137: 1.5 | S137: 1.5 | T137: 1.5 | U137: 1.5 | V137: 1.5 | W137: 1.5 | X137: 1.5 | Y137: 1.5 | Z137: 1.5 | AA137: 1.5 | AB137: 1.5 | AC137: 1.5 | AD137: 1.5 | AE137: 1.5 | AF137: 1.5 | AG137: 1.5 | AH137: 1.5 | AI137: 1.5 | AJ137: 1.5 | AK137: 1.5 | AL137: 1.5 | AM137: 1.5 | AN137: 1.5 | AO137: 1.5 | AP137: 1.5
B138: CF Máximo para Servicio de la Deuda | H138: =+H136/H137 -> 0 | I138: =+I136/I137 -> 0 | J138: =+J136/J137 -> 0 | K138: 0 | L138: 0 | M138: 3659592.482 | N138: 3219064.403 | O138: 3608830.077 | P138: 4014661.141 | Q138: 4090505.79 | R138: 4115383.582 | S138: 4151779.789 | T138: 4188539.089 | U138: 4237226.551 | V138: 4263161.515 | W138: 4316580.635 | X138: 4354984.433 | Y138: 4405751.695 | Z138: 2354685.813 | AA138: 4475695.391 | AB138: 4515667.974 | AC138: 4568455.498 | AD138: 4596813.365 | AE138: 4637994.18 | AF138: 4679585.813 | AG138: 4734462.141 | AH138: =+AH136/AH137 -> 4764017.989 | AI138: 4806866.864 | AJ138: 4850143.22 | AK138: 4907193.098 | AL138: 4937995.504 | AM138: 4982580.102 | AN138: 2638703.822 | AO138: 0 | AP138: 0
B139: CF Disponible para Repago de Principal | H139: =+(H138-H85-H86-H94)*((H138-H85-H86-H94)>0) -> 0 | I139: =+(I138-I85-I86-I94)*((I138-I85-I86-I94)>0) -> 0 | J139: =+(J138-J85-J86-J94)*((J138-J85-J86-J94)>0) -> 0 | K139: 0 | L139: 0 | M139: 2054747.428 | N139: 1697659.215 | O139: 2160446.246 | P139: 2658418.791 | Q139: 2840118.674 | R139: 2984375.485 | S139: 3142870.23 | T139: 3308219.998 | U139: 3490481.911 | V139: 3661034.56 | W139: 3864427.738 | X139: 4060979.318 | Y139: 4262713.573 | Z139: 2354685.813 | AA139: 4475695.391 | AB139: 4515667.974 | AC139: 4568455.498 | AD139: 4596813.365 | AE139: 4637994.18 | AF139: 4679585.813 | AG139: 4734462.141 | AH139: 4764017.989 | AI139: 4806866.864 | AJ139: 4850143.22 | AK139: 4907193.098 | AL139: 4937995.504 | AM139: 4982580.102 | AN139: 2638703.822 | AO139: 0 | AP139: 0
B142: Resumen deuda
B143: Servicio de la deuda | H143: =-H70+H85+H86+H94 -> 0 | I143: =-I70+I85+I86+I94 -> 0 | J143: 0 | K143: 1613057.311 | L143: 1408255.471 | M143: 3659592.482 | N143: 3219064.403 | O143: 3608830.077 | P143: 4014661.141 | Q143: 4090505.79 | R143: 4115383.582 | S143: 4151779.789 | T143: 4188539.089 | U143: 4237226.551 | V143: 4263161.515 | W143: 4316580.635 | X143: 4354984.433 | Y143: 2929584.831 | Z143: 0 | AA143: 0 | AB143: 0 | AC143: 0 | AD143: 0 | AE143: 0 | AF143: 0 | AG143: 0 | AH143: 0 | AI143: 0 | AJ143: 0 | AK143: 0 | AL143: 0 | AM143: 0 | AN143: 0 | AO143: 0 | AP143: 0
B144: Ratio de Cobertura del Servicio de la Deuda (efectivo) | H144: =+IF(H$70=0,"n.a.",IFERROR(H136/H143,"n.a.")) -> n.a. | I144: =+IF(I$70=0,"n.a.",IFERROR(I136/I143,"n.a.")) -> n.a. | J144: =+IF(J$70=0,"n.a.",IFERROR(J136/J143,"n.a.")) -> n.a. | K144: =+IF(K$70=0,"n.a.",IFERROR(K136/K143,"n.a.")) -> n.a. | L144: =+IF(L$70=0,"n.a.",IFERROR(L136/L143,"n.a.")) -> n.a. | M144: =+IF(M$70=0,"n.a.",IFERROR(M136/M143,"n.a.")) -> 1.5 | N144: 1.5 | O144: 1.5 | P144: 1.5 | Q144: 1.5 | R144: 1.5 | S144: 1.5 | T144: 1.5 | U144: 1.5 | V144: 1.5 | W144: 1.5 | X144: 1.5 | Y144: 2.255823922 | Z144: n.a. | AA144: n.a. | AB144: n.a. | AC144: n.a. | AD144: n.a. | AE144: n.a. | AF144: n.a. | AG144: n.a. | AH144: n.a. | AI144: n.a. | AJ144: n.a. | AK144: n.a. | AL144: n.a. | AM144: n.a. | AN144: n.a. | AO144: n.a. | AP144: n.a.
B145: RCSD mínimo (efectivo) | F145: =+MIN(H144:AP144) -> 1.5
B146: RCSD último periodo | F146: =+SUMPRODUCT(H147:AP147,H144:AP144) -> 2.255823922
B147: Año repago de la deuda | F147: =+SUMPRODUCT($H$147:$AP$147,$H$4:$AP$4) -> 2036 | H147: =+AND(ROUND(H71,0)=0,H68<>0)*1 -> 0 | I147: =+AND(ROUND(I71,0)=0,I68<>0)*1 -> 0 | J147: 0 | K147: 0 | L147: 0 | M147: 0 | N147: 0 | O147: 0 | P147: 0 | Q147: 0 | R147: 0 | S147: 0 | T147: 0 | U147: 0 | V147: 0 | W147: 0 | X147: 0 | Y147: 1 | Z147: 0 | AA147: 0 | AB147: 0 | AC147: 0 | AD147: 0 | AE147: 0 | AF147: 0 | AG147: 0 | AH147: 0 | AI147: 0 | AJ147: 0 | AK147: 0 | AL147: 0 | AM147: 0 | AN147: 0 | AO147: 0 | AP147: 0
B149: Plazo de la deuda (años) | F149: =+SUM(H149:AP149) -> 15 | H149: =+OR(ROUND(H71,0)<>0,H68<>0)*1*(H$10=1) -> 0 | I149: 0 | J149: 0 | K149: 1 | L149: 1 | M149: 1 | N149: 1 | O149: 1 | P149: 1 | Q149: 1 | R149: 1 | S149: 1 | T149: 1 | U149: 1 | V149: 1 | W149: 1 | X149: 1 | Y149: 1 | Z149: 0 | AA149: 0 | AB149: 0 | AC149: 0 | AD149: 0 | AE149: 0 | AF149: 0 | AG149: 0 | AH149: 0 | AI149: 0 | AJ149: 0 | AK149: 0 | AL149: 0 | AM149: 0 | AN149: 0 | AO149: 0 | AP149: 0
B150: Años de cola | F150: =+SUM(H150:AP150) -> 15 | H150: =+H10-H149 -> 0 | I150: 0 | J150: 0 | K150: 0 | L150: 0 | M150: 0 | N150: 0 | O150: 0 | P150: 0 | Q150: 0 | R150: 0 | S150: 0 | T150: 0 | U150: 0 | V150: 0 | W150: 0 | X150: 0 | Y150: 0 | Z150: 1 | AA150: 1 | AB150: 1 | AC150: 1 | AD150: 1 | AE150: 1 | AF150: 1 | AG150: 1 | AH150: 1 | AI150: 1 | AJ150: 1 | AK150: 1 | AL150: 1 | AM150: 1 | AN150: 1 | AO150: 0 | AP150: 0
B152: RCSDmin | F152: =+Control!H24 -> 1.5
B153: Check RCSD Mínimo Deuda PF | F153: =+IF(Control!H11>0,+IF(F145>=F152, "Ok","Error"),"Ok") -> Ok
B155: Plazo máximo de la deuda | F155: =+Control!$H$15 -> 15
B156: Check Plazo Deuda PF | F156: =+IF(F149<=F155,"Ok","Error") -> Ok
B159: Cuenta de Reserva para el Servicio de la Deuda
B161: Servicio de la deuda | H161: =+H143 -> 0 | I161: 0 | J161: 0 | K161: 1613057.311 | L161: 1408255.471 | M161: 3659592.482 | N161: 3219064.403 | O161: 3608830.077 | P161: 4014661.141 | Q161: 4090505.79 | R161: 4115383.582 | S161: 4151779.789 | T161: 4188539.089 | U161: 4237226.551 | V161: 4263161.515 | W161: 4316580.635 | X161: 4354984.433 | Y161: 2929584.831 | Z161: 0 | AA161: 0 | AB161: 0 | AC161: 0 | AD161: 0 | AE161: 0 | AF161: 0 | AG161: 0 | AH161: 0 | AI161: 0 | AJ161: 0 | AK161: 0 | AL161: 0 | AM161: 0 | AN161: 0 | AO161: 0 | AP161: 0
B163: Flag dotación CRSD | H163: =+(OR(H13,H16))*1 -> 0 | I163: 0 | J163: 0 | K163: 0 | L163: 0 | M163: 1 | N163: 1 | O163: 1 | P163: 1 | Q163: 1 | R163: 1 | S163: 1 | T163: 1 | U163: 1 | V163: 1 | W163: 1 | X163: 1 | Y163: 1 | Z163: 1 | AA163: 1 | AB163: 1 | AC163: 1 | AD163: 1 | AE163: 1 | AF163: 1 | AG163: 1 | AH163: 1 | AI163: 1 | AJ163: 1 | AK163: 1 | AL163: 1 | AM163: 1 | AN163: 1 | AO163: 0 | AP163: 0
B165: CRSD objetivo | D165: =+Control!$H$22 -> 0.5 | F165: =+SUM(H165:AG165) -> 23745150.92 | H165: =+$D165*I$161*H$163 -> 0 | I165: =+$D165*J$161*I$163 -> 0 | J165: 0 | K165: 0 | L165: 0 | M165: 1609532.201 | N165: 1804415.038 | O165: 2007330.571 | P165: 2045252.895 | Q165: 2057691.791 | R165: 2075889.895 | S165: 2094269.545 | T165: 2118613.276 | U165: 2131580.758 | V165: 2158290.318 | W165: 2177492.216 | X165: 1464792.416 | Y165: 0 | Z165: 0 | AA165: 0 | AB165: 0 | AC165: 0 | AD165: 0 | AE165: 0 | AF165: 0 | AG165: 0 | AH165: 0 | AI165: 0 | AJ165: 0 | AK165: 0 | AL165: 0 | AM165: 0 | AN165: 0 | AO165: 0 | AP165: 0
B167: Saldo inicial | H167: =+G172 -> 0 | I167: 0 | J167: 0 | K167: 0 | L167: 0 | M167: 0 | N167: 1609532.201 | O167: 1804415.038 | P167: 2007330.571 | Q167: 2045252.895 | R167: 2057691.791 | S167: 2075889.895 | T167: 2094269.545 | U167: 2118613.276 | V167: 2131580.758 | W167: 2158290.318 | X167: 2177492.216 | Y167: 1464792.416 | Z167: 0 | AA167: 0 | AB167: 0 | AC167: 0 | AD167: 0 | AE167: 0 | AF167: 0 | AG167: 0 | AH167: 0 | AI167: 0 | AJ167: 0 | AK167: 0 | AL167: 0 | AM167: 0 | AN167: 0 | AO167: 0 | AP167: 0
B168: CRSD a financiar (copy) | F168: =+SUM(H168:AP168) -> 1609532.201 | H168: =+H165*(AND(H165<>0,G165=0)) -> 0 | I168: 0 | J168: 0 | K168: 0 | L168: 0 | M168: 1609532.201 | N168: 0 | O168: 0 | P168: 0 | Q168: 0 | R168: 0 | S168: 0 | T168: 0 | U168: 0 | V168: 0 | W168: 0 | X168: 0 | Y168: 0 | Z168: 0 | AA168: 0 | AB168: 0 | AC168: 0 | AD168: 0 | AE168: 0 | AF168: 0 | AG168: 0 | AH168: 0 | AI168: 0 | AJ168: 0 | AK168: 0 | AL168: 0 | AM168: 0 | AN168: 0 | AO168: 0 | AP168: 0
B169: CRSD a financiar (paste) | F169: =+SUM(H169:AP169) -> 1609532.201 | H169: =+Macro!H26 -> 0 | I169: =+Macro!I26 -> 0 | J169: =+Macro!J26 -> 0 | K169: =+Macro!K26 -> 0 | L169: =+Macro!L26 -> 0 | M169: =+Macro!M26 -> 1609532.201 | N169: =+Macro!N26 -> 0 | O169: =+Macro!O26 -> 0 | P169: =+Macro!P26 -> 0 | Q169: =+Macro!Q26 -> 0 | R169: =+Macro!R26 -> 0 | S169: =+Macro!S26 -> 0 | T169: =+Macro!T26 -> 0 | U169: =+Macro!U26 -> 0 | V169: =+Macro!V26 -> 0 | W169: =+Macro!W26 -> 0 | X169: =+Macro!X26 -> 0 | Y169: =+Macro!Y26 -> 0 | Z169: =+Macro!Z26 -> 0 | AA169: =+Macro!AA26 -> 0 | AB169: =+Macro!AB26 -> 0 | AC169: =+Macro!AC26 -> 0 | AD169: =+Macro!AD26 -> 0 | AE169: =+Macro!AE26 -> 0 | AF169: =+Macro!AF26 -> 0 | AG169: =+Macro!AG26 -> 0 | AH169: =+Macro!AH26 -> 0 | AI169: =+Macro!AI26 -> 0 | AJ169: =+Macro!AJ26 -> 0 | AK169: =+Macro!AK26 -> 0 | AL169: =+Macro!AL26 -> 0 | AM169: =+Macro!AM26 -> 0 | AN169: =+Macro!AN26 -> 0 | AO169: =+Macro!AO26 -> 0 | AP169: =+Macro!AP26 -> 0
B170: Dotaciones | F170: =+SUM(H170:AP170) -> 567960.015 | H170: =+MAX(0,(H$165-H$167-H169)*(H$165-H$169>0)) -> 0 | I170: =+MAX(0,(I$165-I$167-I169)*(I$165-I$169>0)) -> 0 | J170: 0 | K170: 0 | L170: 0 | M170: 0 | N170: 194882.8369 | O170: 202915.5322 | P170: 37922.32446 | Q170: 12438.89608 | R170: 18198.10348 | S170: 18379.6501 | T170: 24343.73104 | U170: 12967.48189 | V170: 26709.55998 | W170: 19201.8988 | X170: 0 | Y170: 0 | Z170: 0 | AA170: 0 | AB170: 0 | AC170: 0 | AD170: 0 | AE170: 0 | AF170: 0 | AG170: 0 | AH170: 0 | AI170: 0 | AJ170: 0 | AK170: 0 | AL170: 0 | AM170: 0 | AN170: 0 | AO170: 0 | AP170: 0
B171: Desdotaciones | F171: =+SUM(H171:AP171) -> -2177492.216 | H171: =+-(H167-H165)*(H167>H165) -> 0 | I171: =+-(I167-I165)*(I167>I165) -> 0 | J171: 0 | K171: 0 | L171: 0 | M171: 0 | N171: 0 | O171: 0 | P171: 0 | Q171: 0 | R171: 0 | S171: 0 | T171: 0 | U171: 0 | V171: 0 | W171: 0 | X171: -712699.8008 | Y171: -1464792.416 | Z171: 0 | AA171: 0 | AB171: 0 | AC171: 0 | AD171: 0 | AE171: 0 | AF171: 0 | AG171: 0 | AH171: =+-(AH167-AH165)*(AH167>AH165) -> 0 | AI171: 0 | AJ171: 0 | AK171: 0 | AL171: 0 | AM171: 0 | AN171: 0 | AO171: 0 | AP171: 0
B172: Saldo final | H172: =+SUM(H169:H171)+H167 -> 0 | I172: =+SUM(I169:I171)+I167 -> 0 | J172: 0 | K172: 0 | L172: 0 | M172: 1609532.201 | N172: 1804415.038 | O172: 2007330.571 | P172: 2045252.895 | Q172: 2057691.791 | R172: 2075889.895 | S172: 2094269.545 | T172: 2118613.276 | U172: 2131580.758 | V172: 2158290.318 | W172: 2177492.216 | X172: 1464792.416 | Y172: 0 | Z172: 0 | AA172: 0 | AB172: 0 | AC172: 0 | AD172: 0 | AE172: 0 | AF172: 0 | AG172: 0 | AH172: 0 | AI172: 0 | AJ172: 0 | AK172: 0 | AL172: 0 | AM172: 0 | AN172: 0 | AO172: 0 | AP172: 0
B174: Check CRSD | F174: =+IF(ROUND(SUM(F169:F171),2)=0,"Ok","Error") -> Ok
B176: Caja mínima
B178: Saldo objetivo | D178: =+Control!H27 -> 200000 | H178: =+$D$178*(H16-H18) -> 0 | I178: 0 | J178: 0 | K178: 0 | L178: 0 | M178: 200000 | N178: 200000 | O178: 200000 | P178: 200000 | Q178: 200000 | R178: 200000 | S178: 200000 | T178: 200000 | U178: 200000 | V178: 200000 | W178: 200000 | X178: 200000 | Y178: 200000 | Z178: 200000 | AA178: 200000 | AB178: 200000 | AC178: 200000 | AD178: 200000 | AE178: 200000 | AF178: 200000 | AG178: 200000 | AH178: 200000 | AI178: 200000 | AJ178: 200000 | AK178: 200000 | AL178: 200000 | AM178: 200000 | AN178: =+$D$178*(AN16-AN18) -> 0 | AO178: =+$D$178*(AO16-AO18) -> 0 | AP178: 0
B180: Saldo inicial | H180: =+G183 -> 0 | I180: =+H183 -> 0 | J180: 0 | K180: 0 | L180: 0 | M180: 0 | N180: 200000 | O180: 200000 | P180: 200000 | Q180: 200000 | R180: 200000 | S180: 200000 | T180: 200000 | U180: 200000 | V180: 200000 | W180: 200000 | X180: 200000 | Y180: 200000 | Z180: 200000 | AA180: 200000 | AB180: 200000 | AC180: 200000 | AD180: 200000 | AE180: 200000 | AF180: 200000 | AG180: 200000 | AH180: 200000 | AI180: 200000 | AJ180: 200000 | AK180: 200000 | AL180: 200000 | AM180: 200000 | AN180: 200000 | AO180: 0 | AP180: 0
B181: Dotación | H181: =+MAX(H178-H180) -> 0 | I181: =+MAX(I178-I180) -> 0 | J181: 0 | K181: 0 | L181: 0 | M181: 200000 | N181: 0 | O181: 0 | P181: 0 | Q181: 0 | R181: 0 | S181: 0 | T181: 0 | U181: 0 | V181: 0 | W181: 0 | X181: 0 | Y181: 0 | Z181: 0 | AA181: 0 | AB181: 0 | AC181: 0 | AD181: 0 | AE181: 0 | AF181: 0 | AG181: 0 | AH181: 0 | AI181: 0 | AJ181: 0 | AK181: 0 | AL181: 0 | AM181: 0 | AN181: -200000 | AO181: 0 | AP181: 0
B182: Desdotación | H182: =+H178-H180-H181 -> 0 | I182: 0 | J182: 0 | K182: 0 | L182: 0 | M182: 0 | N182: 0 | O182: 0 | P182: 0 | Q182: 0 | R182: 0 | S182: 0 | T182: 0 | U182: 0 | V182: 0 | W182: 0 | X182: 0 | Y182: 0 | Z182: 0 | AA182: 0 | AB182: 0 | AC182: 0 | AD182: 0 | AE182: 0 | AF182: 0 | AG182: 0 | AH182: 0 | AI182: 0 | AJ182: 0 | AK182: 0 | AL182: 0 | AM182: 0 | AN182: 0 | AO182: 0 | AP182: 0
B183: Saldo final | H183: =+SUM(H180:H182) -> 0 | I183: =+SUM(I180:I182) -> 0 | J183: 0 | K183: 0 | L183: 0 | M183: 200000 | N183: 200000 | O183: 200000 | P183: 200000 | Q183: 200000 | R183: 200000 | S183: 200000 | T183: 200000 | U183: 200000 | V183: 200000 | W183: 200000 | X183: 200000 | Y183: 200000 | Z183: 200000 | AA183: 200000 | AB183: 200000 | AC183: 200000 | AD183: 200000 | AE183: 200000 | AF183: 200000 | AG183: 200000 | AH183: 200000 | AI183: 200000 | AJ183: 200000 | AK183: 200000 | AL183: 200000 | AM183: 200000 | AN183: 0 | AO183: 0 | AP183: 0

Sheet Impuestos
A1: =+Control!A1 -> Real Madrid - Parking
A2: =RIGHT(CELL("filename", $H$3), LEN(CELL("filename", $H$3)) - SEARCH("]", CELL("filename", $H$3))) -> Impuestos
A3: =+Control!A3 -> Cifras EUR
H4: =+YEAR(H5) -> 2019 | I4: =+YEAR(I5) -> 2020 | J4: 2021 | K4: 2022 | L4: 2023 | M4: 2024 | N4: 2025 | O4: 2026 | P4: 2027 | Q4: 2028 | R4: 2029 | S4: 2030 | T4: 2031 | U4: 2032 | V4: 2033 | W4: 2034 | X4: 2035 | Y4: 2036 | Z4: 2037 | AA4: 2038 | AB4: 2039 | AC4: 2040 | AD4: 2041 | AE4: 2042 | AF4: 2043 | AG4: 2044 | AH4: 2045 | AI4: 2046 | AJ4: 2047 | AK4: 2048 | AL4: 2049 | AM4: 2050 | AN4: 2051 | AO4: 2052 | AP4: 2053
B5: Errores | C5: =+Control!C4 -> 0 | H5: 2019-01-01 | I5: =+DATE(YEAR(H5)+1,MONTH(H5),DAY(H5)) -> 2020-01-01 | J5: 2021-01-01 | K5: 2022-01-01 | L5: 2023-01-01 | M5: 2024-01-01 | N5: 2025-01-01 | O5: 2026-01-01 | P5: 2027-01-01 | Q5: 2028-01-01 | R5: 2029-01-01 | S5: 2030-01-01 | T5: 2031-01-01 | U5: 2032-01-01 | V5: 2033-01-01 | W5: 2034-01-01 | X5: 2035-01-01 | Y5: =+DATE(YEAR(X5)+1,MONTH(X5),DAY(X5)) -> 2036-01-01 | Z5: 2037-01-01 | AA5: 2038-01-01 | AB5: 2039-01-01 | AC5: 2040-01-01 | AD5: 2041-01-01 | AE5: 2042-01-01 | AF5: 2043-01-01 | AG5: 2044-01-01 | AH5: 2045-01-01 | AI5: 2046-01-01 | AJ5: 2047-01-01 | AK5: 2048-01-01 | AL5: 2049-01-01 | AM5: 2050-01-01 | AN5: 2051-01-01 | AO5: =+DATE(YEAR(AN5)+1,MONTH(AN5),DAY(AN5)) -> 2052-01-01 | AP5: =+DATE(YEAR(AO5)+1,MONTH(AO5),DAY(AO5)) -> 2053-01-01
B6: TIR Accionistas (Dividendos) | C6: =+Control!C5 -> 0.0700448478 | H6: =+DATE(YEAR(H5),MONTH(H5)+12,DAY(H5)-1) -> 2019-12-31 | I6: =+DATE(YEAR(H6)+1,MONTH(H6),DAY(H6)) -> 2020-12-31 | J6: 2021-12-31 | K6: 2022-12-31 | L6: 2023-12-31 | M6: 2024-12-31 | N6: 2025-12-31 | O6: 2026-12-31 | P6: 2027-12-31 | Q6: 2028-12-31 | R6: 2029-12-31 | S6: 2030-12-31 | T6: 2031-12-31 | U6: 2032-12-31 | V6: 2033-12-31 | W6: 2034-12-31 | X6: 2035-12-31 | Y6: 2036-12-31 | Z6: 2037-12-31 | AA6: 2038-12-31 | AB6: 2039-12-31 | AC6: 2040-12-31 | AD6: 2041-12-31 | AE6: 2042-12-31 | AF6: 2043-12-31 | AG6: 2044-12-31 | AH6: 2045-12-31 | AI6: 2046-12-31 | AJ6: 2047-12-31 | AK6: 2048-12-31 | AL6: 2049-12-31 | AM6: 2050-12-31 | AN6: 2051-12-31 | AO6: =+DATE(YEAR(AN6)+1,MONTH(AN6),DAY(AN6)) -> 2052-12-31 | AP6: =+DATE(YEAR(AO6)+1,MONTH(AO6),DAY(AO6)) -> 2053-12-31
B8: =+Flags!B19 -> Periodo de Proyecto | H8: =+Flags!H19 -> 0 | I8: =+Flags!I19 -> 0 | J8: =+Flags!J19 -> 0 | K8: =+Flags!K19 -> 1 | L8: =+Flags!L19 -> 1 | M8: =+Flags!M19 -> 1 | N8: =+Flags!N19 -> 1 | O8: =+Flags!O19 -> 1 | P8: =+Flags!P19 -> 1 | Q8: =+Flags!Q19 -> 1 | R8: =+Flags!R19 -> 1 | S8: =+Flags!S19 -> 1 | T8: =+Flags!T19 -> 1 | U8: =+Flags!U19 -> 1 | V8: =+Flags!V19 -> 1 | W8: =+Flags!W19 -> 1 | X8: =+Flags!X19 -> 1 | Y8: =+Flags!Y19 -> 1 | Z8: =+Flags!Z19 -> 1 | AA8: =+Flags!AA19 -> 1 | AB8: =+Flags!AB19 -> 1 | AC8: =+Flags!AC19 -> 1 | AD8: =+Flags!AD19 -> 1 | AE8: =+Flags!AE19 -> 1 | AF8: =+Flags!AF19 -> 1 | AG8: =+Flags!AG19 -> 1 | AH8: =+Flags!AH19 -> 1 | AI8: =+Flags!AI19 -> 1 | AJ8: =+Flags!AJ19 -> 1 | AK8: =+Flags!AK19 -> 1 | AL8: =+Flags!AL19 -> 1 | AM8: =+Flags!AM19 -> 1 | AN8: =+Flags!AN19 -> 1 | AO8: =+Flags!AO19 -> 0 | AP8: =+Flags!AP19 -> 0
